Workbook

Sheet 0 START
B6: A multi-criteria analysis estimates the best suitable energy-wood supply system and their impacts on evaluation criteria. The developed tool is made up of three stages. After inserting user preferences by criteria weighting, input data for site, stand, environment and machine conditions will be selected. Finally, a report shows the results on screen.
B25: (It is recommended to activate Macros for successfully running the analysis tool!)
B27: © Institut of Forest Engineering, Department of Forest- and Soil Sciences, University of Natural Resources and
B28: Life Sciences
B29: Peter-Jordan-Strasse 82/3, 1190 Vienna
B30: www.boku.ac.at/forstt
B31: Further questions: martin.kuehmaier@boku.ac.at
B32: Version 2.6 (June 2013)
B34: Developed within the research project "Development of a model for eco-efficient supply of woody biomass", first call of the research program "Neue Energien 2020", funded by FFG and Klima- und Energiefonds

Sheet 1 Preferences (hidden)
B2: (1) Weighting of evaluation criteria
B5: Weighting of evaluation criteria follows the user's preferences according to ecological, economic and social aspects. Absolute values will be transferred into percentage values.
B8: Ecology | F8: =G8/(G8+G9+G10) -> 0.3333333333 | G8: 1
B9: Economy | F9: =G9/(G8+G9+G10) -> 0.3333333333 | G9: 1
B10: Social sustainability | F10: =G10/(G8+G9+G10) -> 0.3333333333 | G10: 1
B13: Nutrient balance | C13: ↓ | D13: [Nutrient loss in kg/ha-1] | F13: =$F$8*G13/($G$13+$G$14+$G$15+$G$16) -> 0.08333333333 | G13: 1
B14: Soil stability | C14: ↓ | D14: [Bearing pressure in kPa] | F14: =$F$8*G14/($G$13+$G$14+$G$15+$G$16) -> 0.08333333333 | G14: 1
B15: Energy efficiency | C15: ↓ | D15: [MWh/MWh] | F15: =$F$8*G15/($G$13+$G$14+$G$15+$G$16) -> 0.08333333333 | G15: 1
B16: Stand vitality | C16: ↓ | D16: [Damage in %] | F16: =$F$8*G16/($G$13+$G$14+$G$15+$G$16) -> 0.08333333333 | G16: 1
B18: Contribution margin | C18: ↑ | D18: [€/MWh] | F18: =F9*G18/(G18+G19) -> 0.1666666667 | G18: 1
B19: Supply guarantee | C19: ↑ | D19: [-] | F19: =F9*G19/(G18+G19) -> 0.1666666667 | G19: 1
B21: Employment | C21: ↑ | D21: [Operating time in h/MWh] | F21: =$F$10*G21/($G$21+$G$22) -> 0.1666666667 | G21: 1
B22: Working safety | C22: ↑ | D22: [-] | F22: =$F$10*G22/($G$21+$G$22) -> 0.1666666667 | G22: 1

Sheet 2 Specification (hidden)
B2: (2) Specification
B5: Specification defines the technological limits and provides input data for the evaluation of supply chains. Therefore site, stand and environmental conditions will be used as well as machine data. The value of the specification influences the performance of the supply chains.

Sheet 2a Site and stand (hidden)
B2: (2a) Specification - Site & Stand
B4: Site and stand data determine the technical applicability and allows a pre-selection of potential supply chains. For further calculations only feasible systems will be considered.
B7: Accessibility | D7: no restrictions
B9: Bearing capacity | D9: no restrictions
B11: Slope [%] | D11: no restrictions
B13: Extraction distance | D13: no restrictions
B15: DBH [cm] | D15: 15
B17: Soil type | D17: no restrictions
B19: Tree species
C20: Percentage
B21: Tree species 1 | C21: 75 | D21: Norway Spruce
B22: Tree species 2 | C22: 20 | D22: Beech
B23: Tree species 3 | C23: 5 | D23: Ash

Sheet 2b Environment (hidden)
B2: (2b) Specification - Environment
B4: Additional information about supply chains which is not related to site, stand and machine data is described as environmental specification. This input data is used to characterize a supply chain more precisely.
B7: Utilization amount [m³] | D7: 280
B9: Distance - Direct transport [km] | D9: 38
B10: Distance - Forest-Terminal [km] | D10: 12
B11: Distance - Terminal-Plant [km] | D11: 30
B13: Water content - fresh [%] | D13: 55
B14: Water content - dry [%] | D14: 30
B16: Chipping on forest road | D16: no restrictions
B17: Chipping at terminal | D17: no restrictions
B18: Chipping at plant | D18: no restrictions
B20: Storage costs - Terminal [€/m³] | D20: 3
B21: Storage costs - Plant [€/m³] | D21: 1
B23: Relevance of by-production [%] | D23: 0.1
B25: Purchase price [€/m³] | D25: 1.5
B27: Administration costs [%] | D27: 0.04
B29: Revenues [€/MWh] | D29: 20

Sheet 2ca Felling and processing (hidden)
B2: (2c) Specification: Felling & Processing
B4: To describe efficiency of felling/delimbing/crosscutting processes data about fuel consumption, system costs and productivity may be inserted. Productivity can be calculated on an additional work sheet. The calculation of costs is presented only for plausibility check.
B7: Chain Saw | C7: 0.53
C8: Fuel consumption l/h
C10: 35.5
C11: System costs €/h
B13: a) Felling | C13: 3 | E13: EURO/m³ | F13: =C10/C13*(1+GKZ) -> 12.30666667
C14: Productivity m³/h
B16: b) Felling & delimbing | C16: 2 | E16: EURO/m³ | F16: =C10/C16*(1+GKZ) -> 18.46
C17: Productivity m³/h
B19: c) Felling, delimbing & crosscutting | C19: 1.5 | E19: EURO/m³ | F19: =C10/C19*(1+GKZ) -> 24.61333333
C20: Productivity m³/h
B23: Feller buncher | C23: 6.5
C24: Fuel consumption l/h
C26: 130
C27: System costs €/h
B29: Felling | C29: 5.8 | E29: EURO/m³ | F29: =C26/C29*(1+GKZ) -> 23.31034483
C30: Productivity m³/h
B33: Harvester | C33: 15.6
C34: Fuel consumption l/h
C36: 102
C37: System costs €/h
B39: Felling, delimbing & crosscutting | C39: 8.7 | E39: EURO/m³ | F39: =C36/C39*(1+GKZ) -> 12.19310345
C40: Productivity m³/h
B43: Processor | C43: 8
C44: Fuel consumption l/h
C46: 110
C47: System costs €/h
B49: Delimbing & crosscutting | C49: 10 | E49: EURO/m³ | F49: =C46/C49*(1+GKZ) -> 11.44
C50: Productivity m³/h

Sheet 2cb Extracting (hidden)
B2: (2c) Specification: Extracting
B4: To describe efficiency of extracting processes data about fuel consumption, system costs and productivity may be inserted. Productivity can be calculated on an additional work sheet. The calculation of costs is presented only for plausibility check.
B5: For the extraction process a differentiation between logs/stems (=biomass as round wood without branches and top), harvesting residues (=branches and top), trees/logs & residues (=stem, branches and top) and chips (=chipped biomass) has been made.
B8: Forwarder | C8: 11.1
C9: Fuel consumption l/h
C11: 77
C12: System costs €/h
B14: a) Logs | C14: 10.7 | E14: EURO/m³ | F14: =C11/C14*(1+GKZ) -> 7.48411215
C15: Productivity m³/h
B17: b) Harvesting residues | C17: 3 | E17: EURO/m³ | F17: =C11/C17*(1+GKZ) -> 26.69333333
C18: Productivity m³/h
B20: c) Logs & residues | C20: 5.5 | E20: EURO/m³ | F20: =C11/C20*(1+GKZ) -> 14.56
C21: Productivity m³/h
B24: Skidder | C24: 7.32
C25: Fuel consumption l/h
C27: 78
C28: System costs €/h
B30: a) Stems | C30: 9 | E30: EURO/m³ | F30: =C27/C30*(1+GKZ) -> 9.013333333
C31: Productivity m³/h
B33: b) Trees | C33: 10 | E33: EURO/m³ | F33: =C27/C33*(1+GKZ) -> 8.112
C34: Productivity m³/h
B37: Tower Yarder | C37: 16
C38: Fuel consumption l/h
C40: 145
C41: System costs €/h
C43: 16
C44: Installation h
B46: a) Stems | C46: 6 | E46: EURO/m³ | F46: =(C40/C46+(C43*32+C43*0.25*C40)/'2b Environment'!D7)*(1+GKZ) -> 29.18933333
C47: Productivity m³/h
B49: b) Trees | C49: 6 | E49: EURO/m³ | F49: =(C40/C49+(C43*32+C43*0.25*C40)/'2b Environment'!D7)*(1+GKZ) -> 29.18933333
C50: Productivity m³/h
B53: Shuttle for wood chips | C53: 10
C54: Fuel consumption l/h
C56: 88
C57: System costs €/h
B59: Chips | C59: 17.1 | E59: EURO/m³ | F59: =C56/C59*(1+GKZ) -> 5.352046784
C60: Productivity m³/h

Sheet 2cc Bundling (hidden)
B2: (2c) Specification: Bundling
B4: To describe efficiency of bundling processes data about fuel consumption, system costs and productivity may be inserted. Productivity can be calculated on an additional work sheet. The calculation of costs is presented only for plausibility check.
B7: Bundler | C7: 11.5
C8: Fuel consumption l/h
C10: 120
C11: System costs €/h
B13: Harvesting residues | C13: 4.9 | E13: EURO/m³ | F13: =C10/C13*(1+GKZ) -> 25.46938776
C14: Productivity m³/h

Sheet 2cd Chipping (hidden)
B2: (2c) Specification: Chipping
B4: To describe efficiency of chipping processes data about fuel consumption, system costs and productivity may be inserted. Productivity can be calculated on an additional work sheet. The calculation of costs is presented only for plausibility check.
B5: For the chipping process a differentiation between logs (=biomass as round wood without branches and top), harvesting residues (=branches and top), trees/logs & residues (=stem, branches and top) and bundles (=compacted branches and tops) has been made.
B8: Tractor & chipper | C8: 34.8
C9: Fuel consumption l/h
C11: 140
C12: System costs €/h
B14: a) Logs | C14: 67 | E14: EURO/m³ loose | F14: =C11/C14*(1+GKZ) -> 2.173134328
C15: Productivity m³ loose/h
B17: b) Harvesting residues | C17: 26 | E17: EURO/m³ loose | F17: =C11/C17*(1+GKZ) -> 5.6
C18: Productivity m³ loose/h
B20: c) Bundles | C20: 54 | E20: EURO/m³ loose | F20: =C11/C20*(1+GKZ) -> 2.696296296
C21: Productivity m³ loose/h
B23: d) Trees or logs & residues | C23: 29 | E23: EURO/m³ loose | F23: =C11/C23*(1+GKZ) -> 5.020689655
C24: Productivity m³ loose/h
B27: Chippertruck | C27: 40.48
C28: Fuel consumption l/h
C30: 220
C31: System costs €/h
B33: a) Logs | C33: 134 | E33: EURO/m³ loose | F33: =C30/C33*(1+GKZ) -> 1.707462687
C34: Productivity m³ loose/h
B36: b) Harvesting residues | C36: 52 | E36: EURO/m³ loose | F36: =C30/C36*(1+GKZ) -> 4.4
C37: Productivity m³ loose/h
B39: c) Bundles | C39: 108 | E39: EURO/m³ loose | F39: =C30/C39*(1+GKZ) -> 2.118518519
C40: Productivity m³ loose/h
B42: d) Trees or logs & residues | C42: 85 | E42: EURO/m³ loose | F42: =C30/C42*(1+GKZ) -> 2.691764706
C43: Productivity m³ loose/h
B46: Mobile chipper | C46: 28
C47: Fuel consumption l/h
C49: 155
C50: System costs €/h
B52: Trees (stand) | C52: 17 | E52: EURO/m³ loose | F52: =C49/C52*(1+GKZ) -> 9.482352941
C53: Productivity m³ loose/h

Sheet 2ce Transporting (hidden)
B2: (2c) Specification: Transport
B4: To describe efficiency of transport processes data about fuel consumption, system costs, loading and unloading time, stacked volume and maximum payload may be inserted. The calculation of costs is presented only for plausibility check.
B5: For the transport process a differentation between logs (=biomass as round wood without branches and top), harvesting residues (=branches and top), logs & residues (=stem, branches and top), bundles (=compacted branches and tops) and chips (=chipped biomass) has been made.
B8: Transportation of logs
B10: 40 | D10: 50
B11: Fuel consumption l/100 km | D11: Stacked volume m³
B13: 80 | D13: 18
B14: System costs €/h | D14: Max. payload t
B16: 1.5
B17: Loading and unloading time h
B19: Transportation of harvesting residues
B21: 25 | D21: 25
B22: Fuel consumption l/100 km | D22: Stacked volume m³
B24: 65 | D24: 10
B25: System costs €/h | D25: Max. payload t
B27: 0.7
B28: Loading and unloading time h
B30: Transportation of bundles
B32: 40 | D32: 50
B33: Fuel consumption l/100 km | D33: Stacked volume m³
B35: 80 | D35: 18
B36: System costs €/h | D36: Max. payload t
B38: 1.5
B39: Loading and unloading time h
B41: Transportation of logs & residues
B43: 25 | D43: 25
B44: Fuel consumption l/100 km | D44: Stacked volume m³
B46: 65 | D46: 10
B47: System costs €/h | D47: Max. payload t
B49: 0.7
B50: Loading and unloading time h
B52: Transportation of chips
B54: 50 | D54: 90
B55: Fuel consumption l/100 km | D55: Stacked volume m³
B57: 67 | D57: 20
B58: System costs €/h | D58: Max. payload t
B60: 0.9
B61: Loading and unloading time h
B64: a) Logs - (via terminal) - chips | D64: EURO/MWh | E64: =('Contribution margin'!E119+'Contribution margin'!F121)*(1+GKZ) -> 5.535486478
B67: b) Harvesting residues - (via terminal) - chips | D67: EURO/MWh | E67: =('Contribution margin'!E120+'Contribution margin'!F121)*(1+GKZ) -> 6.43196821
B70: c) Bundles - (via terminal) - chips | D70: EURO/MWh | E70: =('Contribution margin'!E123+'Contribution margin'!F121)*(1+GKZ) -> 6.101296735
B73: d) Logs & residues - (via terminal) - chips | D73: EURO/MWh | E73: =('Contribution margin'!E122+'Contribution margin'!F121)*(1+GKZ) -> 6.396277452
B76: e) Logs (direct transport) | D76: EURO/MWh | E76: ='Contribution margin'!G119*(1+GKZ) -> 4.707807162
B79: f) Harvesting residues (direct transport) | D79: EURO/MWh | E79: ='Contribution margin'!G120*(1+GKZ) -> 7.849014314
B82: g) Bundles (direct transport) | D82: EURO/MWh | E82: ='Contribution margin'!G123*(1+GKZ) -> 5.377762068
B85: h) Logs & residues (direct transport) | D85: EURO/MWh | E85: ='Contribution margin'!G122*(1+GKZ) -> 6.330610238
B88: i) Chips (direct transport) | D88: EURO/MWh | E88: ='Contribution margin'!G121*(1+GKZ) -> 1.813651271

Sheet 3 Report (hidden)
B2: (3) Report
B5: The report shows the performance of supply chains with regard to their utility value, which is calculated from specification data and considering criteria weights. Additionally, the costs of individually compiled supply chains and a cost comparison with other energy sources will be delivered.

Sheet 3a Supply chain comparison (hidden)
B2: (3a) Comparison of supply chains
B4: This comparison shows a ranking of six energy wood supply chain categories by kind of utility values. Graphs and tables give a better understanding of the calculation and show the composition of utility values ​​and the impacts on the evaluation criteria.
C5: Category A | D5: Category B | E5: Category C | F5: Category D | G5: Category E | H5: Category F
B7: Harvesting system | C7: Felling, (delimbing and crosscutting) with chain saw, extracting with forwarder | D7: Felling, delimbing and crosscutting with harvester, extracting with forwarder | E7: Felling (and delimbing) with chain saw, extracting with tower yarder, (delimbing and crosscutting with processor) | F7: Felling (and delimbing) with chain saw, extracting with skidder, (delimbing and crosscutting with processor) | G7: Felling with feller-buncher, chipping with mobile chipper, extracting with shuttle | H7: Felling with feller-buncher, extracting with forwarder
B8: Working method | C8: =HLOOKUP(1,'3b Details A'!$C$8:$M$22,2,FALSE) -> Cut-to-length | D8: =HLOOKUP(1,'3b Details B'!$C$8:$M$22,2,FALSE) -> Cut-to-length | E8: =HLOOKUP(1,'3b Details C'!$C$8:$M$22,2,FALSE) -> Tree-length | F8: =HLOOKUP(1,'3b Details D'!$C$8:$M$22,2,FALSE) -> Tree-length | G8: Wood chips | H8: =HLOOKUP(1,'3b Details F'!$C$8:$E$22,2,FALSE) -> Whole-tree
B9: Bundling | C9: =HLOOKUP(1,'3b Details A'!$C$8:$M$22,3,FALSE) -> no | D9: =HLOOKUP(1,'3b Details B'!$C$8:$M$22,3,FALSE) -> no | E9: =HLOOKUP(1,'3b Details C'!$C$8:$M$22,3,FALSE) -> no | F9: =HLOOKUP(1,'3b Details D'!$C$8:$M$22,3,FALSE) -> no | G9: no | H9: =HLOOKUP(1,'3b Details F'!$C$8:$E$22,3,FALSE) -> no
B10: Kind of energy wood | C10: =HLOOKUP(1,'3b Details A'!$C$8:$M$22,4,FALSE) -> Logs | D10: =HLOOKUP(1,'3b Details B'!$C$8:$M$22,4,FALSE) -> Logs | E10: =HLOOKUP(1,'3b Details C'!$C$8:$M$22,4,FALSE) -> Logs | F10: =HLOOKUP(1,'3b Details D'!$C$8:$M$22,4,FALSE) -> Logs | G10: Trees | H10: =HLOOKUP(1,'3b Details F'!$C$8:$E$22,4,FALSE) -> Logs & residues
B11: Chipping location | C11: =HLOOKUP(1,'3b Details A'!$C$8:$M$22,5,FALSE) -> Plant | D11: =HLOOKUP(1,'3b Details B'!$C$8:$M$22,5,FALSE) -> Plant | E11: =HLOOKUP(1,'3b Details C'!$C$8:$M$22,5,FALSE) -> Plant | F11: =HLOOKUP(1,'3b Details D'!$C$8:$M$22,5,FALSE) -> Plant | G11: Stand | H11: =HLOOKUP(1,'3b Details F'!$C$8:$E$22,5,FALSE) -> Plant
B12: Nutrient loss | C12: =HLOOKUP(1,'3b Details A'!$C$8:$M$22,6,FALSE) -> 0.0425 | D12: =HLOOKUP(1,'3b Details B'!$C$8:$M$22,6,FALSE) -> 0.0425 | E12: =HLOOKUP(1,'3b Details C'!$C$8:$M$22,6,FALSE) -> 0.0425 | F12: =HLOOKUP(1,'3b Details D'!$C$8:$M$22,6,FALSE) -> 0.0425 | G12: =IF(Specifications!$I$2=TRUE,'Supply chains'!$AO$48,'Supply chains'!$AE$48) -> 0.02166666667 | H12: =HLOOKUP(1,'3b Details F'!$C$8:$E$22,6,FALSE) -> 0.02166666667 | I12: =RANK(C23,$C$23:$H$23,0) -> 2 | J12: Category A
B13: Bearing pressure | C13: =HLOOKUP(1,'3b Details A'!$C$8:$M$22,7,FALSE) -> 0.03333333333 | D13: =HLOOKUP(1,'3b Details B'!$C$8:$M$22,7,FALSE) -> 0.03333333333 | E13: =HLOOKUP(1,'3b Details C'!$C$8:$M$22,7,FALSE) -> 0.08166666667 | F13: =HLOOKUP(1,'3b Details D'!$C$8:$M$22,7,FALSE) -> 0.045 | G13: =IF(Specifications!$I$2=TRUE,'Supply chains'!$AP$48,'Supply chains'!$AF$48) -> 0.03 | H13: =HLOOKUP(1,'3b Details F'!$C$8:$E$22,7,FALSE) -> 0.03333333333 | I13: =RANK(D23,$C$23:$H$23,0) -> 1 | J13: Category B
B14: Energy efficiency | C14: =HLOOKUP(1,'3b Details A'!$C$8:$M$22,8,FALSE) -> 0.08333333333 | D14: =HLOOKUP(1,'3b Details B'!$C$8:$M$22,8,FALSE) -> 0.0732972789 | E14: =HLOOKUP(1,'3b Details C'!$C$8:$M$22,8,FALSE) -> 0.07088262269 | F14: =HLOOKUP(1,'3b Details D'!$C$8:$M$22,8,FALSE) -> 0.08333333333 | G14: =IF(Specifications!$I$2=TRUE,'Supply chains'!$AW$48,'Supply chains'!$AM$48) -> 0.04139065522 | H14: =HLOOKUP(1,'3b Details F'!$C$8:$E$22,8,FALSE) -> 0.0558475992 | I14: =RANK(E23,$C$23:$H$23,0) -> 4 | J14: Category C
B15: Damage on remaining stand | C15: =HLOOKUP(1,'3b Details A'!$C$8:$M$22,9,FALSE) -> 0.06583333333 | D15: =HLOOKUP(1,'3b Details B'!$C$8:$M$22,9,FALSE) -> 0.08183333333 | E15: =HLOOKUP(1,'3b Details C'!$C$8:$M$22,9,FALSE) -> 0.0428125 | F15: =HLOOKUP(1,'3b Details D'!$C$8:$M$22,9,FALSE) -> 0.0428125 | G15: =IF(Specifications!$I$2=TRUE,'Supply chains'!$AR$48,'Supply chains'!$AH$48) -> 0.05280833333 | H15: =HLOOKUP(1,'3b Details F'!$C$8:$E$22,9,FALSE) -> 0.07583333333 | I15: =RANK(F23,$C$23:$H$23,0) -> 3 | J15: Category D
B16: SUM ECOLOGY | C16: =SUM(C12:C15) -> 0.225 | D16: =SUM(D12:D15) -> 0.2309639456 | E16: =SUM(E12:E15) -> 0.2378617894 | F16: 0.2136458333 | G16: 0.1458656552 | H16: 0.1866809325
B17: Contribution margin | C17: =HLOOKUP(1,'3b Details A'!$C$8:$M$22,11,FALSE) -> 0.04196625188 | D17: =HLOOKUP(1,'3b Details B'!$C$8:$M$22,11,FALSE) -> 0.09691444519 | E17: =HLOOKUP(1,'3b Details C'!$C$8:$M$22,11,FALSE) -> 0 | F17: =HLOOKUP(1,'3b Details D'!$C$8:$M$22,11,FALSE) -> 0.06242373219 | G17: =IF(Specifications!$I$2=TRUE,'Supply chains'!$AS$48,'Supply chains'!$AI$48) -> 0 | H17: =HLOOKUP(1,'3b Details F'!$C$8:$E$22,11,FALSE) -> 0 | I17: =RANK(G23,$C$23:$H$23,0) -> 6 | J17: Category E
B18: Supply guarantee | C18: =HLOOKUP(1,'3b Details A'!$C$8:$M$22,12,FALSE) -> 0.1666666667 | D18: =HLOOKUP(1,'3b Details B'!$C$8:$M$22,12,FALSE) -> 0.1666666667 | E18: =HLOOKUP(1,'3b Details C'!$C$8:$M$22,12,FALSE) -> 0.1666666667 | F18: =HLOOKUP(1,'3b Details D'!$C$8:$M$22,12,FALSE) -> 0.1666666667 | G18: =IF(Specifications!$I$2=TRUE,'Supply chains'!$AT$48,'Supply chains'!$AJ$48) -> 0 | H18: =HLOOKUP(1,'3b Details F'!$C$8:$E$22,12,FALSE) -> 0.1333333333 | I18: =RANK(H23,$C$23:$H$23,0) -> 5 | J18: Category F
B19: SUM ECONOMY | C19: =SUM(C17:C18) -> 0.2086329185 | D19: =SUM(D17:D18) -> 0.2635811119 | E19: =SUM(E17:E18) -> 0.1666666667 | F19: 0.2290903989 | G19: 0 | H19: 0.1333333333
B20: Employment | C20: =HLOOKUP(1,'3b Details A'!$C$8:$M$22,14,FALSE) -> 0.1566773002 | D20: =HLOOKUP(1,'3b Details B'!$C$8:$M$22,14,FALSE) -> 0.05904224875 | E20: =HLOOKUP(1,'3b Details C'!$C$8:$M$22,14,FALSE) -> 0.1666666667 | F20: =HLOOKUP(1,'3b Details D'!$C$8:$M$22,14,FALSE) -> 0.1401386524 | G20: =IF(Specifications!$I$2=TRUE,'Supply chains'!$AU$48,'Supply chains'!$AK$48) -> 0.07555984346 | H20: =HLOOKUP(1,'3b Details F'!$C$8:$E$22,14,FALSE) -> 0.1051874479
B21: Working safety | C21: =HLOOKUP(1,'3b Details A'!$C$8:$M$22,15,FALSE) -> 0.08676103989 | D21: =HLOOKUP(1,'3b Details B'!$C$8:$M$22,15,FALSE) -> 0.1666666667 | E21: =HLOOKUP(1,'3b Details C'!$C$8:$M$22,15,FALSE) -> 0.01601419414 | F21: =HLOOKUP(1,'3b Details D'!$C$8:$M$22,15,FALSE) -> 0.01601419414 | G21: =IF(Specifications!$I$2=TRUE,'Supply chains'!$AV$48,'Supply chains'!$AL$48) -> 0.1522435897 | H21: =HLOOKUP(1,'3b Details F'!$C$8:$E$22,15,FALSE) -> 0.1522435897
B22: SUM SOCIAL | C22: =SUM(C20:C21) -> 0.24343834 | D22: 0.2257089154 | E22: 0.1826808608 | F22: 0.1561528466 | G22: 0.2278034332 | H22: 0.2574310377
B23: UTILITY VALUE | C23: =C16+C19+C22 -> 0.6770712586 | D23: 0.7202539728 | E23: 0.5872093168 | F23: 0.5988890787 | G23: 0.3736690884 | H23: 0.5774453035
B24: RANK | C24: =RANK(C23,$C$23:$H$23,0) -> 2 | D24: 1 | E24: 4 | F24: 3 | G24: 6 | H24: 5
C27: Best suitable supply chain: | F27: =VLOOKUP(1,I12:J18,2,FALSE) -> Category B
C50: A utility value of 0 indicates that the system is technically not applicable. These restrictions are determined by the entered site & stand specification data.
C52: Category A | D52: Category B | E52: Category C | F52: Category D | G52: Category E | H52: Category F
B53: Trade-offs
B55: Nutrient loss [kg/ha] | C55: =HLOOKUP(1,'3b Details A'!$C$51:$M$68,3,FALSE) -> 640 | D55: =HLOOKUP(1,'3b Details B'!$C$51:$M$68,3,FALSE) -> 640 | E55: =HLOOKUP(1,'3b Details C'!$C$51:$M$68,3,FALSE) -> 640 | F55: =HLOOKUP(1,'3b Details D'!$C$51:$M$68,3,FALSE) -> 640 | G55: =Values!$K$47 -> 960 | H55: =HLOOKUP(1,'3b Details F'!$C$50:$E$67,3,FALSE) -> 960
B56: Bearing pressure [kPa] | C56: =HLOOKUP(1,'3b Details A'!$C$51:$M$68,4,FALSE) -> 300 | D56: =HLOOKUP(1,'3b Details B'!$C$51:$M$68,4,FALSE) -> 300 | E56: =HLOOKUP(1,'3b Details C'!$C$51:$M$68,4,FALSE) -> 10 | F56: =HLOOKUP(1,'3b Details D'!$C$51:$M$68,4,FALSE) -> 230 | G56: =Values!L47 -> 320 | H56: =HLOOKUP(1,'3b Details F'!$C$50:$E$67,4,FALSE) -> 300
B57: Emissions [kg CO2/m³ loose] | C57: =HLOOKUP(1,'3b Details A'!$C$51:$M$68,5,FALSE) -> 2.952022443 | D57: =HLOOKUP(1,'3b Details B'!$C$51:$M$68,5,FALSE) -> 4.516233018 | E57: =HLOOKUP(1,'3b Details C'!$C$51:$M$68,5,FALSE) -> 4.590219141 | F57: =HLOOKUP(1,'3b Details D'!$C$51:$M$68,5,FALSE) -> 2.633099141 | G57: =Values!M47 -> 6.713125995 | H57: =HLOOKUP(1,'3b Details F'!$C$50:$E$67,5,FALSE) -> 5.37892433
B58: Energy demand [KWh/m³ loose] | C58: =HLOOKUP(1,'3b Details A'!$C$51:$M$68,6,FALSE) -> 12.1138413 | D58: =HLOOKUP(1,'3b Details B'!$C$51:$M$68,6,FALSE) -> 17.79122098 | E58: =HLOOKUP(1,'3b Details C'!$C$51:$M$68,6,FALSE) -> 18.44617795 | F58: =HLOOKUP(1,'3b Details D'!$C$51:$M$68,6,FALSE) -> 10.73631128 | G58: =Values!$X$47 -> 26.44564786 | H58: =HLOOKUP(1,'3b Details F'!$C$50:$E$67,6,FALSE) -> 21.18970191
B59: Energy efficiency [%] | C59: =HLOOKUP(1,'3b Details A'!$C$51:$M$68,7,FALSE) -> 0.983922189 | D59: =HLOOKUP(1,'3b Details B'!$C$51:$M$68,7,FALSE) -> 0.9763870204 | E59: =HLOOKUP(1,'3b Details C'!$C$51:$M$68,7,FALSE) -> 0.9755177442 | F59: =HLOOKUP(1,'3b Details D'!$C$51:$M$68,7,FALSE) -> 0.9857504834 | G59: =1-Values!$Y$47 -> 0.9649006359 | H59: =HLOOKUP(1,'3b Details F'!$C$50:$E$67,7,FALSE) -> 0.9718764665
B60: Damage on remaining stand [%] | C60: =HLOOKUP(1,'3b Details A'!$C$51:$M$68,8,FALSE) -> 0.184 | D60: =HLOOKUP(1,'3b Details B'!$C$51:$M$68,8,FALSE) -> 0.1072 | E60: =HLOOKUP(1,'3b Details C'!$C$51:$M$68,8,FALSE) -> 0.2945 | F60: =HLOOKUP(1,'3b Details D'!$C$51:$M$68,8,FALSE) -> 0.2945 | G60: =Values!N47 -> 0.24652 | H60: =HLOOKUP(1,'3b Details F'!$C$50:$E$67,8,FALSE) -> 0.136
B61: Purchase [€/m³ loose] | C61: =HLOOKUP(1,'3b Details A'!$C$51:$M$68,9,FALSE) -> 0.4520705464 | D61: =HLOOKUP(1,'3b Details B'!$C$51:$M$68,9,FALSE) -> 0.4520705464 | E61: =HLOOKUP(1,'3b Details C'!$C$51:$M$68,9,FALSE) -> 0.4520705464 | F61: =HLOOKUP(1,'3b Details D'!$C$51:$M$68,9,FALSE) -> 0.4520705464 | G61: =Values!$O$47 -> 0.4520705464 | H61: =HLOOKUP(1,'3b Details F'!$C$50:$E$67,9,FALSE) -> 0.4520705464
B62: Felling and delimbing [€/m³ loose] | C62: =HLOOKUP(1,'3b Details A'!$C$51:$M$68,10,FALSE) -> 9.845333333 | D62: =HLOOKUP(1,'3b Details B'!$C$51:$M$68,10,FALSE) -> 4.877241379 | E62: =HLOOKUP(1,'3b Details C'!$C$51:$M$68,10,FALSE) -> 7.384 | F62: =HLOOKUP(1,'3b Details D'!$C$51:$M$68,10,FALSE) -> 7.384 | G62: =Values!$P$47 -> 9.324137931 | H62: =HLOOKUP(1,'3b Details F'!$C$50:$E$67,10,FALSE) -> 9.324137931
B63: Extracting [€/m³ loose] | C63: =HLOOKUP(1,'3b Details A'!$C$51:$M$68,11,FALSE) -> 2.99364486 | D63: =HLOOKUP(1,'3b Details B'!$C$51:$M$68,11,FALSE) -> 2.99364486 | E63: =HLOOKUP(1,'3b Details C'!$C$51:$M$68,11,FALSE) -> 11.67573333 | F63: =HLOOKUP(1,'3b Details D'!$C$51:$M$68,11,FALSE) -> 3.605333333 | G63: =Values!$Q$47 -> 2.140818713 | H63: =HLOOKUP(1,'3b Details F'!$C$50:$E$67,11,FALSE) -> 5.824
B64: Bundling [€/m³ loose] | C64: =HLOOKUP(1,'3b Details A'!$C$51:$M$68,12,FALSE) -> 0 | D64: =HLOOKUP(1,'3b Details B'!$C$51:$M$68,12,FALSE) -> 0 | E64: =HLOOKUP(1,'3b Details C'!$C$51:$M$68,12,FALSE) -> 0 | F64: =HLOOKUP(1,'3b Details D'!$C$51:$M$68,12,FALSE) -> 0 | G64: =Values!$R$47 -> 0 | H64: =HLOOKUP(1,'3b Details F'!$C$50:$E$67,12,FALSE) -> 0
B65: Chipping [€/m³ loose] | C65: =HLOOKUP(1,'3b Details A'!$C$51:$M$68,13,FALSE) -> 1.707462687 | D65: =HLOOKUP(1,'3b Details B'!$C$51:$M$68,13,FALSE) -> 1.707462687 | E65: =HLOOKUP(1,'3b Details C'!$C$51:$M$68,13,FALSE) -> 1.707462687 | F65: =HLOOKUP(1,'3b Details D'!$C$51:$M$68,13,FALSE) -> 1.707462687 | G65: =Values!$S$47 -> 9.482352941 | H65: =HLOOKUP(1,'3b Details F'!$C$50:$E$67,13,FALSE) -> 2.691764706
B66: Transporting [€/m³ loose] | C66: =HLOOKUP(1,'3b Details A'!$C$51:$M$68,14,FALSE) -> 3.410674609 | D66: =HLOOKUP(1,'3b Details B'!$C$51:$M$68,14,FALSE) -> 3.410674609 | E66: =HLOOKUP(1,'3b Details C'!$C$51:$M$68,14,FALSE) -> 3.410674609 | F66: =HLOOKUP(1,'3b Details D'!$C$51:$M$68,14,FALSE) -> 3.410674609 | G66: =Values!$T$47 -> 1.313939617 | H66: =HLOOKUP(1,'3b Details F'!$C$50:$E$67,14,FALSE) -> 4.633924106
B67: Storing [€/m³ loose] | C67: =HLOOKUP(1,'3b Details A'!$C$51:$M$68,15,FALSE) -> 0.4 | D67: =HLOOKUP(1,'3b Details B'!$C$51:$M$68,15,FALSE) -> 0.4 | E67: =HLOOKUP(1,'3b Details C'!$C$51:$M$68,15,FALSE) -> 0.4 | F67: =HLOOKUP(1,'3b Details D'!$C$51:$M$68,15,FALSE) -> 0.4 | G67: =Values!$U$47 -> 0.4 | H67: =HLOOKUP(1,'3b Details F'!$C$50:$E$67,15,FALSE) -> 1.6
B68: Supply costs [€/m³ loose] | C68: =HLOOKUP(1,'3b Details A'!$C$51:$M$68,16,FALSE) -> 18.80918604 | D68: =HLOOKUP(1,'3b Details B'!$C$51:$M$68,16,FALSE) -> 13.84109408 | E68: =HLOOKUP(1,'3b Details C'!$C$51:$M$68,16,FALSE) -> 25.02994118 | F68: =HLOOKUP(1,'3b Details D'!$C$51:$M$68,16,FALSE) -> 16.95954118 | G68: =SUM(G61:G67) -> 23.11331975 | H68: =HLOOKUP(1,'3b Details F'!$C$50:$E$67,16,FALSE) -> 24.52589729
B69: Contribution margin [€/m³ loose] | C69: =HLOOKUP(1,'3b Details A'!$C$51:$M$68,17,FALSE) -> -3.740167823 | D69: =HLOOKUP(1,'3b Details B'!$C$51:$M$68,17,FALSE) -> 1.227924131 | E69: =HLOOKUP(1,'3b Details C'!$C$51:$M$68,17,FALSE) -> -9.960922963 | F69: =HLOOKUP(1,'3b Details D'!$C$51:$M$68,17,FALSE) -> -1.890522963 | G69: =Values!$V$47 -> -8.044301537 | H69: =HLOOKUP(1,'3b Details F'!$C$50:$E$67,17,FALSE) -> -9.456879077
B70: Working hours [h/m³ loose] | C70: =HLOOKUP(1,'3b Details A'!$C$51:$M$68,18,FALSE) -> 0.3541459634 | D70: =HLOOKUP(1,'3b Details B'!$C$51:$M$68,18,FALSE) -> 0.1334563082 | E70: =HLOOKUP(1,'3b Details C'!$C$51:$M$68,18,FALSE) -> 0.3834294525 | F70: =HLOOKUP(1,'3b Details D'!$C$51:$M$68,18,FALSE) -> 0.3167627858 | G70: =Values!$W$47 -> 0.1707918986 | H70: =HLOOKUP(1,'3b Details F'!$C$50:$E$67,18,FALSE) -> 0.2242297746

Sheet Productivity calculation (hidden)
B2: Auxiliary sheet for calculating productivity
B5: Chain Saw (Felling) | C5: =IF(C8="Softwood",60/(J17*J22*2*EXP(2.4291*C7^(-0.1596)-0.9108)),60/(J17*J22*0.00236*EXP(6.9216*C7^(-0.0634)+1))) -> 3.073113583 | D5: [m³/h]
B6: according to Erni et al. (2003)
B7: Stem volume | C7: 0.2 | D7: [m³]
B8: Tree species | C8: Softwood
B9: M5 (Slope) | C9: 0-30 | D9: [%]
B10: M6 (Barriers) | C10: low
B12: Chain Saw (Felling & Delimbing) | C12: =60/(1.35/C14*(3.3229+5.6851*C14^0.7+0.1087*C14^0.7*C15+3.2479*C14^0.7*D16-1.7506*C14^0.7*D17)) -> 2.733595533 | D12: [m³/h]
B13: according to Stampfer (2002) | G13: Hardwood | H13: M5 | I13: 0-30 | J13: =IF($C$9=I13,1,0) -> 1
B14: Tree volume | C14: 1.2 | D14: [m³] | G14: Softwood | I14: 31-50 | J14: =IF($C$9=I14,1.05,0) -> 0
B15: Branch percentage | C15: 65 | D15: [%] | I15: 51-70 | J15: =IF($C$9=I15,1.1,0) -> 0
B16: Harvesting method | C16: CTL | D16: =IF(C16="TL",0,1) -> 1 | I16: >70 | J16: =IF($C$9=I16,1.25,0) -> 0
B17: Manipulation of branches | C17: no | D17: =IF(C17="yes",0,1) -> 1 | J17: =SUM(J13:J16) -> 1
H18: M6 | I18: no | J18: =IF($C$10=I18,1,0) -> 0
B19: Wheeled harvester | C19: =(-3.87+11.43*C21^0.25-3.5*(0.44*(C24-111.75)/29.07+0.34*(C25-9.43)/0.98+0.45*(C26-126.6)/40.31+0.39*(C27-30.69)/6.63+0.41*(C28-51.06)/8.74+0.39*(C29-20.69)/2.91+4.1)^0.4+10.06*C21^0.25*(0.44*(C24-111.75)/29.07+0.34*(C25-9.43)/0.98+0.45*(C26-126.6)/40.31+0.39*(C27-30.69)/6.63+0.41*(C28-51.06)/8.74+0.39*(C29-20.69)/2.91+4.1)^0.4+0.52*(0.27*(C24-111.75)/29.07-0.65*(C25-9.43)/0.98+0.02*(C26-126.6)/40.31-0.49*(C27-30.69)/6.63+0.34*(C28-51.06)/8.74+0.38*(C29-20.69)/2.91)+1.01*D22)*1/(1-C23) -> 12.33121754 | D19: [m³/h] | I19: low | J19: =IF($C$10=I19,1.05,0) -> 1.05
B20: according to Heinimann (1998) | I20: moderate | J20: =IF($C$10=I20,1.1,0) -> 0
B21: Stem volume | C21: 0.3 | D21: [m³] | I21: heavy | J21: =IF($C$10=I21,1.2,0) -> 0
B22: Tree species | C22: Spruce | D22: =IF(C22="Spruce",0,1) -> 0 | J22: =SUM(J18:J21) -> 1.05
B23: Bark percentage | C23: 0.1 | D23: [%] | H23: M1 | I23: 0-33
B24: Engine power | C24: 114 | D24: [kW] | I24: 34-50
B25: Crane range | C25: 10.3 | D25: [m] | I25: 50-66
B26: Lift moment (HM) | C26: 147 | D26: [kNm] | I26: 66-90
B27: Swing torque | C27: 31 | D27: [kNm] | I27: >90
B28: Maximum felling diameter | C28: 40 | D28: [cm]
B29: Fedding power | C29: 21 | D29: [kN] | H29: M3 | I29: 4-6
B31: Wheeled harvester Ponsse Buffalo Dual | C31: =60/(1.3*(2.2344*C33^-0.563+2.1128*EXP(-0.35*C34-0.01*C35))) -> 9.088142698 | D31: [m³/h] | I31: 6-10
B32: according to Affenzeller (2005) | F32: CTL | I32: >10
B33: Tree volume | C33: 0.31 | D33: [m³] | F33: TL
B34: Processed stems per stop | C34: 2.1 | D34: [n] | H34: M4 | I34: yes
B35: Removal percentage | C35: 29 | D35: [%] | I35: no
B37: Tracked harvester
B38: IMPEX Königstiger | C38: =60/1.35/(EXP(-2.7743+0.0014*C44-0.2685*C42+0.0353*C43)+0.4179+0.9973*C45^(-0.75)) -> 16.97987059 | D38: [m³/h] | I38: Spruce
B39: MHT Robin | C39: =60/1.35/(EXP(1.1004-0.2782*C42+0.0109*C43-0.1366*C46)+3.9553+0.6606*C45^(-0.8)-0.0279*C47) -> 8.524801939 | D39: [m³/h] | I39: Pine
B40: Neuson 11002 HV | C40: =60/1.35/(EXP(0.2934-0.3874*C42+0.0001*C44*C42)+1.9747+0.7938*C45^(-0.9)-0.034*C47) -> 15.00866821 | D40: [m³/h] | I40: Larch
B41: according to Stampfer (2001)
B42: Processed stems per stop | C42: 4.52 | D42: [n]
B43: Slope | C43: 30 | D43: [%]
B44: Stand density | C44: 1000 | D44: [n/ha]
B45: Tree volume | C45: 0.4 | D45: [m³]
B46: Bearing capacity | C46: 2.35 | D46: % CBR
B47: Removal percentage | C47: 35 | D47: [%]
B49: Feller buncher | C49: =60/1.3/(0.511*C51^-0.9+1.88+2.1) -> 5.129174647 | D49: [m³/h]
B50: according to Rottensteiner & Stampfer (2010)
B51: Tree volume | C51: 0.079 | D51: [m³]
B53: Forwarder and Feller buncher | C53: =60/1.3/((2.249+C55^-0.9*0.362+1.8073)*C59/C60+(6.774+C55^-0.9*0.267)*C58/C60+1.1238+0.028*C56/C57+1.1401+1.4951) -> 3.302475401 | D53: [m³/h]
B54: according to Affenzeller & Stampfer (2008)
B55: Tree volume | C55: 0.057 | D55: [m³]
B56: Extraction distance | C56: 89 | D56: [m]
B57: Loading volume | C57: 3.71 | D57: [m³]
B58: Removed volume without trail wood | C58: 80 | D58: [m³]
B59: Removed volume of trail wood | C59: 83 | D59: [m³]
B60: Total removed wood | C60: 163 | D60: [m³]
B62: Tractor and timber trailer with guillotine blade aggregate | C62: =60/1.2/(-9.699+C64^-0.8*1.554+C67*1.262+4.953+C64^-0.9*0.488+C65*0.0778/C66+2.3045+2.9344) -> 1.348622054 | D62: [m³/h]
B63: according to Affenzeller & Stampfer (2007)
B64: Tree volume | C64: 0.046 | D64: [m³]
B65: Extraction distance | C65: 109.5 | D65: [m]
B66: Loading volume | C66: 2.37 | D66: [m³]
B67: Crane range | C67: 5.5 | D67: [m]
B69: Forwarder Ponsse Buffalo Dual | C69: =60/(1.23*(0.511*C71^(-0.7)+(0.023*C72+0.24*C73)/C73+0.8145)) -> 11.92988371 | D69: [m³/h]
B70: according to Affenzeller (2005)
B71: Piece volume | C71: 0.1 | D71: [m³]
B72: Extraction distance | C72: 170 | D72: [m]
B73: Loading volume | C73: 8.26 | D73: [m³]
B75: Skidder | C75: =(5.47+5.45*C77^0.8-0.17*C78+1.6*C79*C77^0.8-0.005*C80)/1.27 -> 8.014750838 | D75: [m³/h]
B76: according to Daxner et al. (1997)
B77: Piece volume | C77: 0.52 | D77: [m³]
B78: Lateral yarding distance | C78: 8.24 | D78: [m]
B79: Loading volume | C79: 3.68 | D79: [m³]
B80: Extraction distance | C80: 122 | D80: [m]
B82: Timber trailer Patu MD | C82: =60/(1.2*(4.953+C84^-0.9*0.488+C86*0.0778/C85+2.9344+2.3045)) -> 2.505672832 | D82: [m³/h]
B83: according to Affenzeller (2007)
B84: Tree volume | C84: 0.06 | D84: [m³]
B85: Loading volume | C85: 2.34 | D85: [m³]
B86: Extraction distance | C86: 109 | D86: [m]
B88: Tower yarder
B89: CUT-TO-LENGTH | C89: =60/(1.25*(-0.7548+0.0122*C92+0.7782*C93^-1.05+0.0377*C94)) -> 8.779416988 | D89: [m³/h]
B90: TREE-LENGTH | C90: =60/(1.25*(0.3735+0.0093*C92+3.7204*C93^-1.05+1.5296*D95)) -> 3.126579431 | D90: [m³/h]
B91: according to Stampfer et al. (2003)
B92: Extraction distance | C92: 88 | D92: [m]
B93: Piece volume | C93: 0.28 | D93: [m³]
B94: Slope | C94: 58 | D94: [%]
B95: Silviculture | C95: Final cut | D95: =IF(C95="Final cut",0,1) -> 0
B97: Tower yarder
B98: MOUNTING | C98: =EXP(1.42+0.00229*C101+0.0297*C102+0.256*D103-0.65*D104+0.111*D105+0.491*D104*D105) -> 13.11294618 | D98: [h]
B99: DISMOUNTING | C99: =EXP(0.957+0.00233*C101-0.301*D104-0.312*D106+0.328*D105) -> 6.612752621 | D99: [h]
B100: according to Stampfer et al. (2003)
B101: Length of skyline trail | C101: 400 | D101: [m]
B102: Height of first support tree | C102: 8 | D102: [m]
B103: Kind of skyline trail | C103: First trail | D103: =IF(C103="First trail",0,1) -> 0
B104: Extraction direction | C104: Downhill | D104: =IF(C104="Downhill",0,1) -> 0
B105: Pulling force | C105: ≤ 35 kN | D105: =IF(C105="≤ 35 kN",0,1) -> 0
B106: Support tree | C106: yes | D106: =IF(C106="yes",0,1) -> 0
B108: Tower yarder & processor
B109: Tower Yarder Wanderfalke & processor Woody 50 | C109: =0.8*(-8.881+27.545*C113^0.2-0.0000545*C112^2-0.0539*C115-0.0677*C114) -> 6.283690611 | D109: [m³/h]
B110: Tower Yarder Syncrofalke & processor Wolf 50 B | C110: =0.8*(-22.7713+41.8961*C113^0.15-0.0046*C112-0.0897*C114) -> 4.987953895 | D110: [m³/h]
B111: according to Stampfer et al. (2003)
B112: Extraction distance | C112: 88 | D112: [m]
B113: Piece volume | C113: 0.28 | D113: [m³]
B114: Slope | C114: 58 | D114: [%]
B115: Lateral yarding distance | C115: 5 | D115: [m]
B117: Chipper | C117: =-30.85+165.48*C119-74.33*C119^2+48.8*D120-10.48*D121 -> 98.62 | D117: [m³ loose/h]
B118: according to Stampfer et al. (1997)
B119: Amount of processed timber per cycle | C119: 1 | D119: [m³]
B120: Size of chipper | C120: medium | D120: =IF(C120="small",0,1) -> 1
B121: Kind of chipping material | C121: Logs | D121: =IF(C121="Sortimente",0,1) -> 1
F144: Final cut
F145: Increment
F151: First trail
F152: Subsequent trail
F153: Uphill
F154: Downhill
F157: ≤ 35 kN
F158: > 35 kN
F163: Femelschlag
F164: Kahlschlag
F166: unerfahren
F167: erfahren
F178: Logs
F179: Trees
F181: small
F182: medium

Sheet Supply chains (hidden)
AE1: Weighting without decision tree | AO1: Weighting with decision tree
A2: ID | D2: Machines | H2: Method | I2: Type of wood | J2: Chipping place | K2: Nutrient loss | L2: Bearing pressure | M2: Emissions | N2: Damage stand | O2: Contribution margin | P2: Supply guarantee | Q2: Employ-ment | R2: Accidents | S2: Energy efficiency | U2: Mor-phology | V2: Bearing capacity | W2: Soil | X2: Slope | Y2: Extraction distance | Z2: DBH | AA2: Chipping road | AB2: Chipping terminal | AC2: Chipping plant | AD2: Sum | AE2: Nutrient loss | AF2: Bearing pressure | AG2: Emissions | AH2: Damage stand | AI2: Contribution margin | AJ2: Supply guarantee | AK2: Employment | AL2: Accidents | AM2: Energy efficiency | AO2: Nutrient loss | AP2: Bearing pressure | AQ2: Emissions | AR2: Damage stand | AS2: Contribution margin | AT2: Supply guarantee | AU2: Employment | AV2: Accidents | AW2: Energy efficiency
K3: ='1 Preferences'!F13 -> 0.08333333333 | L3: ='1 Preferences'!F14 -> 0.08333333333 | M3: 0 | N3: ='1 Preferences'!F16 -> 0.08333333333 | O3: ='1 Preferences'!F18 -> 0.1666666667 | P3: ='1 Preferences'!F19 -> 0.1666666667 | Q3: ='1 Preferences'!F21 -> 0.1666666667 | R3: ='1 Preferences'!F22 -> 0.1666666667 | S3: ='1 Preferences'!F15 -> 0.08333333333 | AE3: =K3 -> 0.08333333333 | AF3: =L3 -> 0.08333333333 | AG3: 0 | AH3: 0.08333333333 | AI3: 0.1666666667 | AJ3: 0.1666666667 | AK3: 0.1666666667 | AL3: 0.1666666667 | AM3: 0.08333333333 | AO3: =K3 -> 0.08333333333 | AP3: =L3 -> 0.08333333333 | AQ3: 0 | AR3: 0.08333333333 | AS3: 0.1666666667 | AT3: 0.1666666667 | AU3: 0.1666666667 | AV3: 0.1666666667 | AW3: 0.08333333333
A4: 1 | B4: B | C4: 4 | D4: Chain saw | F4: Forwarder | H4: CTL | I4: logs | J4: forest road | K4: 0.51 | L4: 0.4 | M4: =IF(Emissions!X41>12,0,IF(Emissions!X41<5,1,(Emissions!X41-12)/(-7))) -> 1 | N4: =IF(Damage!Y28>0.5,0,IF(Damage!Y28<0.1,1,(Damage!Y28-0.5)/(-0.4))) -> 0.79 | O4: =IF('Contribution margin'!AB41<-10,0,IF('Contribution margin'!AB41>10,1,('Contribution margin'!AB41+10)/20)) -> 0.3909396215 | P4: 0.3 | Q4: =IF(Employment!X41>0.5,1,Employment!X41*2) -> 0.8789519402 | R4: =Accidents!P25 -> 0.5205662393 | S4: =IF('Energy efficiency'!Y41>0.05,0,IF('Energy efficiency'!Y41<0.02,1,('Energy efficiency'!Y41-0.05)/(-0.03))) -> 1 | T4: =K4*$K$3+L4*$L$3+M4*$M$3+N4*$N$3+O4*$O$3+P4*$P$3+Q4*$Q$3+R4*$R$3+S4*$S$3 -> 0.5734096335 | U4: =IF('2a Site and stand'!$D$7="non-uniform",0,1) -> 1 | V4: =IF('2a Site and stand'!$D$9="low",0,1) -> 1 | W4: 1 | X4: =IF('2a Site and stand'!$D$11="0 to 35 %",1,IF('2a Site and stand'!$D$11="no restrictions",1,0)) -> 1 | Y4: 1 | Z4: 1 | AA4: =IF('2b Environment'!$D$16="not possible",0,1) -> 1 | AB4: 1 | AC4: 1 | AD4: =T4*U4*V4*W4*X4*Y4*Z4*AA4*AB4*AC4 -> 0.5734096335 | AE4: =K4*K$3 -> 0.0425 | AF4: =L4*L$3 -> 0.03333333333 | AG4: 0 | AH4: 0.06583333333 | AI4: 0.06515660358 | AJ4: 0.05 | AK4: 0.14649199 | AL4: 0.08676103989 | AM4: 0.08333333333 | AO4: =AE4*$U4*$V4*$W4*$X4*$Y4*$Z4*$AA4*$AB4*$AC4 -> 0.0425 | AP4: =AF4*$U4*$V4*$W4*$X4*$Y4*$Z4*$AA4*$AB4*$AC4 -> 0.03333333333 | AQ4: 0 | AR4: 0.06583333333 | AS4: 0.06515660358 | AT4: 0.05 | AU4: 0.14649199 | AV4: 0.08676103989 | AW4: 0.08333333333
A5: 2 | B5: B | C5: 5 | D5: Chain saw | F5: Forwarder | H5: CTL | I5: logs | J5: terminal | K5: 0.51 | L5: 0.4 | M5: =IF(Emissions!X42>12,0,IF(Emissions!X42<5,1,(Emissions!X42-12)/(-7))) -> 1 | N5: =IF(Damage!Y29>0.5,0,IF(Damage!Y29<0.1,1,(Damage!Y29-0.5)/(-0.4))) -> 0.79 | O5: =IF('Contribution margin'!AB42<-10,0,IF('Contribution margin'!AB42>10,1,('Contribution margin'!AB42+10)/20)) -> 0.1323716477 | P5: 0.6 | Q5: =IF(Employment!X42>0.5,1,Employment!X42*2) -> 0.9672337679 | R5: =Accidents!P26 -> 0.5205662393 | S5: =IF('Energy efficiency'!Y42>0.05,0,IF('Energy efficiency'!Y42<0.02,1,('Energy efficiency'!Y42-0.05)/(-0.03))) -> 1 | T5: =K5*$K$3+L5*$L$3+M5*$M$3+N5*$N$3+O5*$O$3+P5*$P$3+Q5*$Q$3+R5*$R$3+S5*$S$3 -> 0.5950286091 | U5: =IF('2a Site and stand'!$D$7="non-uniform",0,1) -> 1 | V5: =IF('2a Site and stand'!$D$9="low",0,1) -> 1 | W5: 1 | X5: =IF('2a Site and stand'!$D$11="0 to 35 %",1,IF('2a Site and stand'!$D$11="no restrictions",1,0)) -> 1 | Y5: 1 | Z5: 1 | AA5: 1 | AB5: =IF('2b Environment'!$D$17="not possible",0,1) -> 1 | AC5: 1 | AD5: =T5*U5*V5*W5*X5*Y5*Z5*AA5*AB5*AC5 -> 0.5950286091 | AE5: =K5*K$3 -> 0.0425 | AF5: =L5*L$3 -> 0.03333333333 | AG5: =M5*M$3 -> 0 | AH5: =N5*N$3 -> 0.06583333333 | AI5: =O5*O$3 -> 0.02206194128 | AJ5: =P5*P$3 -> 0.1 | AK5: =Q5*Q$3 -> 0.161205628 | AL5: =R5*R$3 -> 0.08676103989 | AM5: =S5*S$3 -> 0.08333333333 | AO5: =AE5*$U5*$V5*$W5*$X5*$Y5*$Z5*$AA5*$AB5*$AC5 -> 0.0425 | AP5: =AF5*$U5*$V5*$W5*$X5*$Y5*$Z5*$AA5*$AB5*$AC5 -> 0.03333333333 | AQ5: =AG5*$U5*$V5*$W5*$X5*$Y5*$Z5*$AA5*$AB5*$AC5 -> 0 | AR5: =AH5*$U5*$V5*$W5*$X5*$Y5*$Z5*$AA5*$AB5*$AC5 -> 0.06583333333 | AS5: =AI5*$U5*$V5*$W5*$X5*$Y5*$Z5*$AA5*$AB5*$AC5 -> 0.02206194128 | AT5: =AJ5*$U5*$V5*$W5*$X5*$Y5*$Z5*$AA5*$AB5*$AC5 -> 0.1 | AU5: =AK5*$U5*$V5*$W5*$X5*$Y5*$Z5*$AA5*$AB5*$AC5 -> 0.161205628 | AV5: =AL5*$U5*$V5*$W5*$X5*$Y5*$Z5*$AA5*$AB5*$AC5 -> 0.08676103989 | AW5: =AM5*$U5*$V5*$W5*$X5*$Y5*$Z5*$AA5*$AB5*$AC5 -> 0.08333333333
A6: 3 | B6: B | C6: 6 | D6: Chain saw | F6: Forwarder | H6: CTL | I6: logs | J6: plant | K6: 0.51 | L6: 0.4 | M6: =IF(Emissions!X43>12,0,IF(Emissions!X43<5,1,(Emissions!X43-12)/(-7))) -> 1 | N6: =IF(Damage!Y30>0.5,0,IF(Damage!Y30<0.1,1,(Damage!Y30-0.5)/(-0.4))) -> 0.79 | O6: =IF('Contribution margin'!AB43<-10,0,IF('Contribution margin'!AB43>10,1,('Contribution margin'!AB43+10)/20)) -> 0.2517975113 | P6: 1 | Q6: =IF(Employment!X43>0.5,1,Employment!X43*2) -> 0.9400638009 | R6: =Accidents!P27 -> 0.5205662393 | S6: =IF('Energy efficiency'!Y43>0.05,0,IF('Energy efficiency'!Y43<0.02,1,('Energy efficiency'!Y43-0.05)/(-0.03))) -> 1 | T6: 0.6770712586 | U6: =IF('2a Site and stand'!$D$7="non-uniform",0,1) -> 1 | V6: =IF('2a Site and stand'!$D$9="low",0,1) -> 1 | W6: 1 | X6: =IF('2a Site and stand'!$D$11="0 to 35 %",1,IF('2a Site and stand'!$D$11="no restrictions",1,0)) -> 1 | Y6: 1 | Z6: 1 | AA6: 1 | AB6: 1 | AC6: =IF('2b Environment'!$D$18="not possible",0,1) -> 1 | AD6: 0.6770712586 | AE6: =K6*K$3 -> 0.0425 | AF6: =L6*L$3 -> 0.03333333333 | AG6: =M6*M$3 -> 0 | AH6: =N6*N$3 -> 0.06583333333 | AI6: =O6*O$3 -> 0.04196625188 | AJ6: =P6*P$3 -> 0.1666666667 | AK6: =Q6*Q$3 -> 0.1566773002 | AL6: =R6*R$3 -> 0.08676103989 | AM6: =S6*S$3 -> 0.08333333333 | AO6: 0.0425 | AP6: 0.03333333333 | AQ6: 0 | AR6: 0.06583333333 | AS6: 0.04196625188 | AT6: 0.1666666667 | AU6: 0.1566773002 | AV6: 0.08676103989 | AW6: 0.08333333333
A7: 4 | B7: G | C7: 17 | D7: Chain saw | F7: Forwarder | H7: CTL | I7: residues | J7: forest road | K7: 0.26 | L7: 0.4 | M7: =IF(Emissions!X44>12,0,IF(Emissions!X44<5,1,(Emissions!X44-12)/(-7))) -> 0.4706427072 | N7: =IF(Damage!Y31>0.5,0,IF(Damage!Y31<0.1,1,(Damage!Y31-0.5)/(-0.4))) -> 1 | O7: =IF('Contribution margin'!AB44<-10,0,IF('Contribution margin'!AB44>10,1,('Contribution margin'!AB44+10)/20)) -> 0.2903739598 | P7: 0.1 | Q7: =IF(Employment!X44>0.5,1,Employment!X44*2) -> 0.5278162266 | R7: =Accidents!P28 -> 0.5205662393 | S7: =IF('Energy efficiency'!Y44>0.05,0,IF('Energy efficiency'!Y44<0.02,1,('Energy efficiency'!Y44-0.05)/(-0.03))) -> 0.5213758768 | T7: 0.4215740607 | U7: =IF('2a Site and stand'!$D$7="non-uniform",0,1) -> 1 | V7: =IF('2a Site and stand'!$D$9="low",0,1) -> 1 | W7: =IF('2a Site and stand'!$D$17="no restrictions",1,IF('2a Site and stand'!$D$17="other soil types",1,0)) -> 1 | X7: =IF('2a Site and stand'!$D$11="0 to 35 %",1,IF('2a Site and stand'!$D$11="no restrictions",1,0)) -> 1 | Y7: 1 | Z7: 1 | AA7: =IF('2b Environment'!$D$16="not possible",0,1) -> 1 | AB7: 1 | AC7: 1 | AD7: 0.4215740607 | AE7: 0.02166666667 | AF7: 0.03333333333 | AG7: 0 | AH7: 0.08333333333 | AI7: 0.04839565997 | AJ7: 0.01666666667 | AK7: 0.0879693711 | AL7: 0.08676103989 | AM7: 0.04344798973 | AO7: 0.02166666667 | AP7: 0.03333333333 | AQ7: 0 | AR7: 0.08333333333 | AS7: 0.04839565997 | AT7: 0.01666666667 | AU7: 0.0879693711 | AV7: 0.08676103989 | AW7: 0.04344798973
A8: 5 | B8: G | C8: 18 | D8: Chain saw | F8: Forwarder | H8: CTL | I8: residues | J8: terminal | K8: 0.26 | L8: 0.4 | M8: =IF(Emissions!X45>12,0,IF(Emissions!X45<5,1,(Emissions!X45-12)/(-7))) -> 0.4240406973 | N8: =IF(Damage!Y32>0.5,0,IF(Damage!Y32<0.1,1,(Damage!Y32-0.5)/(-0.4))) -> 1 | O8: =IF('Contribution margin'!AB45<-10,0,IF('Contribution margin'!AB45>10,1,('Contribution margin'!AB45+10)/20)) -> 0 | P8: 0.4 | Q8: =IF(Employment!X45>0.5,1,Employment!X45*2) -> 0.6646772702 | R8: =Accidents!P29 -> 0.5205662393 | S8: =IF('Energy efficiency'!Y45>0.05,0,IF('Energy efficiency'!Y45<0.02,1,('Energy efficiency'!Y45-0.05)/(-0.03))) -> 0.4785396859 | T8: 0.4424188921 | U8: =IF('2a Site and stand'!$D$7="non-uniform",0,1) -> 1 | V8: =IF('2a Site and stand'!$D$9="low",0,1) -> 1 | W8: =IF('2a Site and stand'!$D$17="no restrictions",1,IF('2a Site and stand'!$D$17="other soil types",1,0)) -> 1 | X8: =IF('2a Site and stand'!$D$11="0 to 35 %",1,IF('2a Site and stand'!$D$11="no restrictions",1,0)) -> 1 | Y8: 1 | Z8: 1 | AA8: 1 | AB8: =IF('2b Environment'!$D$17="not possible",0,1) -> 1 | AC8: 1 | AD8: 0.4424188921 | AE8: 0.02166666667 | AF8: 0.03333333333 | AG8: 0 | AH8: 0.08333333333 | AI8: 0 | AJ8: 0.06666666667 | AK8: 0.110779545 | AL8: 0.08676103989 | AM8: 0.03987830715 | AO8: 0.02166666667 | AP8: 0.03333333333 | AQ8: 0 | AR8: 0.08333333333 | AS8: 0 | AT8: 0.06666666667 | AU8: 0.110779545 | AV8: 0.08676103989 | AW8: 0.03987830715
A9: 6 | B9: G | C9: 19 | D9: Chain saw | F9: Forwarder | G9: Bundler | H9: CTL | I9: residues | J9: terminal | K9: 0.26 | L9: 0.4 | M9: =IF(Emissions!X46>12,0,IF(Emissions!X46<5,1,(Emissions!X46-12)/(-7))) -> 0.1753810104 | N9: =IF(Damage!Y33>0.5,0,IF(Damage!Y33<0.1,1,(Damage!Y33-0.5)/(-0.4))) -> 1 | O9: =IF('Contribution margin'!AB46<-10,0,IF('Contribution margin'!AB46>10,1,('Contribution margin'!AB46+10)/20)) -> 0 | P9: 0.5 | Q9: =IF(Employment!X46>0.5,1,Employment!X46*2) -> 0.8199203958 | R9: =Accidents!P30 -> 0.5205662393 | S9: =IF('Energy efficiency'!Y46>0.05,0,IF('Energy efficiency'!Y46<0.02,1,('Energy efficiency'!Y46-0.05)/(-0.03))) -> 0.2499737111 | T9: 0.4659122484 | U9: =IF('2a Site and stand'!$D$7="non-uniform",0,1) -> 1 | V9: =IF('2a Site and stand'!$D$9="low",0,1) -> 1 | W9: =IF('2a Site and stand'!$D$17="no restrictions",1,IF('2a Site and stand'!$D$17="other soil types",1,0)) -> 1 | X9: =IF('2a Site and stand'!$D$11="0 to 35 %",1,IF('2a Site and stand'!$D$11="no restrictions",1,0)) -> 1 | Y9: 1 | Z9: 1 | AA9: 1 | AB9: =IF('2b Environment'!$D$17="not possible",0,1) -> 1 | AC9: 1 | AD9: 0.4659122484 | AE9: 0.02166666667 | AF9: 0.03333333333 | AG9: 0 | AH9: 0.08333333333 | AI9: 0 | AJ9: 0.08333333333 | AK9: 0.1366533993 | AL9: 0.08676103989 | AM9: 0.02083114259 | AO9: 0.02166666667 | AP9: 0.03333333333 | AQ9: 0 | AR9: 0.08333333333 | AS9: 0 | AT9: 0.08333333333 | AU9: 0.1366533993 | AV9: 0.08676103989 | AW9: 0.02083114259
A10: 7 | B10: G | C10: 19 | D10: Chain saw | F10: Forwarder | H10: CTL | I10: residues | J10: plant | K10: 0.26 | L10: 0.4 | M10: =IF(Emissions!X47>12,0,IF(Emissions!X47<5,1,(Emissions!X47-12)/(-7))) -> 0.3587087761 | N10: =IF(Damage!Y34>0.5,0,IF(Damage!Y34<0.1,1,(Damage!Y34-0.5)/(-0.4))) -> 1 | O10: =IF('Contribution margin'!AB47<-10,0,IF('Contribution margin'!AB47>10,1,('Contribution margin'!AB47+10)/20)) -> 0.0002122750563 | P10: 0.7 | Q10: =IF(Employment!X47>0.5,1,Employment!X47*2) -> 0.6644378746 | R10: =Accidents!P31 -> 0.5205662393 | S10: =IF('Energy efficiency'!Y47>0.05,0,IF('Energy efficiency'!Y47<0.02,1,('Energy efficiency'!Y47-0.05)/(-0.03))) -> 0.4184871119 | T10: 0.4874099908 | U10: =IF('2a Site and stand'!$D$7="non-uniform",0,1) -> 1 | V10: =IF('2a Site and stand'!$D$9="low",0,1) -> 1 | W10: =IF('2a Site and stand'!$D$17="no restrictions",1,IF('2a Site and stand'!$D$17="other soil types",1,0)) -> 1 | X10: =IF('2a Site and stand'!$D$11="0 to 35 %",1,IF('2a Site and stand'!$D$11="no restrictions",1,0)) -> 1 | Y10: 1 | Z10: 1 | AA10: 1 | AB10: 1 | AC10: =IF('2b Environment'!$D$18="not possible",0,1) -> 1 | AD10: 0.4874099908 | AE10: 0.02166666667 | AF10: 0.03333333333 | AG10: 0 | AH10: 0.08333333333 | AI10: 3.537917606e-05 | AJ10: 0.1166666667 | AK10: 0.1107396458 | AL10: 0.08676103989 | AM10: 0.03487392599 | AO10: 0.02166666667 | AP10: 0.03333333333 | AQ10: 0 | AR10: 0.08333333333 | AS10: 3.537917606e-05 | AT10: 0.1166666667 | AU10: 0.1107396458 | AV10: 0.08676103989 | AW10: 0.03487392599
A11: 8 | B11: G | C11: 20 | D11: Chain saw | F11: Forwarder | G11: Bundler | H11: CTL | I11: residues | J11: plant | K11: 0.26 | L11: 0.4 | M11: =IF(Emissions!X48>12,0,IF(Emissions!X48<5,1,(Emissions!X48-12)/(-7))) -> 0.1516516041 | N11: =IF(Damage!Y35>0.5,0,IF(Damage!Y35<0.1,1,(Damage!Y35-0.5)/(-0.4))) -> 1 | O11: =IF('Contribution margin'!AB48<-10,0,IF('Contribution margin'!AB48>10,1,('Contribution margin'!AB48+10)/20)) -> 0 | P11: 0.9 | Q11: =IF(Employment!X48>0.5,1,Employment!X48*2) -> 0.795253906 | R11: =Accidents!P32 -> 0.5205662393 | S11: =IF('Energy efficiency'!Y48>0.05,0,IF('Energy efficiency'!Y48<0.02,1,('Energy efficiency'!Y48-0.05)/(-0.03))) -> 0.2281618325 | T11: 0.5266501769 | U11: =IF('2a Site and stand'!$D$7="non-uniform",0,1) -> 1 | V11: =IF('2a Site and stand'!$D$9="low",0,1) -> 1 | W11: =IF('2a Site and stand'!$D$17="no restrictions",1,IF('2a Site and stand'!$D$17="other soil types",1,0)) -> 1 | X11: =IF('2a Site and stand'!$D$11="0 to 35 %",1,IF('2a Site and stand'!$D$11="no restrictions",1,0)) -> 1 | Y11: 1 | Z11: 1 | AA11: 1 | AB11: 1 | AC11: =IF('2b Environment'!$D$18="not possible",0,1) -> 1 | AD11: 0.5266501769 | AE11: 0.02166666667 | AF11: 0.03333333333 | AG11: 0 | AH11: 0.08333333333 | AI11: 0 | AJ11: 0.15 | AK11: 0.1325423177 | AL11: 0.08676103989 | AM11: 0.01901348605 | AO11: 0.02166666667 | AP11: 0.03333333333 | AQ11: 0 | AR11: 0.08333333333 | AS11: 0 | AT11: 0.15 | AU11: 0.1325423177 | AV11: 0.08676103989 | AW11: 0.01901348605
A12: 9 | B12: H | C12: 21 | D12: Chain saw | F12: Forwarder | H12: WT | I12: trees | J12: forest road | K12: 0.26 | L12: 0.4 | M12: =IF(Emissions!X49>12,0,IF(Emissions!X49<5,1,(Emissions!X49-12)/(-7))) -> 0.9336844612 | N12: =IF(Damage!Y36>0.5,0,IF(Damage!Y36<0.1,1,(Damage!Y36-0.5)/(-0.4))) -> 0.79 | O12: =IF('Contribution margin'!AB49<-10,0,IF('Contribution margin'!AB49>10,1,('Contribution margin'!AB49+10)/20)) -> 0.4644685994 | P12: 0.2 | Q12: =IF(Employment!X49>0.5,1,Employment!X49*2) -> 0.6302636248 | R12: =Accidents!P33 -> 0.6021062271 | S12: =IF('Energy efficiency'!Y49>0.05,0,IF('Energy efficiency'!Y49<0.02,1,('Energy efficiency'!Y49-0.05)/(-0.03))) -> 0.899006273 | T12: 0.5118902646 | U12: =IF('2a Site and stand'!$D$7="non-uniform",0,1) -> 1 | V12: =IF('2a Site and stand'!$D$9="low",0,1) -> 1 | W12: =IF('2a Site and stand'!$D$17="no restrictions",1,IF('2a Site and stand'!$D$17="other soil types",1,0)) -> 1 | X12: =IF('2a Site and stand'!$D$11="0 to 35 %",1,IF('2a Site and stand'!$D$11="no restrictions",1,0)) -> 1 | Y12: 1 | Z12: 1 | AA12: =IF('2b Environment'!$D$16="not possible",0,1) -> 1 | AB12: 1 | AC12: 1 | AD12: 0.5118902646 | AE12: 0.02166666667 | AF12: 0.03333333333 | AG12: 0 | AH12: 0.06583333333 | AI12: 0.07741143323 | AJ12: 0.03333333333 | AK12: 0.1050439375 | AL12: 0.1003510379 | AM12: 0.07491718942 | AO12: 0.02166666667 | AP12: 0.03333333333 | AQ12: 0 | AR12: 0.06583333333 | AS12: 0.07741143323 | AT12: 0.03333333333 | AU12: 0.1050439375 | AV12: 0.1003510379 | AW12: 0.07491718942
A13: 10 | B13: H | C13: 22 | D13: Chain saw | F13: Forwarder | H13: WT | I13: trees | J13: terminal | K13: 0.26 | L13: 0.4 | M13: =IF(Emissions!X50>12,0,IF(Emissions!X50<5,1,(Emissions!X50-12)/(-7))) -> 0.8875886886 | N13: =IF(Damage!Y37>0.5,0,IF(Damage!Y37<0.1,1,(Damage!Y37-0.5)/(-0.4))) -> 0.79 | O13: =IF('Contribution margin'!AB50<-10,0,IF('Contribution margin'!AB50>10,1,('Contribution margin'!AB50+10)/20)) -> 0.1645164442 | P13: 0.5 | Q13: =IF(Employment!X50>0.5,1,Employment!X50*2) -> 0.7660687288 | R13: =Accidents!P34 -> 0.6021062271 | S13: =IF('Energy efficiency'!Y50>0.05,0,IF('Energy efficiency'!Y50<0.02,1,('Energy efficiency'!Y50-0.05)/(-0.03))) -> 0.8566354114 | T13: 0.5310015176 | U13: =IF('2a Site and stand'!$D$7="non-uniform",0,1) -> 1 | V13: =IF('2a Site and stand'!$D$9="low",0,1) -> 1 | W13: =IF('2a Site and stand'!$D$17="no restrictions",1,IF('2a Site and stand'!$D$17="other soil types",1,0)) -> 1 | X13: =IF('2a Site and stand'!$D$11="0 to 35 %",1,IF('2a Site and stand'!$D$11="no restrictions",1,0)) -> 1 | Y13: 1 | Z13: 1 | AA13: 1 | AB13: =IF('2b Environment'!$D$17="not possible",0,1) -> 1 | AC13: 1 | AD13: 0.5310015176 | AE13: 0.02166666667 | AF13: 0.03333333333 | AG13: 0 | AH13: 0.06583333333 | AI13: 0.02741940736 | AJ13: 0.08333333333 | AK13: 0.1276781215 | AL13: 0.1003510379 | AM13: 0.07138628428 | AO13: 0.02166666667 | AP13: 0.03333333333 | AQ13: 0 | AR13: 0.06583333333 | AS13: 0.02741940736 | AT13: 0.08333333333 | AU13: 0.1276781215 | AV13: 0.1003510379 | AW13: 0.07138628428
A14: 11 | B14: H | C14: 23 | D14: Chain saw | F14: Forwarder | H14: WT | I14: trees | J14: plant | K14: 0.26 | L14: 0.4 | M14: =IF(Emissions!X51>12,0,IF(Emissions!X51<5,1,(Emissions!X51-12)/(-7))) -> 0.8233536151 | N14: =IF(Damage!Y38>0.5,0,IF(Damage!Y38<0.1,1,(Damage!Y38-0.5)/(-0.4))) -> 0.79 | O14: =IF('Contribution margin'!AB51<-10,0,IF('Contribution margin'!AB51>10,1,('Contribution margin'!AB51+10)/20)) -> 0.2473071106 | P14: 0.8 | Q14: =IF(Employment!X51>0.5,1,Employment!X51*2) -> 0.8019860276 | R14: =Accidents!P35 -> 0.6021062271 | S14: =IF('Energy efficiency'!Y51>0.05,0,IF('Energy efficiency'!Y51<0.02,1,('Energy efficiency'!Y51-0.05)/(-0.03))) -> 0.7975910509 | T14: 0.5958658151 | U14: =IF('2a Site and stand'!$D$7="non-uniform",0,1) -> 1 | V14: =IF('2a Site and stand'!$D$9="low",0,1) -> 1 | W14: =IF('2a Site and stand'!$D$17="no restrictions",1,IF('2a Site and stand'!$D$17="other soil types",1,0)) -> 1 | X14: =IF('2a Site and stand'!$D$11="0 to 35 %",1,IF('2a Site and stand'!$D$11="no restrictions",1,0)) -> 1 | Y14: 1 | Z14: 1 | AA14: 1 | AB14: 1 | AC14: =IF('2b Environment'!$D$18="not possible",0,1) -> 1 | AD14: 0.5958658151 | AE14: 0.02166666667 | AF14: 0.03333333333 | AG14: 0 | AH14: 0.06583333333 | AI14: 0.04121785176 | AJ14: 0.1333333333 | AK14: 0.1336643379 | AL14: 0.1003510379 | AM14: 0.06646592091 | AO14: 0.02166666667 | AP14: 0.03333333333 | AQ14: 0 | AR14: 0.06583333333 | AS14: 0.04121785176 | AT14: 0.1333333333 | AU14: 0.1336643379 | AV14: 0.1003510379 | AW14: 0.06646592091
A15: 12 | B15: D | C15: 10 | D15: Harvester | F15: Forwarder | H15: CTL | I15: logs | J15: forest road | K15: 0.51 | L15: 0.4 | M15: =IF(Emissions!X52>12,0,IF(Emissions!X52<5,1,(Emissions!X52-12)/(-7))) -> 0.8894317374 | N15: =IF(Damage!Y39>0.5,0,IF(Damage!Y39<0.1,1,(Damage!Y39-0.5)/(-0.4))) -> 0.982 | O15: =IF('Contribution margin'!AB52<-10,0,IF('Contribution margin'!AB52>10,1,('Contribution margin'!AB52+10)/20)) -> 0.7206287813 | P15: 0.3 | Q15: =IF(Employment!X52>0.5,1,Employment!X52*2) -> 0.2931416317 | R15: =Accidents!P36 -> 1 | S15: =IF('Energy efficiency'!Y52>0.05,0,IF('Energy efficiency'!Y52<0.02,1,('Energy efficiency'!Y52-0.05)/(-0.03))) -> 0.9084675566 | T15: 0.6190006986 | U15: =IF('2a Site and stand'!$D$7="non-uniform",0,1) -> 1 | V15: =IF('2a Site and stand'!$D$9="low",0,1) -> 1 | W15: 1 | X15: =IF('2a Site and stand'!$D$11="0 to 35 %",1,IF('2a Site and stand'!$D$11="no restrictions",1,0)) -> 1 | Y15: 1 | Z15: =IF('2a Site and stand'!$D$15<40,1,0) -> 1 | AA15: =IF('2b Environment'!$D$16="not possible",0,1) -> 1 | AB15: 1 | AC15: 1 | AD15: 0.6190006986 | AE15: 0.0425 | AF15: 0.03333333333 | AG15: 0 | AH15: 0.08183333333 | AI15: 0.1201047969 | AJ15: 0.05 | AK15: 0.04885693862 | AL15: 0.1666666667 | AM15: 0.07570562972 | AO15: 0.0425 | AP15: 0.03333333333 | AQ15: 0 | AR15: 0.08183333333 | AS15: 0.1201047969 | AT15: 0.05 | AU15: 0.04885693862 | AV15: 0.1666666667 | AW15: 0.07570562972
A16: 13 | B16: D | C16: 11 | D16: Harvester | F16: Forwarder | H16: CTL | I16: logs | J16: terminal | K16: 0.51 | L16: 0.4 | M16: =IF(Emissions!X53>12,0,IF(Emissions!X53<5,1,(Emissions!X53-12)/(-7))) -> 0.8682485833 | N16: =IF(Damage!Y40>0.5,0,IF(Damage!Y40<0.1,1,(Damage!Y40-0.5)/(-0.4))) -> 0.982 | O16: =IF('Contribution margin'!AB53<-10,0,IF('Contribution margin'!AB53>10,1,('Contribution margin'!AB53+10)/20)) -> 0.4620608075 | P16: 0.6 | Q16: =IF(Employment!X53>0.5,1,Employment!X53*2) -> 0.3814234594 | R16: =Accidents!P37 -> 1 | S16: =IF('Energy efficiency'!Y53>0.05,0,IF('Energy efficiency'!Y53<0.02,1,('Energy efficiency'!Y53-0.05)/(-0.03))) -> 0.8889961726 | T16: 0.6389970589 | U16: =IF('2a Site and stand'!$D$7="non-uniform",0,1) -> 1 | V16: =IF('2a Site and stand'!$D$9="low",0,1) -> 1 | W16: 1 | X16: =IF('2a Site and stand'!$D$11="0 to 35 %",1,IF('2a Site and stand'!$D$11="no restrictions",1,0)) -> 1 | Y16: 1 | Z16: =IF('2a Site and stand'!$D$15<40,1,0) -> 1 | AA16: 1 | AB16: =IF('2b Environment'!$D$17="not possible",0,1) -> 1 | AC16: 1 | AD16: 0.6389970589 | AE16: 0.0425 | AF16: 0.03333333333 | AG16: 0 | AH16: 0.08183333333 | AI16: 0.07701013459 | AJ16: 0.1 | AK16: 0.06357057657 | AL16: 0.1666666667 | AM16: 0.07408301438 | AO16: 0.0425 | AP16: 0.03333333333 | AQ16: 0 | AR16: 0.08183333333 | AS16: 0.07701013459 | AT16: 0.1 | AU16: 0.06357057657 | AV16: 0.1666666667 | AW16: 0.07408301438
A17: 14 | B17: D | C17: 12 | D17: Harvester | F17: Forwarder | H17: CTL | I17: logs | J17: plant | K17: 0.51 | L17: 0.4 | M17: =IF(Emissions!X54>12,0,IF(Emissions!X54<5,1,(Emissions!X54-12)/(-7))) -> 0.8579908498 | N17: =IF(Damage!Y41>0.5,0,IF(Damage!Y41<0.1,1,(Damage!Y41-0.5)/(-0.4))) -> 0.982 | O17: =IF('Contribution margin'!AB54<-10,0,IF('Contribution margin'!AB54>10,1,('Contribution margin'!AB54+10)/20)) -> 0.5814866711 | P17: 1 | Q17: =IF(Employment!X54>0.5,1,Employment!X54*2) -> 0.3542534925 | R17: =Accidents!P38 -> 1 | S17: =IF('Energy efficiency'!Y54>0.05,0,IF('Energy efficiency'!Y54<0.02,1,('Energy efficiency'!Y54-0.05)/(-0.03))) -> 0.8795673468 | T17: 0.7202539728 | U17: =IF('2a Site and stand'!$D$7="non-uniform",0,1) -> 1 | V17: =IF('2a Site and stand'!$D$9="low",0,1) -> 1 | W17: 1 | X17: =IF('2a Site and stand'!$D$11="0 to 35 %",1,IF('2a Site and stand'!$D$11="no restrictions",1,0)) -> 1 | Y17: 1 | Z17: =IF('2a Site and stand'!$D$15<40,1,0) -> 1 | AA17: 1 | AB17: 1 | AC17: =IF('2b Environment'!$D$18="not possible",0,1) -> 1 | AD17: 0.7202539728 | AE17: 0.0425 | AF17: 0.03333333333 | AG17: 0 | AH17: 0.08183333333 | AI17: 0.09691444519 | AJ17: 0.1666666667 | AK17: 0.05904224875 | AL17: 0.1666666667 | AM17: 0.0732972789 | AO17: 0.0425 | AP17: 0.03333333333 | AQ17: 0 | AR17: 0.08183333333 | AS17: 0.09691444519 | AT17: 0.1666666667 | AU17: 0.05904224875 | AV17: 0.1666666667 | AW17: 0.0732972789
A18: 15 | B18: K | C18: 31 | D18: Harvester | F18: Forwarder | H18: CTL | I18: residues | J18: forest road | K18: 0.26 | L18: 0.4 | M18: =IF(Emissions!X55>12,0,IF(Emissions!X55<5,1,(Emissions!X55-12)/(-7))) -> 0.440984683 | N18: =IF(Damage!Y42>0.5,0,IF(Damage!Y42<0.1,1,(Damage!Y42-0.5)/(-0.4))) -> 1 | O18: =IF('Contribution margin'!AB55<-10,0,IF('Contribution margin'!AB55>10,1,('Contribution margin'!AB55+10)/20)) -> 0.3233428758 | P18: 0.1 | Q18: =IF(Employment!X55>0.5,1,Employment!X55*2) -> 0.4692351958 | R18: =Accidents!P39 -> 1 | S18: =IF('Energy efficiency'!Y55>0.05,0,IF('Energy efficiency'!Y55<0.02,1,('Energy efficiency'!Y55-0.05)/(-0.03))) -> 0.496258648 | T18: 0.4951178993 | U18: =IF('2a Site and stand'!$D$7="non-uniform",0,1) -> 1 | V18: =IF('2a Site and stand'!$D$9="low",0,1) -> 1 | W18: =IF('2a Site and stand'!$D$17="no restrictions",1,IF('2a Site and stand'!$D$17="other soil types",1,0)) -> 1 | X18: =IF('2a Site and stand'!$D$11="0 to 35 %",1,IF('2a Site and stand'!$D$11="no restrictions",1,0)) -> 1 | Y18: 1 | Z18: =IF('2a Site and stand'!$D$15<40,1,0) -> 1 | AA18: =IF('2b Environment'!$D$16="not possible",0,1) -> 1 | AB18: 1 | AC18: 1 | AD18: 0.4951178993 | AE18: 0.02166666667 | AF18: 0.03333333333 | AG18: 0 | AH18: 0.08333333333 | AI18: 0.0538904793 | AJ18: 0.01666666667 | AK18: 0.07820586596 | AL18: 0.1666666667 | AM18: 0.04135488733 | AO18: 0.02166666667 | AP18: 0.03333333333 | AQ18: 0 | AR18: 0.08333333333 | AS18: 0.0538904793 | AT18: 0.01666666667 | AU18: 0.07820586596 | AV18: 0.1666666667 | AW18: 0.04135488733
A19: 16 | B19: K | C19: 32 | D19: Harvester | F19: Forwarder | H19: CTL | I19: residues | J19: terminal | K19: 0.26 | L19: 0.4 | M19: =IF(Emissions!X56>12,0,IF(Emissions!X56<5,1,(Emissions!X56-12)/(-7))) -> 0.394382673 | N19: =IF(Damage!Y43>0.5,0,IF(Damage!Y43<0.1,1,(Damage!Y43-0.5)/(-0.4))) -> 1 | O19: =IF('Contribution margin'!AB56<-10,0,IF('Contribution margin'!AB56>10,1,('Contribution margin'!AB56+10)/20)) -> 0.02167481876 | P19: 0.4 | Q19: =IF(Employment!X56>0.5,1,Employment!X56*2) -> 0.6060962394 | R19: =Accidents!P40 -> 1 | S19: =IF('Energy efficiency'!Y56>0.05,0,IF('Energy efficiency'!Y56<0.02,1,('Energy efficiency'!Y56-0.05)/(-0.03))) -> 0.453422457 | T19: 0.5140803811 | U19: =IF('2a Site and stand'!$D$7="non-uniform",0,1) -> 1 | V19: =IF('2a Site and stand'!$D$9="low",0,1) -> 1 | W19: =IF('2a Site and stand'!$D$17="no restrictions",1,IF('2a Site and stand'!$D$17="other soil types",1,0)) -> 1 | X19: =IF('2a Site and stand'!$D$11="0 to 35 %",1,IF('2a Site and stand'!$D$11="no restrictions",1,0)) -> 1 | Y19: 1 | Z19: =IF('2a Site and stand'!$D$15<40,1,0) -> 1 | AA19: 1 | AB19: =IF('2b Environment'!$D$17="not possible",0,1) -> 1 | AC19: 1 | AD19: 0.5140803811 | AE19: 0.02166666667 | AF19: 0.03333333333 | AG19: 0 | AH19: 0.08333333333 | AI19: 0.003612469794 | AJ19: 0.06666666667 | AK19: 0.1010160399 | AL19: 0.1666666667 | AM19: 0.03778520475 | AO19: 0.02166666667 | AP19: 0.03333333333 | AQ19: 0 | AR19: 0.08333333333 | AS19: 0.003612469794 | AT19: 0.06666666667 | AU19: 0.1010160399 | AV19: 0.1666666667 | AW19: 0.03778520475
A20: 17 | B20: K | C20: 32 | D20: Harvester | F20: Forwarder | G20: Bundler | H20: CTL | I20: residues | J20: terminal | K20: 0.26 | L20: 0.4 | M20: =IF(Emissions!X57>12,0,IF(Emissions!X57<5,1,(Emissions!X57-12)/(-7))) -> 0.1457229862 | N20: =IF(Damage!Y44>0.5,0,IF(Damage!Y44<0.1,1,(Damage!Y44-0.5)/(-0.4))) -> 1 | O20: =IF('Contribution margin'!AB57<-10,0,IF('Contribution margin'!AB57>10,1,('Contribution margin'!AB57+10)/20)) -> 0 | P20: 0.5 | Q20: =IF(Employment!X57>0.5,1,Employment!X57*2) -> 0.7613393649 | R20: =Accidents!P41 -> 1 | S20: =IF('Energy efficiency'!Y57>0.05,0,IF('Energy efficiency'!Y57<0.02,1,('Energy efficiency'!Y57-0.05)/(-0.03))) -> 0.2248564823 | T20: 0.5339612677 | U20: =IF('2a Site and stand'!$D$7="non-uniform",0,1) -> 1 | V20: =IF('2a Site and stand'!$D$9="low",0,1) -> 1 | W20: =IF('2a Site and stand'!$D$17="no restrictions",1,IF('2a Site and stand'!$D$17="other soil types",1,0)) -> 1 | X20: =IF('2a Site and stand'!$D$11="0 to 35 %",1,IF('2a Site and stand'!$D$11="no restrictions",1,0)) -> 1 | Y20: 1 | Z20: =IF('2a Site and stand'!$D$15<40,1,0) -> 1 | AA20: 1 | AB20: =IF('2b Environment'!$D$17="not possible",0,1) -> 1 | AC20: 1 | AD20: 0.5339612677 | AE20: 0.02166666667 | AF20: 0.03333333333 | AG20: 0 | AH20: 0.08333333333 | AI20: 0 | AJ20: 0.08333333333 | AK20: 0.1268898942 | AL20: 0.1666666667 | AM20: 0.01873804019 | AO20: 0.02166666667 | AP20: 0.03333333333 | AQ20: 0 | AR20: 0.08333333333 | AS20: 0 | AT20: 0.08333333333 | AU20: 0.1268898942 | AV20: 0.1666666667 | AW20: 0.01873804019
A21: 18 | B21: K | C21: 33 | D21: Harvester | F21: Forwarder | H21: CTL | I21: residues | J21: plant | K21: 0.26 | L21: 0.4 | M21: =IF(Emissions!X58>12,0,IF(Emissions!X58<5,1,(Emissions!X58-12)/(-7))) -> 0.3290507519 | N21: =IF(Damage!Y45>0.5,0,IF(Damage!Y45<0.1,1,(Damage!Y45-0.5)/(-0.4))) -> 1 | O21: =IF('Contribution margin'!AB58<-10,0,IF('Contribution margin'!AB58>10,1,('Contribution margin'!AB58+10)/20)) -> 0.03318119104 | P21: 0.7 | Q21: =IF(Employment!X58>0.5,1,Employment!X58*2) -> 0.6058568438 | R21: =Accidents!P42 -> 1 | S21: =IF('Energy efficiency'!Y58>0.05,0,IF('Energy efficiency'!Y58<0.02,1,('Energy efficiency'!Y58-0.05)/(-0.03))) -> 0.3933698831 | T21: 0.5609538294 | U21: =IF('2a Site and stand'!$D$7="non-uniform",0,1) -> 1 | V21: =IF('2a Site and stand'!$D$9="low",0,1) -> 1 | W21: =IF('2a Site and stand'!$D$17="no restrictions",1,IF('2a Site and stand'!$D$17="other soil types",1,0)) -> 1 | X21: =IF('2a Site and stand'!$D$11="0 to 35 %",1,IF('2a Site and stand'!$D$11="no restrictions",1,0)) -> 1 | Y21: 1 | Z21: =IF('2a Site and stand'!$D$15<40,1,0) -> 1 | AA21: 1 | AB21: 1 | AC21: =IF('2b Environment'!$D$18="not possible",0,1) -> 1 | AD21: 0.5609538294 | AE21: 0.02166666667 | AF21: 0.03333333333 | AG21: 0 | AH21: 0.08333333333 | AI21: 0.005530198507 | AJ21: 0.1166666667 | AK21: 0.1009761406 | AL21: 0.1666666667 | AM21: 0.03278082359 | AO21: 0.02166666667 | AP21: 0.03333333333 | AQ21: 0 | AR21: 0.08333333333 | AS21: 0.005530198507 | AT21: 0.1166666667 | AU21: 0.1009761406 | AV21: 0.1666666667 | AW21: 0.03278082359
A22: 19 | B22: K | C22: 34 | D22: Harvester | F22: Forwarder | G22: Bundler | H22: CTL | I22: residues | J22: plant | K22: 0.26 | L22: 0.4 | M22: =IF(Emissions!X59>12,0,IF(Emissions!X59<5,1,(Emissions!X59-12)/(-7))) -> 0.1219935799 | N22: =IF(Damage!Y46>0.5,0,IF(Damage!Y46<0.1,1,(Damage!Y46-0.5)/(-0.4))) -> 1 | O22: =IF('Contribution margin'!AB59<-10,0,IF('Contribution margin'!AB59>10,1,('Contribution margin'!AB59+10)/20)) -> 0 | P22: 0.9 | Q22: =IF(Employment!X59>0.5,1,Employment!X59*2) -> 0.7366728751 | R22: =Accidents!P43 -> 1 | S22: =IF('Energy efficiency'!Y59>0.05,0,IF('Energy efficiency'!Y59<0.02,1,('Energy efficiency'!Y59-0.05)/(-0.03))) -> 0.2030446037 | T22: 0.5946991962 | U22: =IF('2a Site and stand'!$D$7="non-uniform",0,1) -> 1 | V22: =IF('2a Site and stand'!$D$9="low",0,1) -> 1 | W22: =IF('2a Site and stand'!$D$17="no restrictions",1,IF('2a Site and stand'!$D$17="other soil types",1,0)) -> 1 | X22: =IF('2a Site and stand'!$D$11="0 to 35 %",1,IF('2a Site and stand'!$D$11="no restrictions",1,0)) -> 1 | Y22: 1 | Z22: =IF('2a Site and stand'!$D$15<40,1,0) -> 1 | AA22: 1 | AB22: 1 | AC22: =IF('2b Environment'!$D$18="not possible",0,1) -> 1 | AD22: 0.5946991962 | AE22: 0.02166666667 | AF22: 0.03333333333 | AG22: 0 | AH22: 0.08333333333 | AI22: 0 | AJ22: 0.15 | AK22: 0.1227788125 | AL22: 0.1666666667 | AM22: 0.01692038364 | AO22: 0.02166666667 | AP22: 0.03333333333 | AQ22: 0 | AR22: 0.08333333333 | AS22: 0 | AT22: 0.15 | AU22: 0.1227788125 | AV22: 0.1666666667 | AW22: 0.01692038364
A23: 20 | B23: L | C23: 35 | D23: Harvester | F23: Forwarder | H23: CTL | I23: trees | J23: forest road | K23: 0.26 | L23: 0.4 | M23: =IF(Emissions!X60>12,0,IF(Emissions!X60<5,1,(Emissions!X60-12)/(-7))) -> 0.6058853241 | N23: =IF(Damage!Y47>0.5,0,IF(Damage!Y47<0.1,1,(Damage!Y47-0.5)/(-0.4))) -> 0.982 | O23: =IF('Contribution margin'!AB60<-10,0,IF('Contribution margin'!AB60>10,1,('Contribution margin'!AB60+10)/20)) -> 0.4674830816 | P23: 0.2 | Q23: =IF(Employment!X60>0.5,1,Employment!X60*2) -> 0.3983803777 | R23: =Accidents!P44 -> 1 | S23: =IF('Energy efficiency'!Y60>0.05,0,IF('Energy efficiency'!Y60<0.02,1,('Energy efficiency'!Y60-0.05)/(-0.03))) -> 0.6478339848 | T23: 0.5351300753 | U23: =IF('2a Site and stand'!$D$7="non-uniform",0,1) -> 1 | V23: =IF('2a Site and stand'!$D$9="low",0,1) -> 1 | W23: =IF('2a Site and stand'!$D$17="no restrictions",1,IF('2a Site and stand'!$D$17="other soil types",1,0)) -> 1 | X23: =IF('2a Site and stand'!$D$11="0 to 35 %",1,IF('2a Site and stand'!$D$11="no restrictions",1,0)) -> 1 | Y23: 1 | Z23: =IF('2a Site and stand'!$D$15<40,1,0) -> 1 | AA23: =IF('2b Environment'!$D$16="not possible",0,1) -> 1 | AB23: 1 | AC23: 1 | AD23: 0.5351300753 | AE23: 0.02166666667 | AF23: 0.03333333333 | AG23: 0 | AH23: 0.08183333333 | AI23: 0.07791384693 | AJ23: 0.03333333333 | AK23: 0.06639672961 | AL23: 0.1666666667 | AM23: 0.0539861654 | AO23: 0.02166666667 | AP23: 0.03333333333 | AQ23: 0 | AR23: 0.08183333333 | AS23: 0.07791384693 | AT23: 0.03333333333 | AU23: 0.06639672961 | AV23: 0.1666666667 | AW23: 0.0539861654
A24: 21 | B24: L | C24: 36 | D24: Harvester | F24: Forwarder | H24: CTL | I24: trees | J24: terminal | K24: 0.26 | L24: 0.4 | M24: =IF(Emissions!X61>12,0,IF(Emissions!X61<5,1,(Emissions!X61-12)/(-7))) -> 0.5597895516 | N24: =IF(Damage!Y48>0.5,0,IF(Damage!Y48<0.1,1,(Damage!Y48-0.5)/(-0.4))) -> 0.982 | O24: =IF('Contribution margin'!AB61<-10,0,IF('Contribution margin'!AB61>10,1,('Contribution margin'!AB61+10)/20)) -> 0.1675309264 | P24: 0.5 | Q24: =IF(Employment!X61>0.5,1,Employment!X61*2) -> 0.5341854817 | R24: =Accidents!P45 -> 1 | S24: =IF('Energy efficiency'!Y61>0.05,0,IF('Energy efficiency'!Y61<0.02,1,('Energy efficiency'!Y61-0.05)/(-0.03))) -> 0.6054631232 | T24: 0.5542413283 | U24: =IF('2a Site and stand'!$D$7="non-uniform",0,1) -> 1 | V24: =IF('2a Site and stand'!$D$9="low",0,1) -> 1 | W24: =IF('2a Site and stand'!$D$17="no restrictions",1,IF('2a Site and stand'!$D$17="other soil types",1,0)) -> 1 | X24: =IF('2a Site and stand'!$D$11="0 to 35 %",1,IF('2a Site and stand'!$D$11="no restrictions",1,0)) -> 1 | Y24: 1 | Z24: =IF('2a Site and stand'!$D$15<40,1,0) -> 1 | AA24: 1 | AB24: =IF('2b Environment'!$D$17="not possible",0,1) -> 1 | AC24: 1 | AD24: 0.5542413283 | AE24: 0.02166666667 | AF24: 0.03333333333 | AG24: 0 | AH24: 0.08183333333 | AI24: 0.02792182106 | AJ24: 0.08333333333 | AK24: 0.08903091361 | AL24: 0.1666666667 | AM24: 0.05045526027 | AO24: 0.02166666667 | AP24: 0.03333333333 | AQ24: 0 | AR24: 0.08183333333 | AS24: 0.02792182106 | AT24: 0.08333333333 | AU24: 0.08903091361 | AV24: 0.1666666667 | AW24: 0.05045526027
A25: 22 | B25: L | C25: 37 | D25: Harvester | F25: Forwarder | H25: CTL | I25: trees | J25: plant | K25: 0.26 | L25: 0.4 | M25: =IF(Emissions!X62>12,0,IF(Emissions!X62<5,1,(Emissions!X62-12)/(-7))) -> 0.4955544781 | N25: =IF(Damage!Y49>0.5,0,IF(Damage!Y49<0.1,1,(Damage!Y49-0.5)/(-0.4))) -> 0.982 | O25: =IF('Contribution margin'!AB62<-10,0,IF('Contribution margin'!AB62>10,1,('Contribution margin'!AB62+10)/20)) -> 0.2503215928 | P25: 0.8 | Q25: =IF(Employment!X62>0.5,1,Employment!X62*2) -> 0.5701027805 | R25: =Accidents!P46 -> 1 | S25: =IF('Energy efficiency'!Y62>0.05,0,IF('Energy efficiency'!Y62<0.02,1,('Energy efficiency'!Y62-0.05)/(-0.03))) -> 0.5464187627 | T25: 0.6191056258 | U25: =IF('2a Site and stand'!$D$7="non-uniform",0,1) -> 1 | V25: =IF('2a Site and stand'!$D$9="low",0,1) -> 1 | W25: =IF('2a Site and stand'!$D$17="no restrictions",1,IF('2a Site and stand'!$D$17="other soil types",1,0)) -> 1 | X25: =IF('2a Site and stand'!$D$11="0 to 35 %",1,IF('2a Site and stand'!$D$11="no restrictions",1,0)) -> 1 | Y25: 1 | Z25: =IF('2a Site and stand'!$D$15<40,1,0) -> 1 | AA25: 1 | AB25: 1 | AC25: =IF('2b Environment'!$D$18="not possible",0,1) -> 1 | AD25: 0.6191056258 | AE25: 0.02166666667 | AF25: 0.03333333333 | AG25: 0 | AH25: 0.08183333333 | AI25: 0.04172026546 | AJ25: 0.1333333333 | AK25: 0.09501713008 | AL25: 0.1666666667 | AM25: 0.04553489689 | AO25: 0.02166666667 | AP25: 0.03333333333 | AQ25: 0 | AR25: 0.08183333333 | AS25: 0.04172026546 | AT25: 0.1333333333 | AU25: 0.09501713008 | AV25: 0.1666666667 | AW25: 0.04553489689
A26: 23 | D26: Chain saw | F26: Tower yarder | H26: TL | I26: logs | J26: forest road | K26: 0.51 | L26: 0.98 | M26: =IF(Emissions!X63>12,0,IF(Emissions!X63<5,1,(Emissions!X63-12)/(-7))) -> 0.8754036886 | N26: =IF(Damage!Y50>0.5,0,IF(Damage!Y50<0.1,1,(Damage!Y50-0.5)/(-0.4))) -> 0.51375 | O26: =IF('Contribution margin'!AB63<-10,0,IF('Contribution margin'!AB63>10,1,('Contribution margin'!AB63+10)/20)) -> 0 | P26: 0.3 | Q26: =IF(Employment!X63>0.5,1,Employment!X63*2) -> 0.9566835845 | R26: =Accidents!P47 -> 0.09608516484 | S26: =IF('Energy efficiency'!Y63>0.05,0,IF('Energy efficiency'!Y63<0.02,1,('Energy efficiency'!Y63-0.05)/(-0.03))) -> 0.8794916822 | T26: 0.4657315984 | U26: 1 | V26: 1 | W26: 1 | X26: 1 | Y26: =IF('2a Site and stand'!$D$13="80 to 800 m",1,IF('2a Site and stand'!$D$13="< 80 m",1,IF('2a Site and stand'!$D$13="no restrictions",1,0))) -> 1 | Z26: 1 | AA26: =IF('2b Environment'!$D$16="not possible",0,1) -> 1 | AB26: 1 | AC26: 1 | AD26: 0.4657315984 | AE26: 0.0425 | AF26: 0.08166666667 | AG26: 0 | AH26: 0.0428125 | AI26: 0 | AJ26: 0.05 | AK26: 0.1594472641 | AL26: 0.01601419414 | AM26: 0.07329097351 | AO26: 0.0425 | AP26: 0.08166666667 | AQ26: 0 | AR26: 0.0428125 | AS26: 0 | AT26: 0.05 | AU26: 0.1594472641 | AV26: 0.01601419414 | AW26: 0.07329097351
A27: 24 | D27: Chain saw | F27: Tower yarder | H27: TL | I27: logs | J27: terminal | K27: 0.51 | L27: 0.98 | M27: =IF(Emissions!X64>12,0,IF(Emissions!X64<5,1,(Emissions!X64-12)/(-7))) -> 0.8542205345 | N27: =IF(Damage!Y51>0.5,0,IF(Damage!Y51<0.1,1,(Damage!Y51-0.5)/(-0.4))) -> 0.51375 | O27: =IF('Contribution margin'!AB64<-10,0,IF('Contribution margin'!AB64>10,1,('Contribution margin'!AB64+10)/20)) -> 0 | P27: 0.6 | Q27: =IF(Employment!X64>0.5,1,Employment!X64*2) -> 1 | R27: =Accidents!P48 -> 0.09608516484 | S27: =IF('Energy efficiency'!Y64>0.05,0,IF('Energy efficiency'!Y64<0.02,1,('Energy efficiency'!Y64-0.05)/(-0.03))) -> 0.8600202981 | T27: 0.5213283856 | U27: 1 | V27: 1 | W27: 1 | X27: 1 | Y27: =IF('2a Site and stand'!$D$13="80 to 800 m",1,IF('2a Site and stand'!$D$13="< 80 m",1,IF('2a Site and stand'!$D$13="no restrictions",1,0))) -> 1 | Z27: 1 | AA27: 1 | AB27: =IF('2b Environment'!$D$17="not possible",0,1) -> 1 | AC27: 1 | AD27: 0.5213283856 | AE27: 0.0425 | AF27: 0.08166666667 | AG27: 0 | AH27: 0.0428125 | AI27: 0 | AJ27: 0.1 | AK27: 0.1666666667 | AL27: 0.01601419414 | AM27: 0.07166835817 | AO27: 0.0425 | AP27: 0.08166666667 | AQ27: 0 | AR27: 0.0428125 | AS27: 0 | AT27: 0.1 | AU27: 0.1666666667 | AV27: 0.01601419414 | AW27: 0.07166835817
A28: 25 | D28: Chain saw | F28: Tower yarder | H28: TL | I28: logs | J28: plant | K28: 0.51 | L28: 0.98 | M28: =IF(Emissions!X65>12,0,IF(Emissions!X65<5,1,(Emissions!X65-12)/(-7))) -> 0.843962801 | N28: =IF(Damage!Y52>0.5,0,IF(Damage!Y52<0.1,1,(Damage!Y52-0.5)/(-0.4))) -> 0.51375 | O28: =IF('Contribution margin'!AB65<-10,0,IF('Contribution margin'!AB65>10,1,('Contribution margin'!AB65+10)/20)) -> 0 | P28: 1 | Q28: =IF(Employment!X65>0.5,1,Employment!X65*2) -> 1 | R28: =Accidents!P49 -> 0.09608516484 | S28: =IF('Energy efficiency'!Y65>0.05,0,IF('Energy efficiency'!Y65<0.02,1,('Energy efficiency'!Y65-0.05)/(-0.03))) -> 0.8505914723 | T28: 0.5872093168 | U28: 1 | V28: 1 | W28: 1 | X28: 1 | Y28: =IF('2a Site and stand'!$D$13="80 to 800 m",1,IF('2a Site and stand'!$D$13="< 80 m",1,IF('2a Site and stand'!$D$13="no restrictions",1,0))) -> 1 | Z28: 1 | AA28: 1 | AB28: 1 | AC28: =IF('2b Environment'!$D$18="not possible",0,1) -> 1 | AD28: 0.5872093168 | AE28: 0.0425 | AF28: 0.08166666667 | AG28: 0 | AH28: 0.0428125 | AI28: 0 | AJ28: 0.1666666667 | AK28: 0.1666666667 | AL28: 0.01601419414 | AM28: 0.07088262269 | AO28: 0.0425 | AP28: 0.08166666667 | AQ28: 0 | AR28: 0.0428125 | AS28: 0 | AT28: 0.1666666667 | AU28: 0.1666666667 | AV28: 0.01601419414 | AW28: 0.07088262269
A29: 26 | B29: F | C29: 13 | D29: Chain saw | E29: Processor | F29: Tower yarder | H29: WT | I29: residues | J29: forest road | K29: 0.26 | L29: 0.98 | M29: =IF(Emissions!X66>12,0,IF(Emissions!X66<5,1,(Emissions!X66-12)/(-7))) -> 1 | N29: =IF(Damage!Y53>0.5,0,IF(Damage!Y53<0.1,1,(Damage!Y53-0.5)/(-0.4))) -> 1 | O29: =IF('Contribution margin'!AB66<-10,0,IF('Contribution margin'!AB66>10,1,('Contribution margin'!AB66+10)/20)) -> 0.9237547503 | P29: 0.1 | Q29: =IF(Employment!X66>0.5,1,Employment!X66*2) -> 0.1845069771 | R29: =Accidents!P50 -> 0.14496337 | S29: =IF('Energy efficiency'!Y66>0.05,0,IF('Energy efficiency'!Y66<0.02,1,('Energy efficiency'!Y66-0.05)/(-0.03))) -> 1 | T29: 0.4955375162 | U29: 1 | V29: 1 | W29: =IF('2a Site and stand'!$D$17="no restrictions",1,IF('2a Site and stand'!$D$17="other soil types",1,0)) -> 1 | X29: 1 | Y29: =IF('2a Site and stand'!$D$13="80 to 800 m",1,IF('2a Site and stand'!$D$13="< 80 m",1,IF('2a Site and stand'!$D$13="no restrictions",1,0))) -> 1 | Z29: 1 | AA29: =IF('2b Environment'!$D$16="not possible",0,1) -> 1 | AB29: 1 | AC29: 1 | AD29: 0.4955375162 | AE29: 0.02166666667 | AF29: 0.08166666667 | AG29: 0 | AH29: 0.08333333333 | AI29: 0.153959125 | AJ29: 0.01666666667 | AK29: 0.03075116285 | AL29: 0.02416056166 | AM29: 0.08333333333 | AO29: 0.02166666667 | AP29: 0.08166666667 | AQ29: 0 | AR29: 0.08333333333 | AS29: 0.153959125 | AT29: 0.01666666667 | AU29: 0.03075116285 | AV29: 0.02416056166 | AW29: 0.08333333333
A30: 27 | B30: F | C30: 14 | D30: Chain saw | E30: Processor | F30: Tower yarder | H30: WT | I30: residues | J30: terminal | K30: 0.26 | L30: 0.98 | M30: =IF(Emissions!X67>12,0,IF(Emissions!X67<5,1,(Emissions!X67-12)/(-7))) -> 1 | N30: =IF(Damage!Y54>0.5,0,IF(Damage!Y54<0.1,1,(Damage!Y54-0.5)/(-0.4))) -> 1 | O30: =IF('Contribution margin'!AB67<-10,0,IF('Contribution margin'!AB67>10,1,('Contribution margin'!AB67+10)/20)) -> 0.6220866932 | P30: 0.4 | Q30: =IF(Employment!X67>0.5,1,Employment!X67*2) -> 0.3213680207 | R30: =Accidents!P51 -> 0.14496337 | S30: =IF('Energy efficiency'!Y67>0.05,0,IF('Energy efficiency'!Y67<0.02,1,('Energy efficiency'!Y67-0.05)/(-0.03))) -> 1 | T30: 0.5180696806 | U30: 1 | V30: 1 | W30: =IF('2a Site and stand'!$D$17="no restrictions",1,IF('2a Site and stand'!$D$17="other soil types",1,0)) -> 1 | X30: 1 | Y30: =IF('2a Site and stand'!$D$13="80 to 800 m",1,IF('2a Site and stand'!$D$13="< 80 m",1,IF('2a Site and stand'!$D$13="no restrictions",1,0))) -> 1 | Z30: 1 | AA30: 1 | AB30: =IF('2b Environment'!$D$17="not possible",0,1) -> 1 | AC30: 1 | AD30: 0.5180696806 | AE30: 0.02166666667 | AF30: 0.08166666667 | AG30: 0 | AH30: 0.08333333333 | AI30: 0.1036811155 | AJ30: 0.06666666667 | AK30: 0.05356133678 | AL30: 0.02416056166 | AM30: 0.08333333333 | AO30: 0.02166666667 | AP30: 0.08166666667 | AQ30: 0 | AR30: 0.08333333333 | AS30: 0.1036811155 | AT30: 0.06666666667 | AU30: 0.05356133678 | AV30: 0.02416056166 | AW30: 0.08333333333
A31: 28 | B31: F | C31: 14 | D31: Chain saw | E31: Processor | F31: Tower yarder | G31: Bundler | H31: WT | I31: residues | J31: terminal | K31: 0.26 | L31: 0.98 | M31: =IF(Emissions!X68>12,0,IF(Emissions!X68<5,1,(Emissions!X68-12)/(-7))) -> 0.8499126475 | N31: =IF(Damage!Y55>0.5,0,IF(Damage!Y55<0.1,1,(Damage!Y55-0.5)/(-0.4))) -> 1 | O31: =IF('Contribution margin'!AB68<-10,0,IF('Contribution margin'!AB68>10,1,('Contribution margin'!AB68+10)/20)) -> 0.1133135749 | P31: 0.5 | Q31: =IF(Employment!X68>0.5,1,Employment!X68*2) -> 0.4766111463 | R31: =Accidents!P52 -> 0.14496337 | S31: =IF('Energy efficiency'!Y68>0.05,0,IF('Energy efficiency'!Y68<0.02,1,('Energy efficiency'!Y68-0.05)/(-0.03))) -> 0.8710698348 | T31: 0.4650705014 | U31: 1 | V31: 1 | W31: =IF('2a Site and stand'!$D$17="no restrictions",1,IF('2a Site and stand'!$D$17="other soil types",1,0)) -> 1 | X31: 1 | Y31: =IF('2a Site and stand'!$D$13="80 to 800 m",1,IF('2a Site and stand'!$D$13="< 80 m",1,IF('2a Site and stand'!$D$13="no restrictions",1,0))) -> 1 | Z31: 1 | AA31: 1 | AB31: =IF('2b Environment'!$D$17="not possible",0,1) -> 1 | AC31: 1 | AD31: 0.4650705014 | AE31: 0.02166666667 | AF31: 0.08166666667 | AG31: 0 | AH31: 0.08333333333 | AI31: 0.01888559582 | AJ31: 0.08333333333 | AK31: 0.07943519104 | AL31: 0.02416056166 | AM31: 0.0725891529 | AO31: 0.02166666667 | AP31: 0.08166666667 | AQ31: 0 | AR31: 0.08333333333 | AS31: 0.01888559582 | AT31: 0.08333333333 | AU31: 0.07943519104 | AV31: 0.02416056166 | AW31: 0.0725891529
A32: 29 | B32: F | C32: 15 | D32: Chain saw | E32: Processor | F32: Tower yarder | H32: WT | I32: residues | J32: plant | K32: 0.26 | L32: 0.98 | M32: =IF(Emissions!X69>12,0,IF(Emissions!X69<5,1,(Emissions!X69-12)/(-7))) -> 1 | N32: =IF(Damage!Y56>0.5,0,IF(Damage!Y56<0.1,1,(Damage!Y56-0.5)/(-0.4))) -> 1 | O32: =IF('Contribution margin'!AB69<-10,0,IF('Contribution margin'!AB69>10,1,('Contribution margin'!AB69+10)/20)) -> 0.6335930655 | P32: 0.7 | Q32: =IF(Employment!X69>0.5,1,Employment!X69*2) -> 0.3211286251 | R32: =Accidents!P53 -> 0.14496337 | S32: =IF('Energy efficiency'!Y69>0.05,0,IF('Energy efficiency'!Y69<0.02,1,('Energy efficiency'!Y69-0.05)/(-0.03))) -> 1 | T32: 0.5699475101 | U32: 1 | V32: 1 | W32: =IF('2a Site and stand'!$D$17="no restrictions",1,IF('2a Site and stand'!$D$17="other soil types",1,0)) -> 1 | X32: 1 | Y32: =IF('2a Site and stand'!$D$13="80 to 800 m",1,IF('2a Site and stand'!$D$13="< 80 m",1,IF('2a Site and stand'!$D$13="no restrictions",1,0))) -> 1 | Z32: 1 | AA32: 1 | AB32: 1 | AC32: =IF('2b Environment'!$D$18="not possible",0,1) -> 1 | AD32: 0.5699475101 | AE32: 0.02166666667 | AF32: 0.08166666667 | AG32: 0 | AH32: 0.08333333333 | AI32: 0.1055988443 | AJ32: 0.1166666667 | AK32: 0.05352143752 | AL32: 0.02416056166 | AM32: 0.08333333333 | AO32: 0.02166666667 | AP32: 0.08166666667 | AQ32: 0 | AR32: 0.08333333333 | AS32: 0.1055988443 | AT32: 0.1166666667 | AU32: 0.05352143752 | AV32: 0.02416056166 | AW32: 0.08333333333
A33: 30 | B33: F | C33: 16 | D33: Chain saw | E33: Processor | F33: Tower yarder | G33: Bundler | H33: WT | I33: residues | J33: plant | K33: 0.26 | L33: 0.98 | M33: =IF(Emissions!X70>12,0,IF(Emissions!X70<5,1,(Emissions!X70-12)/(-7))) -> 0.8261832412 | N33: =IF(Damage!Y57>0.5,0,IF(Damage!Y57<0.1,1,(Damage!Y57-0.5)/(-0.4))) -> 1 | O33: =IF('Contribution margin'!AB70<-10,0,IF('Contribution margin'!AB70>10,1,('Contribution margin'!AB70+10)/20)) -> 0.2277324842 | P33: 0.9 | Q33: =IF(Employment!X70>0.5,1,Employment!X70*2) -> 0.4519446565 | R33: =Accidents!P54 -> 0.14496337 | S33: =IF('Energy efficiency'!Y70>0.05,0,IF('Energy efficiency'!Y70<0.02,1,('Energy efficiency'!Y70-0.05)/(-0.03))) -> 0.8492579563 | T33: 0.5448782481 | U33: 1 | V33: 1 | W33: =IF('2a Site and stand'!$D$17="no restrictions",1,IF('2a Site and stand'!$D$17="other soil types",1,0)) -> 1 | X33: 1 | Y33: =IF('2a Site and stand'!$D$13="80 to 800 m",1,IF('2a Site and stand'!$D$13="< 80 m",1,IF('2a Site and stand'!$D$13="no restrictions",1,0))) -> 1 | Z33: 1 | AA33: 1 | AB33: 1 | AC33: =IF('2b Environment'!$D$18="not possible",0,1) -> 1 | AD33: 0.5448782481 | AE33: 0.02166666667 | AF33: 0.08166666667 | AG33: 0 | AH33: 0.08333333333 | AI33: 0.03795541404 | AJ33: 0.15 | AK33: 0.07532410941 | AL33: 0.02416056166 | AM33: 0.07077149636 | AO33: 0.02166666667 | AP33: 0.08166666667 | AQ33: 0 | AR33: 0.08333333333 | AS33: 0.03795541404 | AT33: 0.15 | AU33: 0.07532410941 | AV33: 0.02416056166 | AW33: 0.07077149636
A34: 31 | D34: Chain saw | E34: Processor | F34: Tower yarder | H34: WT | I34: trees | J34: forest road | K34: 0.26 | L34: 0.98 | M34: =IF(Emissions!X71>12,0,IF(Emissions!X71<5,1,(Emissions!X71-12)/(-7))) -> 0.6436665149 | N34: =IF(Damage!Y58>0.5,0,IF(Damage!Y58<0.1,1,(Damage!Y58-0.5)/(-0.4))) -> 0.51375 | O34: =IF('Contribution margin'!AB71<-10,0,IF('Contribution margin'!AB71>10,1,('Contribution margin'!AB71+10)/20)) -> 0 | P34: 0.2 | Q34: =IF(Employment!X71>0.5,1,Employment!X71*2) -> 0.8973176801 | R34: =Accidents!P55 -> 0.14496337 | S34: =IF('Energy efficiency'!Y71>0.05,0,IF('Energy efficiency'!Y71<0.02,1,('Energy efficiency'!Y71-0.05)/(-0.03))) -> 0.6718412132 | T34: 0.4091794428 | U34: 1 | V34: 1 | W34: =IF('2a Site and stand'!$D$17="no restrictions",1,IF('2a Site and stand'!$D$17="other soil types",1,0)) -> 1 | X34: 1 | Y34: =IF('2a Site and stand'!$D$13="80 to 800 m",1,IF('2a Site and stand'!$D$13="< 80 m",1,IF('2a Site and stand'!$D$13="no restrictions",1,0))) -> 1 | Z34: 1 | AA34: =IF('2b Environment'!$D$16="not possible",0,1) -> 1 | AB34: 1 | AC34: 1 | AD34: 0.4091794428 | AE34: 0.02166666667 | AF34: 0.08166666667 | AG34: 0 | AH34: 0.0428125 | AI34: 0 | AJ34: 0.03333333333 | AK34: 0.1495529467 | AL34: 0.02416056166 | AM34: 0.05598676776 | AO34: 0.02166666667 | AP34: 0.08166666667 | AQ34: 0 | AR34: 0.0428125 | AS34: 0 | AT34: 0.03333333333 | AU34: 0.1495529467 | AV34: 0.02416056166 | AW34: 0.05598676776
A35: 32 | D35: Chain saw | E35: Processor | F35: Tower yarder | H35: WT | I35: trees | J35: terminal | K35: 0.26 | L35: 0.98 | M35: =IF(Emissions!X72>12,0,IF(Emissions!X72<5,1,(Emissions!X72-12)/(-7))) -> 0.5975707424 | N35: =IF(Damage!Y59>0.5,0,IF(Damage!Y59<0.1,1,(Damage!Y59-0.5)/(-0.4))) -> 0.51375 | O35: =IF('Contribution margin'!AB72<-10,0,IF('Contribution margin'!AB72>10,1,('Contribution margin'!AB72+10)/20)) -> 0 | P35: 0.5 | Q35: =IF(Employment!X72>0.5,1,Employment!X72*2) -> 1 | R35: =Accidents!P56 -> 0.14496337 | S35: =IF('Energy efficiency'!Y72>0.05,0,IF('Energy efficiency'!Y72<0.02,1,('Energy efficiency'!Y72-0.05)/(-0.03))) -> 0.6294703515 | T35: 0.4727622576 | U35: 1 | V35: 1 | W35: =IF('2a Site and stand'!$D$17="no restrictions",1,IF('2a Site and stand'!$D$17="other soil types",1,0)) -> 1 | X35: 1 | Y35: =IF('2a Site and stand'!$D$13="80 to 800 m",1,IF('2a Site and stand'!$D$13="< 80 m",1,IF('2a Site and stand'!$D$13="no restrictions",1,0))) -> 1 | Z35: 1 | AA35: 1 | AB35: =IF('2b Environment'!$D$17="not possible",0,1) -> 1 | AC35: 1 | AD35: 0.4727622576 | AE35: 0.02166666667 | AF35: 0.08166666667 | AG35: 0 | AH35: 0.0428125 | AI35: 0 | AJ35: 0.08333333333 | AK35: 0.1666666667 | AL35: 0.02416056166 | AM35: 0.05245586263 | AO35: 0.02166666667 | AP35: 0.08166666667 | AQ35: 0 | AR35: 0.0428125 | AS35: 0 | AT35: 0.08333333333 | AU35: 0.1666666667 | AV35: 0.02416056166 | AW35: 0.05245586263
A36: 33 | D36: Chain saw | E36: Processor | F36: Tower yarder | H36: WT | I36: trees | J36: plant | K36: 0.26 | L36: 0.98 | M36: =IF(Emissions!X73>12,0,IF(Emissions!X73<5,1,(Emissions!X73-12)/(-7))) -> 0.5333356689 | N36: =IF(Damage!Y60>0.5,0,IF(Damage!Y60<0.1,1,(Damage!Y60-0.5)/(-0.4))) -> 0.51375 | O36: =IF('Contribution margin'!AB73<-10,0,IF('Contribution margin'!AB73>10,1,('Contribution margin'!AB73+10)/20)) -> 0 | P36: 0.8 | Q36: =IF(Employment!X73>0.5,1,Employment!X73*2) -> 1 | R36: =Accidents!P57 -> 0.14496337 | S36: =IF('Energy efficiency'!Y73>0.05,0,IF('Energy efficiency'!Y73<0.02,1,('Energy efficiency'!Y73-0.05)/(-0.03))) -> 0.5704259911 | T36: 0.5178418942 | U36: 1 | V36: 1 | W36: =IF('2a Site and stand'!$D$17="no restrictions",1,IF('2a Site and stand'!$D$17="other soil types",1,0)) -> 1 | X36: 1 | Y36: =IF('2a Site and stand'!$D$13="80 to 800 m",1,IF('2a Site and stand'!$D$13="< 80 m",1,IF('2a Site and stand'!$D$13="no restrictions",1,0))) -> 1 | Z36: 1 | AA36: 1 | AB36: 1 | AC36: =IF('2b Environment'!$D$18="not possible",0,1) -> 1 | AD36: 0.5178418942 | AE36: 0.02166666667 | AF36: 0.08166666667 | AG36: 0 | AH36: 0.0428125 | AI36: 0 | AJ36: 0.1333333333 | AK36: 0.1666666667 | AL36: 0.02416056166 | AM36: 0.04753549925 | AO36: 0.02166666667 | AP36: 0.08166666667 | AQ36: 0 | AR36: 0.0428125 | AS36: 0 | AT36: 0.1333333333 | AU36: 0.1666666667 | AV36: 0.02416056166 | AW36: 0.04753549925
A37: 34 | D37: Chain saw | F37: Skidder | H37: TL | I37: logs | J37: forest road | K37: 0.51 | L37: 0.54 | M37: =IF(Emissions!X74>12,0,IF(Emissions!X74<5,1,(Emissions!X74-12)/(-7))) -> 1 | N37: =IF(Damage!Y61>0.5,0,IF(Damage!Y61<0.1,1,(Damage!Y61-0.5)/(-0.4))) -> 0.51375 | O37: =IF('Contribution margin'!AB74<-10,0,IF('Contribution margin'!AB74>10,1,('Contribution margin'!AB74+10)/20)) -> 0.5136845033 | P37: 0.3 | Q37: =IF(Employment!X74>0.5,1,Employment!X74*2) -> 0.7797200538 | R37: =Accidents!P58 -> 0.09608516484 | S37: =IF('Energy efficiency'!Y74>0.05,0,IF('Energy efficiency'!Y74<0.02,1,('Energy efficiency'!Y74-0.05)/(-0.03))) -> 1 | T37: 0.4952274537 | U37: =IF('2a Site and stand'!$D$7="non-uniform",0,1) -> 1 | V37: =IF('2a Site and stand'!$D$9="low",0,1) -> 1 | W37: 1 | X37: =IF('2a Site and stand'!$D$11="0 to 35 %",1,IF('2a Site and stand'!$D$11="no restrictions",1,IF('2a Site and stand'!$D$13="< 80 m",1,0))) -> 1 | Y37: =IF('2a Site and stand'!$D$13="< 80 m",1,IF('2a Site and stand'!$D$13="no restrictions",1,IF('2a Site and stand'!$D$11="0 to 35 %",1,IF('2a Site and stand'!$D$11="no restrictions",1,0)))) -> 1 | Z37: 1 | AA37: =IF('2b Environment'!$D$16="not possible",0,1) -> 1 | AB37: 1 | AC37: 1 | AD37: 0.4952274537 | AE37: 0.0425 | AF37: 0.045 | AG37: 0 | AH37: 0.0428125 | AI37: 0.08561408388 | AJ37: 0.05 | AK37: 0.1299533423 | AL37: 0.01601419414 | AM37: 0.08333333333 | AO37: 0.0425 | AP37: 0.045 | AQ37: 0 | AR37: 0.0428125 | AS37: 0.08561408388 | AT37: 0.05 | AU37: 0.1299533423 | AV37: 0.01601419414 | AW37: 0.08333333333
A38: 35 | D38: Chain saw | F38: Skidder | H38: TL | I38: logs | J38: terminal | K38: 0.51 | L38: 0.54 | M38: =IF(Emissions!X75>12,0,IF(Emissions!X75<5,1,(Emissions!X75-12)/(-7))) -> 1 | N38: =IF(Damage!Y62>0.5,0,IF(Damage!Y62<0.1,1,(Damage!Y62-0.5)/(-0.4))) -> 0.51375 | O38: =IF('Contribution margin'!AB75<-10,0,IF('Contribution margin'!AB75>10,1,('Contribution margin'!AB75+10)/20)) -> 0.2551165295 | P38: 0.6 | Q38: =IF(Employment!X75>0.5,1,Employment!X75*2) -> 0.8680018815 | R38: =Accidents!P59 -> 0.09608516484 | S38: =IF('Energy efficiency'!Y75>0.05,0,IF('Energy efficiency'!Y75<0.02,1,('Energy efficiency'!Y75-0.05)/(-0.03))) -> 1 | T38: 0.5168464293 | U38: =IF('2a Site and stand'!$D$7="non-uniform",0,1) -> 1 | V38: =IF('2a Site and stand'!$D$9="low",0,1) -> 1 | W38: 1 | X38: =IF('2a Site and stand'!$D$11="0 to 35 %",1,IF('2a Site and stand'!$D$11="no restrictions",1,IF('2a Site and stand'!$D$13="< 80 m",1,0))) -> 1 | Y38: =IF('2a Site and stand'!$D$13="< 80 m",1,IF('2a Site and stand'!$D$13="no restrictions",1,IF('2a Site and stand'!$D$11="0 to 35 %",1,IF('2a Site and stand'!$D$11="no restrictions",1,0)))) -> 1 | Z38: 1 | AA38: 1 | AB38: =IF('2b Environment'!$D$17="not possible",0,1) -> 1 | AC38: 1 | AD38: 0.5168464293 | AE38: 0.0425 | AF38: 0.045 | AG38: 0 | AH38: 0.0428125 | AI38: 0.04251942159 | AJ38: 0.1 | AK38: 0.1446669802 | AL38: 0.01601419414 | AM38: 0.08333333333 | AO38: 0.0425 | AP38: 0.045 | AQ38: 0 | AR38: 0.0428125 | AS38: 0.04251942159 | AT38: 0.1 | AU38: 0.1446669802 | AV38: 0.01601419414 | AW38: 0.08333333333
A39: 36 | D39: Chain saw | F39: Skidder | H39: TL | I39: logs | J39: plant | K39: 0.51 | L39: 0.54 | M39: =IF(Emissions!X76>12,0,IF(Emissions!X76<5,1,(Emissions!X76-12)/(-7))) -> 1 | N39: =IF(Damage!Y63>0.5,0,IF(Damage!Y63<0.1,1,(Damage!Y63-0.5)/(-0.4))) -> 0.51375 | O39: =IF('Contribution margin'!AB76<-10,0,IF('Contribution margin'!AB76>10,1,('Contribution margin'!AB76+10)/20)) -> 0.3745423931 | P39: 1 | Q39: =IF(Employment!X76>0.5,1,Employment!X76*2) -> 0.8408319146 | R39: =Accidents!P60 -> 0.09608516484 | S39: =IF('Energy efficiency'!Y76>0.05,0,IF('Energy efficiency'!Y76<0.02,1,('Energy efficiency'!Y76-0.05)/(-0.03))) -> 1 | T39: 0.5988890787 | U39: =IF('2a Site and stand'!$D$7="non-uniform",0,1) -> 1 | V39: =IF('2a Site and stand'!$D$9="low",0,1) -> 1 | W39: 1 | X39: =IF('2a Site and stand'!$D$11="0 to 35 %",1,IF('2a Site and stand'!$D$11="no restrictions",1,IF('2a Site and stand'!$D$13="< 80 m",1,0))) -> 1 | Y39: =IF('2a Site and stand'!$D$13="< 80 m",1,IF('2a Site and stand'!$D$13="no restrictions",1,IF('2a Site and stand'!$D$11="0 to 35 %",1,IF('2a Site and stand'!$D$11="no restrictions",1,0)))) -> 1 | Z39: 1 | AA39: 1 | AB39: 1 | AC39: =IF('2b Environment'!$D$18="not possible",0,1) -> 1 | AD39: 0.5988890787 | AE39: 0.0425 | AF39: 0.045 | AG39: 0 | AH39: 0.0428125 | AI39: 0.06242373219 | AJ39: 0.1666666667 | AK39: 0.1401386524 | AL39: 0.01601419414 | AM39: 0.08333333333 | AO39: 0.0425 | AP39: 0.045 | AQ39: 0 | AR39: 0.0428125 | AS39: 0.06242373219 | AT39: 0.1666666667 | AU39: 0.1401386524 | AV39: 0.01601419414 | AW39: 0.08333333333
A40: 37 | B40: I | C40: 24 | D40: Chain saw | E40: Skidder | F40: Processor | H40: WT | I40: residues | J40: forest road | K40: 0.26 | L40: 0.54 | M40: =IF(Emissions!X77>12,0,IF(Emissions!X77<5,1,(Emissions!X77-12)/(-7))) -> 1 | N40: =IF(Damage!Y64>0.5,0,IF(Damage!Y64<0.1,1,(Damage!Y64-0.5)/(-0.4))) -> 1 | O40: =IF('Contribution margin'!AB77<-10,0,IF('Contribution margin'!AB77>10,1,('Contribution margin'!AB77+10)/20)) -> 0.9797035401 | P40: 0.1 | Q40: =IF(Employment!X77>0.5,1,Employment!X77*2) -> 0.1650409887 | R40: =Accidents!P61 -> 0.14496337 | S40: =IF('Energy efficiency'!Y77>0.05,0,IF('Energy efficiency'!Y77<0.02,1,('Energy efficiency'!Y77-0.05)/(-0.03))) -> 1 | T40: 0.4649513165 | U40: =IF('2a Site and stand'!$D$7="non-uniform",0,1) -> 1 | V40: =IF('2a Site and stand'!$D$9="low",0,1) -> 1 | W40: =IF('2a Site and stand'!$D$17="no restrictions",1,IF('2a Site and stand'!$D$17="other soil types",1,0)) -> 1 | X40: =IF('2a Site and stand'!$D$11="0 to 35 %",1,IF('2a Site and stand'!$D$11="no restrictions",1,IF('2a Site and stand'!$D$13="< 80 m",1,0))) -> 1 | Y40: =IF('2a Site and stand'!$D$13="< 80 m",1,IF('2a Site and stand'!$D$13="no restrictions",1,IF('2a Site and stand'!$D$11="0 to 35 %",1,IF('2a Site and stand'!$D$11="no restrictions",1,0)))) -> 1 | Z40: 1 | AA40: =IF('2b Environment'!$D$16="not possible",0,1) -> 1 | AB40: 1 | AC40: 1 | AD40: 0.4649513165 | AE40: 0.02166666667 | AF40: 0.045 | AG40: 0 | AH40: 0.08333333333 | AI40: 0.1632839234 | AJ40: 0.01666666667 | AK40: 0.02750683145 | AL40: 0.02416056166 | AM40: 0.08333333333 | AO40: 0.02166666667 | AP40: 0.045 | AQ40: 0 | AR40: 0.08333333333 | AS40: 0.1632839234 | AT40: 0.01666666667 | AU40: 0.02750683145 | AV40: 0.02416056166 | AW40: 0.08333333333
A41: 38 | B41: I | C41: 25 | D41: Chain saw | E41: Skidder | F41: Processor | H41: WT | I41: residues | J41: terminal | K41: 0.26 | L41: 0.54 | M41: =IF(Emissions!X78>12,0,IF(Emissions!X78<5,1,(Emissions!X78-12)/(-7))) -> 1 | N41: =IF(Damage!Y65>0.5,0,IF(Damage!Y65<0.1,1,(Damage!Y65-0.5)/(-0.4))) -> 1 | O41: =IF('Contribution margin'!AB78<-10,0,IF('Contribution margin'!AB78>10,1,('Contribution margin'!AB78+10)/20)) -> 0.6780354831 | P41: 0.4 | Q41: =IF(Employment!X78>0.5,1,Employment!X78*2) -> 0.3019020323 | R41: =Accidents!P62 -> 0.14496337 | S41: =IF('Energy efficiency'!Y78>0.05,0,IF('Energy efficiency'!Y78<0.02,1,('Energy efficiency'!Y78-0.05)/(-0.03))) -> 1 | T41: 0.4874834809 | U41: =IF('2a Site and stand'!$D$7="non-uniform",0,1) -> 1 | V41: =IF('2a Site and stand'!$D$9="low",0,1) -> 1 | W41: =IF('2a Site and stand'!$D$17="no restrictions",1,IF('2a Site and stand'!$D$17="other soil types",1,0)) -> 1 | X41: =IF('2a Site and stand'!$D$11="0 to 35 %",1,IF('2a Site and stand'!$D$11="no restrictions",1,IF('2a Site and stand'!$D$13="< 80 m",1,0))) -> 1 | Y41: =IF('2a Site and stand'!$D$13="< 80 m",1,IF('2a Site and stand'!$D$13="no restrictions",1,IF('2a Site and stand'!$D$11="0 to 35 %",1,IF('2a Site and stand'!$D$11="no restrictions",1,0)))) -> 1 | Z41: 1 | AA41: 1 | AB41: =IF('2b Environment'!$D$17="not possible",0,1) -> 1 | AC41: 1 | AD41: 0.4874834809 | AE41: 0.02166666667 | AF41: 0.045 | AG41: 0 | AH41: 0.08333333333 | AI41: 0.1130059138 | AJ41: 0.06666666667 | AK41: 0.05031700539 | AL41: 0.02416056166 | AM41: 0.08333333333 | AO41: 0.02166666667 | AP41: 0.045 | AQ41: 0 | AR41: 0.08333333333 | AS41: 0.1130059138 | AT41: 0.06666666667 | AU41: 0.05031700539 | AV41: 0.02416056166 | AW41: 0.08333333333
A42: 39 | B42: I | C42: 25 | D42: Chain saw | E42: Skidder | F42: Processor | G42: Bundler | H42: WT | I42: residues | J42: terminal | K42: 0.26 | L42: 0.54 | M42: =IF(Emissions!X79>12,0,IF(Emissions!X79<5,1,(Emissions!X79-12)/(-7))) -> 0.888648852 | N42: =IF(Damage!Y66>0.5,0,IF(Damage!Y66<0.1,1,(Damage!Y66-0.5)/(-0.4))) -> 1 | O42: =IF('Contribution margin'!AB79<-10,0,IF('Contribution margin'!AB79>10,1,('Contribution margin'!AB79+10)/20)) -> 0.1692623648 | P42: 0.5 | Q42: =IF(Employment!X79>0.5,1,Employment!X79*2) -> 0.4571451579 | R42: =Accidents!P63 -> 0.14496337 | S42: =IF('Energy efficiency'!Y79>0.05,0,IF('Energy efficiency'!Y79<0.02,1,('Energy efficiency'!Y79-0.05)/(-0.03))) -> 0.906675841 | T42: 0.4374514688 | U42: =IF('2a Site and stand'!$D$7="non-uniform",0,1) -> 1 | V42: =IF('2a Site and stand'!$D$9="low",0,1) -> 1 | W42: =IF('2a Site and stand'!$D$17="no restrictions",1,IF('2a Site and stand'!$D$17="other soil types",1,0)) -> 1 | X42: =IF('2a Site and stand'!$D$11="0 to 35 %",1,IF('2a Site and stand'!$D$11="no restrictions",1,IF('2a Site and stand'!$D$13="< 80 m",1,0))) -> 1 | Y42: =IF('2a Site and stand'!$D$13="< 80 m",1,IF('2a Site and stand'!$D$13="no restrictions",1,IF('2a Site and stand'!$D$11="0 to 35 %",1,IF('2a Site and stand'!$D$11="no restrictions",1,0)))) -> 1 | Z42: 1 | AA42: 1 | AB42: =IF('2b Environment'!$D$17="not possible",0,1) -> 1 | AC42: 1 | AD42: 0.4374514688 | AE42: 0.02166666667 | AF42: 0.045 | AG42: 0 | AH42: 0.08333333333 | AI42: 0.02821039413 | AJ42: 0.08333333333 | AK42: 0.07619085965 | AL42: 0.02416056166 | AM42: 0.07555632008 | AO42: 0.02166666667 | AP42: 0.045 | AQ42: 0 | AR42: 0.08333333333 | AS42: 0.02821039413 | AT42: 0.08333333333 | AU42: 0.07619085965 | AV42: 0.02416056166 | AW42: 0.07555632008
A43: 40 | B43: I | C43: 26 | D43: Chain saw | E43: Skidder | F43: Processor | H43: WT | I43: residues | J43: plant | K43: 0.26 | L43: 0.54 | M43: =IF(Emissions!X80>12,0,IF(Emissions!X80<5,1,(Emissions!X80-12)/(-7))) -> 1 | N43: =IF(Damage!Y67>0.5,0,IF(Damage!Y67<0.1,1,(Damage!Y67-0.5)/(-0.4))) -> 1 | O43: =IF('Contribution margin'!AB80<-10,0,IF('Contribution margin'!AB80>10,1,('Contribution margin'!AB80+10)/20)) -> 0.6895418554 | P43: 0.7 | Q43: =IF(Employment!X80>0.5,1,Employment!X80*2) -> 0.3016626367 | R43: =Accidents!P64 -> 0.14496337 | S43: =IF('Energy efficiency'!Y80>0.05,0,IF('Energy efficiency'!Y80<0.02,1,('Energy efficiency'!Y80-0.05)/(-0.03))) -> 1 | T43: 0.5393613103 | U43: =IF('2a Site and stand'!$D$7="non-uniform",0,1) -> 1 | V43: =IF('2a Site and stand'!$D$9="low",0,1) -> 1 | W43: =IF('2a Site and stand'!$D$17="no restrictions",1,IF('2a Site and stand'!$D$17="other soil types",1,0)) -> 1 | X43: =IF('2a Site and stand'!$D$11="0 to 35 %",1,IF('2a Site and stand'!$D$11="no restrictions",1,IF('2a Site and stand'!$D$13="< 80 m",1,0))) -> 1 | Y43: =IF('2a Site and stand'!$D$13="< 80 m",1,IF('2a Site and stand'!$D$13="no restrictions",1,IF('2a Site and stand'!$D$11="0 to 35 %",1,IF('2a Site and stand'!$D$11="no restrictions",1,0)))) -> 1 | Z43: 1 | AA43: 1 | AB43: 1 | AC43: =IF('2b Environment'!$D$18="not possible",0,1) -> 1 | AD43: 0.5393613103 | AE43: 0.02166666667 | AF43: 0.045 | AG43: 0 | AH43: 0.08333333333 | AI43: 0.1149236426 | AJ43: 0.1166666667 | AK43: 0.05027710612 | AL43: 0.02416056166 | AM43: 0.08333333333 | AO43: 0.02166666667 | AP43: 0.045 | AQ43: 0 | AR43: 0.08333333333 | AS43: 0.1149236426 | AT43: 0.1166666667 | AU43: 0.05027710612 | AV43: 0.02416056166 | AW43: 0.08333333333
A44: 41 | B44: I | C44: 27 | D44: Chain saw | E44: Skidder | F44: Processor | G44: Bundler | H44: WT | I44: residues | J44: plant | K44: 0.26 | L44: 0.54 | M44: =IF(Emissions!X81>12,0,IF(Emissions!X81<5,1,(Emissions!X81-12)/(-7))) -> 0.8649194457 | N44: =IF(Damage!Y68>0.5,0,IF(Damage!Y68<0.1,1,(Damage!Y68-0.5)/(-0.4))) -> 1 | O44: =IF('Contribution margin'!AB81<-10,0,IF('Contribution margin'!AB81>10,1,('Contribution margin'!AB81+10)/20)) -> 0.2836812741 | P44: 0.9 | Q44: =IF(Employment!X81>0.5,1,Employment!X81*2) -> 0.4324786681 | R44: =Accidents!P65 -> 0.14496337 | S44: =IF('Energy efficiency'!Y81>0.05,0,IF('Energy efficiency'!Y81<0.02,1,('Energy efficiency'!Y81-0.05)/(-0.03))) -> 0.8848639624 | T44: 0.5172592156 | U44: =IF('2a Site and stand'!$D$7="non-uniform",0,1) -> 1 | V44: =IF('2a Site and stand'!$D$9="low",0,1) -> 1 | W44: =IF('2a Site and stand'!$D$17="no restrictions",1,IF('2a Site and stand'!$D$17="other soil types",1,0)) -> 1 | X44: =IF('2a Site and stand'!$D$11="0 to 35 %",1,IF('2a Site and stand'!$D$11="no restrictions",1,IF('2a Site and stand'!$D$13="< 80 m",1,0))) -> 1 | Y44: =IF('2a Site and stand'!$D$13="< 80 m",1,IF('2a Site and stand'!$D$13="no restrictions",1,IF('2a Site and stand'!$D$11="0 to 35 %",1,IF('2a Site and stand'!$D$11="no restrictions",1,0)))) -> 1 | Z44: 1 | AA44: 1 | AB44: 1 | AC44: =IF('2b Environment'!$D$18="not possible",0,1) -> 1 | AD44: 0.5172592156 | AE44: 0.02166666667 | AF44: 0.045 | AG44: 0 | AH44: 0.08333333333 | AI44: 0.04728021235 | AJ44: 0.15 | AK44: 0.07207977801 | AL44: 0.02416056166 | AM44: 0.07373866354 | AO44: 0.02166666667 | AP44: 0.045 | AQ44: 0 | AR44: 0.08333333333 | AS44: 0.04728021235 | AT44: 0.15 | AU44: 0.07207977801 | AV44: 0.02416056166 | AW44: 0.07373866354
A45: 42 | B45: J | C45: 28 | D45: Chain saw | E45: Skidder | F45: Processor | H45: WT | I45: trees | J45: forest road | K45: 0.26 | L45: 0.54 | M45: =IF(Emissions!X82>12,0,IF(Emissions!X82<5,1,(Emissions!X82-12)/(-7))) -> 1 | N45: =IF(Damage!Y69>0.5,0,IF(Damage!Y69<0.1,1,(Damage!Y69-0.5)/(-0.4))) -> 0.51375 | O45: =IF('Contribution margin'!AB82<-10,0,IF('Contribution margin'!AB82>10,1,('Contribution margin'!AB82+10)/20)) -> 0.3319583076 | P45: 0.2 | Q45: =IF(Employment!X82>0.5,1,Employment!X82*2) -> 0.7026577964 | R45: =Accidents!P66 -> 0.14496337 | S45: =IF('Energy efficiency'!Y82>0.05,0,IF('Energy efficiency'!Y82<0.02,1,('Energy efficiency'!Y82-0.05)/(-0.03))) -> 1 | T45: 0.4227424123 | U45: =IF('2a Site and stand'!$D$7="non-uniform",0,1) -> 1 | V45: =IF('2a Site and stand'!$D$9="low",0,1) -> 1 | W45: =IF('2a Site and stand'!$D$17="no restrictions",1,IF('2a Site and stand'!$D$17="other soil types",1,0)) -> 1 | X45: =IF('2a Site and stand'!$D$11="0 to 35 %",1,IF('2a Site and stand'!$D$11="no restrictions",1,IF('2a Site and stand'!$D$13="< 80 m",1,0))) -> 1 | Y45: =IF('2a Site and stand'!$D$13="< 80 m",1,IF('2a Site and stand'!$D$13="no restrictions",1,IF('2a Site and stand'!$D$11="0 to 35 %",1,IF('2a Site and stand'!$D$11="no restrictions",1,0)))) -> 1 | Z45: 1 | AA45: =IF('2b Environment'!$D$16="not possible",0,1) -> 1 | AB45: 1 | AC45: 1 | AD45: 0.4227424123 | AE45: 0.02166666667 | AF45: 0.045 | AG45: 0 | AH45: 0.0428125 | AI45: 0.0553263846 | AJ45: 0.03333333333 | AK45: 0.1171096327 | AL45: 0.02416056166 | AM45: 0.08333333333 | AO45: 0.02166666667 | AP45: 0.045 | AQ45: 0 | AR45: 0.0428125 | AS45: 0.0553263846 | AT45: 0.03333333333 | AU45: 0.1171096327 | AV45: 0.02416056166 | AW45: 0.08333333333
A46: 43 | B46: J | C46: 29 | D46: Chain saw | E46: Skidder | F46: Processor | H46: WT | I46: trees | J46: terminal | K46: 0.26 | L46: 0.54 | M46: =IF(Emissions!X83>12,0,IF(Emissions!X83<5,1,(Emissions!X83-12)/(-7))) -> 0.9849327876 | N46: =IF(Damage!Y70>0.5,0,IF(Damage!Y70<0.1,1,(Damage!Y70-0.5)/(-0.4))) -> 0.51375 | O46: =IF('Contribution margin'!AB83<-10,0,IF('Contribution margin'!AB83>10,1,('Contribution margin'!AB83+10)/20)) -> 0.03200615239 | P46: 0.5 | Q46: =IF(Employment!X83>0.5,1,Employment!X83*2) -> 0.8384629004 | R46: =Accidents!P67 -> 0.14496337 | S46: =IF('Energy efficiency'!Y83>0.05,0,IF('Energy efficiency'!Y83<0.02,1,('Energy efficiency'!Y83-0.05)/(-0.03))) -> 0.9855304133 | T46: 0.4441787716 | U46: =IF('2a Site and stand'!$D$7="non-uniform",0,1) -> 1 | V46: =IF('2a Site and stand'!$D$9="low",0,1) -> 1 | W46: =IF('2a Site and stand'!$D$17="no restrictions",1,IF('2a Site and stand'!$D$17="other soil types",1,0)) -> 1 | X46: =IF('2a Site and stand'!$D$11="0 to 35 %",1,IF('2a Site and stand'!$D$11="no restrictions",1,IF('2a Site and stand'!$D$13="< 80 m",1,0))) -> 1 | Y46: =IF('2a Site and stand'!$D$13="< 80 m",1,IF('2a Site and stand'!$D$13="no restrictions",1,IF('2a Site and stand'!$D$11="0 to 35 %",1,IF('2a Site and stand'!$D$11="no restrictions",1,0)))) -> 1 | Z46: 1 | AA46: 1 | AB46: =IF('2b Environment'!$D$17="not possible",0,1) -> 1 | AC46: 1 | AD46: 0.4441787716 | AE46: 0.02166666667 | AF46: 0.045 | AG46: 0 | AH46: 0.0428125 | AI46: 0.005334358731 | AJ46: 0.08333333333 | AK46: 0.1397438167 | AL46: 0.02416056166 | AM46: 0.08212753444 | AO46: 0.02166666667 | AP46: 0.045 | AQ46: 0 | AR46: 0.0428125 | AS46: 0.005334358731 | AT46: 0.08333333333 | AU46: 0.1397438167 | AV46: 0.02416056166 | AW46: 0.08212753444
A47: 44 | B47: J | C47: 30 | D47: Chain saw | E47: Skidder | F47: Processor | H47: WT | I47: trees | J47: plant | K47: 0.26 | L47: 0.54 | M47: =IF(Emissions!X84>12,0,IF(Emissions!X84<5,1,(Emissions!X84-12)/(-7))) -> 0.9206977141 | N47: =IF(Damage!Y71>0.5,0,IF(Damage!Y71<0.1,1,(Damage!Y71-0.5)/(-0.4))) -> 0.51375 | O47: =IF('Contribution margin'!AB84<-10,0,IF('Contribution margin'!AB84>10,1,('Contribution margin'!AB84+10)/20)) -> 0.1147968188 | P47: 0.8 | Q47: =IF(Employment!X84>0.5,1,Employment!X84*2) -> 0.8743801992 | R47: =Accidents!P68 -> 0.14496337 | S47: =IF('Energy efficiency'!Y84>0.05,0,IF('Energy efficiency'!Y84<0.02,1,('Energy efficiency'!Y84-0.05)/(-0.03))) -> 0.9264860528 | T47: 0.5090430691 | U47: =IF('2a Site and stand'!$D$7="non-uniform",0,1) -> 1 | V47: =IF('2a Site and stand'!$D$9="low",0,1) -> 1 | W47: =IF('2a Site and stand'!$D$17="no restrictions",1,IF('2a Site and stand'!$D$17="other soil types",1,0)) -> 1 | X47: =IF('2a Site and stand'!$D$11="0 to 35 %",1,IF('2a Site and stand'!$D$11="no restrictions",1,IF('2a Site and stand'!$D$13="< 80 m",1,0))) -> 1 | Y47: =IF('2a Site and stand'!$D$13="< 80 m",1,IF('2a Site and stand'!$D$13="no restrictions",1,IF('2a Site and stand'!$D$11="0 to 35 %",1,IF('2a Site and stand'!$D$11="no restrictions",1,0)))) -> 1 | Z47: 1 | AA47: 1 | AB47: 1 | AC47: =IF('2b Environment'!$D$18="not possible",0,1) -> 1 | AD47: 0.5090430691 | AE47: 0.02166666667 | AF47: 0.045 | AG47: 0 | AH47: 0.0428125 | AI47: 0.01913280313 | AJ47: 0.1333333333 | AK47: 0.1457300332 | AL47: 0.02416056166 | AM47: 0.07720717107 | AO47: 0.02166666667 | AP47: 0.045 | AQ47: 0 | AR47: 0.0428125 | AS47: 0.01913280313 | AT47: 0.1333333333 | AU47: 0.1457300332 | AV47: 0.02416056166 | AW47: 0.07720717107
A48: 45 | D48: Feller-buncher | E48: Chipper | F48: Shuttle | H48: WT | I48: trees | J48: stand | K48: 0.26 | L48: 0.36 | M48: =IF(Emissions!X85>12,0,IF(Emissions!X85<5,1,(Emissions!X85-12)/(-7))) -> 0.4414516308 | N48: =IF(Damage!Y72>0.5,0,IF(Damage!Y72<0.1,1,(Damage!Y72-0.5)/(-0.4))) -> 0.6337 | O48: =IF('Contribution margin'!AB85<-10,0,IF('Contribution margin'!AB85>10,1,('Contribution margin'!AB85+10)/20)) -> 0 | P48: 0 | Q48: =IF(Employment!X85>0.5,1,Employment!X85*2) -> 0.4533590607 | R48: =Accidents!P69 -> 0.9134615385 | S48: =IF('Energy efficiency'!Y85>0.05,0,IF('Energy efficiency'!Y85<0.02,1,('Energy efficiency'!Y85-0.05)/(-0.03))) -> 0.4966878627 | T48: 0.3736690884 | U48: =IF('2a Site and stand'!$D$7="non-uniform",0,1) -> 1 | V48: =IF('2a Site and stand'!$D$9="low",0,1) -> 1 | W48: =IF('2a Site and stand'!$D$17="no restrictions",1,IF('2a Site and stand'!$D$17="other soil types",1,0)) -> 1 | X48: =IF('2a Site and stand'!$D$11="0 to 35 %",1,IF('2a Site and stand'!$D$11="no restrictions",1,0)) -> 1 | Y48: 1 | Z48: =IF('2a Site and stand'!$D$15<30,1,0) -> 1 | AA48: 1 | AB48: 1 | AC48: 1 | AD48: 0.3736690884 | AE48: 0.02166666667 | AF48: 0.03 | AG48: 0 | AH48: 0.05280833333 | AI48: 0 | AJ48: 0 | AK48: 0.07555984346 | AL48: 0.1522435897 | AM48: 0.04139065522 | AO48: 0.02166666667 | AP48: 0.03 | AQ48: 0 | AR48: 0.05280833333 | AS48: 0 | AT48: 0 | AU48: 0.07555984346 | AV48: 0.1522435897 | AW48: 0.04139065522
A49: 46 | D49: Feller-buncher | F49: Forwarder | H49: WT | I49: trees | J49: forest road | K49: 0.26 | L49: 0.4 | M49: =IF(Emissions!X86>12,0,IF(Emissions!X86<5,1,(Emissions!X86-12)/(-7))) -> 0.7405170861 | N49: =IF(Damage!Y73>0.5,0,IF(Damage!Y73<0.1,1,(Damage!Y73-0.5)/(-0.4))) -> 0.91 | O49: =IF('Contribution margin'!AB86<-10,0,IF('Contribution margin'!AB86>10,1,('Contribution margin'!AB86+10)/20)) -> 0.1723811387 | P49: 0.2 | Q49: =IF(Employment!X86>0.5,1,Employment!X86*2) -> 0.4594022848 | R49: =Accidents!P70 -> 0.9134615385 | S49: =IF('Energy efficiency'!Y86>0.05,0,IF('Energy efficiency'!Y86<0.02,1,('Energy efficiency'!Y86-0.05)/(-0.03))) -> 0.7715864125 | T49: 0.4860063614 | U49: =IF('2a Site and stand'!$D$7="non-uniform",0,1) -> 1 | V49: =IF('2a Site and stand'!$D$9="low",0,1) -> 1 | W49: =IF('2a Site and stand'!$D$17="no restrictions",1,IF('2a Site and stand'!$D$17="other soil types",1,0)) -> 1 | X49: =IF('2a Site and stand'!$D$11="0 to 35 %",1,IF('2a Site and stand'!$D$11="no restrictions",1,0)) -> 1 | Y49: 1 | Z49: =IF('2a Site and stand'!$D$15<30,1,0) -> 1 | AA49: =IF('2b Environment'!$D$16="not possible",0,1) -> 1 | AB49: 1 | AC49: 1 | AD49: 0.4860063614 | AE49: 0.02166666667 | AF49: 0.03333333333 | AG49: 0 | AH49: 0.07583333333 | AI49: 0.02873018978 | AJ49: 0.03333333333 | AK49: 0.07656704747 | AL49: 0.1522435897 | AM49: 0.06429886771 | AO49: 0.02166666667 | AP49: 0.03333333333 | AQ49: 0 | AR49: 0.07583333333 | AS49: 0.02873018978 | AT49: 0.03333333333 | AU49: 0.07656704747 | AV49: 0.1522435897 | AW49: 0.06429886771
A50: 47 | D50: Feller-buncher | F50: Forwarder | H50: WT | I50: trees | J50: terminal | K50: 0.26 | L50: 0.4 | M50: =IF(Emissions!X87>12,0,IF(Emissions!X87<5,1,(Emissions!X87-12)/(-7))) -> 0.6944213136 | N50: =IF(Damage!Y74>0.5,0,IF(Damage!Y74<0.1,1,(Damage!Y74-0.5)/(-0.4))) -> 0.91 | O50: =IF('Contribution margin'!AB87<-10,0,IF('Contribution margin'!AB87>10,1,('Contribution margin'!AB87+10)/20)) -> 0 | P50: 0.5 | Q50: =IF(Employment!X87>0.5,1,Employment!X87*2) -> 0.5952073888 | R50: =Accidents!P71 -> 0.9134615385 | S50: =IF('Energy efficiency'!Y87>0.05,0,IF('Energy efficiency'!Y87<0.02,1,('Energy efficiency'!Y87-0.05)/(-0.03))) -> 0.7292155508 | T50: 0.5263794504 | U50: =IF('2a Site and stand'!$D$7="non-uniform",0,1) -> 1 | V50: =IF('2a Site and stand'!$D$9="low",0,1) -> 1 | W50: =IF('2a Site and stand'!$D$17="no restrictions",1,IF('2a Site and stand'!$D$17="other soil types",1,0)) -> 1 | X50: =IF('2a Site and stand'!$D$11="0 to 35 %",1,IF('2a Site and stand'!$D$11="no restrictions",1,0)) -> 1 | Y50: 1 | Z50: =IF('2a Site and stand'!$D$15<30,1,0) -> 1 | AA50: 1 | AB50: =IF('2b Environment'!$D$17="not possible",0,1) -> 1 | AC50: 1 | AD50: 0.5263794504 | AE50: 0.02166666667 | AF50: 0.03333333333 | AG50: 0 | AH50: 0.07583333333 | AI50: 0 | AJ50: 0.08333333333 | AK50: 0.09920123147 | AL50: 0.1522435897 | AM50: 0.06076796257 | AO50: 0.02166666667 | AP50: 0.03333333333 | AQ50: 0 | AR50: 0.07583333333 | AS50: 0 | AT50: 0.08333333333 | AU50: 0.09920123147 | AV50: 0.1522435897 | AW50: 0.06076796257
A51: 48 | D51: Feller-buncher | F51: Forwarder | H51: WT | I51: trees | J51: plant | K51: 0.26 | L51: 0.4 | M51: =IF(Emissions!X88>12,0,IF(Emissions!X88<5,1,(Emissions!X88-12)/(-7))) -> 0.6301862401 | N51: =IF(Damage!Y75>0.5,0,IF(Damage!Y75<0.1,1,(Damage!Y75-0.5)/(-0.4))) -> 0.91 | O51: =IF('Contribution margin'!AB88<-10,0,IF('Contribution margin'!AB88>10,1,('Contribution margin'!AB88+10)/20)) -> 0 | P51: 0.8 | Q51: =IF(Employment!X88>0.5,1,Employment!X88*2) -> 0.6311246876 | R51: =Accidents!P72 -> 0.9134615385 | S51: =IF('Energy efficiency'!Y88>0.05,0,IF('Energy efficiency'!Y88<0.02,1,('Energy efficiency'!Y88-0.05)/(-0.03))) -> 0.6701711904 | T51: 0.5774453035 | U51: =IF('2a Site and stand'!$D$7="non-uniform",0,1) -> 1 | V51: =IF('2a Site and stand'!$D$9="low",0,1) -> 1 | W51: =IF('2a Site and stand'!$D$17="no restrictions",1,IF('2a Site and stand'!$D$17="other soil types",1,0)) -> 1 | X51: =IF('2a Site and stand'!$D$11="0 to 35 %",1,IF('2a Site and stand'!$D$11="no restrictions",1,0)) -> 1 | Y51: 1 | Z51: =IF('2a Site and stand'!$D$15<30,1,0) -> 1 | AA51: 1 | AB51: 1 | AC51: =IF('2b Environment'!$D$18="not possible",0,1) -> 1 | AD51: 0.5774453035 | AE51: 0.02166666667 | AF51: 0.03333333333 | AG51: 0 | AH51: 0.07583333333 | AI51: 0 | AJ51: 0.1333333333 | AK51: 0.1051874479 | AL51: 0.1522435897 | AM51: 0.0558475992 | AO51: 0.02166666667 | AP51: 0.03333333333 | AQ51: 0 | AR51: 0.07583333333 | AS51: 0 | AT51: 0.1333333333 | AU51: 0.1051874479 | AV51: 0.1522435897 | AW51: 0.0558475992

Sheet Values (hidden)
A1: ID | D1: Machines | H1: Method | I1: Type of wood | J1: Chipping place | K1: Nutrient loss | L1: Bearing pressure | M1: Emissions | N1: Damage stand | O1: Purchase | P1: Felling & Processing | Q1: Extracting | R1: Bundling | S1: Chipping | T1: Transporting | U1: Storing | V1: Contribution margin | W1: Employment | X1: Energy demand | Y1: Energy efficiency
K2: kg/ha | L2: kPa | M2: kgCO2/m³ loose | N2: % | O2: €/m³ loose | P2: €/m³ loose | Q2: €/m³ loose | R2: €/m³ loose | S2: €/m³ loose | T2: €/m³ loose | U2: €/m³ loose | V2: €/m³ loose | W2: h/m³ loose | X2: kWh/m³ loose | Y2: %
A3: 1 | B3: B | C3: 4 | D3: Chain saw | F3: Forwarder | H3: CTL | I3: logs | J3: forest road | K3: 640 | L3: 300 | M3: =Emissions!X41/'Energy content'!$C$122 -> 2.786198285 | N3: =Damage!Y28 -> 0.184 | O3: ='Contribution margin'!I41/'Energy content'!$C$122 -> 0.4520705464 | P3: =SUM('Contribution margin'!J41:M41)/'Energy content'!$C$122 -> 9.845333333 | Q3: =SUM('Contribution margin'!N41:Q41)/'Energy content'!$C$122 -> 2.99364486 | R3: ='Contribution margin'!R41/'Energy content'!$C$122 -> 0 | S3: =SUM('Contribution margin'!S41:U41)/'Energy content'!$C$122 -> 1.707462687 | T3: =SUM('Contribution margin'!V41:X41)/'Energy content'!$C$122 -> 1.313939617 | U3: =SUM('Contribution margin'!Y41:Z41)/'Energy content'!$C$122 -> 0.4 | V3: ='Contribution margin'!AB41/'Energy content'!$C$122 -> -1.643432831 | W3: =Employment!X41/'Energy content'!$C$122 -> 0.3311235699 | X3: ='Energy efficiency'!X41*1000/'Energy content'!$C$122 -> 11.46059462 | Y3: ='Energy efficiency'!Y41 -> 0.01521080465
A4: 2 | B4: B | C4: 5 | D4: Chain saw | F4: Forwarder | H4: CTL | I4: logs | J4: terminal | K4: 640 | L4: 300 | M4: =Emissions!X42/'Energy content'!$C$122 -> 2.897921552 | N4: =Damage!Y29 -> 0.184 | O4: ='Contribution margin'!I42/'Energy content'!$C$122 -> 0.4520705464 | P4: =SUM('Contribution margin'!J42:M42)/'Energy content'!$C$122 -> 9.845333333 | Q4: =SUM('Contribution margin'!N42:Q42)/'Energy content'!$C$122 -> 2.99364486 | R4: ='Contribution margin'!R42/'Energy content'!$C$122 -> 0 | S4: =SUM('Contribution margin'!S42:U42)/'Energy content'!$C$122 -> 1.707462687 | T4: =SUM('Contribution margin'!V42:X42)/'Energy content'!$C$122 -> 4.010305123 | U4: =SUM('Contribution margin'!Y42:Z42)/'Energy content'!$C$122 -> 1.6 | V4: ='Contribution margin'!AB42/'Energy content'!$C$122 -> -5.539798336 | W4: =Employment!X42/'Energy content'!$C$122 -> 0.3643815816 | X4: ='Energy efficiency'!X42*1000/'Energy content'!$C$122 -> 11.90071658 | Y4: ='Energy efficiency'!Y42 -> 0.01579494618
A5: 3 | B5: B | C5: 6 | D5: Chain saw | F5: Forwarder | H5: CTL | I5: logs | J5: plant | K5: 640 | L5: 300 | M5: =Emissions!X43/'Energy content'!$C$122 -> 2.952022443 | N5: =Damage!Y30 -> 0.184 | O5: ='Contribution margin'!I43/'Energy content'!$C$122 -> 0.4520705464 | P5: =SUM('Contribution margin'!J43:M43)/'Energy content'!$C$122 -> 9.845333333 | Q5: =SUM('Contribution margin'!N43:Q43)/'Energy content'!$C$122 -> 2.99364486 | R5: ='Contribution margin'!R43/'Energy content'!$C$122 -> 0 | S5: =SUM('Contribution margin'!S43:U43)/'Energy content'!$C$122 -> 1.707462687 | T5: =SUM('Contribution margin'!V43:X43)/'Energy content'!$C$122 -> 3.410674609 | U5: =SUM('Contribution margin'!Y43:Z43)/'Energy content'!$C$122 -> 0.4 | V5: ='Contribution margin'!AB43/'Energy content'!$C$122 -> -3.740167823 | W5: =Employment!X43/'Energy content'!$C$122 -> 0.3541459634 | X5: ='Energy efficiency'!X43*1000/'Energy content'!$C$122 -> 12.1138413 | Y5: ='Energy efficiency'!Y43 -> 0.01607781095
A6: 4 | B6: G | C6: 17 | D6: Chain saw | F6: Forwarder | H6: CTL | I6: residues | J6: forest road | K6: 960 | L6: 300 | M6: =Emissions!X44/'Energy content'!$C$122 -> 6.559167693 | N6: =Damage!Y31 -> 0.0544 | O6: ='Contribution margin'!I44/'Energy content'!$C$122 -> 0.4520705464 | P6: =SUM('Contribution margin'!J44:M44)/'Energy content'!$C$122 -> 0.9845333333 | Q6: =SUM('Contribution margin'!N44:Q44)/'Energy content'!$C$122 -> 10.67733333 | R6: ='Contribution margin'!R44/'Energy content'!$C$122 -> 0 | S6: =SUM('Contribution margin'!S44:U44)/'Energy content'!$C$122 -> 4.4 | T6: =SUM('Contribution margin'!V44:X44)/'Energy content'!$C$122 -> 1.313939617 | U6: =SUM('Contribution margin'!Y44:Z44)/'Energy content'!$C$122 -> 0.4 | V6: ='Contribution margin'!AB44/'Energy content'!$C$122 -> -3.158858618 | W6: =Employment!X44/'Energy content'!$C$122 -> 0.1988418083 | X6: ='Energy efficiency'!X44*1000/'Energy content'!$C$122 -> 25.88761166 | Y6: ='Energy efficiency'!Y44 -> 0.0343587237
A7: 5 | B7: G | C7: 18 | D7: Chain saw | F7: Forwarder | H7: CTL | I7: residues | J7: terminal | K7: 960 | L7: 300 | M7: =Emissions!X45/'Energy content'!$C$122 -> 6.804953981 | N7: =Damage!Y32 -> 0.0544 | O7: ='Contribution margin'!I45/'Energy content'!$C$122 -> 0.4520705464 | P7: =SUM('Contribution margin'!J45:M45)/'Energy content'!$C$122 -> 0.9845333333 | Q7: =SUM('Contribution margin'!N45:Q45)/'Energy content'!$C$122 -> 10.67733333 | R7: ='Contribution margin'!R45/'Energy content'!$C$122 -> 0 | S7: =SUM('Contribution margin'!S45:U45)/'Energy content'!$C$122 -> 4.4 | T7: =SUM('Contribution margin'!V45:X45)/'Energy content'!$C$122 -> 4.659781062 | U7: =SUM('Contribution margin'!Y45:Z45)/'Energy content'!$C$122 -> 1.6 | V7: ='Contribution margin'!AB45/'Energy content'!$C$122 -> -7.704700063 | W7: =Employment!X45/'Energy content'!$C$122 -> 0.2504008473 | X7: ='Energy efficiency'!X45*1000/'Energy content'!$C$122 -> 26.85586067 | Y7: ='Energy efficiency'!Y45 -> 0.03564380942
A8: 6 | B8: G | C8: 19 | D8: Chain saw | F8: Forwarder | G8: Bundler | H8: CTL | I8: residues | J8: terminal | K8: 960 | L8: 300 | M8: =Emissions!X46/'Energy content'!$C$122 -> 8.116424053 | N8: =Damage!Y33 -> 0.0544 | O8: ='Contribution margin'!I46/'Energy content'!$C$122 -> 0.4520705464 | P8: =SUM('Contribution margin'!J46:M46)/'Energy content'!$C$122 -> 0.9845333333 | Q8: =SUM('Contribution margin'!N46:Q46)/'Energy content'!$C$122 -> 10.67733333 | R8: ='Contribution margin'!R46/'Energy content'!$C$122 -> 10.1877551 | S8: =SUM('Contribution margin'!S46:U46)/'Energy content'!$C$122 -> 2.118518519 | T8: =SUM('Contribution margin'!V46:X46)/'Energy content'!$C$122 -> 4.420218828 | U8: =SUM('Contribution margin'!Y46:Z46)/'Energy content'!$C$122 -> 1.6 | V8: ='Contribution margin'!AB46/'Energy content'!$C$122 -> -15.37141145 | W8: =Employment!X46/'Energy content'!$C$122 -> 0.3088848844 | X8: ='Energy efficiency'!X46*1000/'Energy content'!$C$122 -> 32.02225792 | Y8: ='Energy efficiency'!Y46 -> 0.04250078867
A9: 7 | B9: G | C9: 19 | D9: Chain saw | F9: Forwarder | H9: CTL | I9: residues | J9: plant | K9: 960 | L9: 300 | M9: =Emissions!X47/'Energy content'!$C$122 -> 7.149524749 | N9: =Damage!Y34 -> 0.0544 | O9: ='Contribution margin'!I47/'Energy content'!$C$122 -> 0.4520705464 | P9: =SUM('Contribution margin'!J47:M47)/'Energy content'!$C$122 -> 0.9845333333 | Q9: =SUM('Contribution margin'!N47:Q47)/'Energy content'!$C$122 -> 10.67733333 | R9: ='Contribution margin'!R47/'Energy content'!$C$122 -> 0 | S9: =SUM('Contribution margin'!S47:U47)/'Energy content'!$C$122 -> 4.4 | T9: =SUM('Contribution margin'!V47:X47)/'Energy content'!$C$122 -> 5.686391329 | U9: =SUM('Contribution margin'!Y47:Z47)/'Energy content'!$C$122 -> 0.4 | V9: ='Contribution margin'!AB47/'Energy content'!$C$122 -> -7.53131033 | W9: =Employment!X47/'Energy content'!$C$122 -> 0.2503106608 | X9: ='Energy efficiency'!X47*1000/'Energy content'!$C$122 -> 28.21326067 | Y9: ='Energy efficiency'!Y47 -> 0.03744538664
A10: 8 | B10: G | C10: 20 | D10: Chain saw | F10: Forwarder | G10: Bundler | H10: CTL | I10: residues | J10: plant | K10: 960 | L10: 300 | M10: =Emissions!X48/'Energy content'!$C$122 -> 8.241576653 | N10: =Damage!Y35 -> 0.0544 | O10: ='Contribution margin'!I48/'Energy content'!$C$122 -> 0.4520705464 | P10: =SUM('Contribution margin'!J48:M48)/'Energy content'!$C$122 -> 0.9845333333 | Q10: =SUM('Contribution margin'!N48:Q48)/'Energy content'!$C$122 -> 10.67733333 | R10: ='Contribution margin'!R48/'Energy content'!$C$122 -> 10.1877551 | S10: =SUM('Contribution margin'!S48:U48)/'Energy content'!$C$122 -> 2.118518519 | T10: =SUM('Contribution margin'!V48:X48)/'Energy content'!$C$122 -> 3.896038199 | U10: =SUM('Contribution margin'!Y48:Z48)/'Energy content'!$C$122 -> 0.4 | V10: ='Contribution margin'!AB48/'Energy content'!$C$122 -> -13.64723082 | W10: =Employment!X48/'Energy content'!$C$122 -> 0.2995923898 | X10: ='Energy efficiency'!X48*1000/'Energy content'!$C$122 -> 32.51528332 | Y10: ='Energy efficiency'!Y48 -> 0.04315514502
A11: 9 | B11: H | C11: 21 | D11: Chain saw | F11: Forwarder | H11: WT | I11: trees | J11: forest road | K11: 960 | L11: 300 | M11: =Emissions!X49/'Energy content'!$C$122 -> 4.117013075 | N11: =Damage!Y36 -> 0.184 | O11: ='Contribution margin'!I49/'Energy content'!$C$122 -> 0.4520705464 | P11: =SUM('Contribution margin'!J49:M49)/'Energy content'!$C$122 -> 4.922666667 | Q11: =SUM('Contribution margin'!N49:Q49)/'Energy content'!$C$122 -> 5.824 | R11: ='Contribution margin'!R49/'Energy content'!$C$122 -> 0 | S11: =SUM('Contribution margin'!S49:U49)/'Energy content'!$C$122 -> 2.691764706 | T11: =SUM('Contribution margin'!V49:X49)/'Energy content'!$C$122 -> 1.313939617 | U11: =SUM('Contribution margin'!Y49:Z49)/'Energy content'!$C$122 -> 0.4 | V11: ='Contribution margin'!AB49/'Energy content'!$C$122 -> -0.5354233234 | W11: =Employment!X49/'Energy content'!$C$122 -> 0.237436351 | X11: ='Energy efficiency'!X49*1000/'Energy content'!$C$122 -> 17.35183268 | Y11: ='Energy efficiency'!Y49 -> 0.02302981181
A12: 10 | B12: H | C12: 22 | D12: Chain saw | F12: Forwarder | H12: WT | I12: trees | J12: terminal | K12: 960 | L12: 300 | M12: =Emissions!X50/'Energy content'!$C$122 -> 4.360129388 | N12: =Damage!Y37 -> 0.184 | O12: ='Contribution margin'!I50/'Energy content'!$C$122 -> 0.4520705464 | P12: =SUM('Contribution margin'!J50:M50)/'Energy content'!$C$122 -> 4.922666667 | Q12: =SUM('Contribution margin'!N50:Q50)/'Energy content'!$C$122 -> 5.824 | R12: ='Contribution margin'!R50/'Energy content'!$C$122 -> 0 | S12: =SUM('Contribution margin'!S50:U50)/'Energy content'!$C$122 -> 2.691764706 | T12: =SUM('Contribution margin'!V50:X50)/'Energy content'!$C$122 -> 4.633924106 | U12: =SUM('Contribution margin'!Y50:Z50)/'Energy content'!$C$122 -> 1.6 | V12: ='Contribution margin'!AB50/'Energy content'!$C$122 -> -5.055407813 | W12: =Employment!X50/'Energy content'!$C$122 -> 0.2885975906 | X12: ='Energy efficiency'!X50*1000/'Energy content'!$C$122 -> 18.30956361 | Y12: ='Energy efficiency'!Y50 -> 0.02430093766
A13: 11 | B13: H | C13: 23 | D13: Chain saw | F13: Forwarder | H13: WT | I13: trees | J13: plant | K13: 960 | L13: 300 | M13: =Emissions!X51/'Energy content'!$C$122 -> 4.69891521 | N13: =Damage!Y38 -> 0.184 | O13: ='Contribution margin'!I51/'Energy content'!$C$122 -> 0.4520705464 | P13: =SUM('Contribution margin'!J51:M51)/'Energy content'!$C$122 -> 4.922666667 | Q13: =SUM('Contribution margin'!N51:Q51)/'Energy content'!$C$122 -> 5.824 | R13: ='Contribution margin'!R51/'Energy content'!$C$122 -> 0 | S13: =SUM('Contribution margin'!S51:U51)/'Energy content'!$C$122 -> 2.691764706 | T13: =SUM('Contribution margin'!V51:X51)/'Energy content'!$C$122 -> 4.586350046 | U13: =SUM('Contribution margin'!Y51:Z51)/'Energy content'!$C$122 -> 0.4 | V13: ='Contribution margin'!AB51/'Energy content'!$C$122 -> -3.807833753 | W13: =Employment!X51/'Energy content'!$C$122 -> 0.3021285514 | X13: ='Energy efficiency'!X51*1000/'Energy content'!$C$122 -> 19.64417442 | Y13: ='Energy efficiency'!Y51 -> 0.02607226847
A14: 12 | B14: D | C14: 10 | D14: Harvester | F14: Forwarder | H14: CTL | I14: logs | J14: forest road | K14: 640 | L14: 300 | M14: =Emissions!X52/'Energy content'!$C$122 -> 4.35040886 | N14: =Damage!Y39 -> 0.1072 | O14: ='Contribution margin'!I52/'Energy content'!$C$122 -> 0.4520705464 | P14: =SUM('Contribution margin'!J52:M52)/'Energy content'!$C$122 -> 4.877241379 | Q14: =SUM('Contribution margin'!N52:Q52)/'Energy content'!$C$122 -> 2.99364486 | R14: ='Contribution margin'!R52/'Energy content'!$C$122 -> 0 | S14: =SUM('Contribution margin'!S52:U52)/'Energy content'!$C$122 -> 1.707462687 | T14: =SUM('Contribution margin'!V52:X52)/'Energy content'!$C$122 -> 1.313939617 | U14: =SUM('Contribution margin'!Y52:Z52)/'Energy content'!$C$122 -> 0.4 | V14: ='Contribution margin'!AB52/'Energy content'!$C$122 -> 3.324659123 | W14: =Employment!X52/'Energy content'!$C$122 -> 0.1104339147 | X14: ='Energy efficiency'!X52*1000/'Energy content'!$C$122 -> 17.1379743 | Y14: ='Energy efficiency'!Y52 -> 0.0227459733
A15: 13 | B15: D | C15: 11 | D15: Harvester | F15: Forwarder | H15: CTL | I15: logs | J15: terminal | K15: 640 | L15: 300 | M15: =Emissions!X53/'Energy content'!$C$122 -> 4.462132127 | N15: =Damage!Y40 -> 0.1072 | O15: ='Contribution margin'!I53/'Energy content'!$C$122 -> 0.4520705464 | P15: =SUM('Contribution margin'!J53:M53)/'Energy content'!$C$122 -> 4.877241379 | Q15: =SUM('Contribution margin'!N53:Q53)/'Energy content'!$C$122 -> 2.99364486 | R15: ='Contribution margin'!R53/'Energy content'!$C$122 -> 0 | S15: =SUM('Contribution margin'!S53:U53)/'Energy content'!$C$122 -> 1.707462687 | T15: =SUM('Contribution margin'!V53:X53)/'Energy content'!$C$122 -> 4.010305123 | U15: =SUM('Contribution margin'!Y53:Z53)/'Energy content'!$C$122 -> 1.6 | V15: ='Contribution margin'!AB53/'Energy content'!$C$122 -> -0.5717063823 | W15: =Employment!X53/'Energy content'!$C$122 -> 0.1436919264 | X15: ='Energy efficiency'!X53*1000/'Energy content'!$C$122 -> 17.57809626 | Y15: ='Energy efficiency'!Y53 -> 0.02333011482
A16: 14 | B16: D | C16: 12 | D16: Harvester | F16: Forwarder | H16: CTL | I16: logs | J16: plant | K16: 640 | L16: 300 | M16: =Emissions!X54/'Energy content'!$C$122 -> 4.516233018 | N16: =Damage!Y41 -> 0.1072 | O16: ='Contribution margin'!I54/'Energy content'!$C$122 -> 0.4520705464 | P16: =SUM('Contribution margin'!J54:M54)/'Energy content'!$C$122 -> 4.877241379 | Q16: =SUM('Contribution margin'!N54:Q54)/'Energy content'!$C$122 -> 2.99364486 | R16: ='Contribution margin'!R54/'Energy content'!$C$122 -> 0 | S16: =SUM('Contribution margin'!S54:U54)/'Energy content'!$C$122 -> 1.707462687 | T16: =SUM('Contribution margin'!V54:X54)/'Energy content'!$C$122 -> 3.410674609 | U16: =SUM('Contribution margin'!Y54:Z54)/'Energy content'!$C$122 -> 0.4 | V16: ='Contribution margin'!AB54/'Energy content'!$C$122 -> 1.227924131 | W16: =Employment!X54/'Energy content'!$C$122 -> 0.1334563082 | X16: ='Energy efficiency'!X54*1000/'Energy content'!$C$122 -> 17.79122098 | Y16: ='Energy efficiency'!Y54 -> 0.0236129796
A17: 15 | B17: K | C17: 31 | D17: Harvester | F17: Forwarder | H17: CTL | I17: residues | J17: forest road | K17: 960 | L17: 300 | M17: =Emissions!X55/'Energy content'!$C$122 -> 6.715588751 | N17: =Damage!Y42 -> 0.04672 | O17: ='Contribution margin'!I55/'Energy content'!$C$122 -> 0.4520705464 | P17: =SUM('Contribution margin'!J55:M55)/'Energy content'!$C$122 -> 0.4877241379 | Q17: =SUM('Contribution margin'!N55:Q55)/'Energy content'!$C$122 -> 10.67733333 | R17: ='Contribution margin'!R55/'Energy content'!$C$122 -> 0 | S17: =SUM('Contribution margin'!S55:U55)/'Energy content'!$C$122 -> 4.4 | T17: =SUM('Contribution margin'!V55:X55)/'Energy content'!$C$122 -> 1.313939617 | U17: =SUM('Contribution margin'!Y55:Z55)/'Energy content'!$C$122 -> 0.4 | V17: ='Contribution margin'!AB55/'Energy content'!$C$122 -> -2.662049422 | W17: =Employment!X55/'Energy content'!$C$122 -> 0.1767728428 | X17: ='Energy efficiency'!X55*1000/'Energy content'!$C$122 -> 26.45534962 | Y17: ='Energy efficiency'!Y55 -> 0.03511224056
A18: 16 | B18: K | C18: 32 | D18: Harvester | F18: Forwarder | H18: CTL | I18: residues | J18: terminal | K18: 960 | L18: 300 | M18: =Emissions!X56/'Energy content'!$C$122 -> 6.961375039 | N18: =Damage!Y43 -> 0.04672 | O18: ='Contribution margin'!I56/'Energy content'!$C$122 -> 0.4520705464 | P18: =SUM('Contribution margin'!J56:M56)/'Energy content'!$C$122 -> 0.4877241379 | Q18: =SUM('Contribution margin'!N56:Q56)/'Energy content'!$C$122 -> 10.67733333 | R18: ='Contribution margin'!R56/'Energy content'!$C$122 -> 0 | S18: =SUM('Contribution margin'!S56:U56)/'Energy content'!$C$122 -> 4.4 | T18: =SUM('Contribution margin'!V56:X56)/'Energy content'!$C$122 -> 4.659781062 | U18: =SUM('Contribution margin'!Y56:Z56)/'Energy content'!$C$122 -> 1.6 | V18: ='Contribution margin'!AB56/'Energy content'!$C$122 -> -7.207890868 | W18: =Employment!X56/'Energy content'!$C$122 -> 0.2283318817 | X18: ='Energy efficiency'!X56*1000/'Energy content'!$C$122 -> 27.42359864 | Y18: ='Energy efficiency'!Y56 -> 0.03639732629
A19: 17 | B19: K | C19: 32 | D19: Harvester | F19: Forwarder | G19: Bundler | H19: CTL | I19: residues | J19: terminal | K19: 960 | L19: 300 | M19: =Emissions!X57/'Energy content'!$C$122 -> 8.272845111 | N19: =Damage!Y44 -> 0.04672 | O19: ='Contribution margin'!I57/'Energy content'!$C$122 -> 0.4520705464 | P19: =SUM('Contribution margin'!J57:M57)/'Energy content'!$C$122 -> 0.4877241379 | Q19: =SUM('Contribution margin'!N57:Q57)/'Energy content'!$C$122 -> 10.67733333 | R19: ='Contribution margin'!R57/'Energy content'!$C$122 -> 10.1877551 | S19: =SUM('Contribution margin'!S57:U57)/'Energy content'!$C$122 -> 2.118518519 | T19: =SUM('Contribution margin'!V57:X57)/'Energy content'!$C$122 -> 4.420218828 | U19: =SUM('Contribution margin'!Y57:Z57)/'Energy content'!$C$122 -> 1.6 | V19: ='Contribution margin'!AB57/'Energy content'!$C$122 -> -14.87460225 | W19: =Employment!X57/'Energy content'!$C$122 -> 0.2868159189 | X19: ='Energy efficiency'!X57*1000/'Energy content'!$C$122 -> 32.58999589 | Y19: ='Energy efficiency'!Y57 -> 0.04325430553
A20: 18 | B20: K | C20: 33 | D20: Harvester | F20: Forwarder | H20: CTL | I20: residues | J20: plant | K20: 960 | L20: 300 | M20: =Emissions!X58/'Energy content'!$C$122 -> 7.305945807 | N20: =Damage!Y45 -> 0.04672 | O20: ='Contribution margin'!I58/'Energy content'!$C$122 -> 0.4520705464 | P20: =SUM('Contribution margin'!J58:M58)/'Energy content'!$C$122 -> 0.4877241379 | Q20: =SUM('Contribution margin'!N58:Q58)/'Energy content'!$C$122 -> 10.67733333 | R20: ='Contribution margin'!R58/'Energy content'!$C$122 -> 0 | S20: =SUM('Contribution margin'!S58:U58)/'Energy content'!$C$122 -> 4.4 | T20: =SUM('Contribution margin'!V58:X58)/'Energy content'!$C$122 -> 5.686391329 | U20: =SUM('Contribution margin'!Y58:Z58)/'Energy content'!$C$122 -> 0.4 | V20: ='Contribution margin'!AB58/'Energy content'!$C$122 -> -7.034501134 | W20: =Employment!X58/'Energy content'!$C$122 -> 0.2282416953 | X20: ='Energy efficiency'!X58*1000/'Energy content'!$C$122 -> 28.78099863 | Y20: ='Energy efficiency'!Y58 -> 0.03819890351
A21: 19 | B21: K | C21: 34 | D21: Harvester | F21: Forwarder | G21: Bundler | H21: CTL | I21: residues | J21: plant | K21: 960 | L21: 300 | M21: =Emissions!X59/'Energy content'!$C$122 -> 8.39799771 | N21: =Damage!Y46 -> 0.04672 | O21: ='Contribution margin'!I59/'Energy content'!$C$122 -> 0.4520705464 | P21: =SUM('Contribution margin'!J59:M59)/'Energy content'!$C$122 -> 0.4877241379 | Q21: =SUM('Contribution margin'!N59:Q59)/'Energy content'!$C$122 -> 10.67733333 | R21: ='Contribution margin'!R59/'Energy content'!$C$122 -> 10.1877551 | S21: =SUM('Contribution margin'!S59:U59)/'Energy content'!$C$122 -> 2.118518519 | T21: =SUM('Contribution margin'!V59:X59)/'Energy content'!$C$122 -> 3.896038199 | U21: =SUM('Contribution margin'!Y59:Z59)/'Energy content'!$C$122 -> 0.4 | V21: ='Contribution margin'!AB59/'Energy content'!$C$122 -> -13.15042163 | W21: =Employment!X59/'Energy content'!$C$122 -> 0.2775234243 | X21: ='Energy efficiency'!X59*1000/'Energy content'!$C$122 -> 33.08302128 | Y21: ='Energy efficiency'!Y59 -> 0.04390866189
A22: 20 | B22: L | C22: 35 | D22: Harvester | F22: Forwarder | H22: CTL | I22: trees | J22: forest road | K22: 960 | L22: 300 | M22: =Emissions!X60/'Energy content'!$C$122 -> 5.845876983 | N22: =Damage!Y47 -> 0.1072 | O22: ='Contribution margin'!I60/'Energy content'!$C$122 -> 0.4520705464 | P22: =SUM('Contribution margin'!J60:M60)/'Energy content'!$C$122 -> 4.877241379 | Q22: =SUM('Contribution margin'!N60:Q60)/'Energy content'!$C$122 -> 5.824 | R22: ='Contribution margin'!R60/'Energy content'!$C$122 -> 0 | S22: =SUM('Contribution margin'!S60:U60)/'Energy content'!$C$122 -> 2.691764706 | T22: =SUM('Contribution margin'!V60:X60)/'Energy content'!$C$122 -> 1.313939617 | U22: =SUM('Contribution margin'!Y60:Z60)/'Energy content'!$C$122 -> 0.4 | V22: ='Contribution margin'!AB60/'Energy content'!$C$122 -> -0.4899980361 | W22: =Employment!X60/'Energy content'!$C$122 -> 0.1500800292 | X22: ='Energy efficiency'!X60*1000/'Energy content'!$C$122 -> 23.02921236 | Y22: ='Energy efficiency'!Y60 -> 0.03056498046
A23: 21 | B23: L | C23: 36 | D23: Harvester | F23: Forwarder | H23: CTL | I23: trees | J23: terminal | K23: 960 | L23: 300 | M23: =Emissions!X61/'Energy content'!$C$122 -> 6.088993296 | N23: =Damage!Y48 -> 0.1072 | O23: ='Contribution margin'!I61/'Energy content'!$C$122 -> 0.4520705464 | P23: =SUM('Contribution margin'!J61:M61)/'Energy content'!$C$122 -> 4.877241379 | Q23: =SUM('Contribution margin'!N61:Q61)/'Energy content'!$C$122 -> 5.824 | R23: ='Contribution margin'!R61/'Energy content'!$C$122 -> 0 | S23: =SUM('Contribution margin'!S61:U61)/'Energy content'!$C$122 -> 2.691764706 | T23: =SUM('Contribution margin'!V61:X61)/'Energy content'!$C$122 -> 4.633924106 | U23: =SUM('Contribution margin'!Y61:Z61)/'Energy content'!$C$122 -> 1.6 | V23: ='Contribution margin'!AB61/'Energy content'!$C$122 -> -5.009982526 | W23: =Employment!X61/'Energy content'!$C$122 -> 0.2012412688 | X23: ='Energy efficiency'!X61*1000/'Energy content'!$C$122 -> 23.98694329 | Y23: ='Energy efficiency'!Y61 -> 0.0318361063
A24: 22 | B24: L | C24: 37 | D24: Harvester | F24: Forwarder | H24: CTL | I24: trees | J24: plant | K24: 960 | L24: 300 | M24: =Emissions!X62/'Energy content'!$C$122 -> 6.427779118 | N24: =Damage!Y49 -> 0.1072 | O24: ='Contribution margin'!I62/'Energy content'!$C$122 -> 0.4520705464 | P24: =SUM('Contribution margin'!J62:M62)/'Energy content'!$C$122 -> 4.877241379 | Q24: =SUM('Contribution margin'!N62:Q62)/'Energy content'!$C$122 -> 5.824 | R24: ='Contribution margin'!R62/'Energy content'!$C$122 -> 0 | S24: =SUM('Contribution margin'!S62:U62)/'Energy content'!$C$122 -> 2.691764706 | T24: =SUM('Contribution margin'!V62:X62)/'Energy content'!$C$122 -> 4.586350046 | U24: =SUM('Contribution margin'!Y62:Z62)/'Energy content'!$C$122 -> 0.4 | V24: ='Contribution margin'!AB62/'Energy content'!$C$122 -> -3.762408466 | W24: =Employment!X62/'Energy content'!$C$122 -> 0.2147722295 | X24: ='Energy efficiency'!X62*1000/'Energy content'!$C$122 -> 25.3215541 | Y24: ='Energy efficiency'!Y62 -> 0.03360743712
A25: 23 | D25: Chain saw | F25: Tower yarder | H25: TL | I25: logs | J25: forest road | K25: 640 | L25: 10 | M25: =Emissions!X63/'Energy content'!$C$122 -> 4.424394983 | N25: =Damage!Y50 -> 0.2945 | O25: ='Contribution margin'!I63/'Energy content'!$C$122 -> 0.4520705464 | P25: =SUM('Contribution margin'!J63:M63)/'Energy content'!$C$122 -> 7.384 | Q25: =SUM('Contribution margin'!N63:Q63)/'Energy content'!$C$122 -> 11.67573333 | R25: ='Contribution margin'!R63/'Energy content'!$C$122 -> 0 | S25: =SUM('Contribution margin'!S63:U63)/'Energy content'!$C$122 -> 1.707462687 | T25: =SUM('Contribution margin'!V63:X63)/'Energy content'!$C$122 -> 1.313939617 | U25: =SUM('Contribution margin'!Y63:Z63)/'Energy content'!$C$122 -> 0.4 | V25: ='Contribution margin'!AB63/'Energy content'!$C$122 -> -7.864187971 | W25: =Employment!X63/'Energy content'!$C$122 -> 0.360407059 | X25: ='Energy efficiency'!X63*1000/'Energy content'!$C$122 -> 17.79293127 | Y25: ='Energy efficiency'!Y63 -> 0.02361524953
A26: 24 | D26: Chain saw | F26: Tower yarder | H26: TL | I26: logs | J26: terminal | K26: 640 | L26: 10 | M26: =Emissions!X64/'Energy content'!$C$122 -> 4.53611825 | N26: =Damage!Y51 -> 0.2945 | O26: ='Contribution margin'!I64/'Energy content'!$C$122 -> 0.4520705464 | P26: =SUM('Contribution margin'!J64:M64)/'Energy content'!$C$122 -> 7.384 | Q26: =SUM('Contribution margin'!N64:Q64)/'Energy content'!$C$122 -> 11.67573333 | R26: ='Contribution margin'!R64/'Energy content'!$C$122 -> 0 | S26: =SUM('Contribution margin'!S64:U64)/'Energy content'!$C$122 -> 1.707462687 | T26: =SUM('Contribution margin'!V64:X64)/'Energy content'!$C$122 -> 4.010305123 | U26: =SUM('Contribution margin'!Y64:Z64)/'Energy content'!$C$122 -> 1.6 | V26: ='Contribution margin'!AB64/'Energy content'!$C$122 -> -11.76055348 | W26: =Employment!X64/'Energy content'!$C$122 -> 0.3936650707 | X26: ='Energy efficiency'!X64*1000/'Energy content'!$C$122 -> 18.23305323 | Y26: ='Energy efficiency'!Y64 -> 0.02419939106
A27: 25 | D27: Chain saw | F27: Tower yarder | H27: TL | I27: logs | J27: plant | K27: 640 | L27: 10 | M27: =Emissions!X65/'Energy content'!$C$122 -> 4.590219141 | N27: =Damage!Y52 -> 0.2945 | O27: ='Contribution margin'!I65/'Energy content'!$C$122 -> 0.4520705464 | P27: =SUM('Contribution margin'!J65:M65)/'Energy content'!$C$122 -> 7.384 | Q27: =SUM('Contribution margin'!N65:Q65)/'Energy content'!$C$122 -> 11.67573333 | R27: ='Contribution margin'!R65/'Energy content'!$C$122 -> 0 | S27: =SUM('Contribution margin'!S65:U65)/'Energy content'!$C$122 -> 1.707462687 | T27: =SUM('Contribution margin'!V65:X65)/'Energy content'!$C$122 -> 3.410674609 | U27: =SUM('Contribution margin'!Y65:Z65)/'Energy content'!$C$122 -> 0.4 | V27: ='Contribution margin'!AB65/'Energy content'!$C$122 -> -9.960922963 | W27: =Employment!X65/'Energy content'!$C$122 -> 0.3834294525 | X27: ='Energy efficiency'!X65*1000/'Energy content'!$C$122 -> 18.44617795 | Y27: ='Energy efficiency'!Y65 -> 0.02448225583
A28: 26 | B28: F | C28: 13 | D28: Chain saw | E28: Processor | F28: Tower yarder | H28: WT | I28: residues | J28: forest road | K28: 960 | L28: 10 | M28: =Emissions!X66/'Energy content'!$C$122 -> 3.00158236 | N28: =Damage!Y53 -> 0.031745 | O28: ='Contribution margin'!I66/'Energy content'!$C$122 -> 0.4520705464 | P28: =SUM('Contribution margin'!J66:M66)/'Energy content'!$C$122 -> 0.9498666667 | Q28: =SUM('Contribution margin'!N66:Q66)/'Energy content'!$C$122 -> 1.167573333 | R28: ='Contribution margin'!R66/'Energy content'!$C$122 -> 0 | S28: =SUM('Contribution margin'!S66:U66)/'Energy content'!$C$122 -> 4.4 | T28: =SUM('Contribution margin'!V66:X66)/'Energy content'!$C$122 -> 1.313939617 | U28: =SUM('Contribution margin'!Y66:Z66)/'Energy content'!$C$122 -> 0.4 | V28: ='Contribution margin'!AB66/'Energy content'!$C$122 -> 6.385568049 | W28: =Employment!X66/'Energy content'!$C$122 -> 0.06950847496 | X28: ='Energy efficiency'!X66*1000/'Energy content'!$C$122 -> 11.84864846 | Y28: ='Energy efficiency'!Y66 -> 0.01572583998
A29: 27 | B29: F | C29: 14 | D29: Chain saw | E29: Processor | F29: Tower yarder | H29: WT | I29: residues | J29: terminal | K29: 960 | L29: 10 | M29: =Emissions!X67/'Energy content'!$C$122 -> 3.247368648 | N29: =Damage!Y54 -> 0.031745 | O29: ='Contribution margin'!I67/'Energy content'!$C$122 -> 0.4520705464 | P29: =SUM('Contribution margin'!J67:M67)/'Energy content'!$C$122 -> 0.9498666667 | Q29: =SUM('Contribution margin'!N67:Q67)/'Energy content'!$C$122 -> 1.167573333 | R29: ='Contribution margin'!R67/'Energy content'!$C$122 -> 0 | S29: =SUM('Contribution margin'!S67:U67)/'Energy content'!$C$122 -> 4.4 | T29: =SUM('Contribution margin'!V67:X67)/'Energy content'!$C$122 -> 4.659781062 | U29: =SUM('Contribution margin'!Y67:Z67)/'Energy content'!$C$122 -> 1.6 | V29: ='Contribution margin'!AB67/'Energy content'!$C$122 -> 1.839726604 | W29: =Employment!X67/'Energy content'!$C$122 -> 0.1210675139 | X29: ='Energy efficiency'!X67*1000/'Energy content'!$C$122 -> 12.81689747 | Y29: ='Energy efficiency'!Y67 -> 0.01701092571
A30: 28 | B30: F | C30: 14 | D30: Chain saw | E30: Processor | F30: Tower yarder | G30: Bundler | H30: WT | I30: residues | J30: terminal | K30: 960 | L30: 10 | M30: =Emissions!X68/'Energy content'!$C$122 -> 4.55883872 | N30: =Damage!Y55 -> 0.031745 | O30: ='Contribution margin'!I68/'Energy content'!$C$122 -> 0.4520705464 | P30: =SUM('Contribution margin'!J68:M68)/'Energy content'!$C$122 -> 0.9498666667 | Q30: =SUM('Contribution margin'!N68:Q68)/'Energy content'!$C$122 -> 1.167573333 | R30: ='Contribution margin'!R68/'Energy content'!$C$122 -> 10.1877551 | S30: =SUM('Contribution margin'!S68:U68)/'Energy content'!$C$122 -> 2.118518519 | T30: =SUM('Contribution margin'!V68:X68)/'Energy content'!$C$122 -> 4.420218828 | U30: =SUM('Contribution margin'!Y68:Z68)/'Energy content'!$C$122 -> 1.6 | V30: ='Contribution margin'!AB68/'Energy content'!$C$122 -> -5.826984782 | W30: =Employment!X68/'Energy content'!$C$122 -> 0.1795515511 | X30: ='Energy efficiency'!X68*1000/'Energy content'!$C$122 -> 17.98329472 | Y30: ='Energy efficiency'!Y68 -> 0.02386790496
A31: 29 | B31: F | C31: 15 | D31: Chain saw | E31: Processor | F31: Tower yarder | H31: WT | I31: residues | J31: plant | K31: 960 | L31: 10 | M31: =Emissions!X69/'Energy content'!$C$122 -> 3.591939416 | N31: =Damage!Y56 -> 0.031745 | O31: ='Contribution margin'!I69/'Energy content'!$C$122 -> 0.4520705464 | P31: =SUM('Contribution margin'!J69:M69)/'Energy content'!$C$122 -> 0.9498666667 | Q31: =SUM('Contribution margin'!N69:Q69)/'Energy content'!$C$122 -> 1.167573333 | R31: ='Contribution margin'!R69/'Energy content'!$C$122 -> 0 | S31: =SUM('Contribution margin'!S69:U69)/'Energy content'!$C$122 -> 4.4 | T31: =SUM('Contribution margin'!V69:X69)/'Energy content'!$C$122 -> 5.686391329 | U31: =SUM('Contribution margin'!Y69:Z69)/'Energy content'!$C$122 -> 0.4 | V31: ='Contribution margin'!AB69/'Energy content'!$C$122 -> 2.013116337 | W31: =Employment!X69/'Energy content'!$C$122 -> 0.1209773275 | X31: ='Energy efficiency'!X69*1000/'Energy content'!$C$122 -> 14.17429747 | Y31: ='Energy efficiency'!Y69 -> 0.01881250293
A32: 30 | B32: F | C32: 16 | D32: Chain saw | E32: Processor | F32: Tower yarder | G32: Bundler | H32: WT | I32: residues | J32: plant | K32: 960 | L32: 10 | M32: =Emissions!X70/'Energy content'!$C$122 -> 4.68399132 | N32: =Damage!Y57 -> 0.031745 | O32: ='Contribution margin'!I70/'Energy content'!$C$122 -> 0.4520705464 | P32: =SUM('Contribution margin'!J70:M70)/'Energy content'!$C$122 -> 0.9498666667 | Q32: =SUM('Contribution margin'!N70:Q70)/'Energy content'!$C$122 -> 1.167573333 | R32: ='Contribution margin'!R70/'Energy content'!$C$122 -> 10.1877551 | S32: =SUM('Contribution margin'!S70:U70)/'Energy content'!$C$122 -> 2.118518519 | T32: =SUM('Contribution margin'!V70:X70)/'Energy content'!$C$122 -> 3.896038199 | U32: =SUM('Contribution margin'!Y70:Z70)/'Energy content'!$C$122 -> 0.4 | V32: ='Contribution margin'!AB70/'Energy content'!$C$122 -> -4.102804154 | W32: =Employment!X70/'Energy content'!$C$122 -> 0.1702590565 | X32: ='Energy efficiency'!X70*1000/'Energy content'!$C$122 -> 18.47632012 | Y32: ='Energy efficiency'!Y70 -> 0.02452226131
A33: 31 | D33: Chain saw | E33: Processor | F33: Tower yarder | H33: WT | I33: trees | J33: forest road | K33: 960 | L33: 10 | M33: =Emissions!X71/'Energy content'!$C$122 -> 5.646613075 | N33: =Damage!Y58 -> 0.2945 | O33: ='Contribution margin'!I71/'Energy content'!$C$122 -> 0.4520705464 | P33: =SUM('Contribution margin'!J71:M71)/'Energy content'!$C$122 -> 9.498666667 | Q33: =SUM('Contribution margin'!N71:Q71)/'Energy content'!$C$122 -> 11.67573333 | R33: ='Contribution margin'!R71/'Energy content'!$C$122 -> 0 | S33: =SUM('Contribution margin'!S71:U71)/'Energy content'!$C$122 -> 2.691764706 | T33: =SUM('Contribution margin'!V71:X71)/'Energy content'!$C$122 -> 1.313939617 | U33: =SUM('Contribution margin'!Y71:Z71)/'Energy content'!$C$122 -> 0.4 | V33: ='Contribution margin'!AB71/'Energy content'!$C$122 -> -10.96315666 | W33: =Employment!X71/'Energy content'!$C$122 -> 0.3380424116 | X33: ='Energy efficiency'!X71*1000/'Energy content'!$C$122 -> 22.48656432 | Y33: ='Energy efficiency'!Y71 -> 0.0298447636
A34: 32 | D34: Chain saw | E34: Processor | F34: Tower yarder | H34: WT | I34: trees | J34: terminal | K34: 960 | L34: 10 | M34: =Emissions!X72/'Energy content'!$C$122 -> 5.889729388 | N34: =Damage!Y59 -> 0.2945 | O34: ='Contribution margin'!I72/'Energy content'!$C$122 -> 0.4520705464 | P34: =SUM('Contribution margin'!J72:M72)/'Energy content'!$C$122 -> 9.498666667 | Q34: =SUM('Contribution margin'!N72:Q72)/'Energy content'!$C$122 -> 11.67573333 | R34: ='Contribution margin'!R72/'Energy content'!$C$122 -> 0 | S34: =SUM('Contribution margin'!S72:U72)/'Energy content'!$C$122 -> 2.691764706 | T34: =SUM('Contribution margin'!V72:X72)/'Energy content'!$C$122 -> 4.633924106 | U34: =SUM('Contribution margin'!Y72:Z72)/'Energy content'!$C$122 -> 1.6 | V34: ='Contribution margin'!AB72/'Energy content'!$C$122 -> -15.48314115 | W34: =Employment!X72/'Energy content'!$C$122 -> 0.3892036513 | X34: ='Energy efficiency'!X72*1000/'Energy content'!$C$122 -> 23.44429524 | Y34: ='Energy efficiency'!Y72 -> 0.03111588945
A35: 33 | D35: Chain saw | E35: Processor | F35: Tower yarder | H35: WT | I35: trees | J35: plant | K35: 960 | L35: 10 | M35: =Emissions!X73/'Energy content'!$C$122 -> 6.22851521 | N35: =Damage!Y60 -> 0.2945 | O35: ='Contribution margin'!I73/'Energy content'!$C$122 -> 0.4520705464 | P35: =SUM('Contribution margin'!J73:M73)/'Energy content'!$C$122 -> 9.498666667 | Q35: =SUM('Contribution margin'!N73:Q73)/'Energy content'!$C$122 -> 11.67573333 | R35: ='Contribution margin'!R73/'Energy content'!$C$122 -> 0 | S35: =SUM('Contribution margin'!S73:U73)/'Energy content'!$C$122 -> 2.691764706 | T35: =SUM('Contribution margin'!V73:X73)/'Energy content'!$C$122 -> 4.586350046 | U35: =SUM('Contribution margin'!Y73:Z73)/'Energy content'!$C$122 -> 0.4 | V35: ='Contribution margin'!AB73/'Energy content'!$C$122 -> -14.23556709 | W35: =Employment!X73/'Energy content'!$C$122 -> 0.402734612 | X35: ='Energy efficiency'!X73*1000/'Energy content'!$C$122 -> 24.77890606 | Y35: ='Energy efficiency'!Y73 -> 0.03288722027
A36: 34 | D36: Chain saw | F36: Skidder | H36: TL | I36: logs | J36: forest road | K36: 640 | L36: 230 | M36: =Emissions!X74/'Energy content'!$C$122 -> 2.467274983 | N36: =Damage!Y61 -> 0.2945 | O36: ='Contribution margin'!I74/'Energy content'!$C$122 -> 0.4520705464 | P36: =SUM('Contribution margin'!J74:M74)/'Energy content'!$C$122 -> 7.384 | Q36: =SUM('Contribution margin'!N74:Q74)/'Energy content'!$C$122 -> 3.605333333 | R36: ='Contribution margin'!R74/'Energy content'!$C$122 -> 0 | S36: =SUM('Contribution margin'!S74:U74)/'Energy content'!$C$122 -> 1.707462687 | T36: =SUM('Contribution margin'!V74:X74)/'Energy content'!$C$122 -> 1.313939617 | U36: =SUM('Contribution margin'!Y74:Z74)/'Energy content'!$C$122 -> 0.4 | V36: ='Contribution margin'!AB74/'Energy content'!$C$122 -> 0.2062120292 | W36: =Employment!X74/'Energy content'!$C$122 -> 0.2937403923 | X36: ='Energy efficiency'!X74*1000/'Energy content'!$C$122 -> 10.0830646 | Y36: ='Energy efficiency'!Y74 -> 0.01338251034
A37: 35 | D37: Chain saw | F37: Skidder | H37: TL | I37: logs | J37: terminal | K37: 640 | L37: 230 | M37: =Emissions!X75/'Energy content'!$C$122 -> 2.57899825 | N37: =Damage!Y62 -> 0.2945 | O37: ='Contribution margin'!I75/'Energy content'!$C$122 -> 0.4520705464 | P37: =SUM('Contribution margin'!J75:M75)/'Energy content'!$C$122 -> 7.384 | Q37: =SUM('Contribution margin'!N75:Q75)/'Energy content'!$C$122 -> 3.605333333 | R37: ='Contribution margin'!R75/'Energy content'!$C$122 -> 0 | S37: =SUM('Contribution margin'!S75:U75)/'Energy content'!$C$122 -> 1.707462687 | T37: =SUM('Contribution margin'!V75:X75)/'Energy content'!$C$122 -> 4.010305123 | U37: =SUM('Contribution margin'!Y75:Z75)/'Energy content'!$C$122 -> 1.6 | V37: ='Contribution margin'!AB75/'Energy content'!$C$122 -> -3.690153477 | W37: =Employment!X75/'Energy content'!$C$122 -> 0.326998404 | X37: ='Energy efficiency'!X75*1000/'Energy content'!$C$122 -> 10.52318656 | Y37: ='Energy efficiency'!Y75 -> 0.01396665186
A38: 36 | D38: Chain saw | F38: Skidder | H38: TL | I38: logs | J38: plant | K38: 640 | L38: 230 | M38: =Emissions!X76/'Energy content'!$C$122 -> 2.633099141 | N38: =Damage!Y63 -> 0.2945 | O38: ='Contribution margin'!I76/'Energy content'!$C$122 -> 0.4520705464 | P38: =SUM('Contribution margin'!J76:M76)/'Energy content'!$C$122 -> 7.384 | Q38: =SUM('Contribution margin'!N76:Q76)/'Energy content'!$C$122 -> 3.605333333 | R38: ='Contribution margin'!R76/'Energy content'!$C$122 -> 0 | S38: =SUM('Contribution margin'!S76:U76)/'Energy content'!$C$122 -> 1.707462687 | T38: =SUM('Contribution margin'!V76:X76)/'Energy content'!$C$122 -> 3.410674609 | U38: =SUM('Contribution margin'!Y76:Z76)/'Energy content'!$C$122 -> 0.4 | V38: ='Contribution margin'!AB76/'Energy content'!$C$122 -> -1.890522963 | W38: =Employment!X76/'Energy content'!$C$122 -> 0.3167627858 | X38: ='Energy efficiency'!X76*1000/'Energy content'!$C$122 -> 10.73631128 | Y38: ='Energy efficiency'!Y76 -> 0.01424951663
A39: 37 | B39: I | C39: 24 | D39: Chain saw | E39: Skidder | F39: Processor | H39: WT | I39: residues | J39: forest road | K39: 960 | L39: 230 | M39: =Emissions!X77/'Energy content'!$C$122 -> 2.79728156 | N39: =Damage!Y64 -> 0.031745 | O39: ='Contribution margin'!I77/'Energy content'!$C$122 -> 0.4520705464 | P39: =SUM('Contribution margin'!J77:M77)/'Energy content'!$C$122 -> 0.9498666667 | Q39: =SUM('Contribution margin'!N77:Q77)/'Energy content'!$C$122 -> 0.32448 | R39: ='Contribution margin'!R77/'Energy content'!$C$122 -> 0 | S39: =SUM('Contribution margin'!S77:U77)/'Energy content'!$C$122 -> 4.4 | T39: =SUM('Contribution margin'!V77:X77)/'Energy content'!$C$122 -> 1.313939617 | U39: =SUM('Contribution margin'!Y77:Z77)/'Energy content'!$C$122 -> 0.4 | V39: ='Contribution margin'!AB77/'Energy content'!$C$122 -> 7.228661382 | W39: =Employment!X77/'Energy content'!$C$122 -> 0.06217514162 | X39: ='Energy efficiency'!X77*1000/'Energy content'!$C$122 -> 11.04382712 | Y39: ='Energy efficiency'!Y77 -> 0.0146576598
A40: 38 | B40: I | C40: 25 | D40: Chain saw | E40: Skidder | F40: Processor | H40: WT | I40: residues | J40: terminal | K40: 960 | L40: 230 | M40: =Emissions!X78/'Energy content'!$C$122 -> 3.043067848 | N40: =Damage!Y65 -> 0.031745 | O40: ='Contribution margin'!I78/'Energy content'!$C$122 -> 0.4520705464 | P40: =SUM('Contribution margin'!J78:M78)/'Energy content'!$C$122 -> 0.9498666667 | Q40: =SUM('Contribution margin'!N78:Q78)/'Energy content'!$C$122 -> 0.32448 | R40: ='Contribution margin'!R78/'Energy content'!$C$122 -> 0 | S40: =SUM('Contribution margin'!S78:U78)/'Energy content'!$C$122 -> 4.4 | T40: =SUM('Contribution margin'!V78:X78)/'Energy content'!$C$122 -> 4.659781062 | U40: =SUM('Contribution margin'!Y78:Z78)/'Energy content'!$C$122 -> 1.6 | V40: ='Contribution margin'!AB78/'Energy content'!$C$122 -> 2.682819937 | W40: =Employment!X78/'Energy content'!$C$122 -> 0.1137341806 | X40: ='Energy efficiency'!X78*1000/'Energy content'!$C$122 -> 12.01207614 | Y40: ='Energy efficiency'!Y78 -> 0.01594274553
A41: 39 | B41: I | C41: 25 | D41: Chain saw | E41: Skidder | F41: Processor | G41: Bundler | H41: WT | I41: residues | J41: terminal | K41: 960 | L41: 230 | M41: =Emissions!X79/'Energy content'!$C$122 -> 4.35453792 | N41: =Damage!Y66 -> 0.031745 | O41: ='Contribution margin'!I79/'Energy content'!$C$122 -> 0.4520705464 | P41: =SUM('Contribution margin'!J79:M79)/'Energy content'!$C$122 -> 0.9498666667 | Q41: =SUM('Contribution margin'!N79:Q79)/'Energy content'!$C$122 -> 0.32448 | R41: ='Contribution margin'!R79/'Energy content'!$C$122 -> 10.1877551 | S41: =SUM('Contribution margin'!S79:U79)/'Energy content'!$C$122 -> 2.118518519 | T41: =SUM('Contribution margin'!V79:X79)/'Energy content'!$C$122 -> 4.420218828 | U41: =SUM('Contribution margin'!Y79:Z79)/'Energy content'!$C$122 -> 1.6 | V41: ='Contribution margin'!AB79/'Energy content'!$C$122 -> -4.983891449 | W41: =Employment!X79/'Energy content'!$C$122 -> 0.1722182177 | X41: ='Energy efficiency'!X79*1000/'Energy content'!$C$122 -> 17.17847339 | Y41: ='Energy efficiency'!Y79 -> 0.02279972477
A42: 40 | B42: I | C42: 26 | D42: Chain saw | E42: Skidder | F42: Processor | H42: WT | I42: residues | J42: plant | K42: 960 | L42: 230 | M42: =Emissions!X80/'Energy content'!$C$122 -> 3.387638616 | N42: =Damage!Y67 -> 0.031745 | O42: ='Contribution margin'!I80/'Energy content'!$C$122 -> 0.4520705464 | P42: =SUM('Contribution margin'!J80:M80)/'Energy content'!$C$122 -> 0.9498666667 | Q42: =SUM('Contribution margin'!N80:Q80)/'Energy content'!$C$122 -> 0.32448 | R42: ='Contribution margin'!R80/'Energy content'!$C$122 -> 0 | S42: =SUM('Contribution margin'!S80:U80)/'Energy content'!$C$122 -> 4.4 | T42: =SUM('Contribution margin'!V80:X80)/'Energy content'!$C$122 -> 5.686391329 | U42: =SUM('Contribution margin'!Y80:Z80)/'Energy content'!$C$122 -> 0.4 | V42: ='Contribution margin'!AB80/'Energy content'!$C$122 -> 2.85620967 | W42: =Employment!X80/'Energy content'!$C$122 -> 0.1136439942 | X42: ='Energy efficiency'!X80*1000/'Energy content'!$C$122 -> 13.36947613 | Y42: ='Energy efficiency'!Y80 -> 0.01774432275
A43: 41 | B43: I | C43: 27 | D43: Chain saw | E43: Skidder | F43: Processor | G43: Bundler | H43: WT | I43: residues | J43: plant | K43: 960 | L43: 230 | M43: =Emissions!X81/'Energy content'!$C$122 -> 4.47969052 | N43: =Damage!Y68 -> 0.031745 | O43: ='Contribution margin'!I81/'Energy content'!$C$122 -> 0.4520705464 | P43: =SUM('Contribution margin'!J81:M81)/'Energy content'!$C$122 -> 0.9498666667 | Q43: =SUM('Contribution margin'!N81:Q81)/'Energy content'!$C$122 -> 0.32448 | R43: ='Contribution margin'!R81/'Energy content'!$C$122 -> 10.1877551 | S43: =SUM('Contribution margin'!S81:U81)/'Energy content'!$C$122 -> 2.118518519 | T43: =SUM('Contribution margin'!V81:X81)/'Energy content'!$C$122 -> 3.896038199 | U43: =SUM('Contribution margin'!Y81:Z81)/'Energy content'!$C$122 -> 0.4 | V43: ='Contribution margin'!AB81/'Energy content'!$C$122 -> -3.259710821 | W43: =Employment!X81/'Energy content'!$C$122 -> 0.1629257231 | X43: ='Energy efficiency'!X81*1000/'Energy content'!$C$122 -> 17.67149878 | Y43: ='Energy efficiency'!Y81 -> 0.02345408113
A44: 42 | B44: J | C44: 28 | D44: Chain saw | E44: Skidder | F44: Processor | H44: WT | I44: trees | J44: forest road | K44: 960 | L44: 230 | M44: =Emissions!X82/'Energy content'!$C$122 -> 3.603605075 | N44: =Damage!Y69 -> 0.2945 | O44: ='Contribution margin'!I82/'Energy content'!$C$122 -> 0.4520705464 | P44: =SUM('Contribution margin'!J82:M82)/'Energy content'!$C$122 -> 9.498666667 | Q44: =SUM('Contribution margin'!N82:Q82)/'Energy content'!$C$122 -> 3.2448 | R44: ='Contribution margin'!R82/'Energy content'!$C$122 -> 0 | S44: =SUM('Contribution margin'!S82:U82)/'Energy content'!$C$122 -> 2.691764706 | T44: =SUM('Contribution margin'!V82:X82)/'Energy content'!$C$122 -> 1.313939617 | U44: =SUM('Contribution margin'!Y82:Z82)/'Energy content'!$C$122 -> 0.4 | V44: ='Contribution margin'!AB82/'Energy content'!$C$122 -> -2.532223323 | W44: =Employment!X82/'Energy content'!$C$122 -> 0.2647090783 | X44: ='Energy efficiency'!X82*1000/'Energy content'!$C$122 -> 14.43835098 | Y44: ='Energy efficiency'!Y82 -> 0.01916296175
A45: 43 | B45: J | C45: 29 | D45: Chain saw | E45: Skidder | F45: Processor | H45: WT | I45: trees | J45: terminal | K45: 960 | L45: 230 | M45: =Emissions!X83/'Energy content'!$C$122 -> 3.846721388 | N45: =Damage!Y70 -> 0.2945 | O45: ='Contribution margin'!I83/'Energy content'!$C$122 -> 0.4520705464 | P45: =SUM('Contribution margin'!J83:M83)/'Energy content'!$C$122 -> 9.498666667 | Q45: =SUM('Contribution margin'!N83:Q83)/'Energy content'!$C$122 -> 3.2448 | R45: ='Contribution margin'!R83/'Energy content'!$C$122 -> 0 | S45: =SUM('Contribution margin'!S83:U83)/'Energy content'!$C$122 -> 2.691764706 | T45: =SUM('Contribution margin'!V83:X83)/'Energy content'!$C$122 -> 4.633924106 | U45: =SUM('Contribution margin'!Y83:Z83)/'Energy content'!$C$122 -> 1.6 | V45: ='Contribution margin'!AB83/'Energy content'!$C$122 -> -7.052207813 | W45: =Employment!X83/'Energy content'!$C$122 -> 0.3158703179 | X45: ='Energy efficiency'!X83*1000/'Energy content'!$C$122 -> 15.39608191 | Y45: ='Energy efficiency'!Y83 -> 0.0204340876
A46: 44 | B46: J | C46: 30 | D46: Chain saw | E46: Skidder | F46: Processor | H46: WT | I46: trees | J46: plant | K46: 960 | L46: 230 | M46: =Emissions!X84/'Energy content'!$C$122 -> 4.18550721 | N46: =Damage!Y71 -> 0.2945 | O46: ='Contribution margin'!I84/'Energy content'!$C$122 -> 0.4520705464 | P46: =SUM('Contribution margin'!J84:M84)/'Energy content'!$C$122 -> 9.498666667 | Q46: =SUM('Contribution margin'!N84:Q84)/'Energy content'!$C$122 -> 3.2448 | R46: ='Contribution margin'!R84/'Energy content'!$C$122 -> 0 | S46: =SUM('Contribution margin'!S84:U84)/'Energy content'!$C$122 -> 2.691764706 | T46: =SUM('Contribution margin'!V84:X84)/'Energy content'!$C$122 -> 4.586350046 | U46: =SUM('Contribution margin'!Y84:Z84)/'Energy content'!$C$122 -> 0.4 | V46: ='Contribution margin'!AB84/'Energy content'!$C$122 -> -5.804633753 | W46: =Employment!X84/'Energy content'!$C$122 -> 0.3294012787 | X46: ='Energy efficiency'!X84*1000/'Energy content'!$C$122 -> 16.73069273 | Y46: ='Energy efficiency'!Y84 -> 0.02220541842
A47: 45 | D47: Feller-buncher | E47: Chipper | F47: Shuttle | H47: WT | I47: trees | J47: stand | K47: 960 | L47: 320 | M47: =Emissions!X85/'Energy content'!$C$122 -> 6.713125995 | N47: =Damage!Y72 -> 0.24652 | O47: ='Contribution margin'!I85/'Energy content'!$C$122 -> 0.4520705464 | P47: =SUM('Contribution margin'!J85:M85)/'Energy content'!$C$122 -> 9.324137931 | Q47: =SUM('Contribution margin'!N85:Q85)/'Energy content'!$C$122 -> 2.140818713 | R47: ='Contribution margin'!R85/'Energy content'!$C$122 -> 0 | S47: =SUM('Contribution margin'!S85:U85)/'Energy content'!$C$122 -> 9.482352941 | T47: =SUM('Contribution margin'!V85:X85)/'Energy content'!$C$122 -> 1.313939617 | U47: =SUM('Contribution margin'!Y85:Z85)/'Energy content'!$C$122 -> 0.4 | V47: ='Contribution margin'!AB85/'Energy content'!$C$122 -> -8.044301537 | W47: =Employment!X85/'Energy content'!$C$122 -> 0.1707918986 | X47: ='Energy efficiency'!X85*1000/'Energy content'!$C$122 -> 26.44564786 | Y47: ='Energy efficiency'!Y85 -> 0.03509936412
A48: 46 | D48: Feller-buncher | F48: Forwarder | H48: WT | I48: trees | J48: forest road | K48: 960 | L48: 300 | M48: =Emissions!X86/'Energy content'!$C$122 -> 5.135808017 | N48: =Damage!Y73 -> 0.136 | O48: ='Contribution margin'!I86/'Energy content'!$C$122 -> 0.4520705464 | P48: =SUM('Contribution margin'!J86:M86)/'Energy content'!$C$122 -> 9.324137931 | Q48: =SUM('Contribution margin'!N86:Q86)/'Energy content'!$C$122 -> 5.824 | R48: ='Contribution margin'!R86/'Energy content'!$C$122 -> 0 | S48: =SUM('Contribution margin'!S86:U86)/'Energy content'!$C$122 -> 2.691764706 | T48: =SUM('Contribution margin'!V86:X86)/'Energy content'!$C$122 -> 1.313939617 | U48: =SUM('Contribution margin'!Y86:Z86)/'Energy content'!$C$122 -> 0.4 | V48: ='Contribution margin'!AB86/'Energy content'!$C$122 -> -4.936894588 | W48: =Employment!X86/'Energy content'!$C$122 -> 0.1730685349 | X48: ='Energy efficiency'!X86*1000/'Energy content'!$C$122 -> 20.23197098 | Y48: ='Energy efficiency'!Y86 -> 0.02685240763
A49: 47 | D49: Feller-buncher | F49: Forwarder | H49: WT | I49: trees | J49: terminal | K49: 960 | L49: 300 | M49: =Emissions!X87/'Energy content'!$C$122 -> 5.37892433 | N49: =Damage!Y74 -> 0.136 | O49: ='Contribution margin'!I87/'Energy content'!$C$122 -> 0.4520705464 | P49: =SUM('Contribution margin'!J87:M87)/'Energy content'!$C$122 -> 9.324137931 | Q49: =SUM('Contribution margin'!N87:Q87)/'Energy content'!$C$122 -> 5.824 | R49: ='Contribution margin'!R87/'Energy content'!$C$122 -> 0 | S49: =SUM('Contribution margin'!S87:U87)/'Energy content'!$C$122 -> 2.691764706 | T49: =SUM('Contribution margin'!V87:X87)/'Energy content'!$C$122 -> 4.633924106 | U49: =SUM('Contribution margin'!Y87:Z87)/'Energy content'!$C$122 -> 1.6 | V49: ='Contribution margin'!AB87/'Energy content'!$C$122 -> -9.456879077 | W49: =Employment!X87/'Energy content'!$C$122 -> 0.2242297746 | X49: ='Energy efficiency'!X87*1000/'Energy content'!$C$122 -> 21.18970191 | Y49: ='Energy efficiency'!Y87 -> 0.02812353347
A50: 48 | D50: Feller-buncher | F50: Forwarder | H50: WT | I50: trees | J50: plant | K50: 960 | L50: 300 | M50: =Emissions!X88/'Energy content'!$C$122 -> 5.717710152 | N50: =Damage!Y75 -> 0.136 | O50: ='Contribution margin'!I88/'Energy content'!$C$122 -> 0.4520705464 | P50: =SUM('Contribution margin'!J88:M88)/'Energy content'!$C$122 -> 9.324137931 | Q50: =SUM('Contribution margin'!N88:Q88)/'Energy content'!$C$122 -> 5.824 | R50: ='Contribution margin'!R88/'Energy content'!$C$122 -> 0 | S50: =SUM('Contribution margin'!S88:U88)/'Energy content'!$C$122 -> 2.691764706 | T50: =SUM('Contribution margin'!V88:X88)/'Energy content'!$C$122 -> 4.586350046 | U50: =SUM('Contribution margin'!Y88:Z88)/'Energy content'!$C$122 -> 0.4 | V50: ='Contribution margin'!AB88/'Energy content'!$C$122 -> -8.209305017 | W50: =Employment!X88/'Energy content'!$C$122 -> 0.2377607353 | X50: ='Energy efficiency'!X88*1000/'Energy content'!$C$122 -> 22.52431272 | Y50: ='Energy efficiency'!Y88 -> 0.02989486429

Sheet Emissions (hidden)
B1: Productivity | C1: Fuel | D1: Consumption | E1: Consumption
B2: MWh/h | C2: l/h | D2: l/MWh | E2: kg CO2/MWh | G2: kg CO2/l
A3: Chain Saw - Felling | B3: ='2ca Felling and processing'!$C$13*'Energy content'!$D$123 -> 5.65088183 | C3: ='2ca Felling and processing'!C7 -> 0.53 | D3: =C3/B3 -> 0.09379067126 | E3: =D3*G3 -> 0.218532264 | G3: 2.33 | J3: 0 | K3: 1
A4: Chain Saw - Felling and Delimbing | B4: ='2ca Felling and processing'!$C$16*'Energy content'!$D$123 -> 3.767254553 | C4: ='2ca Felling and processing'!C7 -> 0.53 | D4: =C4/B4 -> 0.1406860069 | E4: =D4*G4 -> 0.327798396 | G4: 2.33 | J4: 1 | K4: 1
A5: Chain Saw - Felling and Processing | B5: ='2ca Felling and processing'!$C$19*'Energy content'!$D$123 -> 2.825440915 | C5: ='2ca Felling and processing'!C7 -> 0.53 | D5: 0.1875813425 | E5: 0.4370645281 | G5: 2.33 | J5: 2 | K5: 1
A6: Harvester | B6: ='2ca Felling and processing'!$C$39*'Energy content'!$D$123 -> 16.38755731 | C6: ='2ca Felling and processing'!C33 -> 15.6 | D6: 0.9519417512 | E6: 2.513126223 | G6: 2.64 | J6: 3 | K6: 1
A7: Feller buncher | B7: ='2ca Felling and processing'!$C$29*'Energy content'!$D$123 -> 10.9250382 | C7: ='2ca Felling and processing'!C23 -> 6.5 | D7: 0.5949635945 | E7: 1.57070389 | G7: 2.64 | J7: 4 | K7: 1
A8: Processor | B8: ='2ca Felling and processing'!$C$49*'Energy content'!$D$123 -> 18.83627277 | C8: ='2ca Felling and processing'!C43 -> 8 | D8: =C8/B8 -> 0.4247124736 | E8: =D8*G8 -> 1.12124093 | G8: 2.64 | J8: 5 | K8: 1
A9: Forwarder - logs | B9: ='2cb Extracting'!$C$14*'Energy content'!$D$123 -> 20.15481186 | C9: ='2cb Extracting'!$C$8 -> 11.1 | D9: 0.5507369693 | E9: 1.453945599 | G9: 2.64 | J9: 6 | K9: =6/7 -> 0.8571428571
A10: Forwarder - residues | B10: ='2cb Extracting'!$C$17*'Energy content'!$D$123 -> 5.65088183 | C10: ='2cb Extracting'!$C$8 -> 11.1 | D10: 1.96429519 | E10: 5.185739303 | G10: 2.64 | J10: 7 | K10: =5/7 -> 0.7142857143
A11: Forwarder - trees | B11: ='2cb Extracting'!$C$20*'Energy content'!$D$123 -> 10.35995002 | C11: ='2cb Extracting'!$C$8 -> 11.1 | D11: 1.07143374 | E11: 2.828585074 | G11: 2.64 | J11: 8 | K11: =4/7 -> 0.5714285714
A12: Skidder - TL | B12: ='2cb Extracting'!$C$30*'Energy content'!$D$123 -> 16.95264549 | C12: ='2cb Extracting'!$C$24 -> 7.32 | D12: 0.4317910148 | E12: 1.139928279 | G12: 2.64 | J12: 9 | K12: =3/7 -> 0.4285714286
A13: Skidder - WT | B13: ='2cb Extracting'!$C$33*'Energy content'!$D$123 -> 18.83627277 | C13: ='2cb Extracting'!$C$24 -> 7.32 | D13: 0.3886119134 | E13: 1.025935451 | G13: 2.64 | J13: 10 | K13: =2/7 -> 0.2857142857
A14: Tower yarder - TL | B14: ='2cb Extracting'!$C$46*'Energy content'!$D$123 -> 11.30176366 | C14: ='2cb Extracting'!$C$37 -> 16 | D14: 1.415708245 | E14: 3.737469768 | G14: 2.64 | J14: 11 | K14: =1/7 -> 0.1428571429
A15: Tower yarder - WT | B15: ='2cb Extracting'!$C$49*'Energy content'!$D$123 -> 11.30176366 | C15: ='2cb Extracting'!$C$37 -> 16 | D15: 1.415708245 | E15: 3.737469768 | G15: 2.64 | J15: 12 | K15: 0
A16: Shuttle | B16: ='2cb Extracting'!$C$59*'Energy content'!$D$123 -> 32.21002643 | C16: ='2cb Extracting'!$C$53 -> 10 | D16: 0.3104623345 | E16: 0.8196205631 | G16: 2.64 | J16: 13 | K16: 0
A17: Bundler | B17: ='2cc Bundling'!$C$13*'Energy content'!$D$123 -> 9.229773655 | C17: ='2cc Bundling'!C7 -> 11.5 | D17: 1.245967716 | E17: 3.28935477 | G17: 2.64 | J17: 14 | K17: 0
A18: Tractor & chipper - logs | B18: ='2cd Chipping'!$C$14*'Energy content'!$D$121 -> 50.48121101 | C18: ='2cd Chipping'!$C$8 -> 34.8 | D18: 0.6893653956 | E18: 1.819924644 | G18: 2.64 | J18: 15 | K18: 0
A19: Tractor & chipper - residues | B19: ='2cd Chipping'!$C$17*'Energy content'!$D$121 -> 19.58972368 | C19: ='2cd Chipping'!$C$8 -> 34.8 | D19: 1.776441596 | E19: 4.689805814 | G19: 2.64
A20: Tractor & chipper - bundles | B20: ='2cd Chipping'!$C$20*'Energy content'!$D$121 -> 40.68634917 | C20: ='2cd Chipping'!$C$8 -> 34.8 | D20: 0.8553237316 | E20: 2.258054651 | G20: 2.64
A21: Tractor & chipper - trees | B21: ='2cd Chipping'!$C$23*'Energy content'!$D$121 -> 21.85007641 | C21: ='2cd Chipping'!$C$8 -> 34.8 | D21: 1.592671776 | E21: 4.204653489 | G21: 2.64
A22: Chippertruck - logs | B22: ='2cd Chipping'!$C$33*'Energy content'!$D$121 -> 100.962422 | C22: ='2cd Chipping'!$C$27 -> 40.48 | D22: 0.4009412531 | E22: 1.058484908 | G22: 2.64
A23: Chippertruck - residues | B23: ='2cd Chipping'!$C$36*'Energy content'!$D$121 -> 39.17944735 | C23: ='2cd Chipping'!$C$27 -> 40.48 | D23: 1.033194768 | E23: 2.727634186 | G23: 2.64
A24: Chippertruck - bundles | B24: ='2cd Chipping'!$C$39*'Energy content'!$D$121 -> 81.37269835 | C24: ='2cd Chipping'!$C$27 -> 40.48 | D24: 0.4974641473 | E24: 1.313305349 | G24: 2.64
A25: Chippertruck - trees | B25: ='2cd Chipping'!$C$42*'Energy content'!$D$121 -> 64.0433274 | C25: ='2cd Chipping'!$C$27 -> 40.48 | D25: 0.6320720931 | E25: 1.668670326 | G25: 2.64
A26: Mobile chipper | B26: ='2cd Chipping'!$C$52*'Energy content'!$D$121 -> 12.80866548 | C26: ='2cd Chipping'!C46 -> 28 | D26: 2.186020085 | E26: 5.771093024 | G26: 2.64
B28: km | C28: l/km | D28: MWh | E28: kg CO2/MWh
A29: Pre-transport - logs | B29: ='2b Environment'!$D$10 -> 12 | C29: ='2ce Transporting'!B10/100 -> 0.4 | D29: =RH_MW_T -> 41.43283084 | E29: =C29*B29*G29/D29 -> 0.3058444172 | G29: 2.64
A30: Pre-transport - residues | B30: ='2b Environment'!$D$10 -> 12 | C30: ='2ce Transporting'!B21/100 -> 0.25 | D30: =SA_MW_T -> 16.37119932 | E30: =C30*B30*G30/D30 -> 0.483776408 | G30: 2.64
A31: Pre-transport - bundles | B31: ='2b Environment'!$D$10 -> 12 | C31: ='2ce Transporting'!B32/100 -> 0.4 | D31: =Bün_MW_T -> 36.27118034 | E31: =C31*B31*G31/D31 -> 0.3493682831 | G31: 2.64
A32: Pre-transport - trees | B32: ='2b Environment'!$D$10 -> 12 | C32: ='2ce Transporting'!B43/100 -> 0.25 | D32: ='Contribution margin'!G115 -> 16.49200322 | E32: 0.4802327463 | G32: 2.64
A33: Main transport - chips | B33: ='2b Environment'!D11 -> 30 | C33: ='2ce Transporting'!B54/100 -> 0.5 | D33: =HG_MW_T -> 67.02109212 | E33: =C33*B33*G33/D33 -> 0.5908587692 | G33: 2.64
A34: Direct transport - logs | B34: ='2b Environment'!$D$9 -> 38 | C34: =C29 -> 0.4 | D34: =RH_MW_T -> 41.43283084 | E34: 0.9685073211 | G34: 2.64
A35: Direct transport - residues | B35: ='2b Environment'!$D$9 -> 38 | C35: =C30 -> 0.25 | D35: =SA_MW_T -> 16.37119932 | E35: 1.531958625 | G35: 2.64
A36: Direct transport - bundles | B36: ='2b Environment'!$D$9 -> 38 | C36: =C31 -> 0.4 | D36: =Bün_MW_T -> 36.27118034 | E36: 1.106332896 | G36: 2.64
A37: Direct transport - trees | B37: ='2b Environment'!$D$9 -> 38 | C37: =C32 -> 0.25 | D37: ='Contribution margin'!G115 -> 16.49200322 | E37: 1.52073703 | G37: 2.64
A38: Direct transport - chips | B38: ='2b Environment'!$D$9 -> 38 | C38: =C33 -> 0.5 | D38: =HG_MW_T -> 67.02109212 | E38: 0.7484211077 | G38: 2.64
I40: Chain Saw | J40: Feller buncher | K40: Harvester | L40: Processor | M40: Forwarder | N40: Skidder | O40: Tower Yarder | P40: Shuttle | Q40: Bundler | R40: Tractor & Chipper | S40: Chippertruck | T40: Mobile chipper | U40: Pre-transport | V40: Main-transport | W40: Direct transport | X40: SUM
A41: 1 | B41: Chain Saw | D41: Forwarder | F41: CTL | G41: Logs | H41: Forest road | I41: =$E$5 -> 0.4370645281 | M41: =$E$9 -> 1.453945599 | S41: =$E$22 -> 1.058484908 | W41: =$E$38 -> 0.7484211077 | X41: =SUM(I41:W41) -> 3.697916143
A42: 2 | B42: Chain Saw | D42: Forwarder | F42: CTL | G42: Logs | H42: Terminal | I42: =$E$5 -> 0.4370645281 | M42: =$E$9 -> 1.453945599 | S42: =$E$22 -> 1.058484908 | U42: =$E$29 -> 0.3058444172 | V42: =$E$33 -> 0.5908587692 | X42: =SUM(I42:W42) -> 3.846198222
A43: 3 | B43: Chain Saw | D43: Forwarder | F43: CTL | G43: Logs | H43: Plant | I43: 0.4370645281 | M43: 1.453945599 | S43: 1.058484908 | W43: =$E$34 -> 0.9685073211 | X43: 3.918002356
A44: 4 | B44: Chain Saw | D44: Forwarder | F44: CTL | G44: Residues | H44: Forest road | I44: =$E$5*'2b Environment'!$D$23 -> 0.04370645281 | M44: =$E$10 -> 5.185739303 | S44: =$E$23 -> 2.727634186 | W44: =$E$38 -> 0.7484211077 | X44: 8.70550105
A45: 5 | B45: Chain Saw | D45: Forwarder | F45: CTL | G45: Residues | H45: Terminal | I45: =$E$5*'2b Environment'!$D$23 -> 0.04370645281 | M45: =$E$10 -> 5.185739303 | S45: =$E$23 -> 2.727634186 | U45: =$E$30 -> 0.483776408 | V45: =$E$33 -> 0.5908587692 | X45: 9.031715119
A46: 6 | B46: Chain Saw | D46: Forwarder | E46: Bundler | F46: CTL | G46: Residues | H46: Terminal | I46: =$E$5*'2b Environment'!$D$23 -> 0.04370645281 | M46: 5.185739303 | Q46: =$E$17 -> 3.28935477 | S46: =$E$24 -> 1.313305349 | U46: =$E$31 -> 0.3493682831 | V46: 0.5908587692 | X46: 10.77233293
A47: 7 | B47: Chain Saw | D47: Forwarder | F47: CTL | G47: Residues | H47: Plant | I47: =$E$5*'2b Environment'!$D$23 -> 0.04370645281 | M47: 5.185739303 | S47: =$E$23 -> 2.727634186 | W47: =$E$35 -> 1.531958625 | X47: 9.489038567
A48: 8 | B48: Chain Saw | D48: Forwarder | E48: Bundler | F48: CTL | G48: Residues | H48: Plant | I48: =$E$5*'2b Environment'!$D$23 -> 0.04370645281 | M48: 5.185739303 | Q48: =$E$17 -> 3.28935477 | S48: =$E$24 -> 1.313305349 | W48: =$E$36 -> 1.106332896 | X48: 10.93843877
A49: 9 | B49: Chain Saw | D49: Forwarder | F49: CTL | G49: Logs & residues | H49: Forest road | I49: =$E$3 -> 0.218532264 | M49: =$E$11 -> 2.828585074 | S49: =$E$25 -> 1.668670326 | W49: =$E$38 -> 0.7484211077 | X49: 5.464208772
A50: 10 | B50: Chain Saw | D50: Forwarder | F50: CTL | G50: Logs & residues | H50: Terminal | I50: =$E$3 -> 0.218532264 | M50: =$E$11 -> 2.828585074 | S50: =$E$25 -> 1.668670326 | U50: =$E$32 -> 0.4802327463 | V50: =$E$33 -> 0.5908587692 | X50: 5.78687918
A51: 11 | B51: Chain Saw | D51: Forwarder | F51: CTL | G51: Logs & residues | H51: Plant | I51: 0.218532264 | M51: 2.828585074 | S51: 1.668670326 | W51: =$E$37 -> 1.52073703 | X51: 6.236524694
A52: 12 | B52: Harvester | D52: Forwarder | F52: CTL | G52: Logs | H52: Forest road | K52: =$E$6 -> 2.513126223 | M52: =$E$9 -> 1.453945599 | S52: =$E$22 -> 1.058484908 | W52: =$E$38 -> 0.7484211077 | X52: 5.773977838
A53: 13 | B53: Harvester | D53: Forwarder | F53: CTL | G53: Logs | H53: Terminal | K53: =$E$6 -> 2.513126223 | M53: =$E$9 -> 1.453945599 | S53: 1.058484908 | U53: =$E$29 -> 0.3058444172 | V53: =$E$33 -> 0.5908587692 | X53: 5.922259917
A54: 14 | B54: Harvester | D54: Forwarder | F54: CTL | G54: Logs | H54: Plant | K54: 2.513126223 | M54: 1.453945599 | S54: 1.058484908 | W54: =$E$34 -> 0.9685073211 | X54: 5.994064051
A55: 15 | B55: Harvester | D55: Forwarder | F55: CTL | G55: Residues | H55: Forest road | K55: =$E$6*'2b Environment'!$D$23 -> 0.2513126223 | M55: =$E$10 -> 5.185739303 | S55: =$E$23 -> 2.727634186 | W55: =$E$38 -> 0.7484211077 | X55: 8.913107219
A56: 16 | B56: Harvester | D56: Forwarder | F56: CTL | G56: Residues | H56: Terminal | K56: =$E$6*'2b Environment'!$D$23 -> 0.2513126223 | M56: 5.185739303 | S56: =$E$23 -> 2.727634186 | U56: =$E$30 -> 0.483776408 | V56: =$E$33 -> 0.5908587692 | X56: 9.239321289
A57: 17 | B57: Harvester | D57: Forwarder | E57: Bundler | F57: CTL | G57: Residues | H57: Terminal | K57: =$E$6*'2b Environment'!$D$23 -> 0.2513126223 | M57: 5.185739303 | Q57: =$E$17 -> 3.28935477 | S57: =$E$24 -> 1.313305349 | U57: =$E$31 -> 0.3493682831 | V57: 0.5908587692 | X57: 10.9799391
A58: 18 | B58: Harvester | D58: Forwarder | F58: CTL | G58: Residues | H58: Plant | K58: =$E$6*'2b Environment'!$D$23 -> 0.2513126223 | M58: 5.185739303 | S58: =$E$23 -> 2.727634186 | W58: =$E$35 -> 1.531958625 | X58: 9.696644737
A59: 19 | B59: Harvester | D59: Forwarder | E59: Bundler | F59: CTL | G59: Residues | H59: Plant | K59: =$E$6*'2b Environment'!$D$23 -> 0.2513126223 | M59: 5.185739303 | Q59: =$E$17 -> 3.28935477 | S59: =$E$24 -> 1.313305349 | W59: =$E$36 -> 1.106332896 | X59: 11.14604494
A60: 20 | B60: Harvester | D60: Forwarder | F60: CTL | G60: Logs & residues | H60: Forest road | K60: 2.513126223 | M60: =$E$11 -> 2.828585074 | S60: =$E$25 -> 1.668670326 | W60: =$E$38 -> 0.7484211077 | X60: 7.758802731
A61: 21 | B61: Harvester | D61: Forwarder | F61: CTL | G61: Logs & residues | H61: Terminal | K61: 2.513126223 | M61: 2.828585074 | S61: 1.668670326 | U61: =$E$32 -> 0.4802327463 | V61: =$E$33 -> 0.5908587692 | X61: 8.081473139
A62: 22 | B62: Harvester | D62: Forwarder | F62: CTL | G62: Logs & residues | H62: Plant | K62: 2.513126223 | M62: 2.828585074 | S62: 1.668670326 | W62: =$E$37 -> 1.52073703 | X62: 8.531118653
A63: 23 | B63: Chain Saw | D63: Tower Yarder | F63: TL | G63: Logs | H63: Forest road | I63: =$E$4 -> 0.327798396 | O63: =$E$14 -> 3.737469768 | S63: =$E$22 -> 1.058484908 | W63: =$E$38 -> 0.7484211077 | X63: 5.87217418
A64: 24 | B64: Chain Saw | D64: Tower Yarder | F64: TL | G64: Logs | H64: Terminal | I64: =$E$4 -> 0.327798396 | O64: =$E$14 -> 3.737469768 | S64: 1.058484908 | U64: =$E$29 -> 0.3058444172 | V64: =$E$33 -> 0.5908587692 | X64: 6.020456258
A65: 25 | B65: Chain Saw | D65: Tower Yarder | F65: TL | G65: Logs | H65: Plant | I65: 0.327798396 | O65: 3.737469768 | S65: 1.058484908 | W65: =$E$34 -> 0.9685073211 | X65: 6.092260393
A66: 26 | B66: Chain Saw | C66: Processor | D66: Tower Yarder | F66: WT | G66: Residues | H66: Forest road | I66: =$E$3*'2b Environment'!$D$23 -> 0.0218532264 | L66: =$E$8*'2b Environment'!$D$23 -> 0.112124093 | O66: =$E$15*'2b Environment'!$D$23 -> 0.3737469768 | S66: =$E$23 -> 2.727634186 | W66: =$E$38 -> 0.7484211077 | X66: 3.98377959
A67: 27 | B67: Chain Saw | C67: Processor | D67: Tower Yarder | F67: WT | G67: Residues | H67: Terminal | I67: =$E$3*'2b Environment'!$D$23 -> 0.0218532264 | L67: =$E$8*'2b Environment'!$D$23 -> 0.112124093 | O67: =$E$15*'2b Environment'!$D$23 -> 0.3737469768 | S67: =$E$23 -> 2.727634186 | U67: =$E$30 -> 0.483776408 | V67: =$E$33 -> 0.5908587692 | X67: 4.30999366
A68: 28 | B68: Chain Saw | C68: Processor | D68: Tower Yarder | E68: Bundler | F68: WT | G68: Residues | H68: Terminal | I68: =$E$3*'2b Environment'!$D$23 -> 0.0218532264 | L68: =$E$8*'2b Environment'!$D$23 -> 0.112124093 | O68: =$E$15*'2b Environment'!$D$23 -> 0.3737469768 | Q68: =$E$17 -> 3.28935477 | S68: =$E$24 -> 1.313305349 | U68: =$E$31 -> 0.3493682831 | V68: 0.5908587692 | X68: 6.050611468
A69: 29 | B69: Chain Saw | C69: Processor | D69: Tower Yarder | F69: WT | G69: Residues | H69: Plant | I69: =$E$3*'2b Environment'!$D$23 -> 0.0218532264 | L69: =$E$8*'2b Environment'!$D$23 -> 0.112124093 | O69: =$E$15*'2b Environment'!$D$23 -> 0.3737469768 | S69: =$E$23 -> 2.727634186 | W69: =$E$35 -> 1.531958625 | X69: 4.767317108
A70: 30 | B70: Chain Saw | C70: Processor | D70: Tower Yarder | E70: Bundler | F70: WT | G70: Residues | H70: Plant | I70: =$E$3*'2b Environment'!$D$23 -> 0.0218532264 | L70: =$E$8*'2b Environment'!$D$23 -> 0.112124093 | O70: =$E$15*'2b Environment'!$D$23 -> 0.3737469768 | Q70: =$E$17 -> 3.28935477 | S70: =$E$24 -> 1.313305349 | W70: =$E$36 -> 1.106332896 | X70: 6.216717312
A71: 31 | B71: Chain Saw | C71: Processor | D71: Tower Yarder | F71: WT | G71: Logs & residues | H71: Forest road | I71: =$E$3 -> 0.218532264 | L71: =$E$8 -> 1.12124093 | O71: =$E$15 -> 3.737469768 | S71: =$E$25 -> 1.668670326 | W71: =$E$38 -> 0.7484211077 | X71: 7.494334396
A72: 32 | B72: Chain Saw | C72: Processor | D72: Tower Yarder | F72: WT | G72: Logs & residues | H72: Terminal | I72: 0.218532264 | L72: 1.12124093 | O72: 3.737469768 | S72: 1.668670326 | U72: =$E$32 -> 0.4802327463 | V72: =$E$33 -> 0.5908587692 | X72: 7.817004804
A73: 33 | B73: Chain Saw | C73: Processor | D73: Tower Yarder | F73: WT | G73: Logs & residues | H73: Plant | I73: 0.218532264 | L73: 1.12124093 | O73: 3.737469768 | S73: 1.668670326 | W73: =$E$37 -> 1.52073703 | X73: 8.266650318
A74: 34 | B74: Chain Saw | D74: Skidder | F74: TL | G74: Logs | H74: Forest road | I74: =$E$4 -> 0.327798396 | N74: =$E$12 -> 1.139928279 | S74: =$E$22 -> 1.058484908 | W74: =$E$38 -> 0.7484211077 | X74: 3.274632691
A75: 35 | B75: Chain Saw | D75: Skidder | F75: TL | G75: Logs | H75: Terminal | I75: 0.327798396 | N75: =$E$12 -> 1.139928279 | S75: 1.058484908 | U75: =$E$29 -> 0.3058444172 | V75: =$E$33 -> 0.5908587692 | X75: 3.42291477
A76: 36 | B76: Chain Saw | D76: Skidder | F76: TL | G76: Logs | H76: Plant | I76: 0.327798396 | N76: 1.139928279 | S76: 1.058484908 | W76: =$E$34 -> 0.9685073211 | X76: 3.494718904
A77: 37 | B77: Chain Saw | C77: Skidder | D77: Processor | F77: WT | G77: Residues | H77: Forest road | I77: =$E$3*'2b Environment'!$D$23 -> 0.0218532264 | L77: =$E$8*'2b Environment'!$D$23 -> 0.112124093 | N77: =$E$13*'2b Environment'!$D$23 -> 0.1025935451 | S77: =$E$23 -> 2.727634186 | W77: =$E$38 -> 0.7484211077 | X77: 3.712626159
A78: 38 | B78: Chain Saw | C78: Skidder | D78: Processor | F78: WT | G78: Residues | H78: Terminal | I78: =$E$3*'2b Environment'!$D$23 -> 0.0218532264 | L78: =$E$8*'2b Environment'!$D$23 -> 0.112124093 | N78: =$E$13*'2b Environment'!$D$23 -> 0.1025935451 | S78: =$E$23 -> 2.727634186 | U78: =$E$30 -> 0.483776408 | V78: =$E$33 -> 0.5908587692 | X78: 4.038840228
A79: 39 | B79: Chain Saw | C79: Skidder | D79: Processor | E79: Bundler | F79: WT | G79: Residues | H79: Terminal | I79: =$E$3*'2b Environment'!$D$23 -> 0.0218532264 | L79: =$E$8*'2b Environment'!$D$23 -> 0.112124093 | N79: =$E$13*'2b Environment'!$D$23 -> 0.1025935451 | Q79: =$E$17 -> 3.28935477 | S79: =$E$24 -> 1.313305349 | U79: =$E$31 -> 0.3493682831 | V79: 0.5908587692 | X79: 5.779458036
A80: 40 | B80: Chain Saw | C80: Skidder | D80: Processor | F80: WT | G80: Residues | H80: Plant | I80: =$E$3*'2b Environment'!$D$23 -> 0.0218532264 | L80: =$E$8*'2b Environment'!$D$23 -> 0.112124093 | N80: =$E$13*'2b Environment'!$D$23 -> 0.1025935451 | S80: =$E$23 -> 2.727634186 | W80: =$E$35 -> 1.531958625 | X80: 4.496163676
A81: 41 | B81: Chain Saw | C81: Skidder | D81: Processor | E81: Bundler | F81: WT | G81: Residues | H81: Plant | I81: =$E$3*'2b Environment'!$D$23 -> 0.0218532264 | L81: =$E$8*'2b Environment'!$D$23 -> 0.112124093 | N81: =$E$13*'2b Environment'!$D$23 -> 0.1025935451 | Q81: =$E$17 -> 3.28935477 | S81: =$E$24 -> 1.313305349 | W81: =$E$36 -> 1.106332896 | X81: 5.94556388
A82: 42 | B82: Chain Saw | C82: Skidder | D82: Processor | F82: WT | G82: Logs & residues | H82: Forest road | I82: =$E$3 -> 0.218532264 | L82: =$E$8 -> 1.12124093 | N82: =$E$13 -> 1.025935451 | S82: =$E$25 -> 1.668670326 | W82: =$E$38 -> 0.7484211077 | X82: 4.782800079
A83: 43 | B83: Chain Saw | C83: Skidder | D83: Processor | F83: WT | G83: Logs & residues | H83: Terminal | I83: 0.218532264 | L83: 1.12124093 | N83: 1.025935451 | S83: 1.668670326 | U83: =$E$32 -> 0.4802327463 | V83: =$E$33 -> 0.5908587692 | X83: 5.105470487
A84: 44 | B84: Chain Saw | C84: Skidder | D84: Processor | F84: WT | G84: Logs & residues | H84: Plant | I84: 0.218532264 | L84: 1.12124093 | N84: 1.025935451 | S84: 1.668670326 | W84: =$E$37 -> 1.52073703 | X84: 5.555116001
A85: 45 | B85: Feller-buncher | C85: Chipper | D85: Shuttle | F85: CHIPS | G85: Logs & residues | H85: Stand | J85: =$E$7 -> 1.57070389 | P85: =E16 -> 0.8196205631 | T85: =E26 -> 5.771093024 | W85: =$E$38 -> 0.7484211077 | X85: 8.909838584
A86: 46 | B86: Feller-buncher | D86: Forwarder | F86: WT | G86: Logs & residues | H86: Forest road | J86: =$E$7 -> 1.57070389 | M86: =$E$11 -> 2.828585074 | S86: =$E$25 -> 1.668670326 | W86: =$E$38 -> 0.7484211077 | X86: 6.816380397
A87: 47 | B87: Feller-buncher | D87: Forwarder | F87: WT | G87: Logs & residues | H87: Terminal | J87: 1.57070389 | M87: 2.828585074 | S87: 1.668670326 | U87: =$E$32 -> 0.4802327463 | V87: =$E$33 -> 0.5908587692 | X87: 7.139050805
A88: 48 | B88: Feller-buncher | D88: Forwarder | F88: WT | G88: Logs & residues | H88: Plant | J88: 1.57070389 | M88: 2.828585074 | S88: 1.668670326 | W88: =$E$37 -> 1.52073703 | X88: 7.58869632

Sheet Contribution margin (hidden)
B1: Costs
B2: €/MWh
A3: Chain Saw - Felling | B3: ='2ca Felling and processing'!F13/'Energy content'!$D$123 -> 6.533493553 | E3: =B3 -> 6.533493553
A4: Chain Saw - Felling and Delimbing | B4: ='2ca Felling and processing'!F16/'Energy content'!$D$123 -> 9.800240329 | E4: =B4 -> 9.800240329 | M4: -15 | N4: 0
A5: Chain Saw - Felling and Processing | B5: ='2ca Felling and processing'!F19/'Energy content'!$D$123 -> 13.06698711 | E5: 13.06698711 | M5: -10 | N5: 0
A6: Harvester | B6: ='2ca Felling and processing'!F39/'Energy content'!$D$123 -> 6.473203908 | E6: 6.473203908 | M6: -5 | N6: 0.25
A7: Feller buncher | B7: ='2ca Felling and processing'!F29/'Energy content'!$D$123 -> 12.37524277 | E7: 12.37524277 | M7: 0 | N7: 0.5
A8: Processor | B8: ='2ca Felling and processing'!F49/'Energy content'!$D$123 -> 6.073388373 | E8: 6.073388373 | M8: 0 | N8: 0.5
A9: Forwarder - logs | B9: ='2cb Extracting'!F14/'Energy content'!$D$123 -> 3.97324473 | E9: 3.97324473 | M9: 5 | N9: 0.75
A10: Forwarder - residues | B10: ='2cb Extracting'!F17/'Energy content'!$D$123 -> 14.17123954 | E10: 14.17123954 | M10: 10 | N10: 1
A11: Forwarder - trees | B11: ='2cb Extracting'!F20/'Energy content'!$D$123 -> 7.72976702 | E11: 7.72976702 | M11: 15 | N11: 1
A12: Skidder - TL | B12: ='2cb Extracting'!F30/'Energy content'!$D$123 -> 4.785093869 | E12: 4.785093869
A13: Skidder - WT | B13: ='2cb Extracting'!F33/'Energy content'!$D$123 -> 4.306584482 | E13: 4.306584482
A14: Tower yarder - TL | B14: ='2cb Extracting'!F46/'Energy content'!$D$123 -> 15.49634245 | E14: 15.49634245
A15: Tower yarder - WT | B15: ='2cb Extracting'!F49/'Energy content'!$D$123 -> 15.49634245 | E15: 15.49634245
A16: Shuttle | B16: ='2cb Extracting'!F59/'Energy content'!$D$123 -> 2.841351285 | E16: 2.841351285
A17: Bundler | B17: ='2cc Bundling'!F13/'Energy content'!$D$123 -> 13.52145834 | E17: 13.52145834
A18: Tractor & chipper - logs | B18: ='2cd Chipping'!F14/'Energy content'!$D$121 -> 2.884241425 | E18: 2.884241425
A19: Tractor & chipper - residues | B19: ='2cd Chipping'!F17/'Energy content'!$D$121 -> 7.432468288 | E19: 7.432468288
A20: Tractor & chipper - bundles | B20: ='2cd Chipping'!F20/'Energy content'!$D$121 -> 3.578595843 | E20: 3.578595843
A21: Tractor & chipper - trees | B21: ='2cd Chipping'!F23/'Energy content'!$D$121 -> 6.663592259 | E21: 6.663592259
A22: Chippertruck - logs | B22: ='2cd Chipping'!F33/'Energy content'!$D$121 -> 2.266189691 | E22: 2.266189691
A23: Chippertruck - residues | B23: ='2cd Chipping'!F36/'Energy content'!$D$121 -> 5.839796512 | E23: 5.839796512
A24: Chippertruck - bundles | B24: ='2cd Chipping'!F39/'Energy content'!$D$121 -> 2.811753876 | E24: 2.811753876
A25: Chippertruck - trees | B25: ='2cd Chipping'!F42/'Energy content'!$D$121 -> 3.572581396 | E25: 3.572581396
A26: Mobile chipper | B26: ='2cd Chipping'!F52/'Energy content'!$D$121 -> 12.58522992 | E26: 12.58522992
A29: Pre-transport - logs | B29: =VT_ERH -> 3.823055215 | E29: 3.823055215
A30: Pre-transport - residues | B30: =VT_SA -> 4.68505688 | E30: 4.68505688
A31: Pre-transport - bundles | B31: =VT_Bün -> 4.367103539 | E31: 4.367103539
A32: Pre-transport - trees | B32: =E122 -> 4.650738844 | E32: 4.650738844
A33: Main transport - chips | B33: =HT_HG -> 1.499527937 | E33: 1.499527937
A34: Direct transport - logs | B34: =DIR_ERH -> 4.526737656 | E34: 4.526737656
A35: Direct transport - residues | B35: =DIR_SA -> 7.547129148 | E35: 7.547129148
A36: Direct transport - bundles | B36: =DIR_Bün -> 5.170925065 | E36: 5.170925065
A37: Direct transport - trees | B37: =G122 -> 6.087125228 | E37: 6.087125228
A38: Direct transport - chips | B38: =DIR_HG -> 1.743895453 | E38: 1.743895453
I40: Purchase | J40: Chain Saw | K40: Feller buncher | L40: Harvester | M40: Processor | N40: Forwarder | O40: Skidder | P40: Tower Yarder | Q40: Shuttle | R40: Bundler | S40: Tractor & Chipper | T40: Chippertruck | U40: Mobile chipper | V40: Pre-transport | W40: Main-transport | X40: Direct transport | Y40: Storage Terminal | Z40: Storage Plant | AA40: SUM | AB40: Contribution margin
A41: 1 | B41: Chain Saw | D41: Forwarder | F41: CTL | G41: Logs | H41: Forest road | I41: ='2b Environment'!$D$25/2.5 -> 0.6 | J41: =$E$5 -> 13.06698711 | N41: =$E$9 -> 3.97324473 | T41: =$E$22 -> 2.266189691 | X41: =$E$38 -> 1.743895453 | Z41: ='2b Environment'!$D$21/'Energy content'!$D$123 -> 0.530890592 | AA41: =SUM(I41:Z41) -> 22.18120757 | AB41: ='2b Environment'!$D$29-'Contribution margin'!AA41 -> -2.181207571
A42: 2 | B42: Chain Saw | D42: Forwarder | F42: CTL | G42: Logs | H42: Terminal | I42: ='2b Environment'!$D$25/2.5 -> 0.6 | J42: =$E$5 -> 13.06698711 | N42: =$E$9 -> 3.97324473 | T42: =$E$22 -> 2.266189691 | V42: =$E$29 -> 3.823055215 | W42: =$E$33 -> 1.499527937 | Y42: ='2b Environment'!$D$20/'Energy content'!$D$123 -> 1.592671776 | Z42: ='2b Environment'!$D$21/'Energy content'!$D$123 -> 0.530890592 | AA42: =SUM(I42:Z42) -> 27.35256705 | AB42: ='2b Environment'!$D$29-'Contribution margin'!AA42 -> -7.352567046
A43: 3 | B43: Chain Saw | D43: Forwarder | F43: CTL | G43: Logs | H43: Plant | I43: ='2b Environment'!$D$25/2.5 -> 0.6 | J43: 13.06698711 | N43: 3.97324473 | T43: 2.266189691 | X43: =$E$34 -> 4.526737656 | Z43: ='2b Environment'!$D$21/'Energy content'!$D$123 -> 0.530890592 | AA43: 24.96404977 | AB43: ='2b Environment'!$D$29-'Contribution margin'!AA43 -> -4.964049774
A44: 4 | B44: Chain Saw | D44: Forwarder | F44: CTL | G44: Residues | H44: Forest road | I44: ='2b Environment'!$D$25/2.5 -> 0.6 | J44: =$E$5*'2b Environment'!$D$23 -> 1.306698711 | N44: =$E$10 -> 14.17123954 | T44: =$E$23 -> 5.839796512 | X44: =$E$38 -> 1.743895453 | Z44: ='2b Environment'!$D$21/'Energy content'!$D$123 -> 0.530890592 | AA44: 24.1925208 | AB44: ='2b Environment'!$D$29-'Contribution margin'!AA44 -> -4.192520804
A45: 5 | B45: Chain Saw | D45: Forwarder | F45: CTL | G45: Residues | H45: Terminal | I45: ='2b Environment'!$D$25/2.5 -> 0.6 | J45: =$E$5*'2b Environment'!$D$23 -> 1.306698711 | N45: =$E$10 -> 14.17123954 | T45: =$E$23 -> 5.839796512 | V45: =$E$30 -> 4.68505688 | W45: =$E$33 -> 1.499527937 | Y45: ='2b Environment'!$D$20/'Energy content'!$D$123 -> 1.592671776 | Z45: ='2b Environment'!$D$21/'Energy content'!$D$123 -> 0.530890592 | AA45: 30.22588194 | AB45: ='2b Environment'!$D$29-'Contribution margin'!AA45 -> -10.22588194
A46: 6 | B46: Chain Saw | D46: Forwarder | E46: Bundler | F46: CTL | G46: Residues | H46: Terminal | I46: ='2b Environment'!$D$25/2.5 -> 0.6 | J46: =$E$5*'2b Environment'!$D$23 -> 1.306698711 | N46: 14.17123954 | R46: =$E$17 -> 13.52145834 | T46: =$E$24 -> 2.811753876 | V46: =$E$31 -> 4.367103539 | W46: 1.499527937 | Y46: ='2b Environment'!$D$20/'Energy content'!$D$123 -> 1.592671776 | Z46: ='2b Environment'!$D$21/'Energy content'!$D$123 -> 0.530890592 | AA46: 40.40134431 | AB46: ='2b Environment'!$D$29-'Contribution margin'!AA46 -> -20.40134431
A47: 7 | B47: Chain Saw | D47: Forwarder | F47: CTL | G47: Residues | H47: Plant | I47: ='2b Environment'!$D$25/2.5 -> 0.6 | J47: =$E$5*'2b Environment'!$D$23 -> 1.306698711 | N47: 14.17123954 | T47: =$E$23 -> 5.839796512 | X47: =$E$35 -> 7.547129148 | Z47: ='2b Environment'!$D$21/'Energy content'!$D$123 -> 0.530890592 | AA47: 29.9957545 | AB47: ='2b Environment'!$D$29-'Contribution margin'!AA47 -> -9.995754499
A48: 8 | B48: Chain Saw | D48: Forwarder | E48: Bundler | F48: CTL | G48: Residues | H48: Plant | I48: ='2b Environment'!$D$25/2.5 -> 0.6 | J48: =$E$5*'2b Environment'!$D$23 -> 1.306698711 | N48: 14.17123954 | R48: =$E$17 -> 13.52145834 | T48: =$E$24 -> 2.811753876 | X48: =$E$36 -> 5.170925065 | Z48: ='2b Environment'!$D$21/'Energy content'!$D$123 -> 0.530890592 | AA48: 38.11296612 | AB48: ='2b Environment'!$D$29-'Contribution margin'!AA48 -> -18.11296612
A49: 9 | B49: Chain Saw | D49: Forwarder | F49: CTL | G49: Logs & residues | H49: Forest road | I49: ='2b Environment'!$D$25/2.5 -> 0.6 | J49: =$E$3 -> 6.533493553 | N49: =$E$11 -> 7.72976702 | T49: =$E$25 -> 3.572581396 | X49: =$E$38 -> 1.743895453 | Z49: ='2b Environment'!$D$21/'Energy content'!$D$123 -> 0.530890592 | AA49: 20.71062801 | AB49: ='2b Environment'!$D$29-'Contribution margin'!AA49 -> -0.7106280129
A50: 10 | B50: Chain Saw | D50: Forwarder | F50: CTL | G50: Logs & residues | H50: Terminal | I50: ='2b Environment'!$D$25/2.5 -> 0.6 | J50: =$E$3 -> 6.533493553 | N50: =$E$11 -> 7.72976702 | T50: =$E$25 -> 3.572581396 | V50: =$E$32 -> 4.650738844 | W50: =$E$33 -> 1.499527937 | Y50: ='2b Environment'!$D$20/'Energy content'!$D$123 -> 1.592671776 | Z50: ='2b Environment'!$D$21/'Energy content'!$D$123 -> 0.530890592 | AA50: 26.70967112 | AB50: ='2b Environment'!$D$29-'Contribution margin'!AA50 -> -6.709671117
A51: 11 | B51: Chain Saw | D51: Forwarder | F51: CTL | G51: Logs & residues | H51: Plant | I51: ='2b Environment'!$D$25/2.5 -> 0.6 | J51: 6.533493553 | N51: 7.72976702 | T51: 3.572581396 | X51: =$E$37 -> 6.087125228 | Z51: ='2b Environment'!$D$21/'Energy content'!$D$123 -> 0.530890592 | AA51: 25.05385779 | AB51: ='2b Environment'!$D$29-'Contribution margin'!AA51 -> -5.053857789
A52: 12 | B52: Harvester | D52: Forwarder | F52: CTL | G52: Logs | H52: Forest road | I52: ='2b Environment'!$D$25/2.5 -> 0.6 | L52: =$E$6 -> 6.473203908 | N52: =$E$9 -> 3.97324473 | T52: =$E$22 -> 2.266189691 | X52: =$E$38 -> 1.743895453 | Z52: ='2b Environment'!$D$21/'Energy content'!$D$123 -> 0.530890592 | AA52: 15.58742437 | AB52: ='2b Environment'!$D$29-'Contribution margin'!AA52 -> 4.412575626
A53: 13 | B53: Harvester | D53: Forwarder | F53: CTL | G53: Logs | H53: Terminal | I53: ='2b Environment'!$D$25/2.5 -> 0.6 | L53: =$E$6 -> 6.473203908 | N53: =$E$9 -> 3.97324473 | T53: 2.266189691 | V53: =$E$29 -> 3.823055215 | W53: =$E$33 -> 1.499527937 | Y53: ='2b Environment'!$D$20/'Energy content'!$D$123 -> 1.592671776 | Z53: ='2b Environment'!$D$21/'Energy content'!$D$123 -> 0.530890592 | AA53: 20.75878385 | AB53: ='2b Environment'!$D$29-'Contribution margin'!AA53 -> -0.7587838495
A54: 14 | B54: Harvester | D54: Forwarder | F54: CTL | G54: Logs | H54: Plant | I54: ='2b Environment'!$D$25/2.5 -> 0.6 | L54: 6.473203908 | N54: 3.97324473 | T54: 2.266189691 | X54: =$E$34 -> 4.526737656 | Z54: ='2b Environment'!$D$21/'Energy content'!$D$123 -> 0.530890592 | AA54: 18.37026658 | AB54: ='2b Environment'!$D$29-'Contribution margin'!AA54 -> 1.629733422
A55: 15 | B55: Harvester | D55: Forwarder | F55: CTL | G55: Residues | H55: Forest road | I55: ='2b Environment'!$D$25/2.5 -> 0.6 | L55: =$E$6*'2b Environment'!$D$23 -> 0.6473203908 | N55: =$E$10 -> 14.17123954 | T55: =$E$23 -> 5.839796512 | X55: =$E$38 -> 1.743895453 | Z55: ='2b Environment'!$D$21/'Energy content'!$D$123 -> 0.530890592 | AA55: 23.53314248 | AB55: ='2b Environment'!$D$29-'Contribution margin'!AA55 -> -3.533142484
A56: 16 | B56: Harvester | D56: Forwarder | F56: CTL | G56: Residues | H56: Terminal | I56: ='2b Environment'!$D$25/2.5 -> 0.6 | L56: =$E$6*'2b Environment'!$D$23 -> 0.6473203908 | N56: 14.17123954 | T56: =$E$23 -> 5.839796512 | V56: =$E$30 -> 4.68505688 | W56: =$E$33 -> 1.499527937 | Y56: ='2b Environment'!$D$20/'Energy content'!$D$123 -> 1.592671776 | Z56: ='2b Environment'!$D$21/'Energy content'!$D$123 -> 0.530890592 | AA56: 29.56650362 | AB56: ='2b Environment'!$D$29-'Contribution margin'!AA56 -> -9.566503625
A57: 17 | B57: Harvester | D57: Forwarder | E57: Bundler | F57: CTL | G57: Residues | H57: Terminal | I57: ='2b Environment'!$D$25/2.5 -> 0.6 | L57: =$E$6*'2b Environment'!$D$23 -> 0.6473203908 | N57: 14.17123954 | R57: =$E$17 -> 13.52145834 | T57: =$E$24 -> 2.811753876 | V57: =$E$31 -> 4.367103539 | W57: 1.499527937 | Y57: ='2b Environment'!$D$20/'Energy content'!$D$123 -> 1.592671776 | Z57: ='2b Environment'!$D$21/'Energy content'!$D$123 -> 0.530890592 | AA57: 39.74196599 | AB57: ='2b Environment'!$D$29-'Contribution margin'!AA57 -> -19.74196599
A58: 18 | B58: Harvester | D58: Forwarder | F58: CTL | G58: Residues | H58: Plant | I58: ='2b Environment'!$D$25/2.5 -> 0.6 | L58: =$E$6*'2b Environment'!$D$23 -> 0.6473203908 | N58: 14.17123954 | T58: =$E$23 -> 5.839796512 | X58: =$E$35 -> 7.547129148 | Z58: ='2b Environment'!$D$21/'Energy content'!$D$123 -> 0.530890592 | AA58: 29.33637618 | AB58: ='2b Environment'!$D$29-'Contribution margin'!AA58 -> -9.336376179
A59: 19 | B59: Harvester | D59: Forwarder | E59: Bundler | F59: CTL | G59: Residues | H59: Plant | I59: ='2b Environment'!$D$25/2.5 -> 0.6 | L59: =$E$6*'2b Environment'!$D$23 -> 0.6473203908 | N59: 14.17123954 | R59: =$E$17 -> 13.52145834 | T59: =$E$24 -> 2.811753876 | X59: =$E$36 -> 5.170925065 | Z59: ='2b Environment'!$D$21/'Energy content'!$D$123 -> 0.530890592 | AA59: 37.4535878 | AB59: ='2b Environment'!$D$29-'Contribution margin'!AA59 -> -17.4535878
A60: 20 | B60: Harvester | D60: Forwarder | F60: CTL | G60: Logs & residues | H60: Forest road | I60: ='2b Environment'!$D$25/2.5 -> 0.6 | L60: 6.473203908 | N60: =$E$11 -> 7.72976702 | T60: =$E$25 -> 3.572581396 | X60: =$E$38 -> 1.743895453 | Z60: ='2b Environment'!$D$21/'Energy content'!$D$123 -> 0.530890592 | AA60: 20.65033837 | AB60: ='2b Environment'!$D$29-'Contribution margin'!AA60 -> -0.6503383686
A61: 21 | B61: Harvester | D61: Forwarder | F61: CTL | G61: Logs & residues | H61: Terminal | I61: ='2b Environment'!$D$25/2.5 -> 0.6 | L61: 6.473203908 | N61: 7.72976702 | T61: 3.572581396 | V61: =$E$32 -> 4.650738844 | W61: =$E$33 -> 1.499527937 | Y61: ='2b Environment'!$D$20/'Energy content'!$D$123 -> 1.592671776 | Z61: ='2b Environment'!$D$21/'Energy content'!$D$123 -> 0.530890592 | AA61: 26.64938147 | AB61: ='2b Environment'!$D$29-'Contribution margin'!AA61 -> -6.649381473
A62: 22 | B62: Harvester | D62: Forwarder | F62: CTL | G62: Logs & residues | H62: Plant | I62: ='2b Environment'!$D$25/2.5 -> 0.6 | L62: 6.473203908 | N62: 7.72976702 | T62: 3.572581396 | X62: =$E$37 -> 6.087125228 | Z62: ='2b Environment'!$D$21/'Energy content'!$D$123 -> 0.530890592 | AA62: 24.99356814 | AB62: ='2b Environment'!$D$29-'Contribution margin'!AA62 -> -4.993568144
A63: 23 | B63: Chain Saw | D63: Tower Yarder | F63: TL | G63: Logs | H63: Forest road | I63: ='2b Environment'!$D$25/2.5 -> 0.6 | J63: =$E$4 -> 9.800240329 | P63: =$E$14 -> 15.49634245 | T63: =$E$22 -> 2.266189691 | X63: =$E$38 -> 1.743895453 | Z63: ='2b Environment'!$D$21/'Energy content'!$D$123 -> 0.530890592 | AA63: 30.43755852 | AB63: ='2b Environment'!$D$29-'Contribution margin'!AA63 -> -10.43755852
A64: 24 | B64: Chain Saw | D64: Tower Yarder | F64: TL | G64: Logs | H64: Terminal | I64: ='2b Environment'!$D$25/2.5 -> 0.6 | J64: =$E$4 -> 9.800240329 | P64: =$E$14 -> 15.49634245 | T64: 2.266189691 | V64: =$E$29 -> 3.823055215 | W64: =$E$33 -> 1.499527937 | Y64: ='2b Environment'!$D$20/'Energy content'!$D$123 -> 1.592671776 | Z64: ='2b Environment'!$D$21/'Energy content'!$D$123 -> 0.530890592 | AA64: 35.60891799 | AB64: ='2b Environment'!$D$29-'Contribution margin'!AA64 -> -15.60891799
A65: 25 | B65: Chain Saw | D65: Tower Yarder | F65: TL | G65: Logs | H65: Plant | I65: ='2b Environment'!$D$25/2.5 -> 0.6 | J65: 9.800240329 | P65: 15.49634245 | T65: 2.266189691 | X65: =$E$34 -> 4.526737656 | Z65: ='2b Environment'!$D$21/'Energy content'!$D$123 -> 0.530890592 | AA65: 33.22040072 | AB65: ='2b Environment'!$D$29-'Contribution margin'!AA65 -> -13.22040072
A66: 26 | B66: Chain Saw | C66: Processor | D66: Tower Yarder | F66: WT | G66: Residues | H66: Forest road | I66: ='2b Environment'!$D$25/2.5 -> 0.6 | J66: =$E$3*'2b Environment'!$D$23 -> 0.6533493553 | M66: =$E$8*'2b Environment'!$D$23 -> 0.6073388373 | P66: =$E$15*'2b Environment'!$D$23 -> 1.549634245 | T66: =$E$23 -> 5.839796512 | X66: =$E$38 -> 1.743895453 | Z66: ='2b Environment'!$D$21/'Energy content'!$D$123 -> 0.530890592 | AA66: 11.52490499 | AB66: ='2b Environment'!$D$29-'Contribution margin'!AA66 -> 8.475095005
A67: 27 | B67: Chain Saw | C67: Processor | D67: Tower Yarder | F67: WT | G67: Residues | H67: Terminal | I67: ='2b Environment'!$D$25/2.5 -> 0.6 | J67: =$E$3*'2b Environment'!$D$23 -> 0.6533493553 | M67: =$E$8*'2b Environment'!$D$23 -> 0.6073388373 | P67: =$E$15*'2b Environment'!$D$23 -> 1.549634245 | T67: =$E$23 -> 5.839796512 | V67: =$E$30 -> 4.68505688 | W67: =$E$33 -> 1.499527937 | Y67: ='2b Environment'!$D$20/'Energy content'!$D$123 -> 1.592671776 | Z67: ='2b Environment'!$D$21/'Energy content'!$D$123 -> 0.530890592 | AA67: 17.55826614 | AB67: ='2b Environment'!$D$29-'Contribution margin'!AA67 -> 2.441733865
A68: 28 | B68: Chain Saw | C68: Processor | D68: Tower Yarder | E68: Bundler | F68: WT | G68: Residues | H68: Terminal | I68: ='2b Environment'!$D$25/2.5 -> 0.6 | J68: =$E$3*'2b Environment'!$D$23 -> 0.6533493553 | M68: =$E$8*'2b Environment'!$D$23 -> 0.6073388373 | P68: =$E$15*'2b Environment'!$D$23 -> 1.549634245 | R68: =$E$17 -> 13.52145834 | T68: =$E$24 -> 2.811753876 | V68: =$E$31 -> 4.367103539 | W68: 1.499527937 | Y68: ='2b Environment'!$D$20/'Energy content'!$D$123 -> 1.592671776 | Z68: ='2b Environment'!$D$21/'Energy content'!$D$123 -> 0.530890592 | AA68: 27.7337285 | AB68: ='2b Environment'!$D$29-'Contribution margin'!AA68 -> -7.733728502
A69: 29 | B69: Chain Saw | C69: Processor | D69: Tower Yarder | F69: WT | G69: Residues | H69: Plant | I69: ='2b Environment'!$D$25/2.5 -> 0.6 | J69: =$E$3*'2b Environment'!$D$23 -> 0.6533493553 | M69: =$E$8*'2b Environment'!$D$23 -> 0.6073388373 | P69: =$E$15*'2b Environment'!$D$23 -> 1.549634245 | T69: =$E$23 -> 5.839796512 | X69: =$E$35 -> 7.547129148 | Z69: ='2b Environment'!$D$21/'Energy content'!$D$123 -> 0.530890592 | AA69: 17.32813869 | AB69: ='2b Environment'!$D$29-'Contribution margin'!AA69 -> 2.67186131
A70: 30 | B70: Chain Saw | C70: Processor | D70: Tower Yarder | E70: Bundler | F70: WT | G70: Residues | H70: Plant | I70: ='2b Environment'!$D$25/2.5 -> 0.6 | J70: =$E$3*'2b Environment'!$D$23 -> 0.6533493553 | M70: =$E$8*'2b Environment'!$D$23 -> 0.6073388373 | P70: =$E$15*'2b Environment'!$D$23 -> 1.549634245 | R70: =$E$17 -> 13.52145834 | T70: =$E$24 -> 2.811753876 | X70: =$E$36 -> 5.170925065 | Z70: ='2b Environment'!$D$21/'Energy content'!$D$123 -> 0.530890592 | AA70: 25.44535032 | AB70: ='2b Environment'!$D$29-'Contribution margin'!AA70 -> -5.445350316
A71: 31 | B71: Chain Saw | C71: Processor | D71: Tower Yarder | F71: WT | G71: Logs & residues | H71: Forest road | I71: ='2b Environment'!$D$25/2.5 -> 0.6 | J71: =$E$3 -> 6.533493553 | M71: =$E$8 -> 6.073388373 | P71: =$E$15 -> 15.49634245 | T71: =$E$25 -> 3.572581396 | X71: =$E$38 -> 1.743895453 | Z71: ='2b Environment'!$D$21/'Energy content'!$D$123 -> 0.530890592 | AA71: 34.55059182 | AB71: ='2b Environment'!$D$29-'Contribution margin'!AA71 -> -14.55059182
A72: 32 | B72: Chain Saw | C72: Processor | D72: Tower Yarder | F72: WT | G72: Logs & residues | H72: Terminal | I72: ='2b Environment'!$D$25/2.5 -> 0.6 | J72: 6.533493553 | M72: 6.073388373 | P72: 15.49634245 | T72: 3.572581396 | V72: =$E$32 -> 4.650738844 | W72: =$E$33 -> 1.499527937 | Y72: ='2b Environment'!$D$20/'Energy content'!$D$123 -> 1.592671776 | Z72: ='2b Environment'!$D$21/'Energy content'!$D$123 -> 0.530890592 | AA72: 40.54963492 | AB72: ='2b Environment'!$D$29-'Contribution margin'!AA72 -> -20.54963492
A73: 33 | B73: Chain Saw | C73: Processor | D73: Tower Yarder | F73: WT | G73: Logs & residues | H73: Plant | I73: ='2b Environment'!$D$25/2.5 -> 0.6 | J73: 6.533493553 | M73: 6.073388373 | P73: 15.49634245 | T73: 3.572581396 | X73: =$E$37 -> 6.087125228 | Z73: ='2b Environment'!$D$21/'Energy content'!$D$123 -> 0.530890592 | AA73: 38.8938216 | AB73: ='2b Environment'!$D$29-'Contribution margin'!AA73 -> -18.8938216
A74: 34 | B74: Chain Saw | D74: Skidder | F74: TL | G74: Logs | H74: Forest road | I74: ='2b Environment'!$D$25/2.5 -> 0.6 | J74: =$E$4 -> 9.800240329 | O74: =$E$12 -> 4.785093869 | T74: =$E$22 -> 2.266189691 | X74: =$E$38 -> 1.743895453 | Z74: ='2b Environment'!$D$21/'Energy content'!$D$123 -> 0.530890592 | AA74: 19.72630993 | AB74: ='2b Environment'!$D$29-'Contribution margin'!AA74 -> 0.2736900657
A75: 35 | B75: Chain Saw | D75: Skidder | F75: TL | G75: Logs | H75: Terminal | I75: ='2b Environment'!$D$25/2.5 -> 0.6 | J75: 9.800240329 | O75: =$E$12 -> 4.785093869 | T75: 2.266189691 | V75: =$E$29 -> 3.823055215 | W75: =$E$33 -> 1.499527937 | Y75: ='2b Environment'!$D$20/'Energy content'!$D$123 -> 1.592671776 | Z75: ='2b Environment'!$D$21/'Energy content'!$D$123 -> 0.530890592 | AA75: 24.89766941 | AB75: ='2b Environment'!$D$29-'Contribution margin'!AA75 -> -4.89766941
A76: 36 | B76: Chain Saw | D76: Skidder | F76: TL | G76: Logs | H76: Plant | I76: ='2b Environment'!$D$25/2.5 -> 0.6 | J76: 9.800240329 | O76: 4.785093869 | T76: 2.266189691 | X76: =$E$34 -> 4.526737656 | Z76: ='2b Environment'!$D$21/'Energy content'!$D$123 -> 0.530890592 | AA76: 22.50915214 | AB76: ='2b Environment'!$D$29-'Contribution margin'!AA76 -> -2.509152138
A77: 37 | B77: Chain Saw | C77: Skidder | D77: Processor | F77: WT | G77: Residues | H77: Forest road | I77: ='2b Environment'!$D$25/2.5 -> 0.6 | J77: =$E$3*'2b Environment'!$D$23 -> 0.6533493553 | M77: =$E$8*'2b Environment'!$D$23 -> 0.6073388373 | O77: =$E$13*'2b Environment'!$D$23 -> 0.4306584482 | T77: =$E$23 -> 5.839796512 | X77: =$E$38 -> 1.743895453 | Z77: ='2b Environment'!$D$21/'Energy content'!$D$123 -> 0.530890592 | AA77: 10.4059292 | AB77: ='2b Environment'!$D$29-'Contribution margin'!AA77 -> 9.594070802
A78: 38 | B78: Chain Saw | C78: Skidder | D78: Processor | F78: WT | G78: Residues | H78: Terminal | I78: ='2b Environment'!$D$25/2.5 -> 0.6 | J78: =$E$3*'2b Environment'!$D$23 -> 0.6533493553 | M78: =$E$8*'2b Environment'!$D$23 -> 0.6073388373 | O78: =$E$13*'2b Environment'!$D$23 -> 0.4306584482 | T78: =$E$23 -> 5.839796512 | V78: =$E$30 -> 4.68505688 | W78: =$E$33 -> 1.499527937 | Y78: ='2b Environment'!$D$20/'Energy content'!$D$123 -> 1.592671776 | Z78: ='2b Environment'!$D$21/'Energy content'!$D$123 -> 0.530890592 | AA78: 16.43929034 | AB78: ='2b Environment'!$D$29-'Contribution margin'!AA78 -> 3.560709662
A79: 39 | B79: Chain Saw | C79: Skidder | D79: Processor | E79: Bundler | F79: WT | G79: Residues | H79: Terminal | I79: ='2b Environment'!$D$25/2.5 -> 0.6 | J79: =$E$3*'2b Environment'!$D$23 -> 0.6533493553 | M79: =$E$8*'2b Environment'!$D$23 -> 0.6073388373 | O79: =$E$13*'2b Environment'!$D$23 -> 0.4306584482 | R79: =$E$17 -> 13.52145834 | T79: =$E$24 -> 2.811753876 | V79: =$E$31 -> 4.367103539 | W79: 1.499527937 | Y79: ='2b Environment'!$D$20/'Energy content'!$D$123 -> 1.592671776 | Z79: ='2b Environment'!$D$21/'Energy content'!$D$123 -> 0.530890592 | AA79: 26.6147527 | AB79: ='2b Environment'!$D$29-'Contribution margin'!AA79 -> -6.614752705
A80: 40 | B80: Chain Saw | C80: Skidder | D80: Processor | F80: WT | G80: Residues | H80: Plant | I80: ='2b Environment'!$D$25/2.5 -> 0.6 | J80: =$E$3*'2b Environment'!$D$23 -> 0.6533493553 | M80: =$E$8*'2b Environment'!$D$23 -> 0.6073388373 | O80: =$E$13*'2b Environment'!$D$23 -> 0.4306584482 | T80: =$E$23 -> 5.839796512 | X80: =$E$35 -> 7.547129148 | Z80: ='2b Environment'!$D$21/'Energy content'!$D$123 -> 0.530890592 | AA80: 16.20916289 | AB80: ='2b Environment'!$D$29-'Contribution margin'!AA80 -> 3.790837107
A81: 41 | B81: Chain Saw | C81: Skidder | D81: Processor | E81: Bundler | F81: WT | G81: Residues | H81: Plant | I81: ='2b Environment'!$D$25/2.5 -> 0.6 | J81: =$E$3*'2b Environment'!$D$23 -> 0.6533493553 | M81: =$E$8*'2b Environment'!$D$23 -> 0.6073388373 | O81: =$E$13*'2b Environment'!$D$23 -> 0.4306584482 | R81: =$E$17 -> 13.52145834 | T81: =$E$24 -> 2.811753876 | X81: =$E$36 -> 5.170925065 | Z81: ='2b Environment'!$D$21/'Energy content'!$D$123 -> 0.530890592 | AA81: 24.32637452 | AB81: ='2b Environment'!$D$29-'Contribution margin'!AA81 -> -4.326374518
A82: 42 | B82: Chain Saw | C82: Skidder | D82: Processor | F82: WT | G82: Logs & residues | H82: Forest road | I82: ='2b Environment'!$D$25/2.5 -> 0.6 | J82: =$E$3 -> 6.533493553 | M82: =$E$8 -> 6.073388373 | O82: =$E$13 -> 4.306584482 | T82: =$E$25 -> 3.572581396 | X82: =$E$38 -> 1.743895453 | Z82: ='2b Environment'!$D$21/'Energy content'!$D$123 -> 0.530890592 | AA82: 23.36083385 | AB82: ='2b Environment'!$D$29-'Contribution margin'!AA82 -> -3.360833848
A83: 43 | B83: Chain Saw | C83: Skidder | D83: Processor | F83: WT | G83: Logs & residues | H83: Terminal | I83: ='2b Environment'!$D$25/2.5 -> 0.6 | J83: 6.533493553 | M83: 6.073388373 | O83: 4.306584482 | T83: 3.572581396 | V83: =$E$32 -> 4.650738844 | W83: =$E$33 -> 1.499527937 | Y83: ='2b Environment'!$D$20/'Energy content'!$D$123 -> 1.592671776 | Z83: ='2b Environment'!$D$21/'Energy content'!$D$123 -> 0.530890592 | AA83: 29.35987695 | AB83: ='2b Environment'!$D$29-'Contribution margin'!AA83 -> -9.359876952
A84: 44 | B84: Chain Saw | C84: Skidder | D84: Processor | F84: WT | G84: Logs & residues | H84: Plant | I84: ='2b Environment'!$D$25/2.5 -> 0.6 | J84: 6.533493553 | M84: 6.073388373 | O84: 4.306584482 | T84: 3.572581396 | X84: =$E$37 -> 6.087125228 | Z84: ='2b Environment'!$D$21/'Energy content'!$D$123 -> 0.530890592 | AA84: 27.70406362 | AB84: ='2b Environment'!$D$29-'Contribution margin'!AA84 -> -7.704063624
A85: 45 | B85: Feller-buncher | C85: Chipper | D85: Shuttle | F85: CHIPS | G85: Logs & residues | H85: Stand | I85: ='2b Environment'!$D$25/2.5 -> 0.6 | K85: =$E$7 -> 12.37524277 | Q85: =E16 -> 2.841351285 | U85: =E26 -> 12.58522992 | X85: =$E$38 -> 1.743895453 | Z85: ='2b Environment'!$D$21/'Energy content'!$D$123 -> 0.530890592 | AA85: 30.67661001 | AB85: ='2b Environment'!$D$29-'Contribution margin'!AA85 -> -10.67661001
A86: 46 | B86: Feller-buncher | D86: Forwarder | F86: WT | G86: Logs & residues | H86: Forest road | I86: ='2b Environment'!$D$25/2.5 -> 0.6 | K86: =$E$7 -> 12.37524277 | N86: =$E$11 -> 7.72976702 | T86: =$E$25 -> 3.572581396 | X86: =$E$38 -> 1.743895453 | Z86: ='2b Environment'!$D$21/'Energy content'!$D$123 -> 0.530890592 | AA86: 26.55237723 | AB86: ='2b Environment'!$D$29-'Contribution margin'!AA86 -> -6.552377226
A87: 47 | B87: Feller-buncher | D87: Forwarder | F87: WT | G87: Logs & residues | H87: Terminal | I87: ='2b Environment'!$D$25/2.5 -> 0.6 | K87: 12.37524277 | N87: 7.72976702 | T87: 3.572581396 | V87: =$E$32 -> 4.650738844 | W87: =$E$33 -> 1.499527937 | Y87: ='2b Environment'!$D$20/'Energy content'!$D$123 -> 1.592671776 | Z87: ='2b Environment'!$D$21/'Energy content'!$D$123 -> 0.530890592 | AA87: 32.55142033 | AB87: ='2b Environment'!$D$29-'Contribution margin'!AA87 -> -12.55142033
A88: 48 | B88: Feller-buncher | D88: Forwarder | F88: WT | G88: Logs & residues | H88: Plant | I88: ='2b Environment'!$D$25/2.5 -> 0.6 | K88: 12.37524277 | N88: 7.72976702 | T88: 3.572581396 | X88: =$E$37 -> 6.087125228 | Z88: ='2b Environment'!$D$21/'Energy content'!$D$123 -> 0.530890592 | AA88: 30.895607 | AB88: ='2b Environment'!$D$29-'Contribution margin'!AA88 -> -10.895607
A90: Transport (Load volume) | D90: ='2b Environment'!D13 -> 55 | E90: ='2b Environment'!D13 -> 55 | F90: ='2b Environment'!D13 -> 55 | G90: ='2b Environment'!D13 -> 55 | H90: ='2b Environment'!D14 -> 30 | K90: ='2b Environment'!D13 -> 55
D91: logs | E91: residues | F91: bundles | G91: logs & residues | H91: chips | K91: chips | N91: dry-ton/m³
A92: Wood density [kg/m³ stacked] | B92: ='2a Site and stand'!C21/('2a Site and stand'!C21+'2a Site and stand'!C22+'2a Site and stand'!C23) -> 0.75 | C92: ='2a Site and stand'!D21 -> Norway Spruce | D92: =VLOOKUP(C92,'Energy content'!$J$4:$N$23,3,FALSE) -> 512.3864114 | E92: =VLOOKUP(C92,'Energy content'!$J$4:$N$23,4,FALSE) -> 264.5194849 | F92: =VLOOKUP(C92,'Energy content'!$J$4:$N$23,5,FALSE) -> 302.3079828 | G92: =VLOOKUP(C92,'Energy content'!$J$4:$O$23,6,FALSE) -> 420.6756486 | H92: =VLOOKUP(C92,'Energy content'!$J$50:$K$69,2,FALSE) -> 221.1732449 | K92: =VLOOKUP(C92,'Energy content'!$J$4:$K$23,2,FALSE) -> 302.3079828 | N92: =VLOOKUP(C92,'Energy content'!$A$97:$C$116,3,FALSE) -> 0.41
A93: max. load volume [m³] | C93: m³ | D93: ='2ce Transporting'!D10 -> 50 | E93: ='2ce Transporting'!D21 -> 25 | F93: ='2ce Transporting'!D32 -> 50 | G93: ='2ce Transporting'!D43 -> 25 | H93: ='2ce Transporting'!D54 -> 90 | K93: ='2ce Transporting'!D54 -> 90
A94: max. load volume [m³ loose] | C94: m³ loose | D94: =D93*1.7 -> 85 | E94: =E93*1.7/2 -> 21.25 | F94: =F93 -> 50 | G94: =G93*1.38 -> 34.5 | H94: =H93 -> 90 | K94: =K93 -> 90
A95: theor. load capacity [kg] | C95: calculated mass | D95: =D92*D93 -> 25619.32057 | E95: =E92*E93 -> 6612.987123 | F95: =F92*F93 -> 15115.39914 | G95: =G92*G93 -> 10516.89122 | H95: =H92*H93 -> 19905.59204 | K95: =K92*K93 -> 27207.71845
A96: max. load capacity [kg] | C96: maximum mass | D96: ='2ce Transporting'!D13*1000 -> 18000 | E96: ='2ce Transporting'!D24*1000 -> 10000 | F96: ='2ce Transporting'!D35*1000 -> 18000 | G96: ='2ce Transporting'!D46*1000 -> 10000 | H96: ='2ce Transporting'!D57*1000 -> 20000 | K96: ='2ce Transporting'!D57*1000 -> 20000
A97: load volume [m³ loose] | C97: m³ loose | D97: =IF(D95<D96,D94,D96/D92*1.7)*B92 -> 44.79041498 | E97: =IF(E95<E96,E94,E96/E92*0.85)*B92 -> 15.9375 | F97: =IF(F95<F96,F94,F96/F92)*B92 -> 37.5 | G97: =IF(G95<G96,G94,G96/G92)*B92 -> 17.82846244 | H97: =IF(H95<H96,H94,H96/H92)*B92 -> 67.5 | K97: =IF(K95<K96,K94,K96/K92)*B92 -> 49.61827294
C98: kWh | D98: =VLOOKUP($C$92,'Energy content'!$J$26:$N$45,2,FALSE)*D97 -> 31529.86136 | E98: =VLOOKUP($C$92,'Energy content'!$J$26:$N$45,2,FALSE)*E97 -> 11219.07814 | F98: =VLOOKUP($C$92,'Energy content'!$J$26:$N$45,2,FALSE)*F97 -> 26397.83091 | G98: =VLOOKUP($C$92,'Energy content'!$J$26:$N$45,2,FALSE)*G97 -> 12550.20632 | H98: =VLOOKUP($C$92,'Energy content'!$J$72:$N$91,2,FALSE)*H97 -> 50918.59958 | I98: =IF(Menge_HG=0,0,H98/Menge_HG) -> 754.3496233 | K98: =VLOOKUP($C$92,'Energy content'!$J$26:$N$45,2,FALSE)*K97 -> 34928.39411 | L98: =IF(K97=0,0,K98/K97) -> 703.9421576
A99: Wood density [kg/m³ stacked] | B99: ='2a Site and stand'!C22/('2a Site and stand'!C21+'2a Site and stand'!C22+'2a Site and stand'!C23) -> 0.2 | C99: ='2a Site and stand'!D22 -> Beech | D99: =VLOOKUP(C99,'Energy content'!$J$4:$N$23,3,FALSE) -> 742.7382084 | E99: =VLOOKUP(C99,'Energy content'!$J$4:$N$23,4,FALSE) -> 383.4386001 | F99: =VLOOKUP(C99,'Energy content'!$J$4:$N$23,5,FALSE) -> 438.2155429 | G99: =VLOOKUP(C99,'Energy content'!$J$4:$O$23,6,FALSE) -> 609.7973533 | H99: =VLOOKUP(C99,'Energy content'!$J$50:$K$69,2,FALSE) -> 323.8274773 | K99: =VLOOKUP(C99,'Energy content'!$J$4:$K$23,2,FALSE) -> 438.2155429 | N99: =VLOOKUP(C99,'Energy content'!$A$97:$C$116,3,FALSE) -> 0.68
A100: max. load volume [m³] | C100: m³ | D100: ='2ce Transporting'!D10 -> 50 | E100: ='2ce Transporting'!D21 -> 25 | F100: ='2ce Transporting'!D32 -> 50 | G100: ='2ce Transporting'!D43 -> 25 | H100: ='2ce Transporting'!D54 -> 90 | K100: =K93 -> 90
A101: max. load volume [m³ loose] | C101: m³ loose | D101: =D100*1.7 -> 85 | E101: =E100*1.7/2 -> 21.25 | F101: =F100 -> 50 | G101: =G100*1.38 -> 34.5 | H101: =H100 -> 90 | K101: =K100 -> 90
A102: theor. load capacity [kg] | C102: calculated mass | D102: =D99*D100 -> 37136.91042 | E102: =E99*E100 -> 9585.965002 | F102: =F99*F100 -> 21910.77715 | G102: =G99*G100 -> 15244.93383 | H102: =H99*H100 -> 29144.47296 | K102: =K99*K100 -> 39439.39886
A103: max. load capacity [kg] | C103: maximum mass | D103: =D96 -> 18000 | E103: =E96 -> 10000 | F103: 18000 | G103: 10000 | H103: 20000 | K103: =K96 -> 20000
A104: load volume [m³ loose] | C104: m³ loose | D104: =IF(D102<D103,D101,D103/D99*1.7)*B99 -> 8.239780761 | E104: =IF(E102<E103,E101,E103/E99*0.85)*B99 -> 4.25 | F104: =IF(F102<F103,F101,F103/F99)*B99 -> 8.215135355 | G104: =IF(G102<G103,G101,G103/G99)*B99 -> 3.279778092 | H104: =IF(H102<H103,H101,H103/H99)*B99 -> 12.35225631 | K104: =IF(K102<K103,K101,K103/K99)*B99 -> 9.127928173
C105: kWh | D105: =VLOOKUP($C$99,'Energy content'!$J$26:$N$45,2,FALSE)*D104 -> 7916.052025 | E105: =VLOOKUP($C$99,'Energy content'!$J$26:$N$45,2,FALSE)*E104 -> 4083.023818 | F105: =VLOOKUP($C$99,'Energy content'!$J$26:$N$45,2,FALSE)*F104 -> 7892.3749 | G105: =VLOOKUP($C$99,'Energy content'!$J$26:$N$45,2,FALSE)*G104 -> 3150.920487 | H105: =VLOOKUP($C$99,'Energy content'!$J$72:$N$91,2,FALSE)*H104 -> 12876.22164 | I105: =IF(H104=0,0,H105/H104) -> 1042.418593 | K105: =VLOOKUP($C$99,'Energy content'!$J$26:$N$45,2,FALSE)*K104 -> 8769.305445 | L105: =IF(K104=0,0,K105/K104) -> 960.7114866
A106: Wood density [kg/m³ stacked] | B106: ='2a Site and stand'!C23/('2a Site and stand'!C21+'2a Site and stand'!C22+'2a Site and stand'!C23) -> 0.05 | C106: ='2a Site and stand'!D23 -> Ash | D106: =VLOOKUP(C106,'Energy content'!$J$4:$N$23,3,FALSE) -> 780.3914707 | E106: =VLOOKUP(C106,'Energy content'!$J$4:$N$23,4,FALSE) -> 402.8770968 | F106: =VLOOKUP(C106,'Energy content'!$J$4:$N$23,5,FALSE) -> 460.4309677 | G106: =VLOOKUP(C106,'Energy content'!$J$4:$O$23,6,FALSE) -> 640.7111524 | H106: =VLOOKUP(C106,'Energy content'!$J$50:$K$69,2,FALSE) -> 338.5470023 | K106: =VLOOKUP(C106,'Energy content'!$J$4:$K$23,2,FALSE) -> 460.4309677 | N106: =VLOOKUP(C106,'Energy content'!$A$97:$C$116,3,FALSE) -> 0.67
A107: max. load volume [m³] | C107: m³ | D107: =D93 -> 50 | E107: =E93 -> 25 | F107: 50 | G107: 25 | H107: 90 | K107: =K100 -> 90
A108: max. load volume [m³ loose] | C108: m³ loose | D108: =D94 -> 85 | E108: =E94 -> 21.25 | F108: 50 | G108: 34.5 | H108: 90 | K108: =K107 -> 90
A109: theor. load capacity [kg] | C109: calculated mass | D109: =D106*D107 -> 39019.57354 | E109: =E106*E107 -> 10071.92742 | F109: =F106*F107 -> 23021.54839 | G109: =G106*G107 -> 16017.77881 | H109: =H106*H107 -> 30469.2302 | K109: =K106*K107 -> 41438.7871
A110: max. load capacity [kg] | C110: maximum mass | D110: =D96 -> 18000 | E110: =E96 -> 10000 | F110: 18000 | G110: 10000 | H110: 20000 | K110: =K103 -> 20000
A111: load volume [m³ loose] | C111: m³ loose | D111: =IF(D109<D110,D108,D110/D106*1.7)*B106 -> 1.960554488 | E111: =IF(E109<E110,E108,E110/E106*0.85)*B106 -> 1.054912288 | F111: =IF(F109<F110,F108,F110/F106)*B106 -> 1.954690416 | G111: =IF(G109<G110,G108,G110/G106)*B106 -> 0.7803828576 | H111: =IF(H109<H110,H108,H110/H106)*B106 -> 2.9537996 | K111: =IF(K109<K110,K108,K110/K106)*B106 -> 2.17187824
C112: kWh | D112: =VLOOKUP($C$106,'Energy content'!$J$26:$N$45,2,FALSE)*D111 -> 1986.917448 | E112: =VLOOKUP($C$106,'Energy content'!$J$26:$N$45,2,FALSE)*E111 -> 1069.097362 | F112: =VLOOKUP($C$106,'Energy content'!$J$26:$N$45,2,FALSE)*F111 -> 1980.974524 | G112: =VLOOKUP($C$106,'Energy content'!$J$26:$N$45,2,FALSE)*G111 -> 790.8764208 | H112: =VLOOKUP($C$106,'Energy content'!$J$72:$N$91,2,FALSE)*H111 -> 3226.270896 | I112: =IF(H111=0,0,H112/H111) -> 1092.24434 | K112: =VLOOKUP($C$106,'Energy content'!$J$26:$N$45,2,FALSE)*K111 -> 2201.082805 | L112: =IF(K111=0,0,K112/K111) -> 1013.446686
N113: =B92*N92+B99*N99+B106*N106 -> 0.477
C114: Sum SRM | D114: =Menge_RH+D104+D111 -> 54.99075023 | E114: =Menge_SA+E104+E111 -> 21.24241229 | F114: =Menge_Bün+F104+F111 -> 47.66982577 | G114: =G97+G104+G111 -> 21.88862339 | H114: =Menge_HG+H104+H111 -> 82.80605591 | K114: =K97+K104+K111 -> 60.91807935
C115: Sum MWh | D115: =(D98+D105+D112)/1000 -> 41.43283084 | E115: =(E98+E105+E112)/1000 -> 16.37119932 | F115: =(F98+F105+F112)/1000 -> 36.27118034 | G115: =(G98+G105+G112)/1000 -> 16.49200322 | H115: =(H98+H105+H112)/1000 -> 67.02109212 | K115: =(K98+K105+K112)/1000 -> 45.89878236
H116: =HG_MW_T/H114 -> 0.8093742828 | K116: =K115/K114 -> 0.7534509106
A117: Transport (costs)
A118: Speed | D118: Costs in €/MWh | E118: Pre-transport | F118: Main transport | G118: Direct transport
A119: Direct transport [km/h] | B119: 45 | D119: logs | E119: =(Zeit_VT+B136)*Sysk_RLKW/RH_MW_T -> 3.823055215 | F119: =(Zeit_HT+B136)*Sysk_RLKW/RH_MW_T -> 4.054755531 | G119: =(Zeit_GT+B136)*Sysk_RLKW/RH_MW_T -> 4.526737656
A120: Pre-transport [km/h] | B120: 25 | D120: residues | E120: =(Zeit_VT+B137)*Sysk_SALKW/SA_MW_T -> 4.68505688 | F120: =(Zeit_HT+B137)*Sysk_SALKW/SA_MW_T -> 5.161503342 | G120: =(Zeit_GT+B137)*Sysk_RLKW/SA_MW_T -> 7.547129148
A121: Main transport [km/h] | B121: 50 | D121: chips | E121: =(Zeit_VT+B140)*Sysk_SLKW/HG_MW_T -> 1.379565702 | F121: =(Zeit_HT+B140)*Sysk_SLKW/HG_MW_T -> 1.499527937 | G121: =(Zeit_GT+B140)*Sysk_SLKW/HG_MW_T -> 1.743895453
D122: logs & residues | E122: =(Zeit_VT+B139)*B132/G115 -> 4.650738844 | F122: =(Zeit_HT+B139)*B132/G115 -> 5.123695336 | G122: =(Zeit_GT+B139)*B132/G115 -> 6.087125228
A123: Time | D123: bundles | E123: =(Zeit_VT+B138)*Sysk_BLKW/Bün_MW_T -> 4.367103539 | F123: =(Zeit_HT+B138)*Sysk_BLKW/Bün_MW_T -> 4.63177648 | G123: =(Zeit_GT+B138)*Sysk_RLKW/Bün_MW_T -> 5.170925065
A124: Time - direct transport [h] | B124: ='2b Environment'!D9/'Contribution margin'!B119 -> 0.8444444444
A125: Time - pre-transport [h] | B125: ='2b Environment'!D10/B120 -> 0.48
A126: Time - main transport [h] | B126: ='2b Environment'!D11/B121 -> 0.6
A128: system costs/h
A129: logs | B129: ='2ce Transporting'!B13 -> 80
A130: residues | B130: ='2ce Transporting'!B24 -> 65
A131: bundles | B131: ='2ce Transporting'!B35 -> 80
A132: logs & residues | B132: ='2ce Transporting'!B46 -> 65
A133: chips | B133: ='2ce Transporting'!B57 -> 67
A135: Loading time
A136: logs | B136: ='2ce Transporting'!B16 -> 1.5
A137: residues | B137: ='2ce Transporting'!B27 -> 0.7
A138: bundles | B138: ='2ce Transporting'!B38 -> 1.5
A139: logs & residues | B139: ='2ce Transporting'!B49 -> 0.7
A140: chips | B140: ='2ce Transporting'!B60 -> 0.9

Sheet Employment (hidden)
B1: Operators | C1: Productivity | E1: Employment rate
B2: Number of | C2: MWh/h | E2: h/MWh
A3: Chain Saw - Felling | B3: 1 | C3: ='2ca Felling and processing'!$C$13*'Energy content'!$D$123 -> 5.65088183 | E3: =B3/C3 -> 0.1769635307 | H3: 0 | I3: 0
A4: Chain Saw - Felling and Delimbing | B4: 1 | C4: ='2ca Felling and processing'!$C$16*'Energy content'!$D$123 -> 3.767254553 | E4: 0.265445296 | H4: 0.1 | I4: 0.2
A5: Chain Saw - Felling and Processing | B5: 1 | C5: ='2ca Felling and processing'!$C$19*'Energy content'!$D$123 -> 2.825440915 | E5: 0.3539270613 | H5: 0.2 | I5: 0.4
A6: Harvester | B6: 1 | C6: ='2ca Felling and processing'!$C$39*'Energy content'!$D$123 -> 16.38755731 | E6: 0.06102190713 | H6: 0.3 | I6: 0.6
A7: Feller buncher | B7: 1 | C7: ='2ca Felling and processing'!$C$29*'Energy content'!$D$123 -> 10.9250382 | E7: 0.09153286069 | H7: 0.4 | I7: 0.8
A8: Processor | B8: 1 | C8: ='2ca Felling and processing'!$C$49*'Energy content'!$D$123 -> 18.83627277 | E8: 0.0530890592 | H8: 0.5 | I8: 1
A9: Forwarder - logs | B9: 1 | C9: ='2cb Extracting'!$C$14*'Energy content'!$D$123 -> 20.15481186 | E9: 0.04961594318 | H9: 0.6 | I9: 1
A10: Forwarder - residues | B10: 1 | C10: ='2cb Extracting'!$C$17*'Energy content'!$D$123 -> 5.65088183 | E10: 0.1769635307 | H10: 0.7 | I10: 1
A11: Forwarder - trees | B11: 1 | C11: ='2cb Extracting'!$C$20*'Energy content'!$D$123 -> 10.35995002 | E11: 0.09652556219 | H11: 0.8 | I11: 1
A12: Skidder - TL | B12: 1.5 | C12: ='2cb Extracting'!$C$30*'Energy content'!$D$123 -> 16.95264549 | E12: 0.08848176534 | H12: 0.9 | I12: 1
A13: Skidder - WT | B13: 1.5 | C13: ='2cb Extracting'!$C$33*'Energy content'!$D$123 -> 18.83627277 | E13: 0.0796335888 | H13: 1 | I13: 1
A14: Tower yarder - TL | B14: 2 | C14: ='2cb Extracting'!$C$46*'Energy content'!$D$123 -> 11.30176366 | E14: 0.1769635307 | H14: 1.1 | I14: 1
A15: Tower yarder - WT | B15: 2 | C15: ='2cb Extracting'!$C$49*'Energy content'!$D$123 -> 11.30176366 | E15: 0.1769635307 | H15: 1.2 | I15: 1
A16: Shuttle | B16: 1 | C16: ='2cb Extracting'!$C$59*'Energy content'!$D$123 -> 32.21002643 | E16: 0.03104623345 | H16: 1.3 | I16: 1
A17: Bundler | B17: 1 | C17: ='2cc Bundling'!$C$13*'Energy content'!$D$123 -> 9.229773655 | E17: 0.1083450188 | H17: 1.4 | I17: 1
A18: Tractor & chipper - logs | B18: 1 | C18: ='2cd Chipping'!$C$14*'Energy content'!$D$121 -> 50.48121101 | E18: 0.01980935045 | H18: 1.5 | I18: 1
A19: Tractor & chipper - residues | B19: 1 | C19: ='2cd Chipping'!$C$17*'Energy content'!$D$121 -> 19.58972368 | E19: 0.05104717231
A20: Tractor & chipper - bundles | B20: 1 | C20: ='2cd Chipping'!$C$20*'Energy content'!$D$121 -> 40.68634917 | E20: 0.02457826815
A21: Tractor & chipper - trees | B21: 1 | C21: ='2cd Chipping'!$C$23*'Energy content'!$D$121 -> 21.85007641 | E21: 0.04576643035
A22: Chippertruck - logs | B22: 1 | C22: ='2cd Chipping'!$C$33*'Energy content'!$D$121 -> 100.962422 | E22: 0.009904675224
A23: Chippertruck - residues | B23: 1 | C23: ='2cd Chipping'!$C$36*'Energy content'!$D$121 -> 39.17944735 | E23: 0.02552358616
A24: Chippertruck - bundles | B24: 1 | C24: ='2cd Chipping'!$C$39*'Energy content'!$D$121 -> 81.37269835 | E24: 0.01228913407
A25: Chippertruck - trees | B25: 1 | C25: ='2cd Chipping'!$C$42*'Energy content'!$D$121 -> 64.0433274 | E25: 0.01561442918
A26: Mobile chipper | B26: 1 | C26: ='2cd Chipping'!$C$52*'Energy content'!$D$121 -> 12.80866548 | E26: 0.07807214589
A29: Pre-transport - logs | E29: =1/(RH_MW_T/(Zeit_VT+RH_LADE)) -> 0.04778819019
A30: Pre-transport - residues | E30: =1/(SA_MW_T/(Zeit_VT+SA_LADE)) -> 0.07207779815
A31: Pre-transport - bundles | E31: =1/(Bün_MW_T/(Zeit_VT+Bün_LADE)) -> 0.05458879423
A32: Pre-transport - trees | E32: =1/('Contribution margin'!G115/(Zeit_VT+'Contribution margin'!B139)) -> 0.07154982836
A33: Main transport - chips | E33: =1/(HG_MW_T/(Zeit_HT+SG_LADE)) -> 0.02238101399
A34: Direct transport - logs | E34: =1/(RH_MW_T/(Zeit_GT+RH_LADE)) -> 0.0565842207
A35: Direct transport - residues | E35: =1/(SA_MW_T/(Zeit_GT+SA_LADE)) -> 0.09433911435
A36: Direct transport - bundles | E36: =1/(Bün_MW_T/(Zeit_GT+Bün_LADE)) -> 0.06463656332
A37: Direct transport - trees | E37: =1/('Contribution margin'!G120/(Zeit_GT+'Contribution margin'!B144)) -> 0.1118894917
A38: Direct transport - chips | E38: =1/(HG_MW_T/(Zeit_GT+SG_LADE)) -> 0.02602829034
I40: Chain Saw | J40: Feller buncher | K40: Harvester | L40: Processor | M40: Forwarder | N40: Skidder | O40: Tower Yarder | P40: Shuttle | Q40: Bundler | R40: Tractor & Chipper | S40: Chippertruck | T40: Mobile chipper | U40: Pre-transport | V40: Main-transport | W40: Direct transport | X40: SUM
A41: 1 | B41: Chain Saw | D41: Forwarder | F41: CTL | G41: Logs | H41: Forest road | I41: =$E$5 -> 0.3539270613 | M41: =$E$9 -> 0.04961594318 | S41: =$E$22 -> 0.009904675224 | W41: =$E$38 -> 0.02602829034 | X41: =SUM(I41:W41) -> 0.4394759701
A42: 2 | B42: Chain Saw | D42: Forwarder | F42: CTL | G42: Logs | H42: Terminal | I42: =$E$5 -> 0.3539270613 | M42: =$E$9 -> 0.04961594318 | S42: =$E$22 -> 0.009904675224 | U42: =$E$29 -> 0.04778819019 | V42: =$E$33 -> 0.02238101399 | X42: =SUM(I42:W42) -> 0.4836168839
A43: 3 | B43: Chain Saw | D43: Forwarder | F43: CTL | G43: Logs | H43: Plant | I43: 0.3539270613 | M43: 0.04961594318 | S43: 0.009904675224 | W43: =$E$34 -> 0.0565842207 | X43: 0.4700319005
A44: 4 | B44: Chain Saw | D44: Forwarder | F44: CTL | G44: Residues | H44: Forest road | I44: =$E$5*'2b Environment'!$D$23 -> 0.03539270613 | M44: =$E$10 -> 0.1769635307 | S44: =$E$23 -> 0.02552358616 | W44: =$E$38 -> 0.02602829034 | X44: 0.2639081133
A45: 5 | B45: Chain Saw | D45: Forwarder | F45: CTL | G45: Residues | H45: Terminal | I45: =$E$5*'2b Environment'!$D$23 -> 0.03539270613 | M45: =$E$10 -> 0.1769635307 | S45: =$E$23 -> 0.02552358616 | U45: =$E$30 -> 0.07207779815 | V45: =$E$33 -> 0.02238101399 | X45: 0.3323386351
A46: 6 | B46: Chain Saw | D46: Forwarder | E46: Bundler | F46: CTL | G46: Residues | H46: Terminal | I46: =$E$5*'2b Environment'!$D$23 -> 0.03539270613 | M46: 0.1769635307 | Q46: =$E$17 -> 0.1083450188 | S46: =$E$24 -> 0.01228913407 | U46: =$E$31 -> 0.05458879423 | V46: 0.02238101399 | X46: 0.4099601979
A47: 7 | B47: Chain Saw | D47: Forwarder | F47: CTL | G47: Residues | H47: Plant | I47: =$E$5*'2b Environment'!$D$23 -> 0.03539270613 | M47: 0.1769635307 | S47: =$E$23 -> 0.02552358616 | W47: =$E$35 -> 0.09433911435 | X47: 0.3322189373
A48: 8 | B48: Chain Saw | D48: Forwarder | E48: Bundler | F48: CTL | G48: Residues | H48: Plant | I48: =$E$5*'2b Environment'!$D$23 -> 0.03539270613 | M48: 0.1769635307 | Q48: =$E$17 -> 0.1083450188 | S48: =$E$24 -> 0.01228913407 | W48: =$E$36 -> 0.06463656332 | X48: 0.397626953
A49: 9 | B49: Chain Saw | D49: Forwarder | F49: CTL | G49: Logs & residues | H49: Forest road | I49: =$E$3 -> 0.1769635307 | M49: =$E$11 -> 0.09652556219 | S49: =$E$25 -> 0.01561442918 | W49: =$E$38 -> 0.02602829034 | X49: 0.3151318124
A50: 10 | B50: Chain Saw | D50: Forwarder | F50: CTL | G50: Logs & residues | H50: Terminal | I50: =$E$3 -> 0.1769635307 | M50: =$E$11 -> 0.09652556219 | S50: =$E$25 -> 0.01561442918 | U50: =$E$32 -> 0.07154982836 | V50: =$E$33 -> 0.02238101399 | X50: 0.3830343644
A51: 11 | B51: Chain Saw | D51: Forwarder | F51: CTL | G51: Logs & residues | H51: Plant | I51: 0.1769635307 | M51: 0.09652556219 | S51: 0.01561442918 | W51: =$E$37 -> 0.1118894917 | X51: 0.4009930138
A52: 12 | B52: Harvester | D52: Forwarder | F52: CTL | G52: Logs | H52: Forest road | K52: =$E$6 -> 0.06102190713 | M52: =$E$9 -> 0.04961594318 | S52: =$E$22 -> 0.009904675224 | W52: =$E$38 -> 0.02602829034 | X52: 0.1465708159
A53: 13 | B53: Harvester | D53: Forwarder | F53: CTL | G53: Logs | H53: Terminal | K53: =$E$6 -> 0.06102190713 | M53: =$E$9 -> 0.04961594318 | S53: 0.009904675224 | U53: =$E$29 -> 0.04778819019 | V53: =$E$33 -> 0.02238101399 | X53: 0.1907117297
A54: 14 | B54: Harvester | D54: Forwarder | F54: CTL | G54: Logs | H54: Plant | K54: 0.06102190713 | M54: 0.04961594318 | S54: 0.009904675224 | W54: =$E$34 -> 0.0565842207 | X54: 0.1771267462
A55: 15 | B55: Harvester | D55: Forwarder | F55: CTL | G55: Residues | H55: Forest road | K55: =$E$6*'2b Environment'!$D$23 -> 0.006102190713 | M55: =$E$10 -> 0.1769635307 | S55: =$E$23 -> 0.02552358616 | W55: =$E$38 -> 0.02602829034 | X55: 0.2346175979
A56: 16 | B56: Harvester | D56: Forwarder | F56: CTL | G56: Residues | H56: Terminal | K56: =$E$6*'2b Environment'!$D$23 -> 0.006102190713 | M56: 0.1769635307 | S56: =$E$23 -> 0.02552358616 | U56: =$E$30 -> 0.07207779815 | V56: =$E$33 -> 0.02238101399 | X56: 0.3030481197
A57: 17 | B57: Harvester | D57: Forwarder | E57: Bundler | F57: CTL | G57: Residues | H57: Terminal | K57: =$E$6*'2b Environment'!$D$23 -> 0.006102190713 | M57: 0.1769635307 | Q57: =$E$17 -> 0.1083450188 | S57: =$E$24 -> 0.01228913407 | U57: =$E$31 -> 0.05458879423 | V57: 0.02238101399 | X57: 0.3806696825
A58: 18 | B58: Harvester | D58: Forwarder | F58: CTL | G58: Residues | H58: Plant | K58: =$E$6*'2b Environment'!$D$23 -> 0.006102190713 | M58: 0.1769635307 | S58: =$E$23 -> 0.02552358616 | W58: =$E$35 -> 0.09433911435 | X58: 0.3029284219
A59: 19 | B59: Harvester | D59: Forwarder | E59: Bundler | F59: CTL | G59: Residues | H59: Plant | K59: =$E$6*'2b Environment'!$D$23 -> 0.006102190713 | M59: 0.1769635307 | Q59: =$E$17 -> 0.1083450188 | S59: =$E$24 -> 0.01228913407 | W59: =$E$36 -> 0.06463656332 | X59: 0.3683364376
A60: 20 | B60: Harvester | D60: Forwarder | F60: CTL | G60: Logs & residues | H60: Forest road | K60: 0.06102190713 | M60: =$E$11 -> 0.09652556219 | S60: =$E$25 -> 0.01561442918 | W60: =$E$38 -> 0.02602829034 | X60: 0.1991901888
A61: 21 | B61: Harvester | D61: Forwarder | F61: CTL | G61: Logs & residues | H61: Terminal | K61: 0.06102190713 | M61: 0.09652556219 | S61: 0.01561442918 | U61: =$E$32 -> 0.07154982836 | V61: =$E$33 -> 0.02238101399 | X61: 0.2670927408
A62: 22 | B62: Harvester | D62: Forwarder | F62: CTL | G62: Logs & residues | H62: Plant | K62: 0.06102190713 | M62: 0.09652556219 | S62: 0.01561442918 | W62: =$E$37 -> 0.1118894917 | X62: 0.2850513902
A63: 23 | B63: Chain Saw | D63: Tower Yarder | F63: TL | G63: Logs | H63: Forest road | I63: =$E$4 -> 0.265445296 | O63: =$E$14 -> 0.1769635307 | S63: =$E$22 -> 0.009904675224 | W63: =$E$38 -> 0.02602829034 | X63: 0.4783417923
A64: 24 | B64: Chain Saw | D64: Tower Yarder | F64: TL | G64: Logs | H64: Terminal | I64: =$E$4 -> 0.265445296 | O64: =$E$14 -> 0.1769635307 | S64: 0.009904675224 | U64: =$E$29 -> 0.04778819019 | V64: =$E$33 -> 0.02238101399 | X64: 0.5224827061
A65: 25 | B65: Chain Saw | D65: Tower Yarder | F65: TL | G65: Logs | H65: Plant | I65: 0.265445296 | O65: 0.1769635307 | S65: 0.009904675224 | W65: =$E$34 -> 0.0565842207 | X65: 0.5088977226
A66: 26 | B66: Chain Saw | C66: Processor | D66: Tower Yarder | F66: WT | G66: Residues | H66: Forest road | I66: =$E$3*'2b Environment'!$D$23 -> 0.01769635307 | L66: =$E$8*'2b Environment'!$D$23 -> 0.00530890592 | O66: =$E$15*'2b Environment'!$D$23 -> 0.01769635307 | S66: =$E$23 -> 0.02552358616 | W66: =$E$38 -> 0.02602829034 | X66: 0.09225348855
A67: 27 | B67: Chain Saw | C67: Processor | D67: Tower Yarder | F67: WT | G67: Residues | H67: Terminal | I67: =$E$3*'2b Environment'!$D$23 -> 0.01769635307 | L67: =$E$8*'2b Environment'!$D$23 -> 0.00530890592 | O67: =$E$15*'2b Environment'!$D$23 -> 0.01769635307 | S67: =$E$23 -> 0.02552358616 | U67: =$E$30 -> 0.07207779815 | V67: =$E$33 -> 0.02238101399 | X67: 0.1606840104
A68: 28 | B68: Chain Saw | C68: Processor | D68: Tower Yarder | E68: Bundler | F68: WT | G68: Residues | H68: Terminal | I68: =$E$3*'2b Environment'!$D$23 -> 0.01769635307 | L68: =$E$8*'2b Environment'!$D$23 -> 0.00530890592 | O68: =$E$15*'2b Environment'!$D$23 -> 0.01769635307 | Q68: =$E$17 -> 0.1083450188 | S68: =$E$24 -> 0.01228913407 | U68: =$E$31 -> 0.05458879423 | V68: 0.02238101399 | X68: 0.2383055731
A69: 29 | B69: Chain Saw | C69: Processor | D69: Tower Yarder | F69: WT | G69: Residues | H69: Plant | I69: =$E$3*'2b Environment'!$D$23 -> 0.01769635307 | L69: =$E$8*'2b Environment'!$D$23 -> 0.00530890592 | O69: =$E$15*'2b Environment'!$D$23 -> 0.01769635307 | S69: =$E$23 -> 0.02552358616 | W69: =$E$35 -> 0.09433911435 | X69: 0.1605643126
A70: 30 | B70: Chain Saw | C70: Processor | D70: Tower Yarder | E70: Bundler | F70: WT | G70: Residues | H70: Plant | I70: =$E$3*'2b Environment'!$D$23 -> 0.01769635307 | L70: =$E$8*'2b Environment'!$D$23 -> 0.00530890592 | O70: =$E$15*'2b Environment'!$D$23 -> 0.01769635307 | Q70: =$E$17 -> 0.1083450188 | S70: =$E$24 -> 0.01228913407 | W70: =$E$36 -> 0.06463656332 | X70: 0.2259723282
A71: 31 | B71: Chain Saw | C71: Processor | D71: Tower Yarder | F71: WT | G71: Logs & residues | H71: Forest road | I71: =$E$3 -> 0.1769635307 | L71: =$E$8 -> 0.0530890592 | O71: =$E$15 -> 0.1769635307 | S71: =$E$25 -> 0.01561442918 | W71: =$E$38 -> 0.02602829034 | X71: 0.4486588401
A72: 32 | B72: Chain Saw | C72: Processor | D72: Tower Yarder | F72: WT | G72: Logs & residues | H72: Terminal | I72: 0.1769635307 | L72: 0.0530890592 | O72: 0.1769635307 | S72: 0.01561442918 | U72: =$E$32 -> 0.07154982836 | V72: =$E$33 -> 0.02238101399 | X72: 0.5165613921
A73: 33 | B73: Chain Saw | C73: Processor | D73: Tower Yarder | F73: WT | G73: Logs & residues | H73: Plant | I73: 0.1769635307 | L73: 0.0530890592 | O73: 0.1769635307 | S73: 0.01561442918 | W73: =$E$37 -> 0.1118894917 | X73: 0.5345200415
A74: 34 | B74: Chain Saw | D74: Skidder | F74: TL | G74: Logs | H74: Forest road | I74: =$E$4 -> 0.265445296 | N74: =$E$12 -> 0.08848176534 | S74: =$E$22 -> 0.009904675224 | W74: =$E$38 -> 0.02602829034 | X74: 0.3898600269
A75: 35 | B75: Chain Saw | D75: Skidder | F75: TL | G75: Logs | H75: Terminal | I75: 0.265445296 | N75: =$E$12 -> 0.08848176534 | S75: 0.009904675224 | U75: =$E$29 -> 0.04778819019 | V75: =$E$33 -> 0.02238101399 | X75: 0.4340009407
A76: 36 | B76: Chain Saw | D76: Skidder | F76: TL | G76: Logs | H76: Plant | I76: 0.265445296 | N76: 0.08848176534 | S76: 0.009904675224 | W76: =$E$34 -> 0.0565842207 | X76: 0.4204159573
A77: 37 | B77: Chain Saw | C77: Skidder | D77: Processor | F77: WT | G77: Residues | H77: Forest road | I77: =$E$3*'2b Environment'!$D$23 -> 0.01769635307 | L77: =$E$8*'2b Environment'!$D$23 -> 0.00530890592 | N77: =$E$13*'2b Environment'!$D$23 -> 0.00796335888 | S77: =$E$23 -> 0.02552358616 | W77: =$E$38 -> 0.02602829034 | X77: 0.08252049436
A78: 38 | B78: Chain Saw | C78: Skidder | D78: Processor | F78: WT | G78: Residues | H78: Terminal | I78: =$E$3*'2b Environment'!$D$23 -> 0.01769635307 | L78: =$E$8*'2b Environment'!$D$23 -> 0.00530890592 | N78: =$E$13*'2b Environment'!$D$23 -> 0.00796335888 | S78: =$E$23 -> 0.02552358616 | U78: =$E$30 -> 0.07207779815 | V78: =$E$33 -> 0.02238101399 | X78: 0.1509510162
A79: 39 | B79: Chain Saw | C79: Skidder | D79: Processor | E79: Bundler | F79: WT | G79: Residues | H79: Terminal | I79: =$E$3*'2b Environment'!$D$23 -> 0.01769635307 | L79: =$E$8*'2b Environment'!$D$23 -> 0.00530890592 | N79: =$E$13*'2b Environment'!$D$23 -> 0.00796335888 | Q79: =$E$17 -> 0.1083450188 | S79: =$E$24 -> 0.01228913407 | U79: =$E$31 -> 0.05458879423 | V79: 0.02238101399 | X79: 0.2285725789
A80: 40 | B80: Chain Saw | C80: Skidder | D80: Processor | F80: WT | G80: Residues | H80: Plant | I80: =$E$3*'2b Environment'!$D$23 -> 0.01769635307 | L80: =$E$8*'2b Environment'!$D$23 -> 0.00530890592 | N80: =$E$13*'2b Environment'!$D$23 -> 0.00796335888 | S80: =$E$23 -> 0.02552358616 | W80: =$E$35 -> 0.09433911435 | X80: 0.1508313184
A81: 41 | B81: Chain Saw | C81: Skidder | D81: Processor | E81: Bundler | F81: WT | G81: Residues | H81: Plant | I81: =$E$3*'2b Environment'!$D$23 -> 0.01769635307 | L81: =$E$8*'2b Environment'!$D$23 -> 0.00530890592 | N81: =$E$13*'2b Environment'!$D$23 -> 0.00796335888 | Q81: =$E$17 -> 0.1083450188 | S81: =$E$24 -> 0.01228913407 | W81: =$E$36 -> 0.06463656332 | X81: 0.216239334
A82: 42 | B82: Chain Saw | C82: Skidder | D82: Processor | F82: WT | G82: Logs & residues | H82: Forest road | I82: =$E$3 -> 0.1769635307 | L82: =$E$8 -> 0.0530890592 | N82: =$E$13 -> 0.0796335888 | S82: =$E$25 -> 0.01561442918 | W82: =$E$38 -> 0.02602829034 | X82: 0.3513288982
A83: 43 | B83: Chain Saw | C83: Skidder | D83: Processor | F83: WT | G83: Logs & residues | H83: Terminal | I83: 0.1769635307 | L83: 0.0530890592 | N83: 0.0796335888 | S83: 0.01561442918 | U83: =$E$32 -> 0.07154982836 | V83: =$E$33 -> 0.02238101399 | X83: 0.4192314502
A84: 44 | B84: Chain Saw | C84: Skidder | D84: Processor | F84: WT | G84: Logs & residues | H84: Plant | I84: 0.1769635307 | L84: 0.0530890592 | N84: 0.0796335888 | S84: 0.01561442918 | W84: =$E$37 -> 0.1118894917 | X84: 0.4371900996
A85: 45 | B85: Feller-buncher | C85: Chipper | D85: Shuttle | F85: CHIPS | G85: Logs & residues | H85: Stand | J85: =$E$7 -> 0.09153286069 | P85: =E16 -> 0.03104623345 | T85: =E26 -> 0.07807214589 | W85: =$E$38 -> 0.02602829034 | X85: 0.2266795304
A86: 46 | B86: Feller-buncher | D86: Forwarder | F86: WT | G86: Logs & residues | H86: Forest road | J86: =$E$7 -> 0.09153286069 | M86: =$E$11 -> 0.09652556219 | S86: =$E$25 -> 0.01561442918 | W86: =$E$38 -> 0.02602829034 | X86: 0.2297011424
A87: 47 | B87: Feller-buncher | D87: Forwarder | F87: WT | G87: Logs & residues | H87: Terminal | J87: 0.09153286069 | M87: 0.09652556219 | S87: 0.01561442918 | U87: =$E$32 -> 0.07154982836 | V87: =$E$33 -> 0.02238101399 | X87: 0.2976036944
A88: 48 | B88: Feller-buncher | D88: Forwarder | F88: WT | G88: Logs & residues | H88: Plant | J88: 0.09153286069 | M88: 0.09652556219 | S88: 0.01561442918 | W88: =$E$37 -> 0.1118894917 | X88: 0.3155623438

Sheet Accidents (hidden)
A3: Felling with chain saw | B3: =Q5 -> 0.2042124542 | C3: =B3 -> 0.2042124542
A4: Felling and delimbing with chain saw | B4: =Q6 -> 0.106456044 | C4: =B4 -> 0.106456044 | K4: Felling with chain saw | L4: Felling and delimbing with chain saw | M4: Felling, delimbing and crosscutting with chain saw | N4: Felling with feller buncher | O4: Felling, delimbing and crosscutting with harvester
A5: Felling, delimbing and crosscutting with chain saw | B5: =Q7 -> 0.04113247863 | C5: =B5 -> 0.04113247863 | J5: Felling with chain saw | L5: 2 | M5: 3 | N5: =1/6 -> 0.1666666667 | O5: =1/7 -> 0.1428571429 | P5: =SUM(K5:O5)/COUNT(K5:O5) -> 1.327380952 | Q5: =P5/$P$9 -> 0.2042124542
A6: Felling, delimbing and crosscutting with harvester | B6: =Q9 -> 1 | C6: =B6 -> 1 | J6: Felling and delimbing with chain saw | K6: =1/2 -> 0.5 | M6: 2 | N6: =1/7 -> 0.1428571429 | O6: =1/8 -> 0.125 | P6: =SUM(K6:O6)/COUNT(K6:O6) -> 0.6919642857 | Q6: =P6/$P$9 -> 0.106456044
A7: Felling with feller buncher | B7: =Q8 -> 0.8269230769 | C7: =B7 -> 0.8269230769 | J7: Felling, delimbing and crosscutting with chain saw | K7: =1/3 -> 0.3333333333 | L7: 0.5 | N7: =1/8 -> 0.125 | O7: =1/9 -> 0.1111111111 | P7: 0.2673611111 | Q7: 0.04113247863
J8: Felling with feller buncher | K8: 6 | L8: 7 | M8: 8 | O8: =1/2 -> 0.5 | P8: 5.375 | Q8: =P8/$P$9 -> 0.8269230769
A9: Extracting of logs with forwarder | B9: =P14 -> 1 | C9: =B9 -> 1 | J9: Felling, delimbing and crosscutting with harvester | K9: 7 | L9: 8 | M9: 9 | N9: 2 | P9: 6.5 | Q9: =P9/$P$9 -> 1
A10: Extracting of residues with forwarder | B10: =P14 -> 1 | C10: 1
A11: Extracting of logs & residues with forwarder | B11: =P14 -> 1 | C11: 1
A12: Extracting of stems with skidder | B12: =P15 -> 0.08571428571 | C12: 0.08571428571
A13: Extracting of trees with skidder | B13: =P15 -> 0.08571428571 | C13: 0.08571428571 | K13: Forwarder | L13: Skidder | M13: Towe yarder | N13: Shuttle
A14: Extracting of stems with tower yarder | B14: =P16 -> 0.08571428571 | C14: 0.08571428571 | J14: Forwarder | L14: 7 | M14: 7 | N14: 1 | O14: =SUM(K14:N14)/COUNT(K14:N14) -> 5 | P14: =O14/$O$14 -> 1
A15: Extracting of trees with tower yarder | B15: =P16 -> 0.08571428571 | C15: 0.08571428571 | J15: Skidder | K15: =1/7 -> 0.1428571429 | M15: 1 | N15: =1/7 -> 0.1428571429 | O15: =SUM(K15:N15)/COUNT(K15:N15) -> 0.4285714286 | P15: =O15/$O$14 -> 0.08571428571
A16: Extracting of chips with shuttle | B16: =P17 -> 1 | C16: 1 | J16: Tower yarder | K16: =1/7 -> 0.1428571429 | L16: 1 | N16: =1/7 -> 0.1428571429 | O16: =SUM(K16:N16)/COUNT(K16:N16) -> 0.4285714286 | P16: =O16/$O$14 -> 0.08571428571
J17: Shuttle | K17: 1 | L17: 7 | M17: 7 | O17: =SUM(K17:N17)/COUNT(K17:N17) -> 5 | P17: =O17/$O$14 -> 1
I24: Chain saw | J24: Feller buncher | K24: Harvester | L24: Forwarder | M24: Skidder | N24: Tower yarder | O24: Shuttle | P24: SUM
A25: 1 | B25: Chain Saw | D25: Forwarder | F25: CTL | G25: Logs | H25: Forest road | I25: =$C$5 -> 0.04113247863 | L25: =$C$9 -> 1 | P25: =SUM(I25:O25)/COUNT(I25:O25) -> 0.5205662393
A26: 2 | B26: Chain Saw | D26: Forwarder | F26: CTL | G26: Logs | H26: Terminal | I26: 0.04113247863 | L26: =$C$9 -> 1 | P26: =SUM(I26:O26)/COUNT(I26:O26) -> 0.5205662393
A27: 3 | B27: Chain Saw | D27: Forwarder | F27: CTL | G27: Logs | H27: Plant | I27: 0.04113247863 | L27: =$C$9 -> 1 | P27: 0.5205662393
A28: 4 | B28: Chain Saw | D28: Forwarder | F28: CTL | G28: Residues | H28: Forest road | I28: 0.04113247863 | L28: =$C$10 -> 1 | P28: 0.5205662393
A29: 5 | B29: Chain Saw | D29: Forwarder | F29: CTL | G29: Residues | H29: Terminal | I29: 0.04113247863 | L29: =$C$10 -> 1 | P29: 0.5205662393
A30: 6 | B30: Chain Saw | D30: Forwarder | E30: Bundler | F30: CTL | G30: Residues | H30: Terminal | I30: 0.04113247863 | L30: =$C$10 -> 1 | P30: 0.5205662393
A31: 7 | B31: Chain Saw | D31: Forwarder | F31: CTL | G31: Residues | H31: Plant | I31: 0.04113247863 | L31: =$C$10 -> 1 | P31: 0.5205662393
A32: 8 | B32: Chain Saw | D32: Forwarder | E32: Bundler | F32: CTL | G32: Residues | H32: Plant | I32: 0.04113247863 | L32: =$C$10 -> 1 | P32: 0.5205662393
A33: 9 | B33: Chain Saw | D33: Forwarder | F33: CTL | G33: Logs & residues | H33: Forest road | I33: =$C$3 -> 0.2042124542 | L33: =$C$11 -> 1 | P33: 0.6021062271
A34: 10 | B34: Chain Saw | D34: Forwarder | F34: CTL | G34: Logs & residues | H34: Terminal | I34: =$C$3 -> 0.2042124542 | L34: =$C$11 -> 1 | P34: 0.6021062271
A35: 11 | B35: Chain Saw | D35: Forwarder | F35: CTL | G35: Logs & residues | H35: Plant | I35: =$C$3 -> 0.2042124542 | L35: =$C$11 -> 1 | P35: 0.6021062271
A36: 12 | B36: Harvester | D36: Forwarder | F36: CTL | G36: Logs | H36: Forest road | K36: =$C$6 -> 1 | L36: =$C$9 -> 1 | P36: 1
A37: 13 | B37: Harvester | D37: Forwarder | F37: CTL | G37: Logs | H37: Terminal | K37: 1 | L37: =$C$9 -> 1 | P37: 1
A38: 14 | B38: Harvester | D38: Forwarder | F38: CTL | G38: Logs | H38: Plant | K38: 1 | L38: =$C$9 -> 1 | P38: 1
A39: 15 | B39: Harvester | D39: Forwarder | F39: CTL | G39: Residues | H39: Forest road | K39: 1 | L39: =$C$10 -> 1 | P39: 1
A40: 16 | B40: Harvester | D40: Forwarder | F40: CTL | G40: Residues | H40: Terminal | K40: 1 | L40: =$C$10 -> 1 | P40: 1
A41: 17 | B41: Harvester | D41: Forwarder | E41: Bundler | F41: CTL | G41: Residues | H41: Terminal | K41: 1 | L41: =$C$10 -> 1 | P41: 1
A42: 18 | B42: Harvester | D42: Forwarder | F42: CTL | G42: Residues | H42: Plant | K42: 1 | L42: =$C$10 -> 1 | P42: 1
A43: 19 | B43: Harvester | D43: Forwarder | E43: Bundler | F43: CTL | G43: Residues | H43: Plant | K43: 1 | L43: =$C$10 -> 1 | P43: 1
A44: 20 | B44: Harvester | D44: Forwarder | F44: CTL | G44: Logs & residues | H44: Forest road | K44: 1 | L44: =$C$11 -> 1 | P44: 1
A45: 21 | B45: Harvester | D45: Forwarder | F45: CTL | G45: Logs & residues | H45: Terminal | K45: 1 | L45: =$C$11 -> 1 | P45: 1
A46: 22 | B46: Harvester | D46: Forwarder | F46: CTL | G46: Logs & residues | H46: Plant | K46: 1 | L46: =$C$11 -> 1 | P46: 1
A47: 23 | B47: Chain Saw | D47: Tower Yarder | F47: TL | G47: Logs | H47: Forest road | I47: =$C$4 -> 0.106456044 | N47: =$C$14 -> 0.08571428571 | P47: 0.09608516484
A48: 24 | B48: Chain Saw | D48: Tower Yarder | F48: TL | G48: Logs | H48: Terminal | I48: =$C$4 -> 0.106456044 | N48: 0.08571428571 | P48: 0.09608516484
A49: 25 | B49: Chain Saw | D49: Tower Yarder | F49: TL | G49: Logs | H49: Plant | I49: =$C$4 -> 0.106456044 | N49: 0.08571428571 | P49: 0.09608516484
A50: 26 | B50: Chain Saw | C50: Processor | D50: Tower Yarder | F50: WT | G50: Residues | H50: Forest road | I50: =$C$3 -> 0.2042124542 | N50: 0.08571428571 | P50: 0.14496337
A51: 27 | B51: Chain Saw | C51: Processor | D51: Tower Yarder | F51: WT | G51: Residues | H51: Terminal | I51: 0.2042124542 | N51: 0.08571428571 | P51: 0.14496337
A52: 28 | B52: Chain Saw | C52: Processor | D52: Tower Yarder | E52: Bundler | F52: WT | G52: Residues | H52: Terminal | I52: 0.2042124542 | N52: 0.08571428571 | P52: 0.14496337
A53: 29 | B53: Chain Saw | C53: Processor | D53: Tower Yarder | F53: WT | G53: Residues | H53: Plant | I53: 0.2042124542 | N53: 0.08571428571 | P53: 0.14496337
A54: 30 | B54: Chain Saw | C54: Processor | D54: Tower Yarder | E54: Bundler | F54: WT | G54: Residues | H54: Plant | I54: 0.2042124542 | N54: 0.08571428571 | P54: 0.14496337
A55: 31 | B55: Chain Saw | C55: Processor | D55: Tower Yarder | F55: WT | G55: Logs & residues | H55: Forest road | I55: 0.2042124542 | N55: =$C$15 -> 0.08571428571 | P55: 0.14496337
A56: 32 | B56: Chain Saw | C56: Processor | D56: Tower Yarder | F56: WT | G56: Logs & residues | H56: Terminal | I56: 0.2042124542 | N56: =$C$15 -> 0.08571428571 | P56: 0.14496337
A57: 33 | B57: Chain Saw | C57: Processor | D57: Tower Yarder | F57: WT | G57: Logs & residues | H57: Plant | I57: 0.2042124542 | N57: =$C$15 -> 0.08571428571 | P57: 0.14496337
A58: 34 | B58: Chain Saw | D58: Skidder | F58: TL | G58: Logs | H58: Forest road | I58: =$C$4 -> 0.106456044 | M58: =$C$12 -> 0.08571428571 | P58: 0.09608516484
A59: 35 | B59: Chain Saw | D59: Skidder | F59: TL | G59: Logs | H59: Terminal | I59: =$C$4 -> 0.106456044 | M59: 0.08571428571 | P59: 0.09608516484
A60: 36 | B60: Chain Saw | D60: Skidder | F60: TL | G60: Logs | H60: Plant | I60: =$C$4 -> 0.106456044 | M60: 0.08571428571 | P60: 0.09608516484
A61: 37 | B61: Chain Saw | C61: Skidder | D61: Processor | F61: WT | G61: Residues | H61: Forest road | I61: =$C$3 -> 0.2042124542 | M61: 0.08571428571 | P61: 0.14496337
A62: 38 | B62: Chain Saw | C62: Skidder | D62: Processor | F62: WT | G62: Residues | H62: Terminal | I62: 0.2042124542 | M62: 0.08571428571 | P62: 0.14496337
A63: 39 | B63: Chain Saw | C63: Skidder | D63: Processor | E63: Bundler | F63: WT | G63: Residues | H63: Terminal | I63: 0.2042124542 | M63: 0.08571428571 | P63: 0.14496337
A64: 40 | B64: Chain Saw | C64: Skidder | D64: Processor | F64: WT | G64: Residues | H64: Plant | I64: 0.2042124542 | M64: 0.08571428571 | P64: 0.14496337
A65: 41 | B65: Chain Saw | C65: Skidder | D65: Processor | E65: Bundler | F65: WT | G65: Residues | H65: Plant | I65: 0.2042124542 | M65: 0.08571428571 | P65: 0.14496337
A66: 42 | B66: Chain Saw | C66: Skidder | D66: Processor | F66: WT | G66: Logs & residues | H66: Forest road | I66: 0.2042124542 | M66: =$C$13 -> 0.08571428571 | P66: 0.14496337
A67: 43 | B67: Chain Saw | C67: Skidder | D67: Processor | F67: WT | G67: Logs & residues | H67: Terminal | I67: 0.2042124542 | M67: =$C$13 -> 0.08571428571 | P67: 0.14496337
A68: 44 | B68: Chain Saw | C68: Skidder | D68: Processor | F68: WT | G68: Logs & residues | H68: Plant | I68: 0.2042124542 | M68: =$C$13 -> 0.08571428571 | P68: 0.14496337
A69: 45 | B69: Feller-buncher | C69: Chipper | D69: Shuttle | F69: CHIPS | G69: Logs & residues | H69: Stand | J69: =$C$7 -> 0.8269230769 | O69: =C16 -> 1 | P69: 0.9134615385
A70: 46 | B70: Feller-buncher | D70: Forwarder | F70: WT | G70: Logs & residues | H70: Forest road | J70: =$C$7 -> 0.8269230769 | L70: =$C$11 -> 1 | P70: 0.9134615385
A71: 47 | B71: Feller-buncher | D71: Forwarder | F71: WT | G71: Logs & residues | H71: Terminal | J71: =$C$7 -> 0.8269230769 | L71: =$C$11 -> 1 | P71: 0.9134615385
A72: 48 | B72: Feller-buncher | D72: Forwarder | F72: WT | G72: Logs & residues | H72: Plant | J72: =$C$7 -> 0.8269230769 | L72: =$C$11 -> 1 | P72: 0.9134615385

Sheet 3b Details A (hidden)
B2: (3b) Detailed analysis A
B4: The detailed analysis shows the utility values ​​and their ranking for different supply chain options. Graphs and tables give a better understanding of the calculation and show the composition of utility values ​​and the impacts on the evaluation criteria.
C5: Category A - Felling, (delimbing and crosscutting) with chain saw, extracting with forwarder
C7: Option 1 | D7: Option 2 | E7: Option 3 | F7: Option 4 | G7: Option 5 | H7: Option 6 | I7: Option 7 | J7: Option 8 | K7: Option 9 | L7: Option 10 | M7: Option 11
C8: =C25 -> 4 | D8: =D25 -> 3 | E8: 1 | F8: 11 | G8: 10 | H8: 9 | I8: 8 | J8: 6 | K8: 7 | L8: 5 | M8: 2
B9: Working method | C9: Cut-to-length | D9: Cut-to-length | E9: Cut-to-length | F9: Cut-to-length | G9: Cut-to-length | H9: Cut-to-length | I9: Cut-to-length | J9: Cut-to-length | K9: Whole-tree | L9: Whole-tree | M9: Whole-tree
B10: Bundling | C10: no | D10: no | E10: no | F10: no | G10: no | H10: yes | I10: no | J10: yes | K10: no | L10: no | M10: no
B11: Kind of energy wood | C11: Logs | D11: Logs | E11: Logs | F11: Residues | G11: Residues | H11: Residues | I11: Residues | J11: Residues | K11: Logs & residues | L11: Logs & residues | M11: Logs & residues
B12: Chipping location | C12: Forest road | D12: Terminal | E12: Plant | F12: Forest road | G12: Terminal | H12: Terminal | I12: Plant | J12: Plant | K12: Forest road | L12: Terminal | M12: Plant
B13: Nutrient loss | C13: ='Supply chains'!$AO$4 -> 0.0425 | D13: ='Supply chains'!$AO$5 -> 0.0425 | E13: ='Supply chains'!$AO$6 -> 0.0425 | F13: ='Supply chains'!$AO$7 -> 0.02166666667 | G13: ='Supply chains'!$AO$8 -> 0.02166666667 | H13: ='Supply chains'!$AO$9 -> 0.02166666667 | I13: ='Supply chains'!$AO$10 -> 0.02166666667 | J13: ='Supply chains'!$AO$11 -> 0.02166666667 | K13: ='Supply chains'!$AO$12 -> 0.02166666667 | L13: ='Supply chains'!$AO$13 -> 0.02166666667 | M13: ='Supply chains'!$AO$14 -> 0.02166666667
B14: Bearing pressure | C14: ='Supply chains'!$AP$4 -> 0.03333333333 | D14: ='Supply chains'!$AP$5 -> 0.03333333333 | E14: ='Supply chains'!$AP$6 -> 0.03333333333 | F14: ='Supply chains'!$AP$7 -> 0.03333333333 | G14: ='Supply chains'!$AP$8 -> 0.03333333333 | H14: ='Supply chains'!$AP$9 -> 0.03333333333 | I14: ='Supply chains'!$AP$10 -> 0.03333333333 | J14: ='Supply chains'!$AP$11 -> 0.03333333333 | K14: ='Supply chains'!$AP$12 -> 0.03333333333 | L14: ='Supply chains'!$AP$13 -> 0.03333333333 | M14: ='Supply chains'!$AP$14 -> 0.03333333333
B15: Energy efficiency | C15: ='Supply chains'!$AW$4 -> 0.08333333333 | D15: ='Supply chains'!$AW$5 -> 0.08333333333 | E15: ='Supply chains'!$AW$6 -> 0.08333333333 | F15: ='Supply chains'!$AW$7 -> 0.04344798973 | G15: ='Supply chains'!$AW$8 -> 0.03987830715 | H15: ='Supply chains'!$AW$9 -> 0.02083114259 | I15: ='Supply chains'!$AW$10 -> 0.03487392599 | J15: ='Supply chains'!$AW$11 -> 0.01901348605 | K15: ='Supply chains'!$AW$12 -> 0.07491718942 | L15: ='Supply chains'!$AW$13 -> 0.07138628428 | M15: ='Supply chains'!$AW$14 -> 0.06646592091
B16: Damage on remaining stand | C16: ='Supply chains'!$AR$4 -> 0.06583333333 | D16: ='Supply chains'!$AR$5 -> 0.06583333333 | E16: ='Supply chains'!$AR$6 -> 0.06583333333 | F16: ='Supply chains'!$AR$7 -> 0.08333333333 | G16: ='Supply chains'!$AR$8 -> 0.08333333333 | H16: ='Supply chains'!$AR$9 -> 0.08333333333 | I16: ='Supply chains'!$AR$10 -> 0.08333333333 | J16: ='Supply chains'!$AR$11 -> 0.08333333333 | K16: ='Supply chains'!$AR$12 -> 0.06583333333 | L16: ='Supply chains'!$AR$13 -> 0.06583333333 | M16: ='Supply chains'!$AR$14 -> 0.06583333333
B17: SUM ECOLOGY | C17: =SUM(C13:C16) -> 0.225 | D17: 0.225 | E17: 0.225 | F17: 0.1817813231 | G17: 0.1782116405 | H17: 0.1591644759 | I17: 0.1732072593 | J17: 0.1573468194 | K17: 0.1957505228 | L17: 0.1922196176 | M17: 0.1872992542
B18: Contribution margin | C18: ='Supply chains'!$AS$4 -> 0.06515660358 | D18: ='Supply chains'!$AS$5 -> 0.02206194128 | E18: ='Supply chains'!$AS$6 -> 0.04196625188 | F18: ='Supply chains'!$AS$7 -> 0.04839565997 | G18: ='Supply chains'!$AS$8 -> 0 | H18: ='Supply chains'!$AS$9 -> 0 | I18: ='Supply chains'!$AS$10 -> 3.537917606e-05 | J18: ='Supply chains'!$AS$11 -> 0 | K18: ='Supply chains'!$AS$12 -> 0.07741143323 | L18: ='Supply chains'!$AS$13 -> 0.02741940736 | M18: ='Supply chains'!$AS$14 -> 0.04121785176
B19: Supply guarantee | C19: ='Supply chains'!$AT$4 -> 0.05 | D19: ='Supply chains'!$AT$5 -> 0.1 | E19: ='Supply chains'!$AT$6 -> 0.1666666667 | F19: ='Supply chains'!$AT$7 -> 0.01666666667 | G19: ='Supply chains'!$AT$8 -> 0.06666666667 | H19: ='Supply chains'!$AT$9 -> 0.08333333333 | I19: ='Supply chains'!$AT$10 -> 0.1166666667 | J19: ='Supply chains'!$AT$11 -> 0.15 | K19: ='Supply chains'!$AT$12 -> 0.03333333333 | L19: ='Supply chains'!$AT$13 -> 0.08333333333 | M19: ='Supply chains'!$AT$14 -> 0.1333333333
B20: SUM ECONOMY | C20: =SUM(C18:C19) -> 0.1151566036 | D20: 0.1220619413 | E20: 0.2086329185 | F20: 0.06506232663 | G20: 0.06666666667 | H20: 0.08333333333 | I20: 0.1167020458 | J20: 0.15 | K20: 0.1107447666 | L20: 0.1107527407 | M20: 0.1745511851
B21: Employment | C21: ='Supply chains'!$AU$4 -> 0.14649199 | D21: ='Supply chains'!$AU$5 -> 0.161205628 | E21: ='Supply chains'!$AU$6 -> 0.1566773002 | F21: ='Supply chains'!$AU$7 -> 0.0879693711 | G21: ='Supply chains'!$AU$8 -> 0.110779545 | H21: ='Supply chains'!$AU$9 -> 0.1366533993 | I21: ='Supply chains'!$AU$10 -> 0.1107396458 | J21: ='Supply chains'!$AU$11 -> 0.1325423177 | K21: ='Supply chains'!$AU$12 -> 0.1050439375 | L21: ='Supply chains'!$AU$13 -> 0.1276781215 | M21: ='Supply chains'!$AU$14 -> 0.1336643379
B22: Working safety | C22: ='Supply chains'!$AV$4 -> 0.08676103989 | D22: ='Supply chains'!$AV$5 -> 0.08676103989 | E22: ='Supply chains'!$AV$6 -> 0.08676103989 | F22: ='Supply chains'!$AV$7 -> 0.08676103989 | G22: ='Supply chains'!$AV$8 -> 0.08676103989 | H22: ='Supply chains'!$AV$9 -> 0.08676103989 | I22: ='Supply chains'!$AV$10 -> 0.08676103989 | J22: ='Supply chains'!$AV$11 -> 0.08676103989 | K22: ='Supply chains'!$AV$12 -> 0.1003510379 | L22: ='Supply chains'!$AV$13 -> 0.1003510379 | M22: ='Supply chains'!$AV$14 -> 0.1003510379
B23: SUM SOCIAL | C23: =SUM(C21:C22) -> 0.2332530299 | D23: 0.2479666679 | E23: 0.24343834 | F23: 0.174730411 | G23: 0.1975405849 | H23: 0.2234144392 | I23: 0.1975006857 | J23: 0.2193033575 | K23: 0.2053949753 | L23: 0.2280291593 | M23: 0.2340153758
B24: UTILITY VALUE | C24: =C17+C20+C23 -> 0.5734096335 | D24: 0.5950286091 | E24: 0.6770712586 | F24: 0.4215740607 | G24: 0.4424188921 | H24: 0.4659122484 | I24: 0.4874099908 | J24: 0.5266501769 | K24: 0.5118902646 | L24: 0.5310015176 | M24: 0.5958658151
B25: RANK | C25: =RANK(C24,$C$24:$M$24,0) -> 4 | D25: 3 | E25: 1 | F25: 11 | G25: 10 | H25: 9 | I25: 8 | J25: 6 | K25: 7 | L25: 5 | M25: 2
C49: A utility value of 0 indicates that the system is technically not applicable. These restrictions are determined by the entered site & stand specification data.
B51: Trade-offs | C51: =C25 -> 4 | D51: =D25 -> 3 | E51: 1 | F51: 11 | G51: 10 | H51: 9 | I51: 8 | J51: 6 | K51: 7 | L51: 5 | M51: 2
C52: Option 1 | D52: Option 2 | E52: Option 3 | F52: Option 4 | G52: Option 5 | H52: Option 6 | I52: Option 7 | J52: Option 8 | K52: Option 9 | L52: Option 10 | M52: Option 11
B53: Nutrient loss [kg/ha] | C53: =Values!$K$3 -> 640 | D53: =Values!$K$4 -> 640 | E53: =Values!$K$5 -> 640 | F53: =Values!$K$6 -> 960 | G53: =Values!$K$7 -> 960 | H53: =Values!$K$8 -> 960 | I53: =Values!$K$9 -> 960 | J53: =Values!$K$10 -> 960 | K53: =Values!$K$11 -> 960 | L53: =Values!$K$12 -> 960 | M53: =Values!$K$13 -> 960
B54: Bearing pressure [kPa] | C54: =Values!$L$3 -> 300 | D54: =Values!$L$4 -> 300 | E54: =Values!$L$5 -> 300 | F54: =Values!$L$6 -> 300 | G54: =Values!$L$7 -> 300 | H54: =Values!$L$8 -> 300 | I54: =Values!$L$9 -> 300 | J54: =Values!$L$10 -> 300 | K54: =Values!$L$11 -> 300 | L54: =Values!$L$12 -> 300 | M54: =Values!$L$13 -> 300
B55: Emissions [kg CO2/m³ loose] | C55: =Values!$M$3 -> 2.786198285 | D55: =Values!$M$4 -> 2.897921552 | E55: =Values!$M$5 -> 2.952022443 | F55: =Values!$M$6 -> 6.559167693 | G55: =Values!$M$7 -> 6.804953981 | H55: =Values!$M$8 -> 8.116424053 | I55: =Values!$M$9 -> 7.149524749 | J55: =Values!$M$10 -> 8.241576653 | K55: =Values!$M$11 -> 4.117013075 | L55: =Values!$M$12 -> 4.360129388 | M55: =Values!$M$13 -> 4.69891521
B56: Energy demand [KWh/m³ loose] | C56: =Values!$X$3 -> 11.46059462 | D56: =Values!$X$4 -> 11.90071658 | E56: =Values!$X$5 -> 12.1138413 | F56: =Values!$X$6 -> 25.88761166 | G56: =Values!$X$7 -> 26.85586067 | H56: =Values!$X$8 -> 32.02225792 | I56: =Values!$X$9 -> 28.21326067 | J56: =Values!$X$10 -> 32.51528332 | K56: =Values!$X$11 -> 17.35183268 | L56: =Values!$X$12 -> 18.30956361 | M56: =Values!$X$13 -> 19.64417442
B57: Energy efficiency [%] | C57: =1-Values!$Y$3 -> 0.9847891953 | D57: =1-Values!$Y$4 -> 0.9842050538 | E57: =1-Values!$Y$5 -> 0.983922189 | F57: =1-Values!$Y$6 -> 0.9656412763 | G57: =1-Values!$Y$7 -> 0.9643561906 | H57: =1-Values!$Y$8 -> 0.9574992113 | I57: =1-Values!$Y$9 -> 0.9625546134 | J57: =1-Values!$Y$10 -> 0.956844855 | K57: =1-Values!$Y$11 -> 0.9769701882 | L57: =1-Values!$Y$12 -> 0.9756990623 | M57: =1-Values!$Y$13 -> 0.9739277315
B58: Damage on remaining stand [%] | C58: =Values!$N$3 -> 0.184 | D58: =Values!$N$4 -> 0.184 | E58: =Values!$N$5 -> 0.184 | F58: =Values!$N$6 -> 0.0544 | G58: =Values!$N$7 -> 0.0544 | H58: =Values!$N$8 -> 0.0544 | I58: =Values!$N$9 -> 0.0544 | J58: =Values!$N$10 -> 0.0544 | K58: =Values!$N$11 -> 0.184 | L58: =Values!$N$12 -> 0.184 | M58: =Values!$N$13 -> 0.184
B59: Purchase [€/m³ loose] | C59: =Values!$O$3 -> 0.4520705464 | D59: =Values!$O$4 -> 0.4520705464 | E59: =Values!$O$5 -> 0.4520705464 | F59: =Values!$O$6 -> 0.4520705464 | G59: =Values!$O$7 -> 0.4520705464 | H59: =Values!$O$8 -> 0.4520705464 | I59: =Values!$O$9 -> 0.4520705464 | J59: =Values!$O$10 -> 0.4520705464 | K59: =Values!$O$11 -> 0.4520705464 | L59: =Values!$O$12 -> 0.4520705464 | M59: =Values!$O$13 -> 0.4520705464
B60: Felling and delimbing [€/m³ loose] | C60: =Values!$P$3 -> 9.845333333 | D60: =Values!$P$4 -> 9.845333333 | E60: =Values!$P$5 -> 9.845333333 | F60: =Values!$P$6 -> 0.9845333333 | G60: =Values!$P$7 -> 0.9845333333 | H60: =Values!$P$8 -> 0.9845333333 | I60: =Values!$P$9 -> 0.9845333333 | J60: =Values!$P$10 -> 0.9845333333 | K60: =Values!$P$11 -> 4.922666667 | L60: =Values!$P$12 -> 4.922666667 | M60: =Values!$P$13 -> 4.922666667
B61: Extracting [€/m³ loose] | C61: =Values!$Q$3 -> 2.99364486 | D61: =Values!$Q$4 -> 2.99364486 | E61: =Values!$Q$5 -> 2.99364486 | F61: =Values!$Q$6 -> 10.67733333 | G61: =Values!$Q$7 -> 10.67733333 | H61: =Values!$Q$8 -> 10.67733333 | I61: =Values!$Q$9 -> 10.67733333 | J61: =Values!$Q$10 -> 10.67733333 | K61: =Values!$Q$11 -> 5.824 | L61: =Values!$Q$12 -> 5.824 | M61: =Values!$Q$13 -> 5.824
B62: Bundling [€/m³ loose] | C62: =Values!$R$3 -> 0 | D62: =Values!$R$4 -> 0 | E62: =Values!$R$5 -> 0 | F62: =Values!$R$6 -> 0 | G62: =Values!$R$7 -> 0 | H62: =Values!$R$8 -> 10.1877551 | I62: =Values!$R$9 -> 0 | J62: =Values!$R$10 -> 10.1877551 | K62: =Values!$R$11 -> 0 | L62: =Values!$R$12 -> 0 | M62: =Values!$R$13 -> 0
B63: Chipping [€/m³ loose] | C63: =Values!$S$3 -> 1.707462687 | D63: =Values!$S$4 -> 1.707462687 | E63: =Values!$S$5 -> 1.707462687 | F63: =Values!$S$6 -> 4.4 | G63: =Values!$S$7 -> 4.4 | H63: =Values!$S$8 -> 2.118518519 | I63: =Values!$S$9 -> 4.4 | J63: =Values!$S$10 -> 2.118518519 | K63: =Values!$S$11 -> 2.691764706 | L63: =Values!$S$12 -> 2.691764706 | M63: =Values!$S$13 -> 2.691764706
B64: Transporting [€/m³ loose] | C64: =Values!$T$3 -> 1.313939617 | D64: =Values!$T$4 -> 4.010305123 | E64: =Values!$T$5 -> 3.410674609 | F64: =Values!$T$6 -> 1.313939617 | G64: =Values!$T$7 -> 4.659781062 | H64: =Values!$T$8 -> 4.420218828 | I64: =Values!$T$9 -> 5.686391329 | J64: =Values!$T$10 -> 3.896038199 | K64: =Values!$T$11 -> 1.313939617 | L64: =Values!$T$12 -> 4.633924106 | M64: =Values!$T$13 -> 4.586350046
B65: Storing [€/m³ loose] | C65: =Values!$U$3 -> 0.4 | D65: =Values!$U$4 -> 1.6 | E65: =Values!$U$5 -> 0.4 | F65: =Values!$U$6 -> 0.4 | G65: =Values!$U$7 -> 1.6 | H65: =Values!$U$8 -> 1.6 | I65: =Values!$U$9 -> 0.4 | J65: =Values!$U$10 -> 0.4 | K65: =Values!$U$11 -> 0.4 | L65: =Values!$U$12 -> 1.6 | M65: =Values!$U$13 -> 0.4
B66: Supply costs [€/m³ loose] | C66: =SUM(C59:C65) -> 16.71245104 | D66: 20.60881655 | E66: 18.80918604 | F66: 18.22787683 | G66: 22.77371828 | H66: 30.44042966 | I66: 22.60032854 | J66: 28.71624903 | K66: 15.60444154 | L66: 20.12442603 | M66: 18.87685197
B67: Contribution margin [€/m³ loose] | C67: =Values!$V$3 -> -1.643432831 | D67: =Values!$V$4 -> -5.539798336 | E67: =Values!$V$5 -> -3.740167823 | F67: =Values!$V$6 -> -3.158858618 | G67: =Values!$V$7 -> -7.704700063 | H67: =Values!$V$8 -> -15.37141145 | I67: =Values!$V$9 -> -7.53131033 | J67: =Values!$V$10 -> -13.64723082 | K67: =Values!$V$11 -> -0.5354233234 | L67: =Values!$V$12 -> -5.055407813 | M67: =Values!$V$13 -> -3.807833753
B68: Working hours [h/m³ loose] | C68: =Values!$W$3 -> 0.3311235699 | D68: =Values!$W$4 -> 0.3643815816 | E68: =Values!$W$5 -> 0.3541459634 | F68: =Values!$W$6 -> 0.1988418083 | G68: =Values!$W$7 -> 0.2504008473 | H68: =Values!$W$8 -> 0.3088848844 | I68: =Values!$W$9 -> 0.2503106608 | J68: =Values!$W$10 -> 0.2995923898 | K68: =Values!$W$11 -> 0.237436351 | L68: =Values!$W$12 -> 0.2885975906 | M68: =Values!$W$13 -> 0.3021285514

Sheet 3b Details B (hidden)
B2: (3b) Detailed analysis B
B4: The detailed analysis shows the utility values ​​and their ranking for different supply chain options. Graphs and tables give a better understanding of the calculation and show the composition of utility values ​​and the impacts on the evaluation criteria.
C5: Category B - Felling, delimbing and crosscutting with harvester, extracting with forwarder
C7: Option 1 | D7: Option 2 | E7: Option 3 | F7: Option 4 | G7: Option 5 | H7: Option 6 | I7: Option 7 | J7: Option 8 | K7: Option 9 | L7: Option 10 | M7: Option 11
C8: =C25 -> 4 | D8: =D25 -> 2 | E8: 1 | F8: 11 | G8: 10 | H8: 9 | I8: 6 | J8: 5 | K8: 8 | L8: 7 | M8: 3
B9: Working method | C9: Cut-to-length | D9: Cut-to-length | E9: Cut-to-length | F9: Cut-to-length | G9: Cut-to-length | H9: Cut-to-length | I9: Cut-to-length | J9: Cut-to-length | K9: Cut-to-length | L9: Cut-to-length | M9: Cut-to-length
B10: Bundling | C10: no | D10: no | E10: no | F10: no | G10: no | H10: yes | I10: no | J10: yes | K10: no | L10: no | M10: no
B11: Kind of energy wood | C11: Logs | D11: Logs | E11: Logs | F11: Residues | G11: Residues | H11: Residues | I11: Residues | J11: Residues | K11: Logs & residues | L11: Logs & residues | M11: Logs & residues
B12: Chipping location | C12: Forest road | D12: Terminal | E12: Plant | F12: Forest road | G12: Terminal | H12: Terminal | I12: Plant | J12: Plant | K12: Forest road | L12: Terminal | M12: Plant
B13: Nutrient loss | C13: ='Supply chains'!$AO$15 -> 0.0425 | D13: ='Supply chains'!$AO$16 -> 0.0425 | E13: ='Supply chains'!$AO$17 -> 0.0425 | F13: ='Supply chains'!$AO$18 -> 0.02166666667 | G13: ='Supply chains'!$AO$19 -> 0.02166666667 | H13: ='Supply chains'!$AO$20 -> 0.02166666667 | I13: ='Supply chains'!$AO$21 -> 0.02166666667 | J13: ='Supply chains'!$AO$22 -> 0.02166666667 | K13: ='Supply chains'!$AO$23 -> 0.02166666667 | L13: ='Supply chains'!$AO$24 -> 0.02166666667 | M13: ='Supply chains'!$AO$25 -> 0.02166666667
B14: Bearing pressure | C14: ='Supply chains'!$AP$15 -> 0.03333333333 | D14: ='Supply chains'!$AP$16 -> 0.03333333333 | E14: ='Supply chains'!$AP$17 -> 0.03333333333 | F14: ='Supply chains'!$AP$18 -> 0.03333333333 | G14: ='Supply chains'!$AP$19 -> 0.03333333333 | H14: ='Supply chains'!$AP$20 -> 0.03333333333 | I14: ='Supply chains'!$AP$21 -> 0.03333333333 | J14: ='Supply chains'!$AP$22 -> 0.03333333333 | K14: ='Supply chains'!$AP$23 -> 0.03333333333 | L14: ='Supply chains'!$AP$24 -> 0.03333333333 | M14: ='Supply chains'!$AP$25 -> 0.03333333333
B15: Energy efficiency | C15: ='Supply chains'!$AW$15 -> 0.07570562972 | D15: ='Supply chains'!$AW$16 -> 0.07408301438 | E15: ='Supply chains'!$AW$17 -> 0.0732972789 | F15: ='Supply chains'!$AW$18 -> 0.04135488733 | G15: ='Supply chains'!$AW$19 -> 0.03778520475 | H15: ='Supply chains'!$AW$20 -> 0.01873804019 | I15: ='Supply chains'!$AW$21 -> 0.03278082359 | J15: ='Supply chains'!$AW$22 -> 0.01692038364 | K15: ='Supply chains'!$AW$23 -> 0.0539861654 | L15: ='Supply chains'!$AW$24 -> 0.05045526027 | M15: ='Supply chains'!$AW$25 -> 0.04553489689
B16: Damage on remaining stand | C16: ='Supply chains'!$AR$15 -> 0.08183333333 | D16: ='Supply chains'!$AR$16 -> 0.08183333333 | E16: ='Supply chains'!$AR$17 -> 0.08183333333 | F16: ='Supply chains'!$AR$18 -> 0.08333333333 | G16: ='Supply chains'!$AR$19 -> 0.08333333333 | H16: ='Supply chains'!$AR$20 -> 0.08333333333 | I16: ='Supply chains'!$AR$21 -> 0.08333333333 | J16: ='Supply chains'!$AR$22 -> 0.08333333333 | K16: ='Supply chains'!$AR$23 -> 0.08183333333 | L16: ='Supply chains'!$AR$24 -> 0.08183333333 | M16: ='Supply chains'!$AR$25 -> 0.08183333333
B17: SUM ECOLOGY | C17: =SUM(C13:C16) -> 0.2333722964 | D17: =SUM(D13:D16) -> 0.231749681 | E17: 0.2309639456 | F17: 0.1796882207 | G17: 0.1761185381 | H17: 0.1570713735 | I17: 0.1711141569 | J17: 0.155253717 | K17: 0.1908194987 | L17: 0.1872885936 | M17: 0.1823682302
B18: Contribution margin | C18: ='Supply chains'!$AS$15 -> 0.1201047969 | D18: ='Supply chains'!$AS$16 -> 0.07701013459 | E18: ='Supply chains'!$AS$17 -> 0.09691444519 | F18: ='Supply chains'!$AS$18 -> 0.0538904793 | G18: ='Supply chains'!$AS$19 -> 0.003612469794 | H18: ='Supply chains'!$AS$20 -> 0 | I18: ='Supply chains'!$AS$21 -> 0.005530198507 | J18: ='Supply chains'!$AS$22 -> 0 | K18: ='Supply chains'!$AS$23 -> 0.07791384693 | L18: ='Supply chains'!$AS$24 -> 0.02792182106 | M18: ='Supply chains'!$AS$25 -> 0.04172026546
B19: Supply guarantee | C19: ='Supply chains'!$AT$15 -> 0.05 | D19: ='Supply chains'!$AT$16 -> 0.1 | E19: ='Supply chains'!$AT$17 -> 0.1666666667 | F19: ='Supply chains'!$AT$18 -> 0.01666666667 | G19: ='Supply chains'!$AT$19 -> 0.06666666667 | H19: ='Supply chains'!$AT$20 -> 0.08333333333 | I19: ='Supply chains'!$AT$21 -> 0.1166666667 | J19: ='Supply chains'!$AT$22 -> 0.15 | K19: ='Supply chains'!$AT$23 -> 0.03333333333 | L19: ='Supply chains'!$AT$24 -> 0.08333333333 | M19: ='Supply chains'!$AT$25 -> 0.1333333333
B20: SUM ECONOMY | C20: =SUM(C18:C19) -> 0.1701047969 | D20: 0.1770101346 | E20: 0.2635811119 | F20: 0.07055714596 | G20: 0.07027913646 | H20: 0.08333333333 | I20: 0.1221968652 | J20: 0.15 | K20: 0.1112471803 | L20: 0.1112551544 | M20: 0.1750535988
B21: Employment | C21: ='Supply chains'!$AU$15 -> 0.04885693862 | D21: ='Supply chains'!$AU$16 -> 0.06357057657 | E21: ='Supply chains'!$AU$17 -> 0.05904224875 | F21: ='Supply chains'!$AU$18 -> 0.07820586596 | G21: ='Supply chains'!$AU$19 -> 0.1010160399 | H21: ='Supply chains'!$AU$20 -> 0.1268898942 | I21: ='Supply chains'!$AU$21 -> 0.1009761406 | J21: ='Supply chains'!$AU$22 -> 0.1227788125 | K21: ='Supply chains'!$AU$23 -> 0.06639672961 | L21: ='Supply chains'!$AU$24 -> 0.08903091361 | M21: ='Supply chains'!$AU$25 -> 0.09501713008
B22: Working safety | C22: ='Supply chains'!$AV$15 -> 0.1666666667 | D22: ='Supply chains'!$AV$16 -> 0.1666666667 | E22: ='Supply chains'!$AV$17 -> 0.1666666667 | F22: ='Supply chains'!$AV$18 -> 0.1666666667 | G22: ='Supply chains'!$AV$19 -> 0.1666666667 | H22: ='Supply chains'!$AV$20 -> 0.1666666667 | I22: ='Supply chains'!$AV$21 -> 0.1666666667 | J22: ='Supply chains'!$AV$22 -> 0.1666666667 | K22: ='Supply chains'!$AV$23 -> 0.1666666667 | L22: ='Supply chains'!$AV$24 -> 0.1666666667 | M22: ='Supply chains'!$AV$25 -> 0.1666666667
B23: SUM SOCIAL | C23: =SUM(C21:C22) -> 0.2155236053 | D23: 0.2302372432 | E23: 0.2257089154 | F23: 0.2448725326 | G23: 0.2676827066 | H23: 0.2935565608 | I23: 0.2676428073 | J23: 0.2894454792 | K23: 0.2330633963 | L23: 0.2556975803 | M23: 0.2616837967
B24: UTILITY VALUE | C24: =C17+C20+C23 -> 0.6190006986 | D24: 0.6389970589 | E24: 0.7202539728 | F24: 0.4951178993 | G24: 0.5140803811 | H24: 0.5339612677 | I24: 0.5609538294 | J24: 0.5946991962 | K24: 0.5351300753 | L24: 0.5542413283 | M24: 0.6191056258
B25: RANK | C25: =RANK(C24,$C$24:$M$24,0) -> 4 | D25: 2 | E25: 1 | F25: 11 | G25: 10 | H25: 9 | I25: 6 | J25: 5 | K25: 8 | L25: 7 | M25: 3
C49: A utility value of 0 indicates that the system is technically not applicable. These restrictions are determined by the entered site & stand specification data.
B51: Trade-offs | C51: =C25 -> 4 | D51: =D25 -> 2 | E51: 1 | F51: 11 | G51: 10 | H51: 9 | I51: 6 | J51: 5 | K51: 8 | L51: 7 | M51: 3
C52: Option 1 | D52: Option 2 | E52: Option 3 | F52: Option 4 | G52: Option 5 | H52: Option 6 | I52: Option 7 | J52: Option 8 | K52: Option 9 | L52: Option 10 | M52: Option 11
B53: Nutrient loss [kg/ha] | C53: =Values!$K$14 -> 640 | D53: =Values!$K$15 -> 640 | E53: =Values!$K$16 -> 640 | F53: =Values!$K$17 -> 960 | G53: =Values!$K$18 -> 960 | H53: =Values!$K$19 -> 960 | I53: =Values!$K$20 -> 960 | J53: =Values!$K$21 -> 960 | K53: =Values!$K$22 -> 960 | L53: =Values!$K$23 -> 960 | M53: =Values!$K$24 -> 960
B54: Bearing pressure [kPa] | C54: =Values!$L$14 -> 300 | D54: =Values!$L$15 -> 300 | E54: =Values!$L$16 -> 300 | F54: =Values!$L$17 -> 300 | G54: =Values!$L$18 -> 300 | H54: =Values!$L$19 -> 300 | I54: =Values!$L$20 -> 300 | J54: =Values!$L$21 -> 300 | K54: =Values!$L$22 -> 300 | L54: =Values!$L$23 -> 300 | M54: =Values!$L$24 -> 300
B55: Emissions [kg CO2/m³ loose] | C55: =Values!$M$14 -> 4.35040886 | D55: =Values!$M$15 -> 4.462132127 | E55: =Values!$M$16 -> 4.516233018 | F55: =Values!$M$17 -> 6.715588751 | G55: =Values!$M$18 -> 6.961375039 | H55: =Values!$M$19 -> 8.272845111 | I55: =Values!$M$20 -> 7.305945807 | J55: =Values!$M$21 -> 8.39799771 | K55: =Values!$M$22 -> 5.845876983 | L55: =Values!$M$23 -> 6.088993296 | M55: =Values!$M$24 -> 6.427779118
B56: Energy demand [KWh/m³ loose] | C56: =Values!$X$14 -> 17.1379743 | D56: =Values!$X$15 -> 17.57809626 | E56: =Values!$X$16 -> 17.79122098 | F56: =Values!$X$17 -> 26.45534962 | G56: =Values!$X$18 -> 27.42359864 | H56: =Values!$X$19 -> 32.58999589 | I56: =Values!$X$20 -> 28.78099863 | J56: =Values!$X$21 -> 33.08302128 | K56: =Values!$X$22 -> 23.02921236 | L56: =Values!$X$23 -> 23.98694329 | M56: =Values!$X$24 -> 25.3215541
B57: Energy efficiency [%] | C57: =1-Values!$Y$14 -> 0.9772540267 | D57: =1-Values!$Y$15 -> 0.9766698852 | E57: =1-Values!$Y$16 -> 0.9763870204 | F57: =1-Values!$Y$17 -> 0.9648877594 | G57: =1-Values!$Y$18 -> 0.9636026737 | H57: =1-Values!$Y$19 -> 0.9567456945 | I57: =1-Values!$Y$20 -> 0.9618010965 | J57: =1-Values!$Y$21 -> 0.9560913381 | K57: =1-Values!$Y$22 -> 0.9694350195 | L57: =1-Values!$Y$23 -> 0.9681638937 | M57: =1-Values!$Y$24 -> 0.9663925629
B58: Damage on remaining stand [%] | C58: =Values!$N$14 -> 0.1072 | D58: =Values!$N$15 -> 0.1072 | E58: =Values!$N$16 -> 0.1072 | F58: =Values!$N$17 -> 0.04672 | G58: =Values!$N$18 -> 0.04672 | H58: =Values!$N$19 -> 0.04672 | I58: =Values!$N$20 -> 0.04672 | J58: =Values!$N$21 -> 0.04672 | K58: =Values!$N$22 -> 0.1072 | L58: =Values!$N$23 -> 0.1072 | M58: =Values!$N$24 -> 0.1072
B59: Purchase [€/m³ loose] | C59: =Values!$O$14 -> 0.4520705464 | D59: =Values!$O$15 -> 0.4520705464 | E59: =Values!$O$16 -> 0.4520705464 | F59: =Values!$O$17 -> 0.4520705464 | G59: =Values!$O$18 -> 0.4520705464 | H59: =Values!$O$19 -> 0.4520705464 | I59: =Values!$O$20 -> 0.4520705464 | J59: =Values!$O$21 -> 0.4520705464 | K59: =Values!$O$22 -> 0.4520705464 | L59: =Values!$O$23 -> 0.4520705464 | M59: =Values!$O$24 -> 0.4520705464
B60: Felling and delimbing [€/m³ loose] | C60: =Values!$P$14 -> 4.877241379 | D60: =Values!$P$15 -> 4.877241379 | E60: =Values!$P$16 -> 4.877241379 | F60: =Values!$P$17 -> 0.4877241379 | G60: =Values!$P$18 -> 0.4877241379 | H60: =Values!$P$19 -> 0.4877241379 | I60: =Values!$P$20 -> 0.4877241379 | J60: =Values!$P$21 -> 0.4877241379 | K60: =Values!$P$22 -> 4.877241379 | L60: =Values!$P$23 -> 4.877241379 | M60: =Values!$P$24 -> 4.877241379
B61: Extracting [€/m³ loose] | C61: =Values!$Q$14 -> 2.99364486 | D61: =Values!$Q$15 -> 2.99364486 | E61: =Values!$Q$16 -> 2.99364486 | F61: =Values!$Q$17 -> 10.67733333 | G61: =Values!$Q$18 -> 10.67733333 | H61: =Values!$Q$19 -> 10.67733333 | I61: =Values!$Q$20 -> 10.67733333 | J61: =Values!$Q$21 -> 10.67733333 | K61: =Values!$Q$22 -> 5.824 | L61: =Values!$Q$23 -> 5.824 | M61: =Values!$Q$24 -> 5.824
B62: Bundling [€/m³ loose] | C62: =Values!$R$14 -> 0 | D62: =Values!$R$15 -> 0 | E62: =Values!$R$16 -> 0 | F62: =Values!$R$17 -> 0 | G62: =Values!$R$18 -> 0 | H62: =Values!$R$19 -> 10.1877551 | I62: =Values!$R$20 -> 0 | J62: =Values!$R$21 -> 10.1877551 | K62: =Values!$R$22 -> 0 | L62: =Values!$R$23 -> 0 | M62: =Values!$R$24 -> 0
B63: Chipping [€/m³ loose] | C63: =Values!$S$14 -> 1.707462687 | D63: =Values!$S$15 -> 1.707462687 | E63: =Values!$S$16 -> 1.707462687 | F63: =Values!$S$17 -> 4.4 | G63: =Values!$S$18 -> 4.4 | H63: =Values!$S$19 -> 2.118518519 | I63: =Values!$S$20 -> 4.4 | J63: =Values!$S$21 -> 2.118518519 | K63: =Values!$S$22 -> 2.691764706 | L63: =Values!$S$23 -> 2.691764706 | M63: =Values!$S$24 -> 2.691764706
B64: Transporting [€/m³ loose] | C64: =Values!$T$14 -> 1.313939617 | D64: =Values!$T$15 -> 4.010305123 | E64: =Values!$T$16 -> 3.410674609 | F64: =Values!$T$17 -> 1.313939617 | G64: =Values!$T$18 -> 4.659781062 | H64: =Values!$T$19 -> 4.420218828 | I64: =Values!$T$20 -> 5.686391329 | J64: =Values!$T$21 -> 3.896038199 | K64: =Values!$T$22 -> 1.313939617 | L64: =Values!$T$23 -> 4.633924106 | M64: =Values!$T$24 -> 4.586350046
B65: Storing [€/m³ loose] | C65: =Values!$U$14 -> 0.4 | D65: =Values!$U$15 -> 1.6 | E65: =Values!$U$16 -> 0.4 | F65: =Values!$U$17 -> 0.4 | G65: =Values!$U$18 -> 1.6 | H65: =Values!$U$19 -> 1.6 | I65: =Values!$U$20 -> 0.4 | J65: =Values!$U$21 -> 0.4 | K65: =Values!$U$22 -> 0.4 | L65: =Values!$U$23 -> 1.6 | M65: =Values!$U$24 -> 0.4
B66: Supply costs [€/m³ loose] | C66: =SUM(C59:C65) -> 11.74435909 | D66: 15.64072459 | E66: 13.84109408 | F66: 17.73106763 | G66: 22.27690908 | H66: 29.94362047 | I66: 22.10351935 | J66: 28.21943984 | K66: 15.55901625 | L66: 20.07900074 | M66: 18.83142668
B67: Contribution margin [€/m³ loose] | C67: =Values!$V$14 -> 3.324659123 | D67: =Values!$V$15 -> -0.5717063823 | E67: =Values!$V$16 -> 1.227924131 | F67: =Values!$V$17 -> -2.662049422 | G67: =Values!$V$18 -> -7.207890868 | H67: =Values!$V$19 -> -14.87460225 | I67: =Values!$V$20 -> -7.034501134 | J67: =Values!$V$21 -> -13.15042163 | K67: =Values!$V$22 -> -0.4899980361 | L67: =Values!$V$23 -> -5.009982526 | M67: =Values!$V$24 -> -3.762408466
B68: Working hours [h/m³ loose] | C68: =Values!$W$14 -> 0.1104339147 | D68: =Values!$W$15 -> 0.1436919264 | E68: =Values!$W$16 -> 0.1334563082 | F68: =Values!$W$17 -> 0.1767728428 | G68: =Values!$W$18 -> 0.2283318817 | H68: =Values!$W$19 -> 0.2868159189 | I68: =Values!$W$20 -> 0.2282416953 | J68: =Values!$W$21 -> 0.2775234243 | K68: =Values!$W$22 -> 0.1500800292 | L68: =Values!$W$23 -> 0.2012412688 | M68: =Values!$W$24 -> 0.2147722295

Sheet 3b Details C (hidden)
B2: (3b) Detailed analysis C
B4: The detailed analysis shows the utility values ​​and their ranking for different supply chain options. Graphs and tables give a better understanding of the calculation and show the composition of utility values ​​and the impacts on the evaluation criteria.
C5: Category C - Felling (and delimbing) with chain saw, extracting with tower yarder, (delimbing and crosscutting with processor)
C7: Option 1 | D7: Option 2 | E7: Option 3 | F7: Option 4 | G7: Option 5 | H7: Option 6 | I7: Option 7 | J7: Option 8 | K7: Option 9 | L7: Option 10 | M7: Option 11
C8: =C25 -> 9 | D8: =D25 -> 4 | E8: 1 | F8: 7 | G8: 5 | H8: 10 | I8: 2 | J8: 3 | K8: 11 | L8: 8 | M8: 6
B9: Working method | C9: Tree-length | D9: Tree-length | E9: Tree-length | F9: Whole-tree | G9: Whole-tree | H9: Whole-tree | I9: Whole-tree | J9: Whole-tree | K9: Whole-tree | L9: Whole-tree | M9: Whole-tree
B10: Bundling | C10: no | D10: no | E10: no | F10: no | G10: no | H10: yes | I10: no | J10: yes | K10: no | L10: no | M10: no
B11: Kind of energy wood | C11: Logs | D11: Logs | E11: Logs | F11: Residues | G11: Residues | H11: Residues | I11: Residues | J11: Residues | K11: Logs & residues | L11: Logs & residues | M11: Logs & residues
B12: Chipping location | C12: Forest road | D12: Terminal | E12: Plant | F12: Forest road | G12: Terminal | H12: Terminal | I12: Plant | J12: Plant | K12: Forest road | L12: Terminal | M12: Plant
B13: Nutrient loss | C13: ='Supply chains'!$AO$26 -> 0.0425 | D13: ='Supply chains'!$AO$27 -> 0.0425 | E13: ='Supply chains'!$AO$28 -> 0.0425 | F13: ='Supply chains'!$AO$29 -> 0.02166666667 | G13: ='Supply chains'!$AO$30 -> 0.02166666667 | H13: ='Supply chains'!$AO$31 -> 0.02166666667 | I13: ='Supply chains'!$AO$32 -> 0.02166666667 | J13: ='Supply chains'!$AO$33 -> 0.02166666667 | K13: ='Supply chains'!$AO$34 -> 0.02166666667 | L13: ='Supply chains'!$AO$35 -> 0.02166666667 | M13: ='Supply chains'!$AO$36 -> 0.02166666667
B14: Bearing pressure | C14: ='Supply chains'!$AP$26 -> 0.08166666667 | D14: ='Supply chains'!$AP$27 -> 0.08166666667 | E14: ='Supply chains'!$AP$28 -> 0.08166666667 | F14: ='Supply chains'!$AP$29 -> 0.08166666667 | G14: ='Supply chains'!$AP$30 -> 0.08166666667 | H14: ='Supply chains'!$AP$31 -> 0.08166666667 | I14: ='Supply chains'!$AP$32 -> 0.08166666667 | J14: ='Supply chains'!$AP$33 -> 0.08166666667 | K14: ='Supply chains'!$AP$34 -> 0.08166666667 | L14: ='Supply chains'!$AP$35 -> 0.08166666667 | M14: ='Supply chains'!$AP$36 -> 0.08166666667
B15: Energy efficiency | C15: ='Supply chains'!$AW$26 -> 0.07329097351 | D15: ='Supply chains'!$AW$27 -> 0.07166835817 | E15: ='Supply chains'!$AW$28 -> 0.07088262269 | F15: ='Supply chains'!$AW$29 -> 0.08333333333 | G15: ='Supply chains'!$AW$30 -> 0.08333333333 | H15: ='Supply chains'!$AW$31 -> 0.0725891529 | I15: ='Supply chains'!$AW$32 -> 0.08333333333 | J15: ='Supply chains'!$AW$33 -> 0.07077149636 | K15: ='Supply chains'!$AW$34 -> 0.05598676776 | L15: ='Supply chains'!$AW$35 -> 0.05245586263 | M15: ='Supply chains'!$AW$36 -> 0.04753549925
B16: Damage on remaining stand | C16: ='Supply chains'!$AR$26 -> 0.0428125 | D16: ='Supply chains'!$AR$27 -> 0.0428125 | E16: ='Supply chains'!$AR$28 -> 0.0428125 | F16: ='Supply chains'!$AR$29 -> 0.08333333333 | G16: ='Supply chains'!$AR$30 -> 0.08333333333 | H16: ='Supply chains'!$AR$31 -> 0.08333333333 | I16: ='Supply chains'!$AR$32 -> 0.08333333333 | J16: ='Supply chains'!$AR$33 -> 0.08333333333 | K16: ='Supply chains'!$AR$34 -> 0.0428125 | L16: ='Supply chains'!$AR$35 -> 0.0428125 | M16: ='Supply chains'!$AR$36 -> 0.0428125
B17: SUM ECOLOGY | C17: =SUM(C13:C16) -> 0.2402701402 | D17: 0.2386475248 | E17: 0.2378617894 | F17: 0.27 | G17: 0.27 | H17: 0.2592558196 | I17: 0.27 | J17: 0.257438163 | K17: 0.2021326011 | L17: 0.198601696 | M17: 0.1936813326
B18: Contribution margin | C18: ='Supply chains'!$AS$26 -> 0 | D18: ='Supply chains'!$AS$27 -> 0 | E18: ='Supply chains'!$AS$28 -> 0 | F18: ='Supply chains'!$AS$29 -> 0.153959125 | G18: ='Supply chains'!$AS$30 -> 0.1036811155 | H18: ='Supply chains'!$AS$31 -> 0.01888559582 | I18: ='Supply chains'!$AS$32 -> 0.1055988443 | J18: ='Supply chains'!$AS$33 -> 0.03795541404 | K18: ='Supply chains'!$AS$34 -> 0 | L18: ='Supply chains'!$AS$35 -> 0 | M18: ='Supply chains'!$AS$36 -> 0
B19: Supply guarantee | C19: ='Supply chains'!$AT$26 -> 0.05 | D19: ='Supply chains'!$AT$27 -> 0.1 | E19: ='Supply chains'!$AT$28 -> 0.1666666667 | F19: ='Supply chains'!$AT$29 -> 0.01666666667 | G19: ='Supply chains'!$AT$30 -> 0.06666666667 | H19: ='Supply chains'!$AT$31 -> 0.08333333333 | I19: ='Supply chains'!$AT$32 -> 0.1166666667 | J19: ='Supply chains'!$AT$33 -> 0.15 | K19: ='Supply chains'!$AT$34 -> 0.03333333333 | L19: ='Supply chains'!$AT$35 -> 0.08333333333 | M19: ='Supply chains'!$AT$36 -> 0.1333333333
B20: SUM ECONOMY | C20: =SUM(C18:C19) -> 0.05 | D20: 0.1 | E20: 0.1666666667 | F20: 0.1706257917 | G20: 0.1703477822 | H20: 0.1022189292 | I20: 0.2222655109 | J20: 0.187955414 | K20: 0.03333333333 | L20: 0.08333333333 | M20: 0.1333333333
B21: Employment | C21: ='Supply chains'!$AU$26 -> 0.1594472641 | D21: ='Supply chains'!$AU$27 -> 0.1666666667 | E21: ='Supply chains'!$AU$28 -> 0.1666666667 | F21: ='Supply chains'!$AU$29 -> 0.03075116285 | G21: ='Supply chains'!$AU$30 -> 0.05356133678 | H21: ='Supply chains'!$AU$31 -> 0.07943519104 | I21: ='Supply chains'!$AU$32 -> 0.05352143752 | J21: ='Supply chains'!$AU$33 -> 0.07532410941 | K21: ='Supply chains'!$AU$34 -> 0.1495529467 | L21: ='Supply chains'!$AU$35 -> 0.1666666667 | M21: ='Supply chains'!$AU$36 -> 0.1666666667
B22: Working safety | C22: ='Supply chains'!$AV$26 -> 0.01601419414 | D22: ='Supply chains'!$AV$27 -> 0.01601419414 | E22: ='Supply chains'!$AV$28 -> 0.01601419414 | F22: ='Supply chains'!$AV$29 -> 0.02416056166 | G22: ='Supply chains'!$AV$30 -> 0.02416056166 | H22: ='Supply chains'!$AV$31 -> 0.02416056166 | I22: ='Supply chains'!$AV$32 -> 0.02416056166 | J22: ='Supply chains'!$AV$33 -> 0.02416056166 | K22: ='Supply chains'!$AV$34 -> 0.02416056166 | L22: ='Supply chains'!$AV$35 -> 0.02416056166 | M22: ='Supply chains'!$AV$36 -> 0.02416056166
B23: SUM SOCIAL | C23: =SUM(C21:C22) -> 0.1754614582 | D23: 0.1826808608 | E23: 0.1826808608 | F23: 0.05491172451 | G23: 0.07772189844 | H23: 0.1035957527 | I23: 0.07768199918 | J23: 0.09948467107 | K23: 0.1737135084 | L23: 0.1908272283 | M23: 0.1908272283
B24: UTILITY VALUE | C24: =C17+C20+C23 -> 0.4657315984 | D24: 0.5213283856 | E24: 0.5872093168 | F24: 0.4955375162 | G24: 0.5180696806 | H24: 0.4650705014 | I24: 0.5699475101 | J24: 0.5448782481 | K24: 0.4091794428 | L24: 0.4727622576 | M24: 0.5178418942
B25: RANK | C25: =RANK(C24,$C$24:$M$24,0) -> 9 | D25: 4 | E25: 1 | F25: 7 | G25: 5 | H25: 10 | I25: 2 | J25: 3 | K25: 11 | L25: 8 | M25: 6
C49: A utility value of 0 indicates that the system is technically not applicable. These restrictions are determined by the entered site & stand specification data.
B51: Trade-offs | C51: =C25 -> 9 | D51: =D25 -> 4 | E51: 1 | F51: 7 | G51: 5 | H51: 10 | I51: 2 | J51: 3 | K51: 11 | L51: 8 | M51: 6
C52: Option 1 | D52: Option 2 | E52: Option 3 | F52: Option 4 | G52: Option 5 | H52: Option 6 | I52: Option 7 | J52: Option 8 | K52: Option 9 | L52: Option 10 | M52: Option 11
B53: Nutrient loss [kg/ha] | C53: =Values!$K$25 -> 640 | D53: =Values!$K$26 -> 640 | E53: =Values!$K$27 -> 640 | F53: =Values!$K$28 -> 960 | G53: =Values!$K$29 -> 960 | H53: =Values!$K$30 -> 960 | I53: =Values!$K$31 -> 960 | J53: =Values!$K$32 -> 960 | K53: =Values!$K$33 -> 960 | L53: =Values!$K$34 -> 960 | M53: =Values!$K$35 -> 960
B54: Bearing pressure [kPa] | C54: =Values!$L$25 -> 10 | D54: =Values!$L$26 -> 10 | E54: =Values!$L$27 -> 10 | F54: =Values!$L$28 -> 10 | G54: =Values!$L$29 -> 10 | H54: =Values!$L$30 -> 10 | I54: =Values!$L$31 -> 10 | J54: =Values!$L$32 -> 10 | K54: =Values!$L$33 -> 10 | L54: =Values!$L$34 -> 10 | M54: =Values!$L$35 -> 10
B55: Emissions [kg CO2/m³ loose] | C55: =Values!$M$25 -> 4.424394983 | D55: =Values!$M$26 -> 4.53611825 | E55: =Values!$M$27 -> 4.590219141 | F55: =Values!$M$28 -> 3.00158236 | G55: =Values!$M$29 -> 3.247368648 | H55: =Values!$M$30 -> 4.55883872 | I55: =Values!$M$31 -> 3.591939416 | J55: =Values!$M$32 -> 4.68399132 | K55: =Values!$M$33 -> 5.646613075 | L55: =Values!$M$34 -> 5.889729388 | M55: =Values!$M$35 -> 6.22851521
B56: Energy demand [KWh/m³ loose] | C56: =Values!$X$25 -> 17.79293127 | D56: =Values!$X$26 -> 18.23305323 | E56: =Values!$X$27 -> 18.44617795 | F56: =Values!$X$28 -> 11.84864846 | G56: =Values!$X$29 -> 12.81689747 | H56: =Values!$X$30 -> 17.98329472 | I56: =Values!$X$31 -> 14.17429747 | J56: =Values!$X$32 -> 18.47632012 | K56: =Values!$X$33 -> 22.48656432 | L56: =Values!$X$34 -> 23.44429524 | M56: =Values!$X$35 -> 24.77890606
B57: Energy efficiency [%] | C57: =1-Values!$Y$25 -> 0.9763847505 | D57: =1-Values!$Y$26 -> 0.9758006089 | E57: =1-Values!$Y$27 -> 0.9755177442 | F57: =1-Values!$Y$28 -> 0.98427416 | G57: =1-Values!$Y$29 -> 0.9829890743 | H57: =1-Values!$Y$30 -> 0.976132095 | I57: =1-Values!$Y$31 -> 0.9811874971 | J57: =1-Values!$Y$32 -> 0.9754777387 | K57: =1-Values!$Y$33 -> 0.9701552364 | L57: =1-Values!$Y$34 -> 0.9688841105 | M57: =1-Values!$Y$35 -> 0.9671127797
B58: Damage on remaining stand [%] | C58: =Values!$N$25 -> 0.2945 | D58: =Values!$N$26 -> 0.2945 | E58: =Values!$N$27 -> 0.2945 | F58: =Values!$N$28 -> 0.031745 | G58: =Values!$N$29 -> 0.031745 | H58: =Values!$N$30 -> 0.031745 | I58: =Values!$N$31 -> 0.031745 | J58: =Values!$N$32 -> 0.031745 | K58: =Values!$N$33 -> 0.2945 | L58: =Values!$N$34 -> 0.2945 | M58: =Values!$N$35 -> 0.2945
B59: Purchase [€/m³ loose] | C59: =Values!$O$25 -> 0.4520705464 | D59: =Values!$O$26 -> 0.4520705464 | E59: =Values!$O$27 -> 0.4520705464 | F59: =Values!$O$28 -> 0.4520705464 | G59: =Values!$O$29 -> 0.4520705464 | H59: =Values!$O$30 -> 0.4520705464 | I59: =Values!$O$31 -> 0.4520705464 | J59: =Values!$O$32 -> 0.4520705464 | K59: =Values!$O$33 -> 0.4520705464 | L59: =Values!$O$34 -> 0.4520705464 | M59: =Values!$O$35 -> 0.4520705464
B60: Felling and delimbing [€/m³ loose] | C60: =Values!$P$25 -> 7.384 | D60: =Values!$P$26 -> 7.384 | E60: =Values!$P$27 -> 7.384 | F60: =Values!$P$28 -> 0.9498666667 | G60: =Values!$P$29 -> 0.9498666667 | H60: =Values!$P$30 -> 0.9498666667 | I60: =Values!$P$31 -> 0.9498666667 | J60: =Values!$P$32 -> 0.9498666667 | K60: =Values!$P$33 -> 9.498666667 | L60: =Values!$P$34 -> 9.498666667 | M60: =Values!$P$35 -> 9.498666667
B61: Extracting [€/m³ loose] | C61: =Values!$Q$25 -> 11.67573333 | D61: =Values!$Q$26 -> 11.67573333 | E61: =Values!$Q$27 -> 11.67573333 | F61: =Values!$Q$28 -> 1.167573333 | G61: =Values!$Q$29 -> 1.167573333 | H61: =Values!$Q$30 -> 1.167573333 | I61: =Values!$Q$31 -> 1.167573333 | J61: =Values!$Q$32 -> 1.167573333 | K61: =Values!$Q$33 -> 11.67573333 | L61: =Values!$Q$34 -> 11.67573333 | M61: =Values!$Q$35 -> 11.67573333
B62: Bundling [€/m³ loose] | C62: =Values!$R$25 -> 0 | D62: =Values!$R$26 -> 0 | E62: =Values!$R$27 -> 0 | F62: =Values!$R$28 -> 0 | G62: =Values!$R$29 -> 0 | H62: =Values!$R$30 -> 10.1877551 | I62: =Values!$R$31 -> 0 | J62: =Values!$R$32 -> 10.1877551 | K62: =Values!$R$33 -> 0 | L62: =Values!$R$34 -> 0 | M62: =Values!$R$35 -> 0
B63: Chipping [€/m³ loose] | C63: =Values!$S$25 -> 1.707462687 | D63: =Values!$S$26 -> 1.707462687 | E63: =Values!$S$27 -> 1.707462687 | F63: =Values!$S$28 -> 4.4 | G63: =Values!$S$29 -> 4.4 | H63: =Values!$S$30 -> 2.118518519 | I63: =Values!$S$31 -> 4.4 | J63: =Values!$S$32 -> 2.118518519 | K63: =Values!$S$33 -> 2.691764706 | L63: =Values!$S$34 -> 2.691764706 | M63: =Values!$S$35 -> 2.691764706
B64: Transporting [€/m³ loose] | C64: =Values!$T$25 -> 1.313939617 | D64: =Values!$T$26 -> 4.010305123 | E64: =Values!$T$27 -> 3.410674609 | F64: =Values!$T$28 -> 1.313939617 | G64: =Values!$T$29 -> 4.659781062 | H64: =Values!$T$30 -> 4.420218828 | I64: =Values!$T$31 -> 5.686391329 | J64: =Values!$T$32 -> 3.896038199 | K64: =Values!$T$33 -> 1.313939617 | L64: =Values!$T$34 -> 4.633924106 | M64: =Values!$T$35 -> 4.586350046
B65: Storing [€/m³ loose] | C65: =Values!$U$25 -> 0.4 | D65: =Values!$U$26 -> 1.6 | E65: =Values!$U$27 -> 0.4 | F65: =Values!$U$28 -> 0.4 | G65: =Values!$U$29 -> 1.6 | H65: =Values!$U$30 -> 1.6 | I65: =Values!$U$31 -> 0.4 | J65: =Values!$U$32 -> 0.4 | K65: =Values!$U$33 -> 0.4 | L65: =Values!$U$34 -> 1.6 | M65: =Values!$U$35 -> 0.4
B66: Supply costs [€/m³ loose] | C66: =SUM(C59:C65) -> 22.93320618 | D66: 26.82957169 | E66: 25.02994118 | F66: 8.683450163 | G66: 13.22929161 | H66: 20.89600299 | I66: 13.05590188 | J66: =SUM(J59:J65) -> 19.17182237 | K66: 26.03217487 | L66: 30.55215936 | M66: 29.3045853
B67: Contribution margin [€/m³ loose] | C67: =Values!$V$25 -> -7.864187971 | D67: =Values!$V$26 -> -11.76055348 | E67: =Values!$V$27 -> -9.960922963 | F67: =Values!$V$28 -> 6.385568049 | G67: =Values!$V$29 -> 1.839726604 | H67: =Values!$V$30 -> -5.826984782 | I67: =Values!$V$31 -> 2.013116337 | J67: =Values!$V$32 -> -4.102804154 | K67: =Values!$V$33 -> -10.96315666 | L67: =Values!$V$34 -> -15.48314115 | M67: =Values!$V$35 -> -14.23556709
B68: Working hours [h/m³ loose] | C68: =Values!$W$25 -> 0.360407059 | D68: =Values!$W$26 -> 0.3936650707 | E68: =Values!$W$27 -> 0.3834294525 | F68: =Values!$W$28 -> 0.06950847496 | G68: =Values!$W$29 -> 0.1210675139 | H68: =Values!$W$30 -> 0.1795515511 | I68: =Values!$W$31 -> 0.1209773275 | J68: =Values!$W$32 -> 0.1702590565 | K68: =Values!$W$33 -> 0.3380424116 | L68: =Values!$W$34 -> 0.3892036513 | M68: =Values!$W$35 -> 0.402734612

Sheet 3b Details D (hidden)
B2: (3b) Detailed analysis D
B4: The detailed analysis shows the utility values ​​and their ranking for different supply chain options. Graphs and tables give a better understanding of the calculation and show the composition of utility values ​​and the impacts on the evaluation criteria.
C5: Category D - Felling (and delimbing) with chain saw, extracting with skidder, (delimbing and crosscutting with processor)
C7: Option 1 | D7: Option 2 | E7: Option 3 | F7: Option 4 | G7: Option 5 | H7: Option 6 | I7: Option 7 | J7: Option 8 | K7: Option 9 | L7: Option 10 | M7: Option 11
C8: =C25 -> 6 | D8: =D25 -> 4 | E8: 1 | F8: 8 | G8: 7 | H8: 10 | I8: 2 | J8: 3 | K8: 11 | L8: 9 | M8: 5
B9: Working method | C9: Tree-length | D9: Tree-length | E9: Tree-length | F9: Whole-tree | G9: Whole-tree | H9: Whole-tree | I9: Whole-tree | J9: Whole-tree | K9: Whole-tree | L9: Whole-tree | M9: Whole-tree
B10: Bundling | C10: no | D10: no | E10: no | F10: no | G10: no | H10: yes | I10: no | J10: yes | K10: no | L10: no | M10: no
B11: Kind of energy wood | C11: Logs | D11: Logs | E11: Logs | F11: Residues | G11: Residues | H11: Residues | I11: Residues | J11: Residues | K11: Logs & residues | L11: Logs & residues | M11: Logs & residues
B12: Chipping location | C12: Forest road | D12: Terminal | E12: Plant | F12: Forest road | G12: Terminal | H12: Terminal | I12: Plant | J12: Plant | K12: Forest road | L12: Terminal | M12: Plant
B13: Nutrient loss | C13: ='Supply chains'!$AO$37 -> 0.0425 | D13: ='Supply chains'!$AO$38 -> 0.0425 | E13: ='Supply chains'!$AO$39 -> 0.0425 | F13: ='Supply chains'!$AO$40 -> 0.02166666667 | G13: ='Supply chains'!$AO$41 -> 0.02166666667 | H13: ='Supply chains'!$AO$42 -> 0.02166666667 | I13: ='Supply chains'!$AO$43 -> 0.02166666667 | J13: ='Supply chains'!$AO$44 -> 0.02166666667 | K13: ='Supply chains'!$AO$45 -> 0.02166666667 | L13: ='Supply chains'!$AO$46 -> 0.02166666667 | M13: ='Supply chains'!$AO$47 -> 0.02166666667
B14: Bearing pressure | C14: ='Supply chains'!$AP$37 -> 0.045 | D14: ='Supply chains'!$AP$38 -> 0.045 | E14: ='Supply chains'!$AP$39 -> 0.045 | F14: ='Supply chains'!$AP$40 -> 0.045 | G14: ='Supply chains'!$AP$41 -> 0.045 | H14: ='Supply chains'!$AP$42 -> 0.045 | I14: ='Supply chains'!$AP$43 -> 0.045 | J14: ='Supply chains'!$AP$44 -> 0.045 | K14: ='Supply chains'!$AP$45 -> 0.045 | L14: ='Supply chains'!$AP$46 -> 0.045 | M14: ='Supply chains'!$AP$47 -> 0.045
B15: Energy efficiency | C15: ='Supply chains'!$AW$37 -> 0.08333333333 | D15: ='Supply chains'!$AW$38 -> 0.08333333333 | E15: ='Supply chains'!$AW$39 -> 0.08333333333 | F15: ='Supply chains'!$AW$40 -> 0.08333333333 | G15: ='Supply chains'!$AW$41 -> 0.08333333333 | H15: ='Supply chains'!$AW$42 -> 0.07555632008 | I15: ='Supply chains'!$AW$43 -> 0.08333333333 | J15: ='Supply chains'!$AW$44 -> 0.07373866354 | K15: ='Supply chains'!$AW$45 -> 0.08333333333 | L15: ='Supply chains'!$AW$46 -> 0.08212753444 | M15: ='Supply chains'!$AW$47 -> 0.07720717107
B16: Damage on remaining stand | C16: ='Supply chains'!$AR$37 -> 0.0428125 | D16: ='Supply chains'!$AR$38 -> 0.0428125 | E16: ='Supply chains'!$AR$39 -> 0.0428125 | F16: ='Supply chains'!$AR$40 -> 0.08333333333 | G16: ='Supply chains'!$AR$41 -> 0.08333333333 | H16: ='Supply chains'!$AR$42 -> 0.08333333333 | I16: ='Supply chains'!$AR$43 -> 0.08333333333 | J16: ='Supply chains'!$AR$44 -> 0.08333333333 | K16: ='Supply chains'!$AR$45 -> 0.0428125 | L16: ='Supply chains'!$AR$46 -> 0.0428125 | M16: ='Supply chains'!$AR$47 -> 0.0428125
B17: SUM ECOLOGY | C17: =SUM(C13:C16) -> 0.2136458333 | D17: 0.2136458333 | E17: 0.2136458333 | F17: 0.2333333333 | G17: 0.2333333333 | H17: 0.2255563201 | I17: 0.2333333333 | J17: 0.2237386635 | K17: 0.1928125 | L17: 0.1916067011 | M17: 0.1866863377
B18: Contribution margin | C18: ='Supply chains'!$AS$37 -> 0.08561408388 | D18: ='Supply chains'!$AS$38 -> 0.04251942159 | E18: ='Supply chains'!$AS$39 -> 0.06242373219 | F18: ='Supply chains'!$AS$40 -> 0.1632839234 | G18: ='Supply chains'!$AS$41 -> 0.1130059138 | H18: ='Supply chains'!$AS$42 -> 0.02821039413 | I18: ='Supply chains'!$AS$43 -> 0.1149236426 | J18: ='Supply chains'!$AS$44 -> 0.04728021235 | K18: ='Supply chains'!$AS$45 -> 0.0553263846 | L18: ='Supply chains'!$AS$46 -> 0.005334358731 | M18: ='Supply chains'!$AS$47 -> 0.01913280313
B19: Supply guarantee | C19: ='Supply chains'!$AT$37 -> 0.05 | D19: ='Supply chains'!$AT$38 -> 0.1 | E19: ='Supply chains'!$AT$39 -> 0.1666666667 | F19: ='Supply chains'!$AT$40 -> 0.01666666667 | G19: ='Supply chains'!$AT$41 -> 0.06666666667 | H19: ='Supply chains'!$AT$42 -> 0.08333333333 | I19: ='Supply chains'!$AT$43 -> 0.1166666667 | J19: ='Supply chains'!$AT$44 -> 0.15 | K19: ='Supply chains'!$AT$45 -> 0.03333333333 | L19: ='Supply chains'!$AT$46 -> 0.08333333333 | M19: ='Supply chains'!$AT$47 -> 0.1333333333
B20: SUM ECONOMY | C20: =SUM(C18:C19) -> 0.1356140839 | D20: 0.1425194216 | E20: 0.2290903989 | F20: 0.17995059 | G20: 0.1796725805 | H20: 0.1115437275 | I20: 0.2315903092 | J20: 0.1972802123 | K20: 0.08865971793 | L20: 0.08866769206 | M20: 0.1524661365
B21: Employment | C21: ='Supply chains'!$AU$37 -> 0.1299533423 | D21: ='Supply chains'!$AU$38 -> 0.1446669802 | E21: ='Supply chains'!$AU$39 -> 0.1401386524 | F21: ='Supply chains'!$AU$40 -> 0.02750683145 | G21: ='Supply chains'!$AU$41 -> 0.05031700539 | H21: ='Supply chains'!$AU$42 -> 0.07619085965 | I21: ='Supply chains'!$AU$43 -> 0.05027710612 | J21: ='Supply chains'!$AU$44 -> 0.07207977801 | K21: ='Supply chains'!$AU$45 -> 0.1171096327 | L21: ='Supply chains'!$AU$46 -> 0.1397438167 | M21: ='Supply chains'!$AU$47 -> 0.1457300332
B22: Working safety | C22: ='Supply chains'!$AV$37 -> 0.01601419414 | D22: ='Supply chains'!$AV$38 -> 0.01601419414 | E22: ='Supply chains'!$AV$39 -> 0.01601419414 | F22: ='Supply chains'!$AV$40 -> 0.02416056166 | G22: ='Supply chains'!$AV$41 -> 0.02416056166 | H22: ='Supply chains'!$AV$42 -> 0.02416056166 | I22: ='Supply chains'!$AV$43 -> 0.02416056166 | J22: ='Supply chains'!$AV$44 -> 0.02416056166 | K22: ='Supply chains'!$AV$45 -> 0.02416056166 | L22: ='Supply chains'!$AV$46 -> 0.02416056166 | M22: ='Supply chains'!$AV$47 -> 0.02416056166
B23: SUM SOCIAL | C23: =SUM(C21:C22) -> 0.1459675364 | D23: 0.1606811744 | E23: 0.1561528466 | F23: 0.05166739311 | G23: 0.07447756705 | H23: 0.1003514213 | I23: 0.07443766778 | J23: 0.09624033967 | K23: 0.1412701944 | L23: 0.1639043784 | M23: 0.1698905949
B24: UTILITY VALUE | C24: =C17+C20+C23 -> 0.4952274537 | D24: 0.5168464293 | E24: 0.5988890787 | F24: 0.4649513165 | G24: 0.4874834809 | H24: 0.4374514688 | I24: 0.5393613103 | J24: 0.5172592156 | K24: 0.4227424123 | L24: 0.4441787716 | M24: 0.5090430691
B25: RANK | C25: =RANK(C24,$C$24:$M$24,0) -> 6 | D25: 4 | E25: 1 | F25: 8 | G25: 7 | H25: 10 | I25: 2 | J25: 3 | K25: 11 | L25: 9 | M25: 5
C49: A utility value of 0 indicates that the system is technically not applicable. These restrictions are determined by the entered site & stand specification data.
B51: Trade-offs | C51: =C25 -> 6 | D51: =D25 -> 4 | E51: 1 | F51: 8 | G51: 7 | H51: 10 | I51: 2 | J51: 3 | K51: 11 | L51: 9 | M51: 5
C52: Option 1 | D52: Option 2 | E52: Option 3 | F52: Option 4 | G52: Option 5 | H52: Option 6 | I52: Option 7 | J52: Option 8 | K52: Option 9 | L52: Option 10 | M52: Option 11
B53: Nutrient loss [kg/ha] | C53: =Values!$K$36 -> 640 | D53: =Values!$K$37 -> 640 | E53: =Values!$K$38 -> 640 | F53: =Values!$K$39 -> 960 | G53: =Values!$K$40 -> 960 | H53: =Values!$K$41 -> 960 | I53: =Values!$K$42 -> 960 | J53: =Values!$K$43 -> 960 | K53: =Values!$K$44 -> 960 | L53: =Values!$K$45 -> 960 | M53: =Values!$K$46 -> 960
B54: Bearing pressure [kPa] | C54: =Values!$L$36 -> 230 | D54: =Values!$L$37 -> 230 | E54: =Values!$L$38 -> 230 | F54: =Values!$L$39 -> 230 | G54: =Values!$L$40 -> 230 | H54: =Values!$L$41 -> 230 | I54: =Values!$L$42 -> 230 | J54: =Values!$L$43 -> 230 | K54: =Values!$L$44 -> 230 | L54: =Values!$L$45 -> 230 | M54: =Values!$L$46 -> 230
B55: Emissions [kg CO2/m³ loose] | C55: =Values!$M$36 -> 2.467274983 | D55: =Values!$M$37 -> 2.57899825 | E55: =Values!$M$38 -> 2.633099141 | F55: =Values!$M$39 -> 2.79728156 | G55: =Values!$M$40 -> 3.043067848 | H55: =Values!$M$41 -> 4.35453792 | I55: =Values!$M$42 -> 3.387638616 | J55: =Values!$M$43 -> 4.47969052 | K55: =Values!$M$44 -> 3.603605075 | L55: =Values!$M$45 -> 3.846721388 | M55: =Values!$M$46 -> 4.18550721
B56: Energy demand [KWh/m³ loose] | C56: =Values!$X$36 -> 10.0830646 | D56: =Values!$X$37 -> 10.52318656 | E56: =Values!$X$38 -> 10.73631128 | F56: =Values!$X$39 -> 11.04382712 | G56: =Values!$X$40 -> 12.01207614 | H56: =Values!$X$41 -> 17.17847339 | I56: =Values!$X$42 -> 13.36947613 | J56: =Values!$X$43 -> 17.67149878 | K56: =Values!$X$44 -> 14.43835098 | L56: =Values!$X$45 -> 15.39608191 | M56: =Values!$X$46 -> 16.73069273
B57: Energy efficiency [%] | C57: =1-Values!$Y$36 -> 0.9866174897 | D57: =1-Values!$Y$37 -> 0.9860333481 | E57: =1-Values!$Y$38 -> 0.9857504834 | F57: =1-Values!$Y$39 -> 0.9853423402 | G57: =1-Values!$Y$40 -> 0.9840572545 | H57: =1-Values!$Y$41 -> 0.9772002752 | I57: =1-Values!$Y$42 -> 0.9822556773 | J57: =1-Values!$Y$43 -> 0.9765459189 | K57: =1-Values!$Y$44 -> 0.9808370382 | L57: =1-Values!$Y$45 -> 0.9795659124 | M57: =1-Values!$Y$46 -> 0.9777945816
B58: Damage on remaining stand [%] | C58: =Values!$N$36 -> 0.2945 | D58: =Values!$N$37 -> 0.2945 | E58: =Values!$N$38 -> 0.2945 | F58: =Values!$N$39 -> 0.031745 | G58: =Values!$N$40 -> 0.031745 | H58: =Values!$N$41 -> 0.031745 | I58: =Values!$N$42 -> 0.031745 | J58: =Values!$N$43 -> 0.031745 | K58: =Values!$N$44 -> 0.2945 | L58: =Values!$N$45 -> 0.2945 | M58: =Values!$N$46 -> 0.2945
B59: Purchase [€/m³ loose] | C59: =Values!$O$36 -> 0.4520705464 | D59: =Values!$O$37 -> 0.4520705464 | E59: =Values!$O$38 -> 0.4520705464 | F59: =Values!$O$39 -> 0.4520705464 | G59: =Values!$O$40 -> 0.4520705464 | H59: =Values!$O$41 -> 0.4520705464 | I59: =Values!$O$42 -> 0.4520705464 | J59: =Values!$O$43 -> 0.4520705464 | K59: =Values!$O$44 -> 0.4520705464 | L59: =Values!$O$45 -> 0.4520705464 | M59: =Values!$O$46 -> 0.4520705464
B60: Felling and delimbing [€/m³ loose] | C60: =Values!$P$36 -> 7.384 | D60: =Values!$P$37 -> 7.384 | E60: =Values!$P$38 -> 7.384 | F60: =Values!$P$39 -> 0.9498666667 | G60: =Values!$P$40 -> 0.9498666667 | H60: =Values!$P$41 -> 0.9498666667 | I60: =Values!$P$42 -> 0.9498666667 | J60: =Values!$P$43 -> 0.9498666667 | K60: =Values!$P$44 -> 9.498666667 | L60: =Values!$P$45 -> 9.498666667 | M60: =Values!$P$46 -> 9.498666667
B61: Extracting [€/m³ loose] | C61: =Values!$Q$36 -> 3.605333333 | D61: =Values!$Q$37 -> 3.605333333 | E61: =Values!$Q$38 -> 3.605333333 | F61: =Values!$Q$39 -> 0.32448 | G61: =Values!$Q$40 -> 0.32448 | H61: =Values!$Q$41 -> 0.32448 | I61: =Values!$Q$42 -> 0.32448 | J61: =Values!$Q$43 -> 0.32448 | K61: =Values!$Q$44 -> 3.2448 | L61: =Values!$Q$45 -> 3.2448 | M61: =Values!$Q$46 -> 3.2448
B62: Bundling [€/m³ loose] | C62: =Values!$R$36 -> 0 | D62: =Values!$R$37 -> 0 | E62: =Values!$R$38 -> 0 | F62: =Values!$R$39 -> 0 | G62: =Values!$R$40 -> 0 | H62: =Values!$R$41 -> 10.1877551 | I62: =Values!$R$42 -> 0 | J62: =Values!$R$43 -> 10.1877551 | K62: =Values!$R$44 -> 0 | L62: =Values!$R$45 -> 0 | M62: =Values!$R$46 -> 0
B63: Chipping [€/m³ loose] | C63: =Values!$S$36 -> 1.707462687 | D63: =Values!$S$37 -> 1.707462687 | E63: =Values!$S$38 -> 1.707462687 | F63: =Values!$S$39 -> 4.4 | G63: =Values!$S$40 -> 4.4 | H63: =Values!$S$41 -> 2.118518519 | I63: =Values!$S$42 -> 4.4 | J63: =Values!$S$43 -> 2.118518519 | K63: =Values!$S$44 -> 2.691764706 | L63: =Values!$S$45 -> 2.691764706 | M63: =Values!$S$46 -> 2.691764706
B64: Transporting [€/m³ loose] | C64: =Values!$T$36 -> 1.313939617 | D64: =Values!$T$37 -> 4.010305123 | E64: =Values!$T$38 -> 3.410674609 | F64: =Values!$T$39 -> 1.313939617 | G64: =Values!$T$40 -> 4.659781062 | H64: =Values!$T$41 -> 4.420218828 | I64: =Values!$T$42 -> 5.686391329 | J64: =Values!$T$43 -> 3.896038199 | K64: =Values!$T$44 -> 1.313939617 | L64: =Values!$T$45 -> 4.633924106 | M64: =Values!$T$46 -> 4.586350046
B65: Storing [€/m³ loose] | C65: =Values!$U$36 -> 0.4 | D65: =Values!$U$37 -> 1.6 | E65: =Values!$U$38 -> 0.4 | F65: =Values!$U$39 -> 0.4 | G65: =Values!$U$40 -> 1.6 | H65: =Values!$U$41 -> 1.6 | I65: =Values!$U$42 -> 0.4 | J65: =Values!$U$43 -> 0.4 | K65: =Values!$U$44 -> 0.4 | L65: =Values!$U$45 -> 1.6 | M65: =Values!$U$46 -> 0.4
B66: Supply costs [€/m³ loose] | C66: =SUM(C59:C65) -> 14.86280618 | D66: 18.75917169 | E66: 16.95954118 | F66: 7.84035683 | G66: 12.38619828 | H66: 20.05290966 | I66: 12.21280854 | J66: 18.32872903 | K66: 17.60124154 | L66: 22.12122603 | M66: 20.87365197
B67: Contribution margin [€/m³ loose] | C67: =Values!$V$36 -> 0.2062120292 | D67: =Values!$V$37 -> -3.690153477 | E67: =Values!$V$38 -> -1.890522963 | F67: =Values!$V$39 -> 7.228661382 | G67: =Values!$V$40 -> 2.682819937 | H67: =Values!$V$41 -> -4.983891449 | I67: =Values!$V$42 -> 2.85620967 | J67: =Values!$V$43 -> -3.259710821 | K67: =Values!$V$44 -> -2.532223323 | L67: =Values!$V$45 -> -7.052207813 | M67: =Values!$V$46 -> -5.804633753
B68: Working hours [h/m³ loose] | C68: =Values!$W$36 -> 0.2937403923 | D68: =Values!$W$37 -> 0.326998404 | E68: =Values!$W$38 -> 0.3167627858 | F68: =Values!$W$39 -> 0.06217514162 | G68: =Values!$W$40 -> 0.1137341806 | H68: =Values!$W$41 -> 0.1722182177 | I68: =Values!$W$42 -> 0.1136439942 | J68: =Values!$W$43 -> 0.1629257231 | K68: =Values!$W$44 -> 0.2647090783 | L68: =Values!$W$45 -> 0.3158703179 | M68: =Values!$W$46 -> 0.3294012787

Sheet 3b Details F (hidden)
B2: (3b) Detailed analysis F
B4: The detailed analysis shows the utility values ​​and their ranking for different supply chain options. Graphs and tables give a better understanding of the calculation and show the composition of utility values ​​and the impacts on the evaluation criteria.
C5: Category F - Felling with feller-buncher, extracting with forwarder
C7: Option 1 | D7: Option 2 | E7: Option 3
C8: =C25 -> 3 | D8: =D25 -> 2 | E8: 1
B9: Working method | C9: Whole-tree | D9: Whole-tree | E9: Whole-tree
B10: Bundling | C10: no | D10: no | E10: no
B11: Kind of energy wood | C11: Logs & residues | D11: Logs & residues | E11: Logs & residues
B12: Chipping location | C12: Forest road | D12: Terminal | E12: Plant
B13: Nutrient loss | C13: ='Supply chains'!$AO$49 -> 0.02166666667 | D13: ='Supply chains'!$AO$50 -> 0.02166666667 | E13: ='Supply chains'!$AO$51 -> 0.02166666667
B14: Bearing pressure | C14: ='Supply chains'!$AP$49 -> 0.03333333333 | D14: ='Supply chains'!$AP$50 -> 0.03333333333 | E14: ='Supply chains'!$AP$51 -> 0.03333333333
B15: Energy efficiency | C15: ='Supply chains'!$AW$49 -> 0.06429886771 | D15: ='Supply chains'!$AW$50 -> 0.06076796257 | E15: ='Supply chains'!$AW$51 -> 0.0558475992
